{"text_format":"1","workbook":"xlsx","n_sheets":17,"sheets":["Homepage","Vehicle Categories","Question 1(a)","Question 1(b)","Question 1(c) ","Question 1 (d)","Question 1(e)","Question 1 (f)","Question 2","Question 3","Question 4 (a)","Question 4 b,c and d guidance","4(b)","4(c)","4(d)","Question 5","References"],"not_rendered":{"charts":0,"images":1,"macros":1,"external_links":3,"defined_names":144,"comments":2,"pivot_tables":0},"unopened":[],"bounds":{"document_bytes":16777216,"sheet_cells":100000,"rows_first":2000,"rows_last":500,"rows_between":2000,"halvings":0,"cell_chars":16384,"cell_head_chars":4096},"cells_cut":0,"cells_raw":0,"read":"whole","date_system":"1900"}

{"sheet":"Homepage","index":0,"n_rows":17,"n_cols":3,"rows_kept":17,"cut":false,"hidden":false,"merged":[]}
[]
[null,"Homepage / Index"]
[]
[null,"Tab Name","Description"]
[null,"Vehicle Categories ","Vehicle categories descriptions"]
[null,"Question 1(a)","Historical (typically at least 15 years) view of total portfolio size including rate change, loss ratios and frequencies "]
[null,"Question 1(b)","Detailed data on vehicle type and driver age and gender"]
[null,"Question 1(c)","Similar to 1 (b) but with allowance for client specific data enrichment features to be captured"]
[null,"Question 1(d)","Territorial and non-annual policy breakdowns"]
[null,"Question 1(e)","Questions on excesses, non-RTA liabilities, telematics, autonomy, haz chem, learners and airside exposures"]
[null,"Question 1(f)","Claims management, PPO's and other issues"]
[null,"Question 2","Co-insured fleets / schemes and also business with large self insured retentions / aggregate deductibles"]
[null,"Question 3","Vehicle count and total values per postcode sector, accumulations and peak single vehicle values"]
[null,"Question 4 (a)","Historic per claim triangulation"]
[null,"Question 5","Full PPO data on a per claim(ant) basis"]
[]
[null,"Note that there is a references tab that should be used as a guide when populating some of the fields, specifically on claims information"]

{"sheet":"Vehicle Categories","index":1,"n_rows":26,"n_cols":4,"rows_kept":26,"cut":false,"hidden":false,"merged":[[0,1,0,2]]}
[null,"Return to homepage"]
[]
[]
[null,"Category","Full description","Short name"]
[]
[null,1,"Motor Cars","Motor Cars"]
[]
[null,2,"Light commercial vehicles (carrying capacity up to and including 3.5 tonnes)","Light CV"]
[]
[null,3,"Medium commercial vehicles (carrying capacity over 3.5 tonnes up to and including 17 tonnes) ","Medium CV"]
[]
[null,4,"Heavy commercial vehicles (carrying capacity over 17 tonnes)","Heavy CV"]
[]
[null,5,"Buses, minibuses and coaches i.e. vehicles with a seating capacity greater than 9 (incl. the driver)","Buses, coaches etc"]
[]
[null,6,"Taxis, private and public hire vehicles","Taxis etc"]
[]
[null,7,"Self-drive hire vehicles","SDH"]
[]
[null,8,"Tankers/Petrol Tankers/Vehicles carrying hazardous goods","Tankers, hazardous"]
[]
[null,9,"Motor cycles","Motor cycles"]
[]
[null,10,"Motor Trade Road Risks","Motor Trade"]
[]
[null,11,"All others","All others"]

{"sheet":"Question 1(a)","index":2,"n_rows":130,"n_cols":24,"rows_kept":130,"cut":false,"hidden":false,"merged":[[3,17,3,20],[47,15,52,23],[3,22,4,23],[4,15,4,16],[4,17,4,18],[4,19,4,20],[46,15,46,23],[29,15,29,23],[30,15,30,23],[31,15,36,23],[38,15,38,23],[39,15,44,23],[27,3,27,4],[39,1,44,9],[31,1,36,9],[47,1,52,9],[4,11,4,13],[29,11,36,13],[37,11,52,13]]}
[null,"Return to homepage"]
[]
[null,null,"OE = Original Estimate",null,"Gross = of original brokerage, but Net of IPT"]
[null,null,"RE = Revised Estimate",null,"Net = of original brokerage, IPT + other deductions as specified below.",null,null,null,null,null,null,null,null,null,null,null,null,"Rate Change",null,null,null,null,"Number of Third Party Bodily Injury Claims (excluding nil reserves):"]
[null,null,"E = Estimate",null,null,null,null,null,null,null,null,"[To be used in respect of any discountinued business]",null,null,null,"Change in Average Premium",null,"Rate Change applied",null,"Rate Change Achieved"]
[null,"Year","Number of Vehicle Years","Premium Income (Gross)","Average Premium (Gross)","Premium Income (Net)","Average Premium (Net)","Loss Ratio (Define below)","Basis of Premium\n(Accounted / Written / Earned)","Original Brokerage / Commissions",null,"Premium Income (Gross)","Premium Income (Net)","Vehicle Years",null,"Gross Change","Net Change","Gross Change","Net Change","Gross Change","Net Change",null,"From The Ground Up","above GBP 100,000"]
[null,2010,null,null,{"$f":"IF(D7>1,D7/C7,\"N/A\")","v":"N/A"},null,{"$f":"IF(F7>1,F7/C7,\"N/A\")","v":"N/A"},null,null,{"$f":"IF(OR(ISBLANK(D7),ISBLANK(F7)),\"\",(1-F7/D7))","v":""}]
[null,2011,null,null,"N/A",null,"N/A",null,null,"",null,null,null,null,null,{"$f":"IF(E8=\"N/A\",\"N/A\",(E8/E7)-1)","v":"N/A"},{"$f":"IF(G8=\"N/A\",\"N/A\",(G8/G7)-1)","v":"N/A"}]
[null,2012,null,null,"N/A",null,"N/A",null,null,"",null,null,null,null,null,"N/A","N/A"]
[null,2013,null,null,"N/A",null,"N/A",null,null,"",null,null,null,null,null,"N/A","N/A"]
[null,2014,null,null,"N/A",null,"N/A",null,null,"",null,null,null,null,null,"N/A","N/A"]
[null,2015,null,null,"N/A",null,"N/A",null,null,"",null,null,null,null,null,"N/A","N/A"]
[null,2016,null,null,"N/A",null,"N/A",null,null,"",null,null,null,null,null,"N/A","N/A"]
[null,2017,null,null,"N/A",null,"N/A",null,null,"",null,null,null,null,null,"N/A","N/A"]
[null,2018,null,null,"N/A",null,"N/A",null,null,"",null,null,null,null,null,"N/A","N/A"]
[null,2019,null,null,"N/A",null,"N/A",null,null,"",null,null,null,null,null,"N/A","N/A"]
[null,2020,null,null,{"$f":"IF(D17>1,D17/C17,\"N/A\")","v":"N/A"},null,"N/A",null,null,{"$f":"IF(OR(ISBLANK(D17),ISBLANK(F17)),\"\",(1-F17/D17))","v":""},null,null,null,null,null,"N/A","N/A"]
[null,2021,null,null,"N/A",null,"N/A",null,null,{"$f":"IF(OR(ISBLANK(D18),ISBLANK(F18)),\"\",(1-F18/D18))","v":""},null,null,null,null,null,"N/A","N/A"]
[null,2022,null,null,"N/A",null,"N/A",null,null,{"$f":"IF(OR(ISBLANK(D19),ISBLANK(F19)),\"\",(1-F19/D19))","v":""},null,null,null,null,null,"N/A","N/A"]
[null,2023,null,null,"N/A",null,"N/A",null,null,"",null,null,null,null,null,"N/A","N/A"]
[null,2024,null,null,"N/A",null,"N/A",null,null,"",null,null,null,null,null,"N/A","N/A"]
[null,"2025 (OE)",null,null,"N/A",null,"N/A",null,null,"",null,null,null,null,null,"N/A","N/A"]
[null,"2025 (now)",null,null,"N/A",null,"N/A",null,null,"",null,null,null,null,null,"N/A","N/A"]
[null,"2025 (RE)",null,null,{"$f":"IF(D24>1,D24/C24,\"N/A\")","v":"N/A"},null,{"$f":"IF(F24>1,F24/C24,\"N/A\")","v":"N/A"},null,null,"",null,null,null,null,null,{"$f":"IF(E24=\"N/A\",\"N/A\",(E24/E20)-1)","v":"N/A"},{"$f":"IF(G24=\"N/A\",\"N/A\",(G24/G20)-1)","v":"N/A"}]
[]
[null,"2026 (E)",null,null,{"$f":"IF(D26>1,D26/C26,\"N/A\")","v":"N/A"},null,{"$f":"IF(F26>1,F26/C26,\"N/A\")","v":"N/A"},null,null,{"$f":"IF(OR(ISBLANK(D26),ISBLANK(F26)),\"\",(1-F26/D26))","v":""},null,null,null,null,null,{"$f":"IF(E26=\"N/A\",\"N/A\",(E26/E24)-1)","v":"N/A"},{"$f":"IF(G26=\"N/A\",\"N/A\",(G26/G24)-1)","v":"N/A"}]
[]
[null,null,"RI premium adjustment basis next period:","Select here"]
[]
[null,"If the premium or vehicle year basis has changed over time or is on any other basis, please specify.",null,null,null,null,null,null,null,null,null,"If the premium or vehicle year basis expressed in the table above includes any allowance for previously written but now discontinued areas of business, please explain below and provide the data above. Please identify any associated claims in Question 4(a) (column P).",null,null,null,"Please detail any further amounts (in addition to original brokerage and IPT) which may have been deducted from "]
[null,null,null,null,null,null,null,null,null,null,null,null,null,null,null,"gross premium to arrive at the final net premium income as provided above"]
[]
[]
[]
[]
[]
[]
[]
[null,"Please detail how you calculate achieved and applied rate change.",null,null,null,null,null,null,null,null,null,null,null,null,null,"If you have only provided Premium Income on a net basis, please provide additional commentary around levels of original acquisition costs"]
[]
[]
[]
[]
[]
[]
[]
[null,"Please define loss ratio, e.g. premiums gross / net of commissions / brokerage, RI premium. Claims gross / net of XOL RI. Basis - earned, written, ultimate or incurred.",null,null,null,null,null,null,null,null,null,null,null,null,null,"Please provide relevant commentary on the rate changes and the driving factors behind these."]
[]
[]
[]
[]
[]
[]
[]
[]
[]
[]
[]
[]
[]
[]
[]
[]
[]
[]
[]
[]
[]
[]
[]
[]
[]
[]
[]
[]
[]
[]
[]
[]
[]
[]
[]
[]
[]
[]
[]
[]
[]
[]
[]
[]
[]
[]
[]
[]
[]
[]
[]
[]
[]
[]
[]
[]
[]
[]
[]
[]
[]
[]
[]
[]
[]
[]
[]
[]
[]
[]
[]
[]
[]
[]
[]
[]
[]
[]
[]
[null,"Don't delete, for dropdown box:"]
[null,"Gross (as defined)"]
[null,"Net (as defined)"]
[null,"Other (please specify in L32)"]

{"sheet":"Question 1(b)","index":3,"n_rows":147881,"n_cols":14,"rows_kept":4500,"cut":true,"hidden":false,"merged":[[11,1,12,13],[15,1,16,13],[19,1,20,13]],"bounds":{"rows_first":2000,"rows_last":500,"rows_between":2000,"halvings":0}}
[null,"Return to homepage"]
[]
[null,"Please complete the tables below which provide :"]
[]
[null,"A ) profiles of your previous years' business on a complete year basis"]
[null,"B ) your current year portfolio as at :"]
[null,null,"i. - 30.09 ( or end of 3rd quarter )"]
[null,null,"ii. - estimated final at 31.12 ( or end of 4th quarter )"]
[null,"C ) your estimates for the next year"]
[]
[null,"Please define the premium income and vehicle year basis for the information supplied in appendix 1(b)"]
[]
[]
[]
[null,"Please define which risks the age bands represent (e.g. Highest rated driver, Policy Holder)"]
[]
[]
[]
[null,"Please define which vehicles fall within the category of 'All Others' where applicable"]
[]
[]
[]
[null,"FLEET STATUS","Telematics","COVER TYPE","VEHICLE CATEGORY","NCB","Age-Group","Learner Status","Sex","Vehicle Use","Discontinued Business"]
[null,"Fleet","Telematics","Comp","Motor Cars","0-10",17,"Learner","Male","Private","Yes"]
[null,"Non-Fleet","Non-Telematics","Non-Comp","Light Commercial Vehicles","11-20",18,"Non-Learner","Female","Commercial","No"]
[null,null,null,null,"Medium Commercial Vehicles","21-30",19,null,"Diverse"]
[null,null,null,null,"Heavy Commercial Vehicles","31-40",20,null,"Not provided"]
[null,null,null,null,"Buses, coaches etc","41-50",21]
[null,null,null,null,"Taxis, private & public hire","51-60",22]
[null,null,null,null,"Self-drive hire vehicles",">60",23]
[null,null,null,null,"Tankers, hazardous",null,24]
[null,null,null,null,"Motor cycles",null,25]
[null,null,null,null,"Motor Trade Road Risks",null,"26-30"]
[null,null,null,null,"All others",null,"31-50"]
[null,null,null,null,null,null,"51 - 69"]
[null,null,null,null,null,null,"70 or over"]
[null,null,null,null,null,null,"'any driver'"]
[null,null,null,null,null,null,"Not provided "]
[]
[null,"Only use the filters in row 41 below to select the appropriate range of data (do not manually delete any rows/columns):"]
[null,"Fleet Status","Telematics Status","Cover Type","Vehicle Categories","NCB","Age Group","Learner Status","Sex","Vehicle Use","Discountinued","No. of Vehicle Years","Premium Income","No. of Policies"]
[null,"Fleet","Telematics","Comp","Motor Cars","0-10","17","Learner","Male","Private"]
[null,"Fleet","Telematics","Comp","Motor Cars","0-10","17","Learner","Male","Commercial"]
[null,"Fleet","Telematics","Comp","Motor Cars","0-10","17","Learner","Female","Private"]
[null,"Fleet","Telematics","Comp","Motor Cars","0-10","17","Learner","Female","Commercial"]
[null,"Fleet","Telematics","Comp","Motor Cars","0-10","17","Learner","Diverse","Private"]
[null,"Fleet","Telematics","Comp","Motor Cars","0-10","17","Learner","Diverse","Commercial"]
[null,"Fleet","Telematics","Comp","Motor Cars","0-10","17","Non-Learner","Male","Private"]
[null,"Fleet","Telematics","Comp","Motor Cars","0-10","17","Non-Learner","Male","Commercial"]
[null,"Fleet","Telematics","Comp","Motor Cars","0-10","17","Non-Learner","Female","Private"]
[null,"Fleet","Telematics","Comp","Motor Cars","0-10","17","Non-Learner","Female","Commercial"]
[null,"Fleet","Telematics","Comp","Motor Cars","0-10","17","Non-Learner","Diverse","Private"]
[null,"Fleet","Telematics","Comp","Motor Cars","0-10","17","Non-Learner","Diverse","Commercial"]
[null,"Fleet","Telematics","Comp","Motor Cars","0-10","18","Learner","Male","Private"]
[null,"Fleet","Telematics","Comp","Motor Cars","0-10","18","Learner","Male","Commercial"]
[null,"Fleet","Telematics","Comp","Motor Cars","0-10","18","Learner","Female","Private"]
[null,"Fleet","Telematics","Comp","Motor Cars","0-10","18","Learner","Female","Commercial"]
[null,"Fleet","Telematics","Comp","Motor Cars","0-10","18","Learner","Diverse","Private"]
[null,"Fleet","Telematics","Comp","Motor Cars","0-10","18","Learner","Diverse","Commercial"]
[null,"Fleet","Telematics","Comp","Motor Cars","0-10","18","Non-Learner","Male","Private"]
[null,"Fleet","Telematics","Comp","Motor Cars","0-10","18","Non-Learner","Male","Commercial"]
[null,"Fleet","Telematics","Comp","Motor Cars","0-10","18","Non-Learner","Female","Private"]
[null,"Fleet","Telematics","Comp","Motor Cars","0-10","18","Non-Learner","Female","Commercial"]
[null,"Fleet","Telematics","Comp","Motor Cars","0-10","18","Non-Learner","Diverse","Private"]
[null,"Fleet","Telematics","Comp","Motor Cars","0-10","18","Non-Learner","Diverse","Commercial"]
[null,"Fleet","Telematics","Comp","Motor Cars","0-10","19","Learner","Male","Private"]
[null,"Fleet","Telematics","Comp","Motor Cars","0-10","19","Learner","Male","Commercial"]
[null,"Fleet","Telematics","Comp","Motor Cars","0-10","19","Learner","Female","Private"]
[null,"Fleet","Telematics","Comp","Motor Cars","0-10","19","Learner","Female","Commercial"]
[null,"Fleet","Telematics","Comp","Motor Cars","0-10","19","Learner","Diverse","Private"]
[null,"Fleet","Telematics","Comp","Motor Cars","0-10","19","Learner","Diverse","Commercial"]
[null,"Fleet","Telematics","Comp","Motor Cars","0-10","19","Non-Learner","Male","Private"]
[null,"Fleet","Telematics","Comp","Motor Cars","0-10","19","Non-Learner","Male","Commercial"]
[null,"Fleet","Telematics","Comp","Motor Cars","0-10","19","Non-Learner","Female","Private"]
[null,"Fleet","Telematics","Comp","Motor Cars","0-10","19","Non-Learner","Female","Commercial"]
[null,"Fleet","Telematics","Comp","Motor Cars","0-10","19","Non-Learner","Diverse","Private"]
[null,"Fleet","Telematics","Comp","Motor Cars","0-10","19","Non-Learner","Diverse","Commercial"]
[null,"Fleet","Telematics","Comp","Motor Cars","0-10","20","Learner","Male","Private"]
[null,"Fleet","Telematics","Comp","Motor Cars","0-10","20","Learner","Male","Commercial"]
[null,"Fleet","Telematics","Comp","Motor Cars","0-10","20","Learner","Female","Private"]
[null,"Fleet","Telematics","Comp","Motor Cars","0-10","20","Learner","Female","Commercial"]
[null,"Fleet","Telematics","Comp","Motor Cars","0-10","20","Learner","Diverse","Private"]
[null,"Fleet","Telematics","Comp","Motor Cars","0-10","20","Learner","Diverse","Commercial"]
[null,"Fleet","Telematics","Comp","Motor Cars","0-10","20","Non-Learner","Male","Private"]
[null,"Fleet","Telematics","Comp","Motor Cars","0-10","20","Non-Learner","Male","Commercial"]
[null,"Fleet","Telematics","Comp","Motor Cars","0-10","20","Non-Learner","Female","Private"]
[null,"Fleet","Telematics","Comp","Motor Cars","0-10","20","Non-Learner","Female","Commercial"]
[null,"Fleet","Telematics","Comp","Motor Cars","0-10","20","Non-Learner","Diverse","Private"]
[null,"Fleet","Telematics","Comp","Motor Cars","0-10","20","Non-Learner","Diverse","Commercial"]
[null,"Fleet","Telematics","Comp","Motor Cars","0-10","21","Learner","Male","Private"]
[null,"Fleet","Telematics","Comp","Motor Cars","0-10","21","Learner","Male","Commercial"]
[null,"Fleet","Telematics","Comp","Motor Cars","0-10","21","Learner","Female","Private"]
[null,"Fleet","Telematics","Comp","Motor Cars","0-10","21","Learner","Female","Commercial"]
[null,"Fleet","Telematics","Comp","Motor Cars","0-10","21","Learner","Diverse","Private"]
[null,"Fleet","Telematics","Comp","Motor Cars","0-10","21","Learner","Diverse","Commercial"]
[null,"Fleet","Telematics","Comp","Motor Cars","0-10","21","Non-Learner","Male","Private"]
[null,"Fleet","Telematics","Comp","Motor Cars","0-10","21","Non-Learner","Male","Commercial"]
[null,"Fleet","Telematics","Comp","Motor Cars","0-10","21","Non-Learner","Female","Private"]
[null,"Fleet","Telematics","Comp","Motor Cars","0-10","21","Non-Learner","Female","Commercial"]
[null,"Fleet","Telematics","Comp","Motor Cars","0-10","21","Non-Learner","Diverse","Private"]
[null,"Fleet","Telematics","Comp","Motor Cars","0-10","21","Non-Learner","Diverse","Commercial"]
[null,"Fleet","Telematics","Comp","Motor Cars","0-10","22","Learner","Male","Private"]
[null,"Fleet","Telematics","Comp","Motor Cars","0-10","22","Learner","Male","Commercial"]
[null,"Fleet","Telematics","Comp","Motor Cars","0-10","22","Learner","Female","Private"]
[null,"Fleet","Telematics","Comp","Motor Cars","0-10","22","Learner","Female","Commercial"]
[null,"Fleet","Telematics","Comp","Motor Cars","0-10","22","Learner","Diverse","Private"]
[null,"Fleet","Telematics","Comp","Motor Cars","0-10","22","Learner","Diverse","Commercial"]
[null,"Fleet","Telematics","Comp","Motor Cars","0-10","22","Non-Learner","Male","Private"]
[null,"Fleet","Telematics","Comp","Motor Cars","0-10","22","Non-Learner","Male","Commercial"]
[null,"Fleet","Telematics","Comp","Motor Cars","0-10","22","Non-Learner","Female","Private"]
[null,"Fleet","Telematics","Comp","Motor Cars","0-10","22","Non-Learner","Female","Commercial"]
[null,"Fleet","Telematics","Comp","Motor Cars","0-10","22","Non-Learner","Diverse","Private"]
[null,"Fleet","Telematics","Comp","Motor Cars","0-10","22","Non-Learner","Diverse","Commercial"]
[null,"Fleet","Telematics","Comp","Motor Cars","0-10","23","Learner","Male","Private"]
[null,"Fleet","Telematics","Comp","Motor Cars","0-10","23","Learner","Male","Commercial"]
[null,"Fleet","Telematics","Comp","Motor Cars","0-10","23","Learner","Female","Private"]
[null,"Fleet","Telematics","Comp","Motor Cars","0-10","23","Learner","Female","Commercial"]
[null,"Fleet","Telematics","Comp","Motor Cars","0-10","23","Learner","Diverse","Private"]
[null,"Fleet","Telematics","Comp","Motor Cars","0-10","23","Learner","Diverse","Commercial"]
[null,"Fleet","Telematics","Comp","Motor Cars","0-10","23","Non-Learner","Male","Private"]
[null,"Fleet","Telematics","Comp","Motor Cars","0-10","23","Non-Learner","Male","Commercial"]
[null,"Fleet","Telematics","Comp","Motor Cars","0-10","23","Non-Learner","Female","Private"]
[null,"Fleet","Telematics","Comp","Motor Cars","0-10","23","Non-Learner","Female","Commercial"]
[null,"Fleet","Telematics","Comp","Motor Cars","0-10","23","Non-Learner","Diverse","Private"]
[null,"Fleet","Telematics","Comp","Motor Cars","0-10","23","Non-Learner","Diverse","Commercial"]
[null,"Fleet","Telematics","Comp","Motor Cars","0-10","24","Learner","Male","Private"]
[null,"Fleet","Telematics","Comp","Motor Cars","0-10","24","Learner","Male","Commercial"]
[null,"Fleet","Telematics","Comp","Motor Cars","0-10","24","Learner","Female","Private"]
[null,"Fleet","Telematics","Comp","Motor Cars","0-10","24","Learner","Female","Commercial"]
[null,"Fleet","Telematics","Comp","Motor Cars","0-10","24","Learner","Diverse","Private"]
[null,"Fleet","Telematics","Comp","Motor Cars","0-10","24","Learner","Diverse","Commercial"]
[null,"Fleet","Telematics","Comp","Motor Cars","0-10","24","Non-Learner","Male","Private"]
[null,"Fleet","Telematics","Comp","Motor Cars","0-10","24","Non-Learner","Male","Commercial"]
[null,"Fleet","Telematics","Comp","Motor Cars","0-10","24","Non-Learner","Female","Private"]
[null,"Fleet","Telematics","Comp","Motor Cars","0-10","24","Non-Learner","Female","Commercial"]
[null,"Fleet","Telematics","Comp","Motor Cars","0-10","24","Non-Learner","Diverse","Private"]
[null,"Fleet","Telematics","Comp","Motor Cars","0-10","24","Non-Learner","Diverse","Commercial"]
[null,"Fleet","Telematics","Comp","Motor Cars","0-10","25","Learner","Male","Private"]
[null,"Fleet","Telematics","Comp","Motor Cars","0-10","25","Learner","Male","Commercial"]
[null,"Fleet","Telematics","Comp","Motor Cars","0-10","25","Learner","Female","Private"]
[null,"Fleet","Telematics","Comp","Motor Cars","0-10","25","Learner","Female","Commercial"]
[null,"Fleet","Telematics","Comp","Motor Cars","0-10","25","Learner","Diverse","Private"]
[null,"Fleet","Telematics","Comp","Motor Cars","0-10","25","Learner","Diverse","Commercial"]
[null,"Fleet","Telematics","Comp","Motor Cars","0-10","25","Non-Learner","Male","Private"]
[null,"Fleet","Telematics","Comp","Motor Cars","0-10","25","Non-Learner","Male","Commercial"]
[null,"Fleet","Telematics","Comp","Motor Cars","0-10","25","Non-Learner","Female","Private"]
[null,"Fleet","Telematics","Comp","Motor Cars","0-10","25","Non-Learner","Female","Commercial"]
[null,"Fleet","Telematics","Comp","Motor Cars","0-10","25","Non-Learner","Diverse","Private"]
[null,"Fleet","Telematics","Comp","Motor Cars","0-10","25","Non-Learner","Diverse","Commercial"]
[null,"Fleet","Telematics","Comp","Motor Cars","0-10","26-20","Learner","Male","Private"]
[null,"Fleet","Telematics","Comp","Motor Cars","0-10","26-20","Learner","Male","Commercial"]
[null,"Fleet","Telematics","Comp","Motor Cars","0-10","26-20","Learner","Female","Private"]
[null,"Fleet","Telematics","Comp","Motor Cars","0-10","26-20","Learner","Female","Commercial"]
[null,"Fleet","Telematics","Comp","Motor Cars","0-10","26-20","Learner","Diverse","Private"]
[null,"Fleet","Telematics","Comp","Motor Cars","0-10","26-20","Learner","Diverse","Commercial"]
[null,"Fleet","Telematics","Comp","Motor Cars","0-10","26-20","Non-Learner","Male","Private"]
[null,"Fleet","Telematics","Comp","Motor Cars","0-10","26-20","Non-Learner","Male","Commercial"]
[null,"Fleet","Telematics","Comp","Motor Cars","0-10","26-20","Non-Learner","Female","Private"]
[null,"Fleet","Telematics","Comp","Motor Cars","0-10","26-20","Non-Learner","Female","Commercial"]
[null,"Fleet","Telematics","Comp","Motor Cars","0-10","26-20","Non-Learner","Diverse","Private"]
[null,"Fleet","Telematics","Comp","Motor Cars","0-10","26-20","Non-Learner","Diverse","Commercial"]
[null,"Fleet","Telematics","Comp","Motor Cars","0-10","31-50","Learner","Male","Private"]
[null,"Fleet","Telematics","Comp","Motor Cars","0-10","31-50","Learner","Male","Commercial"]
[null,"Fleet","Telematics","Comp","Motor Cars","0-10","31-50","Learner","Female","Private"]
[null,"Fleet","Telematics","Comp","Motor Cars","0-10","31-50","Learner","Female","Commercial"]
[null,"Fleet","Telematics","Comp","Motor Cars","0-10","31-50","Learner","Diverse","Private"]
[null,"Fleet","Telematics","Comp","Motor Cars","0-10","31-50","Learner","Diverse","Commercial"]
[null,"Fleet","Telematics","Comp","Motor Cars","0-10","31-50","Non-Learner","Male","Private"]
[null,"Fleet","Telematics","Comp","Motor Cars","0-10","31-50","Non-Learner","Male","Commercial"]
[null,"Fleet","Telematics","Comp","Motor Cars","0-10","31-50","Non-Learner","Female","Private"]
[null,"Fleet","Telematics","Comp","Motor Cars","0-10","31-50","Non-Learner","Female","Commercial"]
[null,"Fleet","Telematics","Comp","Motor Cars","0-10","31-50","Non-Learner","Diverse","Private"]
[null,"Fleet","Telematics","Comp","Motor Cars","0-10","31-50","Non-Learner","Diverse","Commercial"]
[null,"Fleet","Telematics","Comp","Motor Cars","0-10","51-69","Learner","Male","Private"]
[null,"Fleet","Telematics","Comp","Motor Cars","0-10","51-69","Learner","Male","Commercial"]
[null,"Fleet","Telematics","Comp","Motor Cars","0-10","51-69","Learner","Female","Private"]
[null,"Fleet","Telematics","Comp","Motor Cars","0-10","51-69","Learner","Female","Commercial"]
[null,"Fleet","Telematics","Comp","Motor Cars","0-10","51-69","Learner","Diverse","Private"]
[null,"Fleet","Telematics","Comp","Motor Cars","0-10","51-69","Learner","Diverse","Commercial"]
[null,"Fleet","Telematics","Comp","Motor Cars","0-10","51-69","Non-Learner","Male","Private"]
[null,"Fleet","Telematics","Comp","Motor Cars","0-10","51-69","Non-Learner","Male","Commercial"]
[null,"Fleet","Telematics","Comp","Motor Cars","0-10","51-69","Non-Learner","Female","Private"]
[null,"Fleet","Telematics","Comp","Motor Cars","0-10","51-69","Non-Learner","Female","Commercial"]
[null,"Fleet","Telematics","Comp","Motor Cars","0-10","51-69","Non-Learner","Diverse","Private"]
[null,"Fleet","Telematics","Comp","Motor Cars","0-10","51-69","Non-Learner","Diverse","Commercial"]
[null,"Fleet","Telematics","Comp","Motor Cars","0-10","70 or over","Learner","Male","Private"]
[null,"Fleet","Telematics","Comp","Motor Cars","0-10","70 or over","Learner","Male","Commercial"]
[null,"Fleet","Telematics","Comp","Motor Cars","0-10","70 or over","Learner","Female","Private"]
[null,"Fleet","Telematics","Comp","Motor Cars","0-10","70 or over","Learner","Female","Commercial"]
[null,"Fleet","Telematics","Comp","Motor Cars","0-10","70 or over","Learner","Diverse","Private"]
[null,"Fleet","Telematics","Comp","Motor Cars","0-10","70 or over","Learner","Diverse","Commercial"]
[null,"Fleet","Telematics","Comp","Motor Cars","0-10","70 or over","Non-Learner","Male","Private"]
[null,"Fleet","Telematics","Comp","Motor Cars","0-10","70 or over","Non-Learner","Male","Commercial"]
[null,"Fleet","Telematics","Comp","Motor Cars","0-10","70 or over","Non-Learner","Female","Private"]
[null,"Fleet","Telematics","Comp","Motor Cars","0-10","70 or over","Non-Learner","Female","Commercial"]
[null,"Fleet","Telematics","Comp","Motor Cars","0-10","70 or over","Non-Learner","Diverse","Private"]
[null,"Fleet","Telematics","Comp","Motor Cars","0-10","70 or over","Non-Learner","Diverse","Commercial"]
[null,"Fleet","Telematics","Comp","Motor Cars","0-10","Any Driver","Learner","Male","Private"]
[null,"Fleet","Telematics","Comp","Motor Cars","0-10","Any Driver","Learner","Male","Commercial"]
[null,"Fleet","Telematics","Comp","Motor Cars","0-10","Any Driver","Learner","Female","Private"]
[null,"Fleet","Telematics","Comp","Motor Cars","0-10","Any Driver","Learner","Female","Commercial"]
[null,"Fleet","Telematics","Comp","Motor Cars","0-10","Any Driver","Learner","Diverse","Private"]
[null,"Fleet","Telematics","Comp","Motor Cars","0-10","Any Driver","Learner","Diverse","Commercial"]
[null,"Fleet","Telematics","Comp","Motor Cars","0-10","Any Driver","Non-Learner","Male","Private"]
[null,"Fleet","Telematics","Comp","Motor Cars","0-10","Any Driver","Non-Learner","Male","Commercial"]
[null,"Fleet","Telematics","Comp","Motor Cars","0-10","Any Driver","Non-Learner","Female","Private"]
[null,"Fleet","Telematics","Comp","Motor Cars","0-10","Any Driver","Non-Learner","Female","Commercial"]
[null,"Fleet","Telematics","Comp","Motor Cars","0-10","Any Driver","Non-Learner","Diverse","Private"]
[null,"Fleet","Telematics","Comp","Motor Cars","0-10","Any Driver","Non-Learner","Diverse","Commercial"]
[null,"Fleet","Telematics","Comp","Motor Cars","11-20","17","Learner","Male","Private"]
[null,"Fleet","Telematics","Comp","Motor Cars","11-20","17","Learner","Male","Commercial"]
[null,"Fleet","Telematics","Comp","Motor Cars","11-20","17","Learner","Female","Private"]
[null,"Fleet","Telematics","Comp","Motor Cars","11-20","17","Learner","Female","Commercial"]
[null,"Fleet","Telematics","Comp","Motor Cars","11-20","17","Learner","Diverse","Private"]
[null,"Fleet","Telematics","Comp","Motor Cars","11-20","17","Learner","Diverse","Commercial"]
[null,"Fleet","Telematics","Comp","Motor Cars","11-20","17","Non-Learner","Male","Private"]
[null,"Fleet","Telematics","Comp","Motor Cars","11-20","17","Non-Learner","Male","Commercial"]
[null,"Fleet","Telematics","Comp","Motor Cars","11-20","17","Non-Learner","Female","Private"]
[null,"Fleet","Telematics","Comp","Motor Cars","11-20","17","Non-Learner","Female","Commercial"]
[null,"Fleet","Telematics","Comp","Motor Cars","11-20","17","Non-Learner","Diverse","Private"]
[null,"Fleet","Telematics","Comp","Motor Cars","11-20","17","Non-Learner","Diverse","Commercial"]
[null,"Fleet","Telematics","Comp","Motor Cars","11-20","18","Learner","Male","Private"]
[null,"Fleet","Telematics","Comp","Motor Cars","11-20","18","Learner","Male","Commercial"]
[null,"Fleet","Telematics","Comp","Motor Cars","11-20","18","Learner","Female","Private"]
[null,"Fleet","Telematics","Comp","Motor Cars","11-20","18","Learner","Female","Commercial"]
[null,"Fleet","Telematics","Comp","Motor Cars","11-20","18","Learner","Diverse","Private"]
[null,"Fleet","Telematics","Comp","Motor Cars","11-20","18","Learner","Diverse","Commercial"]
[null,"Fleet","Telematics","Comp","Motor Cars","11-20","18","Non-Learner","Male","Private"]
[null,"Fleet","Telematics","Comp","Motor Cars","11-20","18","Non-Learner","Male","Commercial"]
[null,"Fleet","Telematics","Comp","Motor Cars","11-20","18","Non-Learner","Female","Private"]
[null,"Fleet","Telematics","Comp","Motor Cars","11-20","18","Non-Learner","Female","Commercial"]
[null,"Fleet","Telematics","Comp","Motor Cars","11-20","18","Non-Learner","Diverse","Private"]
[null,"Fleet","Telematics","Comp","Motor Cars","11-20","18","Non-Learner","Diverse","Commercial"]
[null,"Fleet","Telematics","Comp","Motor Cars","11-20","19","Learner","Male","Private"]
[null,"Fleet","Telematics","Comp","Motor Cars","11-20","19","Learner","Male","Commercial"]
[null,"Fleet","Telematics","Comp","Motor Cars","11-20","19","Learner","Female","Private"]
[null,"Fleet","Telematics","Comp","Motor Cars","11-20","19","Learner","Female","Commercial"]
[null,"Fleet","Telematics","Comp","Motor Cars","11-20","19","Learner","Diverse","Private"]
[null,"Fleet","Telematics","Comp","Motor Cars","11-20","19","Learner","Diverse","Commercial"]
[null,"Fleet","Telematics","Comp","Motor Cars","11-20","19","Non-Learner","Male","Private"]
[null,"Fleet","Telematics","Comp","Motor Cars","11-20","19","Non-Learner","Male","Commercial"]
[null,"Fleet","Telematics","Comp","Motor Cars","11-20","19","Non-Learner","Female","Private"]
[null,"Fleet","Telematics","Comp","Motor Cars","11-20","19","Non-Learner","Female","Commercial"]
[null,"Fleet","Telematics","Comp","Motor Cars","11-20","19","Non-Learner","Diverse","Private"]
[null,"Fleet","Telematics","Comp","Motor Cars","11-20","19","Non-Learner","Diverse","Commercial"]
[null,"Fleet","Telematics","Comp","Motor Cars","11-20","20","Learner","Male","Private"]
[null,"Fleet","Telematics","Comp","Motor Cars","11-20","20","Learner","Male","Commercial"]
[null,"Fleet","Telematics","Comp","Motor Cars","11-20","20","Learner","Female","Private"]
[null,"Fleet","Telematics","Comp","Motor Cars","11-20","20","Learner","Female","Commercial"]
[null,"Fleet","Telematics","Comp","Motor Cars","11-20","20","Learner","Diverse","Private"]
[null,"Fleet","Telematics","Comp","Motor Cars","11-20","20","Learner","Diverse","Commercial"]
[null,"Fleet","Telematics","Comp","Motor Cars","11-20","20","Non-Learner","Male","Private"]
[null,"Fleet","Telematics","Comp","Motor Cars","11-20","20","Non-Learner","Male","Commercial"]
[null,"Fleet","Telematics","Comp","Motor Cars","11-20","20","Non-Learner","Female","Private"]
[null,"Fleet","Telematics","Comp","Motor Cars","11-20","20","Non-Learner","Female","Commercial"]
[null,"Fleet","Telematics","Comp","Motor Cars","11-20","20","Non-Learner","Diverse","Private"]
[null,"Fleet","Telematics","Comp","Motor Cars","11-20","20","Non-Learner","Diverse","Commercial"]
[null,"Fleet","Telematics","Comp","Motor Cars","11-20","21","Learner","Male","Private"]
[null,"Fleet","Telematics","Comp","Motor Cars","11-20","21","Learner","Male","Commercial"]
[null,"Fleet","Telematics","Comp","Motor Cars","11-20","21","Learner","Female","Private"]
[null,"Fleet","Telematics","Comp","Motor Cars","11-20","21","Learner","Female","Commercial"]
[null,"Fleet","Telematics","Comp","Motor Cars","11-20","21","Learner","Diverse","Private"]
[null,"Fleet","Telematics","Comp","Motor Cars","11-20","21","Learner","Diverse","Commercial"]
[null,"Fleet","Telematics","Comp","Motor Cars","11-20","21","Non-Learner","Male","Private"]
[null,"Fleet","Telematics","Comp","Motor Cars","11-20","21","Non-Learner","Male","Commercial"]
[null,"Fleet","Telematics","Comp","Motor Cars","11-20","21","Non-Learner","Female","Private"]
[null,"Fleet","Telematics","Comp","Motor Cars","11-20","21","Non-Learner","Female","Commercial"]
[null,"Fleet","Telematics","Comp","Motor Cars","11-20","21","Non-Learner","Diverse","Private"]
[null,"Fleet","Telematics","Comp","Motor Cars","11-20","21","Non-Learner","Diverse","Commercial"]
[null,"Fleet","Telematics","Comp","Motor Cars","11-20","22","Learner","Male","Private"]
[null,"Fleet","Telematics","Comp","Motor Cars","11-20","22","Learner","Male","Commercial"]
[null,"Fleet","Telematics","Comp","Motor Cars","11-20","22","Learner","Female","Private"]
[null,"Fleet","Telematics","Comp","Motor Cars","11-20","22","Learner","Female","Commercial"]
[null,"Fleet","Telematics","Comp","Motor Cars","11-20","22","Learner","Diverse","Private"]
[null,"Fleet","Telematics","Comp","Motor Cars","11-20","22","Learner","Diverse","Commercial"]
[null,"Fleet","Telematics","Comp","Motor Cars","11-20","22","Non-Learner","Male","Private"]
[null,"Fleet","Telematics","Comp","Motor Cars","11-20","22","Non-Learner","Male","Commercial"]
[null,"Fleet","Telematics","Comp","Motor Cars","11-20","22","Non-Learner","Female","Private"]
[null,"Fleet","Telematics","Comp","Motor Cars","11-20","22","Non-Learner","Female","Commercial"]
[null,"Fleet","Telematics","Comp","Motor Cars","11-20","22","Non-Learner","Diverse","Private"]
[null,"Fleet","Telematics","Comp","Motor Cars","11-20","22","Non-Learner","Diverse","Commercial"]
[null,"Fleet","Telematics","Comp","Motor Cars","11-20","23","Learner","Male","Private"]
[null,"Fleet","Telematics","Comp","Motor Cars","11-20","23","Learner","Male","Commercial"]
[null,"Fleet","Telematics","Comp","Motor Cars","11-20","23","Learner","Female","Private"]
[null,"Fleet","Telematics","Comp","Motor Cars","11-20","23","Learner","Female","Commercial"]
[null,"Fleet","Telematics","Comp","Motor Cars","11-20","23","Learner","Diverse","Private"]
[null,"Fleet","Telematics","Comp","Motor Cars","11-20","23","Learner","Diverse","Commercial"]
[null,"Fleet","Telematics","Comp","Motor Cars","11-20","23","Non-Learner","Male","Private"]
[null,"Fleet","Telematics","Comp","Motor Cars","11-20","23","Non-Learner","Male","Commercial"]
[null,"Fleet","Telematics","Comp","Motor Cars","11-20","23","Non-Learner","Female","Private"]
[null,"Fleet","Telematics","Comp","Motor Cars","11-20","23","Non-Learner","Female","Commercial"]
[null,"Fleet","Telematics","Comp","Motor Cars","11-20","23","Non-Learner","Diverse","Private"]
[null,"Fleet","Telematics","Comp","Motor Cars","11-20","23","Non-Learner","Diverse","Commercial"]
[null,"Fleet","Telematics","Comp","Motor Cars","11-20","24","Learner","Male","Private"]
[null,"Fleet","Telematics","Comp","Motor Cars","11-20","24","Learner","Male","Commercial"]
[null,"Fleet","Telematics","Comp","Motor Cars","11-20","24","Learner","Female","Private"]
[null,"Fleet","Telematics","Comp","Motor Cars","11-20","24","Learner","Female","Commercial"]
[null,"Fleet","Telematics","Comp","Motor Cars","11-20","24","Learner","Diverse","Private"]
[null,"Fleet","Telematics","Comp","Motor Cars","11-20","24","Learner","Diverse","Commercial"]
[null,"Fleet","Telematics","Comp","Motor Cars","11-20","24","Non-Learner","Male","Private"]
[null,"Fleet","Telematics","Comp","Motor Cars","11-20","24","Non-Learner","Male","Commercial"]
[null,"Fleet","Telematics","Comp","Motor Cars","11-20","24","Non-Learner","Female","Private"]
[null,"Fleet","Telematics","Comp","Motor Cars","11-20","24","Non-Learner","Female","Commercial"]
[null,"Fleet","Telematics","Comp","Motor Cars","11-20","24","Non-Learner","Diverse","Private"]
[null,"Fleet","Telematics","Comp","Motor Cars","11-20","24","Non-Learner","Diverse","Commercial"]
[null,"Fleet","Telematics","Comp","Motor Cars","11-20","25","Learner","Male","Private"]
[null,"Fleet","Telematics","Comp","Motor Cars","11-20","25","Learner","Male","Commercial"]
[null,"Fleet","Telematics","Comp","Motor Cars","11-20","25","Learner","Female","Private"]
[null,"Fleet","Telematics","Comp","Motor Cars","11-20","25","Learner","Female","Commercial"]
[null,"Fleet","Telematics","Comp","Motor Cars","11-20","25","Learner","Diverse","Private"]
[null,"Fleet","Telematics","Comp","Motor Cars","11-20","25","Learner","Diverse","Commercial"]
[null,"Fleet","Telematics","Comp","Motor Cars","11-20","25","Non-Learner","Male","Private"]
[null,"Fleet","Telematics","Comp","Motor Cars","11-20","25","Non-Learner","Male","Commercial"]
[null,"Fleet","Telematics","Comp","Motor Cars","11-20","25","Non-Learner","Female","Private"]
[null,"Fleet","Telematics","Comp","Motor Cars","11-20","25","Non-Learner","Female","Commercial"]
[null,"Fleet","Telematics","Comp","Motor Cars","11-20","25","Non-Learner","Diverse","Private"]
[null,"Fleet","Telematics","Comp","Motor Cars","11-20","25","Non-Learner","Diverse","Commercial"]
[null,"Fleet","Telematics","Comp","Motor Cars","11-20","26-20","Learner","Male","Private"]
[null,"Fleet","Telematics","Comp","Motor Cars","11-20","26-20","Learner","Male","Commercial"]
[null,"Fleet","Telematics","Comp","Motor Cars","11-20","26-20","Learner","Female","Private"]
[null,"Fleet","Telematics","Comp","Motor Cars","11-20","26-20","Learner","Female","Commercial"]
[null,"Fleet","Telematics","Comp","Motor Cars","11-20","26-20","Learner","Diverse","Private"]
[null,"Fleet","Telematics","Comp","Motor Cars","11-20","26-20","Learner","Diverse","Commercial"]
[null,"Fleet","Telematics","Comp","Motor Cars","11-20","26-20","Non-Learner","Male","Private"]
[null,"Fleet","Telematics","Comp","Motor Cars","11-20","26-20","Non-Learner","Male","Commercial"]
[null,"Fleet","Telematics","Comp","Motor Cars","11-20","26-20","Non-Learner","Female","Private"]
[null,"Fleet","Telematics","Comp","Motor Cars","11-20","26-20","Non-Learner","Female","Commercial"]
[null,"Fleet","Telematics","Comp","Motor Cars","11-20","26-20","Non-Learner","Diverse","Private"]
[null,"Fleet","Telematics","Comp","Motor Cars","11-20","26-20","Non-Learner","Diverse","Commercial"]
[null,"Fleet","Telematics","Comp","Motor Cars","11-20","31-50","Learner","Male","Private"]
[null,"Fleet","Telematics","Comp","Motor Cars","11-20","31-50","Learner","Male","Commercial"]
[null,"Fleet","Telematics","Comp","Motor Cars","11-20","31-50","Learner","Female","Private"]
[null,"Fleet","Telematics","Comp","Motor Cars","11-20","31-50","Learner","Female","Commercial"]
[null,"Fleet","Telematics","Comp","Motor Cars","11-20","31-50","Learner","Diverse","Private"]
[null,"Fleet","Telematics","Comp","Motor Cars","11-20","31-50","Learner","Diverse","Commercial"]
[null,"Fleet","Telematics","Comp","Motor Cars","11-20","31-50","Non-Learner","Male","Private"]
[null,"Fleet","Telematics","Comp","Motor Cars","11-20","31-50","Non-Learner","Male","Commercial"]
[null,"Fleet","Telematics","Comp","Motor Cars","11-20","31-50","Non-Learner","Female","Private"]
[null,"Fleet","Telematics","Comp","Motor Cars","11-20","31-50","Non-Learner","Female","Commercial"]
[null,"Fleet","Telematics","Comp","Motor Cars","11-20","31-50","Non-Learner","Diverse","Private"]
[null,"Fleet","Telematics","Comp","Motor Cars","11-20","31-50","Non-Learner","Diverse","Commercial"]
[null,"Fleet","Telematics","Comp","Motor Cars","11-20","51-69","Learner","Male","Private"]
[null,"Fleet","Telematics","Comp","Motor Cars","11-20","51-69","Learner","Male","Commercial"]
[null,"Fleet","Telematics","Comp","Motor Cars","11-20","51-69","Learner","Female","Private"]
[null,"Fleet","Telematics","Comp","Motor Cars","11-20","51-69","Learner","Female","Commercial"]
[null,"Fleet","Telematics","Comp","Motor Cars","11-20","51-69","Learner","Diverse","Private"]
[null,"Fleet","Telematics","Comp","Motor Cars","11-20","51-69","Learner","Diverse","Commercial"]
[null,"Fleet","Telematics","Comp","Motor Cars","11-20","51-69","Non-Learner","Male","Private"]
[null,"Fleet","Telematics","Comp","Motor Cars","11-20","51-69","Non-Learner","Male","Commercial"]
[null,"Fleet","Telematics","Comp","Motor Cars","11-20","51-69","Non-Learner","Female","Private"]
[null,"Fleet","Telematics","Comp","Motor Cars","11-20","51-69","Non-Learner","Female","Commercial"]
[null,"Fleet","Telematics","Comp","Motor Cars","11-20","51-69","Non-Learner","Diverse","Private"]
[null,"Fleet","Telematics","Comp","Motor Cars","11-20","51-69","Non-Learner","Diverse","Commercial"]
[null,"Fleet","Telematics","Comp","Motor Cars","11-20","70 or over","Learner","Male","Private"]
[null,"Fleet","Telematics","Comp","Motor Cars","11-20","70 or over","Learner","Male","Commercial"]
[null,"Fleet","Telematics","Comp","Motor Cars","11-20","70 or over","Learner","Female","Private"]
[null,"Fleet","Telematics","Comp","Motor Cars","11-20","70 or over","Learner","Female","Commercial"]
[null,"Fleet","Telematics","Comp","Motor Cars","11-20","70 or over","Learner","Diverse","Private"]
[null,"Fleet","Telematics","Comp","Motor Cars","11-20","70 or over","Learner","Diverse","Commercial"]
[null,"Fleet","Telematics","Comp","Motor Cars","11-20","70 or over","Non-Learner","Male","Private"]
[null,"Fleet","Telematics","Comp","Motor Cars","11-20","70 or over","Non-Learner","Male","Commercial"]
[null,"Fleet","Telematics","Comp","Motor Cars","11-20","70 or over","Non-Learner","Female","Private"]
[null,"Fleet","Telematics","Comp","Motor Cars","11-20","70 or over","Non-Learner","Female","Commercial"]
[null,"Fleet","Telematics","Comp","Motor Cars","11-20","70 or over","Non-Learner","Diverse","Private"]
[null,"Fleet","Telematics","Comp","Motor Cars","11-20","70 or over","Non-Learner","Diverse","Commercial"]
[null,"Fleet","Telematics","Comp","Motor Cars","11-20","Any Driver","Learner","Male","Private"]
[null,"Fleet","Telematics","Comp","Motor Cars","11-20","Any Driver","Learner","Male","Commercial"]
[null,"Fleet","Telematics","Comp","Motor Cars","11-20","Any Driver","Learner","Female","Private"]
[null,"Fleet","Telematics","Comp","Motor Cars","11-20","Any Driver","Learner","Female","Commercial"]
[null,"Fleet","Telematics","Comp","Motor Cars","11-20","Any Driver","Learner","Diverse","Private"]
[null,"Fleet","Telematics","Comp","Motor Cars","11-20","Any Driver","Learner","Diverse","Commercial"]
[null,"Fleet","Telematics","Comp","Motor Cars","11-20","Any Driver","Non-Learner","Male","Private"]
[null,"Fleet","Telematics","Comp","Motor Cars","11-20","Any Driver","Non-Learner","Male","Commercial"]
[null,"Fleet","Telematics","Comp","Motor Cars","11-20","Any Driver","Non-Learner","Female","Private"]
[null,"Fleet","Telematics","Comp","Motor Cars","11-20","Any Driver","Non-Learner","Female","Commercial"]
[null,"Fleet","Telematics","Comp","Motor Cars","11-20","Any Driver","Non-Learner","Diverse","Private"]
[null,"Fleet","Telematics","Comp","Motor Cars","11-20","Any Driver","Non-Learner","Diverse","Commercial"]
[null,"Fleet","Telematics","Comp","Motor Cars","21-30","17","Learner","Male","Private"]
[null,"Fleet","Telematics","Comp","Motor Cars","21-30","17","Learner","Male","Commercial"]
[null,"Fleet","Telematics","Comp","Motor Cars","21-30","17","Learner","Female","Private"]
[null,"Fleet","Telematics","Comp","Motor Cars","21-30","17","Learner","Female","Commercial"]
[null,"Fleet","Telematics","Comp","Motor Cars","21-30","17","Learner","Diverse","Private"]
[null,"Fleet","Telematics","Comp","Motor Cars","21-30","17","Learner","Diverse","Commercial"]
[null,"Fleet","Telematics","Comp","Motor Cars","21-30","17","Non-Learner","Male","Private"]
[null,"Fleet","Telematics","Comp","Motor Cars","21-30","17","Non-Learner","Male","Commercial"]
[null,"Fleet","Telematics","Comp","Motor Cars","21-30","17","Non-Learner","Female","Private"]
[null,"Fleet","Telematics","Comp","Motor Cars","21-30","17","Non-Learner","Female","Commercial"]
[null,"Fleet","Telematics","Comp","Motor Cars","21-30","17","Non-Learner","Diverse","Private"]
[null,"Fleet","Telematics","Comp","Motor Cars","21-30","17","Non-Learner","Diverse","Commercial"]
[null,"Fleet","Telematics","Comp","Motor Cars","21-30","18","Learner","Male","Private"]
[null,"Fleet","Telematics","Comp","Motor Cars","21-30","18","Learner","Male","Commercial"]
[null,"Fleet","Telematics","Comp","Motor Cars","21-30","18","Learner","Female","Private"]
[null,"Fleet","Telematics","Comp","Motor Cars","21-30","18","Learner","Female","Commercial"]
[null,"Fleet","Telematics","Comp","Motor Cars","21-30","18","Learner","Diverse","Private"]
[null,"Fleet","Telematics","Comp","Motor Cars","21-30","18","Learner","Diverse","Commercial"]
[null,"Fleet","Telematics","Comp","Motor Cars","21-30","18","Non-Learner","Male","Private"]
[null,"Fleet","Telematics","Comp","Motor Cars","21-30","18","Non-Learner","Male","Commercial"]
[null,"Fleet","Telematics","Comp","Motor Cars","21-30","18","Non-Learner","Female","Private"]
[null,"Fleet","Telematics","Comp","Motor Cars","21-30","18","Non-Learner","Female","Commercial"]
[null,"Fleet","Telematics","Comp","Motor Cars","21-30","18","Non-Learner","Diverse","Private"]
[null,"Fleet","Telematics","Comp","Motor Cars","21-30","18","Non-Learner","Diverse","Commercial"]
[null,"Fleet","Telematics","Comp","Motor Cars","21-30","19","Learner","Male","Private"]
[null,"Fleet","Telematics","Comp","Motor Cars","21-30","19","Learner","Male","Commercial"]
[null,"Fleet","Telematics","Comp","Motor Cars","21-30","19","Learner","Female","Private"]
[null,"Fleet","Telematics","Comp","Motor Cars","21-30","19","Learner","Female","Commercial"]
[null,"Fleet","Telematics","Comp","Motor Cars","21-30","19","Learner","Diverse","Private"]
[null,"Fleet","Telematics","Comp","Motor Cars","21-30","19","Learner","Diverse","Commercial"]
[null,"Fleet","Telematics","Comp","Motor Cars","21-30","19","Non-Learner","Male","Private"]
[null,"Fleet","Telematics","Comp","Motor Cars","21-30","19","Non-Learner","Male","Commercial"]
[null,"Fleet","Telematics","Comp","Motor Cars","21-30","19","Non-Learner","Female","Private"]
[null,"Fleet","Telematics","Comp","Motor Cars","21-30","19","Non-Learner","Female","Commercial"]
[null,"Fleet","Telematics","Comp","Motor Cars","21-30","19","Non-Learner","Diverse","Private"]
[null,"Fleet","Telematics","Comp","Motor Cars","21-30","19","Non-Learner","Diverse","Commercial"]
[null,"Fleet","Telematics","Comp","Motor Cars","21-30","20","Learner","Male","Private"]
[null,"Fleet","Telematics","Comp","Motor Cars","21-30","20","Learner","Male","Commercial"]
[null,"Fleet","Telematics","Comp","Motor Cars","21-30","20","Learner","Female","Private"]
[null,"Fleet","Telematics","Comp","Motor Cars","21-30","20","Learner","Female","Commercial"]
[null,"Fleet","Telematics","Comp","Motor Cars","21-30","20","Learner","Diverse","Private"]
[null,"Fleet","Telematics","Comp","Motor Cars","21-30","20","Learner","Diverse","Commercial"]
[null,"Fleet","Telematics","Comp","Motor Cars","21-30","20","Non-Learner","Male","Private"]
[null,"Fleet","Telematics","Comp","Motor Cars","21-30","20","Non-Learner","Male","Commercial"]
[null,"Fleet","Telematics","Comp","Motor Cars","21-30","20","Non-Learner","Female","Private"]
[null,"Fleet","Telematics","Comp","Motor Cars","21-30","20","Non-Learner","Female","Commercial"]
[null,"Fleet","Telematics","Comp","Motor Cars","21-30","20","Non-Learner","Diverse","Private"]
[null,"Fleet","Telematics","Comp","Motor Cars","21-30","20","Non-Learner","Diverse","Commercial"]
[null,"Fleet","Telematics","Comp","Motor Cars","21-30","21","Learner","Male","Private"]
[null,"Fleet","Telematics","Comp","Motor Cars","21-30","21","Learner","Male","Commercial"]
[null,"Fleet","Telematics","Comp","Motor Cars","21-30","21","Learner","Female","Private"]
[null,"Fleet","Telematics","Comp","Motor Cars","21-30","21","Learner","Female","Commercial"]
[null,"Fleet","Telematics","Comp","Motor Cars","21-30","21","Learner","Diverse","Private"]
[null,"Fleet","Telematics","Comp","Motor Cars","21-30","21","Learner","Diverse","Commercial"]
[null,"Fleet","Telematics","Comp","Motor Cars","21-30","21","Non-Learner","Male","Private"]
[null,"Fleet","Telematics","Comp","Motor Cars","21-30","21","Non-Learner","Male","Commercial"]
[null,"Fleet","Telematics","Comp","Motor Cars","21-30","21","Non-Learner","Female","Private"]
[null,"Fleet","Telematics","Comp","Motor Cars","21-30","21","Non-Learner","Female","Commercial"]
[null,"Fleet","Telematics","Comp","Motor Cars","21-30","21","Non-Learner","Diverse","Private"]
[null,"Fleet","Telematics","Comp","Motor Cars","21-30","21","Non-Learner","Diverse","Commercial"]
[null,"Fleet","Telematics","Comp","Motor Cars","21-30","22","Learner","Male","Private"]
[null,"Fleet","Telematics","Comp","Motor Cars","21-30","22","Learner","Male","Commercial"]
[null,"Fleet","Telematics","Comp","Motor Cars","21-30","22","Learner","Female","Private"]
[null,"Fleet","Telematics","Comp","Motor Cars","21-30","22","Learner","Female","Commercial"]
[null,"Fleet","Telematics","Comp","Motor Cars","21-30","22","Learner","Diverse","Private"]
[null,"Fleet","Telematics","Comp","Motor Cars","21-30","22","Learner","Diverse","Commercial"]
[null,"Fleet","Telematics","Comp","Motor Cars","21-30","22","Non-Learner","Male","Private"]
[null,"Fleet","Telematics","Comp","Motor Cars","21-30","22","Non-Learner","Male","Commercial"]
[null,"Fleet","Telematics","Comp","Motor Cars","21-30","22","Non-Learner","Female","Private"]
[null,"Fleet","Telematics","Comp","Motor Cars","21-30","22","Non-Learner","Female","Commercial"]
[null,"Fleet","Telematics","Comp","Motor Cars","21-30","22","Non-Learner","Diverse","Private"]
[null,"Fleet","Telematics","Comp","Motor Cars","21-30","22","Non-Learner","Diverse","Commercial"]
[null,"Fleet","Telematics","Comp","Motor Cars","21-30","23","Learner","Male","Private"]
[null,"Fleet","Telematics","Comp","Motor Cars","21-30","23","Learner","Male","Commercial"]
[null,"Fleet","Telematics","Comp","Motor Cars","21-30","23","Learner","Female","Private"]
[null,"Fleet","Telematics","Comp","Motor Cars","21-30","23","Learner","Female","Commercial"]
[null,"Fleet","Telematics","Comp","Motor Cars","21-30","23","Learner","Diverse","Private"]
[null,"Fleet","Telematics","Comp","Motor Cars","21-30","23","Learner","Diverse","Commercial"]
[null,"Fleet","Telematics","Comp","Motor Cars","21-30","23","Non-Learner","Male","Private"]
[null,"Fleet","Telematics","Comp","Motor Cars","21-30","23","Non-Learner","Male","Commercial"]
[null,"Fleet","Telematics","Comp","Motor Cars","21-30","23","Non-Learner","Female","Private"]
[null,"Fleet","Telematics","Comp","Motor Cars","21-30","23","Non-Learner","Female","Commercial"]
[null,"Fleet","Telematics","Comp","Motor Cars","21-30","23","Non-Learner","Diverse","Private"]
[null,"Fleet","Telematics","Comp","Motor Cars","21-30","23","Non-Learner","Diverse","Commercial"]
[null,"Fleet","Telematics","Comp","Motor Cars","21-30","24","Learner","Male","Private"]
[null,"Fleet","Telematics","Comp","Motor Cars","21-30","24","Learner","Male","Commercial"]
[null,"Fleet","Telematics","Comp","Motor Cars","21-30","24","Learner","Female","Private"]
[null,"Fleet","Telematics","Comp","Motor Cars","21-30","24","Learner","Female","Commercial"]
[null,"Fleet","Telematics","Comp","Motor Cars","21-30","24","Learner","Diverse","Private"]
[null,"Fleet","Telematics","Comp","Motor Cars","21-30","24","Learner","Diverse","Commercial"]
[null,"Fleet","Telematics","Comp","Motor Cars","21-30","24","Non-Learner","Male","Private"]
[null,"Fleet","Telematics","Comp","Motor Cars","21-30","24","Non-Learner","Male","Commercial"]
[null,"Fleet","Telematics","Comp","Motor Cars","21-30","24","Non-Learner","Female","Private"]
[null,"Fleet","Telematics","Comp","Motor Cars","21-30","24","Non-Learner","Female","Commercial"]
[null,"Fleet","Telematics","Comp","Motor Cars","21-30","24","Non-Learner","Diverse","Private"]
[null,"Fleet","Telematics","Comp","Motor Cars","21-30","24","Non-Learner","Diverse","Commercial"]
[null,"Fleet","Telematics","Comp","Motor Cars","21-30","25","Learner","Male","Private"]
[null,"Fleet","Telematics","Comp","Motor Cars","21-30","25","Learner","Male","Commercial"]
[null,"Fleet","Telematics","Comp","Motor Cars","21-30","25","Learner","Female","Private"]
[null,"Fleet","Telematics","Comp","Motor Cars","21-30","25","Learner","Female","Commercial"]
[null,"Fleet","Telematics","Comp","Motor Cars","21-30","25","Learner","Diverse","Private"]
[null,"Fleet","Telematics","Comp","Motor Cars","21-30","25","Learner","Diverse","Commercial"]
[null,"Fleet","Telematics","Comp","Motor Cars","21-30","25","Non-Learner","Male","Private"]
[null,"Fleet","Telematics","Comp","Motor Cars","21-30","25","Non-Learner","Male","Commercial"]
[null,"Fleet","Telematics","Comp","Motor Cars","21-30","25","Non-Learner","Female","Private"]
[null,"Fleet","Telematics","Comp","Motor Cars","21-30","25","Non-Learner","Female","Commercial"]
[null,"Fleet","Telematics","Comp","Motor Cars","21-30","25","Non-Learner","Diverse","Private"]
[null,"Fleet","Telematics","Comp","Motor Cars","21-30","25","Non-Learner","Diverse","Commercial"]
[null,"Fleet","Telematics","Comp","Motor Cars","21-30","26-20","Learner","Male","Private"]
[null,"Fleet","Telematics","Comp","Motor Cars","21-30","26-20","Learner","Male","Commercial"]
[null,"Fleet","Telematics","Comp","Motor Cars","21-30","26-20","Learner","Female","Private"]
[null,"Fleet","Telematics","Comp","Motor Cars","21-30","26-20","Learner","Female","Commercial"]
[null,"Fleet","Telematics","Comp","Motor Cars","21-30","26-20","Learner","Diverse","Private"]
[null,"Fleet","Telematics","Comp","Motor Cars","21-30","26-20","Learner","Diverse","Commercial"]
[null,"Fleet","Telematics","Comp","Motor Cars","21-30","26-20","Non-Learner","Male","Private"]
[null,"Fleet","Telematics","Comp","Motor Cars","21-30","26-20","Non-Learner","Male","Commercial"]
[null,"Fleet","Telematics","Comp","Motor Cars","21-30","26-20","Non-Learner","Female","Private"]
[null,"Fleet","Telematics","Comp","Motor Cars","21-30","26-20","Non-Learner","Female","Commercial"]
[null,"Fleet","Telematics","Comp","Motor Cars","21-30","26-20","Non-Learner","Diverse","Private"]
[null,"Fleet","Telematics","Comp","Motor Cars","21-30","26-20","Non-Learner","Diverse","Commercial"]
[null,"Fleet","Telematics","Comp","Motor Cars","21-30","31-50","Learner","Male","Private"]
[null,"Fleet","Telematics","Comp","Motor Cars","21-30","31-50","Learner","Male","Commercial"]
[null,"Fleet","Telematics","Comp","Motor Cars","21-30","31-50","Learner","Female","Private"]
[null,"Fleet","Telematics","Comp","Motor Cars","21-30","31-50","Learner","Female","Commercial"]
[null,"Fleet","Telematics","Comp","Motor Cars","21-30","31-50","Learner","Diverse","Private"]
[null,"Fleet","Telematics","Comp","Motor Cars","21-30","31-50","Learner","Diverse","Commercial"]
[null,"Fleet","Telematics","Comp","Motor Cars","21-30","31-50","Non-Learner","Male","Private"]
[null,"Fleet","Telematics","Comp","Motor Cars","21-30","31-50","Non-Learner","Male","Commercial"]
[null,"Fleet","Telematics","Comp","Motor Cars","21-30","31-50","Non-Learner","Female","Private"]
[null,"Fleet","Telematics","Comp","Motor Cars","21-30","31-50","Non-Learner","Female","Commercial"]
[null,"Fleet","Telematics","Comp","Motor Cars","21-30","31-50","Non-Learner","Diverse","Private"]
[null,"Fleet","Telematics","Comp","Motor Cars","21-30","31-50","Non-Learner","Diverse","Commercial"]
[null,"Fleet","Telematics","Comp","Motor Cars","21-30","51-69","Learner","Male","Private"]
[null,"Fleet","Telematics","Comp","Motor Cars","21-30","51-69","Learner","Male","Commercial"]
[null,"Fleet","Telematics","Comp","Motor Cars","21-30","51-69","Learner","Female","Private"]
[null,"Fleet","Telematics","Comp","Motor Cars","21-30","51-69","Learner","Female","Commercial"]
[null,"Fleet","Telematics","Comp","Motor Cars","21-30","51-69","Learner","Diverse","Private"]
[null,"Fleet","Telematics","Comp","Motor Cars","21-30","51-69","Learner","Diverse","Commercial"]
[null,"Fleet","Telematics","Comp","Motor Cars","21-30","51-69","Non-Learner","Male","Private"]
[null,"Fleet","Telematics","Comp","Motor Cars","21-30","51-69","Non-Learner","Male","Commercial"]
[null,"Fleet","Telematics","Comp","Motor Cars","21-30","51-69","Non-Learner","Female","Private"]
[null,"Fleet","Telematics","Comp","Motor Cars","21-30","51-69","Non-Learner","Female","Commercial"]
[null,"Fleet","Telematics","Comp","Motor Cars","21-30","51-69","Non-Learner","Diverse","Private"]
[null,"Fleet","Telematics","Comp","Motor Cars","21-30","51-69","Non-Learner","Diverse","Commercial"]
[null,"Fleet","Telematics","Comp","Motor Cars","21-30","70 or over","Learner","Male","Private"]
[null,"Fleet","Telematics","Comp","Motor Cars","21-30","70 or over","Learner","Male","Commercial"]
[null,"Fleet","Telematics","Comp","Motor Cars","21-30","70 or over","Learner","Female","Private"]
[null,"Fleet","Telematics","Comp","Motor Cars","21-30","70 or over","Learner","Female","Commercial"]
[null,"Fleet","Telematics","Comp","Motor Cars","21-30","70 or over","Learner","Diverse","Private"]
[null,"Fleet","Telematics","Comp","Motor Cars","21-30","70 or over","Learner","Diverse","Commercial"]
[null,"Fleet","Telematics","Comp","Motor Cars","21-30","70 or over","Non-Learner","Male","Private"]
[null,"Fleet","Telematics","Comp","Motor Cars","21-30","70 or over","Non-Learner","Male","Commercial"]
[null,"Fleet","Telematics","Comp","Motor Cars","21-30","70 or over","Non-Learner","Female","Private"]
[null,"Fleet","Telematics","Comp","Motor Cars","21-30","70 or over","Non-Learner","Female","Commercial"]
[null,"Fleet","Telematics","Comp","Motor Cars","21-30","70 or over","Non-Learner","Diverse","Private"]
[null,"Fleet","Telematics","Comp","Motor Cars","21-30","70 or over","Non-Learner","Diverse","Commercial"]
[null,"Fleet","Telematics","Comp","Motor Cars","21-30","Any Driver","Learner","Male","Private"]
[null,"Fleet","Telematics","Comp","Motor Cars","21-30","Any Driver","Learner","Male","Commercial"]
[null,"Fleet","Telematics","Comp","Motor Cars","21-30","Any Driver","Learner","Female","Private"]
[null,"Fleet","Telematics","Comp","Motor Cars","21-30","Any Driver","Learner","Female","Commercial"]
[null,"Fleet","Telematics","Comp","Motor Cars","21-30","Any Driver","Learner","Diverse","Private"]
[null,"Fleet","Telematics","Comp","Motor Cars","21-30","Any Driver","Learner","Diverse","Commercial"]
[null,"Fleet","Telematics","Comp","Motor Cars","21-30","Any Driver","Non-Learner","Male","Private"]
[null,"Fleet","Telematics","Comp","Motor Cars","21-30","Any Driver","Non-Learner","Male","Commercial"]
[null,"Fleet","Telematics","Comp","Motor Cars","21-30","Any Driver","Non-Learner","Female","Private"]
[null,"Fleet","Telematics","Comp","Motor Cars","21-30","Any Driver","Non-Learner","Female","Commercial"]
[null,"Fleet","Telematics","Comp","Motor Cars","21-30","Any Driver","Non-Learner","Diverse","Private"]
[null,"Fleet","Telematics","Comp","Motor Cars","21-30","Any Driver","Non-Learner","Diverse","Commercial"]
[null,"Fleet","Telematics","Comp","Motor Cars","31-40","17","Learner","Male","Private"]
[null,"Fleet","Telematics","Comp","Motor Cars","31-40","17","Learner","Male","Commercial"]
[null,"Fleet","Telematics","Comp","Motor Cars","31-40","17","Learner","Female","Private"]
[null,"Fleet","Telematics","Comp","Motor Cars","31-40","17","Learner","Female","Commercial"]
[null,"Fleet","Telematics","Comp","Motor Cars","31-40","17","Learner","Diverse","Private"]
[null,"Fleet","Telematics","Comp","Motor Cars","31-40","17","Learner","Diverse","Commercial"]
[null,"Fleet","Telematics","Comp","Motor Cars","31-40","17","Non-Learner","Male","Private"]
[null,"Fleet","Telematics","Comp","Motor Cars","31-40","17","Non-Learner","Male","Commercial"]
[null,"Fleet","Telematics","Comp","Motor Cars","31-40","17","Non-Learner","Female","Private"]
[null,"Fleet","Telematics","Comp","Motor Cars","31-40","17","Non-Learner","Female","Commercial"]
[null,"Fleet","Telematics","Comp","Motor Cars","31-40","17","Non-Learner","Diverse","Private"]
[null,"Fleet","Telematics","Comp","Motor Cars","31-40","17","Non-Learner","Diverse","Commercial"]
[null,"Fleet","Telematics","Comp","Motor Cars","31-40","18","Learner","Male","Private"]
[null,"Fleet","Telematics","Comp","Motor Cars","31-40","18","Learner","Male","Commercial"]
[null,"Fleet","Telematics","Comp","Motor Cars","31-40","18","Learner","Female","Private"]
[null,"Fleet","Telematics","Comp","Motor Cars","31-40","18","Learner","Female","Commercial"]
[null,"Fleet","Telematics","Comp","Motor Cars","31-40","18","Learner","Diverse","Private"]
[null,"Fleet","Telematics","Comp","Motor Cars","31-40","18","Learner","Diverse","Commercial"]
[null,"Fleet","Telematics","Comp","Motor Cars","31-40","18","Non-Learner","Male","Private"]
[null,"Fleet","Telematics","Comp","Motor Cars","31-40","18","Non-Learner","Male","Commercial"]
[null,"Fleet","Telematics","Comp","Motor Cars","31-40","18","Non-Learner","Female","Private"]
[null,"Fleet","Telematics","Comp","Motor Cars","31-40","18","Non-Learner","Female","Commercial"]
[null,"Fleet","Telematics","Comp","Motor Cars","31-40","18","Non-Learner","Diverse","Private"]
[null,"Fleet","Telematics","Comp","Motor Cars","31-40","18","Non-Learner","Diverse","Commercial"]
[null,"Fleet","Telematics","Comp","Motor Cars","31-40","19","Learner","Male","Private"]
[null,"Fleet","Telematics","Comp","Motor Cars","31-40","19","Learner","Male","Commercial"]
[null,"Fleet","Telematics","Comp","Motor Cars","31-40","19","Learner","Female","Private"]
[null,"Fleet","Telematics","Comp","Motor Cars","31-40","19","Learner","Female","Commercial"]
[null,"Fleet","Telematics","Comp","Motor Cars","31-40","19","Learner","Diverse","Private"]
[null,"Fleet","Telematics","Comp","Motor Cars","31-40","19","Learner","Diverse","Commercial"]
[null,"Fleet","Telematics","Comp","Motor Cars","31-40","19","Non-Learner","Male","Private"]
[null,"Fleet","Telematics","Comp","Motor Cars","31-40","19","Non-Learner","Male","Commercial"]
[null,"Fleet","Telematics","Comp","Motor Cars","31-40","19","Non-Learner","Female","Private"]
[null,"Fleet","Telematics","Comp","Motor Cars","31-40","19","Non-Learner","Female","Commercial"]
[null,"Fleet","Telematics","Comp","Motor Cars","31-40","19","Non-Learner","Diverse","Private"]
[null,"Fleet","Telematics","Comp","Motor Cars","31-40","19","Non-Learner","Diverse","Commercial"]
[null,"Fleet","Telematics","Comp","Motor Cars","31-40","20","Learner","Male","Private"]
[null,"Fleet","Telematics","Comp","Motor Cars","31-40","20","Learner","Male","Commercial"]
[null,"Fleet","Telematics","Comp","Motor Cars","31-40","20","Learner","Female","Private"]
[null,"Fleet","Telematics","Comp","Motor Cars","31-40","20","Learner","Female","Commercial"]
[null,"Fleet","Telematics","Comp","Motor Cars","31-40","20","Learner","Diverse","Private"]
[null,"Fleet","Telematics","Comp","Motor Cars","31-40","20","Learner","Diverse","Commercial"]
[null,"Fleet","Telematics","Comp","Motor Cars","31-40","20","Non-Learner","Male","Private"]
[null,"Fleet","Telematics","Comp","Motor Cars","31-40","20","Non-Learner","Male","Commercial"]
[null,"Fleet","Telematics","Comp","Motor Cars","31-40","20","Non-Learner","Female","Private"]
[null,"Fleet","Telematics","Comp","Motor Cars","31-40","20","Non-Learner","Female","Commercial"]
[null,"Fleet","Telematics","Comp","Motor Cars","31-40","20","Non-Learner","Diverse","Private"]
[null,"Fleet","Telematics","Comp","Motor Cars","31-40","20","Non-Learner","Diverse","Commercial"]
[null,"Fleet","Telematics","Comp","Motor Cars","31-40","21","Learner","Male","Private"]
[null,"Fleet","Telematics","Comp","Motor Cars","31-40","21","Learner","Male","Commercial"]
[null,"Fleet","Telematics","Comp","Motor Cars","31-40","21","Learner","Female","Private"]
[null,"Fleet","Telematics","Comp","Motor Cars","31-40","21","Learner","Female","Commercial"]
[null,"Fleet","Telematics","Comp","Motor Cars","31-40","21","Learner","Diverse","Private"]
[null,"Fleet","Telematics","Comp","Motor Cars","31-40","21","Learner","Diverse","Commercial"]
[null,"Fleet","Telematics","Comp","Motor Cars","31-40","21","Non-Learner","Male","Private"]
[null,"Fleet","Telematics","Comp","Motor Cars","31-40","21","Non-Learner","Male","Commercial"]
[null,"Fleet","Telematics","Comp","Motor Cars","31-40","21","Non-Learner","Female","Private"]
[null,"Fleet","Telematics","Comp","Motor Cars","31-40","21","Non-Learner","Female","Commercial"]
[null,"Fleet","Telematics","Comp","Motor Cars","31-40","21","Non-Learner","Diverse","Private"]
[null,"Fleet","Telematics","Comp","Motor Cars","31-40","21","Non-Learner","Diverse","Commercial"]
[null,"Fleet","Telematics","Comp","Motor Cars","31-40","22","Learner","Male","Private"]
[null,"Fleet","Telematics","Comp","Motor Cars","31-40","22","Learner","Male","Commercial"]
[null,"Fleet","Telematics","Comp","Motor Cars","31-40","22","Learner","Female","Private"]
[null,"Fleet","Telematics","Comp","Motor Cars","31-40","22","Learner","Female","Commercial"]
[null,"Fleet","Telematics","Comp","Motor Cars","31-40","22","Learner","Diverse","Private"]
[null,"Fleet","Telematics","Comp","Motor Cars","31-40","22","Learner","Diverse","Commercial"]
[null,"Fleet","Telematics","Comp","Motor Cars","31-40","22","Non-Learner","Male","Private"]
[null,"Fleet","Telematics","Comp","Motor Cars","31-40","22","Non-Learner","Male","Commercial"]
[null,"Fleet","Telematics","Comp","Motor Cars","31-40","22","Non-Learner","Female","Private"]
[null,"Fleet","Telematics","Comp","Motor Cars","31-40","22","Non-Learner","Female","Commercial"]
[null,"Fleet","Telematics","Comp","Motor Cars","31-40","22","Non-Learner","Diverse","Private"]
[null,"Fleet","Telematics","Comp","Motor Cars","31-40","22","Non-Learner","Diverse","Commercial"]
[null,"Fleet","Telematics","Comp","Motor Cars","31-40","23","Learner","Male","Private"]
[null,"Fleet","Telematics","Comp","Motor Cars","31-40","23","Learner","Male","Commercial"]
[null,"Fleet","Telematics","Comp","Motor Cars","31-40","23","Learner","Female","Private"]
[null,"Fleet","Telematics","Comp","Motor Cars","31-40","23","Learner","Female","Commercial"]
[null,"Fleet","Telematics","Comp","Motor Cars","31-40","23","Learner","Diverse","Private"]
[null,"Fleet","Telematics","Comp","Motor Cars","31-40","23","Learner","Diverse","Commercial"]
[null,"Fleet","Telematics","Comp","Motor Cars","31-40","23","Non-Learner","Male","Private"]
[null,"Fleet","Telematics","Comp","Motor Cars","31-40","23","Non-Learner","Male","Commercial"]
[null,"Fleet","Telematics","Comp","Motor Cars","31-40","23","Non-Learner","Female","Private"]
[null,"Fleet","Telematics","Comp","Motor Cars","31-40","23","Non-Learner","Female","Commercial"]
[null,"Fleet","Telematics","Comp","Motor Cars","31-40","23","Non-Learner","Diverse","Private"]
[null,"Fleet","Telematics","Comp","Motor Cars","31-40","23","Non-Learner","Diverse","Commercial"]
[null,"Fleet","Telematics","Comp","Motor Cars","31-40","24","Learner","Male","Private"]
[null,"Fleet","Telematics","Comp","Motor Cars","31-40","24","Learner","Male","Commercial"]
[null,"Fleet","Telematics","Comp","Motor Cars","31-40","24","Learner","Female","Private"]
[null,"Fleet","Telematics","Comp","Motor Cars","31-40","24","Learner","Female","Commercial"]
[null,"Fleet","Telematics","Comp","Motor Cars","31-40","24","Learner","Diverse","Private"]
[null,"Fleet","Telematics","Comp","Motor Cars","31-40","24","Learner","Diverse","Commercial"]
[null,"Fleet","Telematics","Comp","Motor Cars","31-40","24","Non-Learner","Male","Private"]
[null,"Fleet","Telematics","Comp","Motor Cars","31-40","24","Non-Learner","Male","Commercial"]
[null,"Fleet","Telematics","Comp","Motor Cars","31-40","24","Non-Learner","Female","Private"]
[null,"Fleet","Telematics","Comp","Motor Cars","31-40","24","Non-Learner","Female","Commercial"]
[null,"Fleet","Telematics","Comp","Motor Cars","31-40","24","Non-Learner","Diverse","Private"]
[null,"Fleet","Telematics","Comp","Motor Cars","31-40","24","Non-Learner","Diverse","Commercial"]
[null,"Fleet","Telematics","Comp","Motor Cars","31-40","25","Learner","Male","Private"]
[null,"Fleet","Telematics","Comp","Motor Cars","31-40","25","Learner","Male","Commercial"]
[null,"Fleet","Telematics","Comp","Motor Cars","31-40","25","Learner","Female","Private"]
[null,"Fleet","Telematics","Comp","Motor Cars","31-40","25","Learner","Female","Commercial"]
[null,"Fleet","Telematics","Comp","Motor Cars","31-40","25","Learner","Diverse","Private"]
[null,"Fleet","Telematics","Comp","Motor Cars","31-40","25","Learner","Diverse","Commercial"]
[null,"Fleet","Telematics","Comp","Motor Cars","31-40","25","Non-Learner","Male","Private"]
[null,"Fleet","Telematics","Comp","Motor Cars","31-40","25","Non-Learner","Male","Commercial"]
[null,"Fleet","Telematics","Comp","Motor Cars","31-40","25","Non-Learner","Female","Private"]
[null,"Fleet","Telematics","Comp","Motor Cars","31-40","25","Non-Learner","Female","Commercial"]
[null,"Fleet","Telematics","Comp","Motor Cars","31-40","25","Non-Learner","Diverse","Private"]
[null,"Fleet","Telematics","Comp","Motor Cars","31-40","25","Non-Learner","Diverse","Commercial"]
[null,"Fleet","Telematics","Comp","Motor Cars","31-40","26-20","Learner","Male","Private"]
[null,"Fleet","Telematics","Comp","Motor Cars","31-40","26-20","Learner","Male","Commercial"]
[null,"Fleet","Telematics","Comp","Motor Cars","31-40","26-20","Learner","Female","Private"]
[null,"Fleet","Telematics","Comp","Motor Cars","31-40","26-20","Learner","Female","Commercial"]
[null,"Fleet","Telematics","Comp","Motor Cars","31-40","26-20","Learner","Diverse","Private"]
[null,"Fleet","Telematics","Comp","Motor Cars","31-40","26-20","Learner","Diverse","Commercial"]
[null,"Fleet","Telematics","Comp","Motor Cars","31-40","26-20","Non-Learner","Male","Private"]
[null,"Fleet","Telematics","Comp","Motor Cars","31-40","26-20","Non-Learner","Male","Commercial"]
[null,"Fleet","Telematics","Comp","Motor Cars","31-40","26-20","Non-Learner","Female","Private"]
[null,"Fleet","Telematics","Comp","Motor Cars","31-40","26-20","Non-Learner","Female","Commercial"]
[null,"Fleet","Telematics","Comp","Motor Cars","31-40","26-20","Non-Learner","Diverse","Private"]
[null,"Fleet","Telematics","Comp","Motor Cars","31-40","26-20","Non-Learner","Diverse","Commercial"]
[null,"Fleet","Telematics","Comp","Motor Cars","31-40","31-50","Learner","Male","Private"]
[null,"Fleet","Telematics","Comp","Motor Cars","31-40","31-50","Learner","Male","Commercial"]
[null,"Fleet","Telematics","Comp","Motor Cars","31-40","31-50","Learner","Female","Private"]
[null,"Fleet","Telematics","Comp","Motor Cars","31-40","31-50","Learner","Female","Commercial"]
[null,"Fleet","Telematics","Comp","Motor Cars","31-40","31-50","Learner","Diverse","Private"]
[null,"Fleet","Telematics","Comp","Motor Cars","31-40","31-50","Learner","Diverse","Commercial"]
[null,"Fleet","Telematics","Comp","Motor Cars","31-40","31-50","Non-Learner","Male","Private"]
[null,"Fleet","Telematics","Comp","Motor Cars","31-40","31-50","Non-Learner","Male","Commercial"]
[null,"Fleet","Telematics","Comp","Motor Cars","31-40","31-50","Non-Learner","Female","Private"]
[null,"Fleet","Telematics","Comp","Motor Cars","31-40","31-50","Non-Learner","Female","Commercial"]
[null,"Fleet","Telematics","Comp","Motor Cars","31-40","31-50","Non-Learner","Diverse","Private"]
[null,"Fleet","Telematics","Comp","Motor Cars","31-40","31-50","Non-Learner","Diverse","Commercial"]
[null,"Fleet","Telematics","Comp","Motor Cars","31-40","51-69","Learner","Male","Private"]
[null,"Fleet","Telematics","Comp","Motor Cars","31-40","51-69","Learner","Male","Commercial"]
[null,"Fleet","Telematics","Comp","Motor Cars","31-40","51-69","Learner","Female","Private"]
[null,"Fleet","Telematics","Comp","Motor Cars","31-40","51-69","Learner","Female","Commercial"]
[null,"Fleet","Telematics","Comp","Motor Cars","31-40","51-69","Learner","Diverse","Private"]
[null,"Fleet","Telematics","Comp","Motor Cars","31-40","51-69","Learner","Diverse","Commercial"]
[null,"Fleet","Telematics","Comp","Motor Cars","31-40","51-69","Non-Learner","Male","Private"]
[null,"Fleet","Telematics","Comp","Motor Cars","31-40","51-69","Non-Learner","Male","Commercial"]
[null,"Fleet","Telematics","Comp","Motor Cars","31-40","51-69","Non-Learner","Female","Private"]
[null,"Fleet","Telematics","Comp","Motor Cars","31-40","51-69","Non-Learner","Female","Commercial"]
[null,"Fleet","Telematics","Comp","Motor Cars","31-40","51-69","Non-Learner","Diverse","Private"]
[null,"Fleet","Telematics","Comp","Motor Cars","31-40","51-69","Non-Learner","Diverse","Commercial"]
[null,"Fleet","Telematics","Comp","Motor Cars","31-40","70 or over","Learner","Male","Private"]
[null,"Fleet","Telematics","Comp","Motor Cars","31-40","70 or over","Learner","Male","Commercial"]
[null,"Fleet","Telematics","Comp","Motor Cars","31-40","70 or over","Learner","Female","Private"]
[null,"Fleet","Telematics","Comp","Motor Cars","31-40","70 or over","Learner","Female","Commercial"]
[null,"Fleet","Telematics","Comp","Motor Cars","31-40","70 or over","Learner","Diverse","Private"]
[null,"Fleet","Telematics","Comp","Motor Cars","31-40","70 or over","Learner","Diverse","Commercial"]
[null,"Fleet","Telematics","Comp","Motor Cars","31-40","70 or over","Non-Learner","Male","Private"]
[null,"Fleet","Telematics","Comp","Motor Cars","31-40","70 or over","Non-Learner","Male","Commercial"]
[null,"Fleet","Telematics","Comp","Motor Cars","31-40","70 or over","Non-Learner","Female","Private"]
[null,"Fleet","Telematics","Comp","Motor Cars","31-40","70 or over","Non-Learner","Female","Commercial"]
[null,"Fleet","Telematics","Comp","Motor Cars","31-40","70 or over","Non-Learner","Diverse","Private"]
[null,"Fleet","Telematics","Comp","Motor Cars","31-40","70 or over","Non-Learner","Diverse","Commercial"]
[null,"Fleet","Telematics","Comp","Motor Cars","31-40","Any Driver","Learner","Male","Private"]
[null,"Fleet","Telematics","Comp","Motor Cars","31-40","Any Driver","Learner","Male","Commercial"]
[null,"Fleet","Telematics","Comp","Motor Cars","31-40","Any Driver","Learner","Female","Private"]
[null,"Fleet","Telematics","Comp","Motor Cars","31-40","Any Driver","Learner","Female","Commercial"]
[null,"Fleet","Telematics","Comp","Motor Cars","31-40","Any Driver","Learner","Diverse","Private"]
[null,"Fleet","Telematics","Comp","Motor Cars","31-40","Any Driver","Learner","Diverse","Commercial"]
[null,"Fleet","Telematics","Comp","Motor Cars","31-40","Any Driver","Non-Learner","Male","Private"]
[null,"Fleet","Telematics","Comp","Motor Cars","31-40","Any Driver","Non-Learner","Male","Commercial"]
[null,"Fleet","Telematics","Comp","Motor Cars","31-40","Any Driver","Non-Learner","Female","Private"]
[null,"Fleet","Telematics","Comp","Motor Cars","31-40","Any Driver","Non-Learner","Female","Commercial"]
[null,"Fleet","Telematics","Comp","Motor Cars","31-40","Any Driver","Non-Learner","Diverse","Private"]
[null,"Fleet","Telematics","Comp","Motor Cars","31-40","Any Driver","Non-Learner","Diverse","Commercial"]
[null,"Fleet","Telematics","Comp","Motor Cars","41-50","17","Learner","Male","Private"]
[null,"Fleet","Telematics","Comp","Motor Cars","41-50","17","Learner","Male","Commercial"]
[null,"Fleet","Telematics","Comp","Motor Cars","41-50","17","Learner","Female","Private"]
[null,"Fleet","Telematics","Comp","Motor Cars","41-50","17","Learner","Female","Commercial"]
[null,"Fleet","Telematics","Comp","Motor Cars","41-50","17","Learner","Diverse","Private"]
[null,"Fleet","Telematics","Comp","Motor Cars","41-50","17","Learner","Diverse","Commercial"]
[null,"Fleet","Telematics","Comp","Motor Cars","41-50","17","Non-Learner","Male","Private"]
[null,"Fleet","Telematics","Comp","Motor Cars","41-50","17","Non-Learner","Male","Commercial"]
[null,"Fleet","Telematics","Comp","Motor Cars","41-50","17","Non-Learner","Female","Private"]
[null,"Fleet","Telematics","Comp","Motor Cars","41-50","17","Non-Learner","Female","Commercial"]
[null,"Fleet","Telematics","Comp","Motor Cars","41-50","17","Non-Learner","Diverse","Private"]
[null,"Fleet","Telematics","Comp","Motor Cars","41-50","17","Non-Learner","Diverse","Commercial"]
[null,"Fleet","Telematics","Comp","Motor Cars","41-50","18","Learner","Male","Private"]
[null,"Fleet","Telematics","Comp","Motor Cars","41-50","18","Learner","Male","Commercial"]
[null,"Fleet","Telematics","Comp","Motor Cars","41-50","18","Learner","Female","Private"]
[null,"Fleet","Telematics","Comp","Motor Cars","41-50","18","Learner","Female","Commercial"]
[null,"Fleet","Telematics","Comp","Motor Cars","41-50","18","Learner","Diverse","Private"]
[null,"Fleet","Telematics","Comp","Motor Cars","41-50","18","Learner","Diverse","Commercial"]
[null,"Fleet","Telematics","Comp","Motor Cars","41-50","18","Non-Learner","Male","Private"]
[null,"Fleet","Telematics","Comp","Motor Cars","41-50","18","Non-Learner","Male","Commercial"]
[null,"Fleet","Telematics","Comp","Motor Cars","41-50","18","Non-Learner","Female","Private"]
[null,"Fleet","Telematics","Comp","Motor Cars","41-50","18","Non-Learner","Female","Commercial"]
[null,"Fleet","Telematics","Comp","Motor Cars","41-50","18","Non-Learner","Diverse","Private"]
[null,"Fleet","Telematics","Comp","Motor Cars","41-50","18","Non-Learner","Diverse","Commercial"]
[null,"Fleet","Telematics","Comp","Motor Cars","41-50","19","Learner","Male","Private"]
[null,"Fleet","Telematics","Comp","Motor Cars","41-50","19","Learner","Male","Commercial"]
[null,"Fleet","Telematics","Comp","Motor Cars","41-50","19","Learner","Female","Private"]
[null,"Fleet","Telematics","Comp","Motor Cars","41-50","19","Learner","Female","Commercial"]
[null,"Fleet","Telematics","Comp","Motor Cars","41-50","19","Learner","Diverse","Private"]
[null,"Fleet","Telematics","Comp","Motor Cars","41-50","19","Learner","Diverse","Commercial"]
[null,"Fleet","Telematics","Comp","Motor Cars","41-50","19","Non-Learner","Male","Private"]
[null,"Fleet","Telematics","Comp","Motor Cars","41-50","19","Non-Learner","Male","Commercial"]
[null,"Fleet","Telematics","Comp","Motor Cars","41-50","19","Non-Learner","Female","Private"]
[null,"Fleet","Telematics","Comp","Motor Cars","41-50","19","Non-Learner","Female","Commercial"]
[null,"Fleet","Telematics","Comp","Motor Cars","41-50","19","Non-Learner","Diverse","Private"]
[null,"Fleet","Telematics","Comp","Motor Cars","41-50","19","Non-Learner","Diverse","Commercial"]
[null,"Fleet","Telematics","Comp","Motor Cars","41-50","20","Learner","Male","Private"]
[null,"Fleet","Telematics","Comp","Motor Cars","41-50","20","Learner","Male","Commercial"]
[null,"Fleet","Telematics","Comp","Motor Cars","41-50","20","Learner","Female","Private"]
[null,"Fleet","Telematics","Comp","Motor Cars","41-50","20","Learner","Female","Commercial"]
[null,"Fleet","Telematics","Comp","Motor Cars","41-50","20","Learner","Diverse","Private"]
[null,"Fleet","Telematics","Comp","Motor Cars","41-50","20","Learner","Diverse","Commercial"]
[null,"Fleet","Telematics","Comp","Motor Cars","41-50","20","Non-Learner","Male","Private"]
[null,"Fleet","Telematics","Comp","Motor Cars","41-50","20","Non-Learner","Male","Commercial"]
[null,"Fleet","Telematics","Comp","Motor Cars","41-50","20","Non-Learner","Female","Private"]
[null,"Fleet","Telematics","Comp","Motor Cars","41-50","20","Non-Learner","Female","Commercial"]
[null,"Fleet","Telematics","Comp","Motor Cars","41-50","20","Non-Learner","Diverse","Private"]
[null,"Fleet","Telematics","Comp","Motor Cars","41-50","20","Non-Learner","Diverse","Commercial"]
[null,"Fleet","Telematics","Comp","Motor Cars","41-50","21","Learner","Male","Private"]
[null,"Fleet","Telematics","Comp","Motor Cars","41-50","21","Learner","Male","Commercial"]
[null,"Fleet","Telematics","Comp","Motor Cars","41-50","21","Learner","Female","Private"]
[null,"Fleet","Telematics","Comp","Motor Cars","41-50","21","Learner","Female","Commercial"]
[null,"Fleet","Telematics","Comp","Motor Cars","41-50","21","Learner","Diverse","Private"]
[null,"Fleet","Telematics","Comp","Motor Cars","41-50","21","Learner","Diverse","Commercial"]
[null,"Fleet","Telematics","Comp","Motor Cars","41-50","21","Non-Learner","Male","Private"]
[null,"Fleet","Telematics","Comp","Motor Cars","41-50","21","Non-Learner","Male","Commercial"]
[null,"Fleet","Telematics","Comp","Motor Cars","41-50","21","Non-Learner","Female","Private"]
[null,"Fleet","Telematics","Comp","Motor Cars","41-50","21","Non-Learner","Female","Commercial"]
[null,"Fleet","Telematics","Comp","Motor Cars","41-50","21","Non-Learner","Diverse","Private"]
[null,"Fleet","Telematics","Comp","Motor Cars","41-50","21","Non-Learner","Diverse","Commercial"]
[null,"Fleet","Telematics","Comp","Motor Cars","41-50","22","Learner","Male","Private"]
[null,"Fleet","Telematics","Comp","Motor Cars","41-50","22","Learner","Male","Commercial"]
[null,"Fleet","Telematics","Comp","Motor Cars","41-50","22","Learner","Female","Private"]
[null,"Fleet","Telematics","Comp","Motor Cars","41-50","22","Learner","Female","Commercial"]
[null,"Fleet","Telematics","Comp","Motor Cars","41-50","22","Learner","Diverse","Private"]
[null,"Fleet","Telematics","Comp","Motor Cars","41-50","22","Learner","Diverse","Commercial"]
[null,"Fleet","Telematics","Comp","Motor Cars","41-50","22","Non-Learner","Male","Private"]
[null,"Fleet","Telematics","Comp","Motor Cars","41-50","22","Non-Learner","Male","Commercial"]
[null,"Fleet","Telematics","Comp","Motor Cars","41-50","22","Non-Learner","Female","Private"]
[null,"Fleet","Telematics","Comp","Motor Cars","41-50","22","Non-Learner","Female","Commercial"]
[null,"Fleet","Telematics","Comp","Motor Cars","41-50","22","Non-Learner","Diverse","Private"]
[null,"Fleet","Telematics","Comp","Motor Cars","41-50","22","Non-Learner","Diverse","Commercial"]
[null,"Fleet","Telematics","Comp","Motor Cars","41-50","23","Learner","Male","Private"]
[null,"Fleet","Telematics","Comp","Motor Cars","41-50","23","Learner","Male","Commercial"]
[null,"Fleet","Telematics","Comp","Motor Cars","41-50","23","Learner","Female","Private"]
[null,"Fleet","Telematics","Comp","Motor Cars","41-50","23","Learner","Female","Commercial"]
[null,"Fleet","Telematics","Comp","Motor Cars","41-50","23","Learner","Diverse","Private"]
[null,"Fleet","Telematics","Comp","Motor Cars","41-50","23","Learner","Diverse","Commercial"]
[null,"Fleet","Telematics","Comp","Motor Cars","41-50","23","Non-Learner","Male","Private"]
[null,"Fleet","Telematics","Comp","Motor Cars","41-50","23","Non-Learner","Male","Commercial"]
[null,"Fleet","Telematics","Comp","Motor Cars","41-50","23","Non-Learner","Female","Private"]
[null,"Fleet","Telematics","Comp","Motor Cars","41-50","23","Non-Learner","Female","Commercial"]
[null,"Fleet","Telematics","Comp","Motor Cars","41-50","23","Non-Learner","Diverse","Private"]
[null,"Fleet","Telematics","Comp","Motor Cars","41-50","23","Non-Learner","Diverse","Commercial"]
[null,"Fleet","Telematics","Comp","Motor Cars","41-50","24","Learner","Male","Private"]
[null,"Fleet","Telematics","Comp","Motor Cars","41-50","24","Learner","Male","Commercial"]
[null,"Fleet","Telematics","Comp","Motor Cars","41-50","24","Learner","Female","Private"]
[null,"Fleet","Telematics","Comp","Motor Cars","41-50","24","Learner","Female","Commercial"]
[null,"Fleet","Telematics","Comp","Motor Cars","41-50","24","Learner","Diverse","Private"]
[null,"Fleet","Telematics","Comp","Motor Cars","41-50","24","Learner","Diverse","Commercial"]
[null,"Fleet","Telematics","Comp","Motor Cars","41-50","24","Non-Learner","Male","Private"]
[null,"Fleet","Telematics","Comp","Motor Cars","41-50","24","Non-Learner","Male","Commercial"]
[null,"Fleet","Telematics","Comp","Motor Cars","41-50","24","Non-Learner","Female","Private"]
[null,"Fleet","Telematics","Comp","Motor Cars","41-50","24","Non-Learner","Female","Commercial"]
[null,"Fleet","Telematics","Comp","Motor Cars","41-50","24","Non-Learner","Diverse","Private"]
[null,"Fleet","Telematics","Comp","Motor Cars","41-50","24","Non-Learner","Diverse","Commercial"]
[null,"Fleet","Telematics","Comp","Motor Cars","41-50","25","Learner","Male","Private"]
[null,"Fleet","Telematics","Comp","Motor Cars","41-50","25","Learner","Male","Commercial"]
[null,"Fleet","Telematics","Comp","Motor Cars","41-50","25","Learner","Female","Private"]
[null,"Fleet","Telematics","Comp","Motor Cars","41-50","25","Learner","Female","Commercial"]
[null,"Fleet","Telematics","Comp","Motor Cars","41-50","25","Learner","Diverse","Private"]
[null,"Fleet","Telematics","Comp","Motor Cars","41-50","25","Learner","Diverse","Commercial"]
[null,"Fleet","Telematics","Comp","Motor Cars","41-50","25","Non-Learner","Male","Private"]
[null,"Fleet","Telematics","Comp","Motor Cars","41-50","25","Non-Learner","Male","Commercial"]
[null,"Fleet","Telematics","Comp","Motor Cars","41-50","25","Non-Learner","Female","Private"]
[null,"Fleet","Telematics","Comp","Motor Cars","41-50","25","Non-Learner","Female","Commercial"]
[null,"Fleet","Telematics","Comp","Motor Cars","41-50","25","Non-Learner","Diverse","Private"]
[null,"Fleet","Telematics","Comp","Motor Cars","41-50","25","Non-Learner","Diverse","Commercial"]
[null,"Fleet","Telematics","Comp","Motor Cars","41-50","26-20","Learner","Male","Private"]
[null,"Fleet","Telematics","Comp","Motor Cars","41-50","26-20","Learner","Male","Commercial"]
[null,"Fleet","Telematics","Comp","Motor Cars","41-50","26-20","Learner","Female","Private"]
[null,"Fleet","Telematics","Comp","Motor Cars","41-50","26-20","Learner","Female","Commercial"]
[null,"Fleet","Telematics","Comp","Motor Cars","41-50","26-20","Learner","Diverse","Private"]
[null,"Fleet","Telematics","Comp","Motor Cars","41-50","26-20","Learner","Diverse","Commercial"]
[null,"Fleet","Telematics","Comp","Motor Cars","41-50","26-20","Non-Learner","Male","Private"]
[null,"Fleet","Telematics","Comp","Motor Cars","41-50","26-20","Non-Learner","Male","Commercial"]
[null,"Fleet","Telematics","Comp","Motor Cars","41-50","26-20","Non-Learner","Female","Private"]
[null,"Fleet","Telematics","Comp","Motor Cars","41-50","26-20","Non-Learner","Female","Commercial"]
[null,"Fleet","Telematics","Comp","Motor Cars","41-50","26-20","Non-Learner","Diverse","Private"]
[null,"Fleet","Telematics","Comp","Motor Cars","41-50","26-20","Non-Learner","Diverse","Commercial"]
[null,"Fleet","Telematics","Comp","Motor Cars","41-50","31-50","Learner","Male","Private"]
[null,"Fleet","Telematics","Comp","Motor Cars","41-50","31-50","Learner","Male","Commercial"]
[null,"Fleet","Telematics","Comp","Motor Cars","41-50","31-50","Learner","Female","Private"]
[null,"Fleet","Telematics","Comp","Motor Cars","41-50","31-50","Learner","Female","Commercial"]
[null,"Fleet","Telematics","Comp","Motor Cars","41-50","31-50","Learner","Diverse","Private"]
[null,"Fleet","Telematics","Comp","Motor Cars","41-50","31-50","Learner","Diverse","Commercial"]
[null,"Fleet","Telematics","Comp","Motor Cars","41-50","31-50","Non-Learner","Male","Private"]
[null,"Fleet","Telematics","Comp","Motor Cars","41-50","31-50","Non-Learner","Male","Commercial"]
[null,"Fleet","Telematics","Comp","Motor Cars","41-50","31-50","Non-Learner","Female","Private"]
[null,"Fleet","Telematics","Comp","Motor Cars","41-50","31-50","Non-Learner","Female","Commercial"]
[null,"Fleet","Telematics","Comp","Motor Cars","41-50","31-50","Non-Learner","Diverse","Private"]
[null,"Fleet","Telematics","Comp","Motor Cars","41-50","31-50","Non-Learner","Diverse","Commercial"]
[null,"Fleet","Telematics","Comp","Motor Cars","41-50","51-69","Learner","Male","Private"]
[null,"Fleet","Telematics","Comp","Motor Cars","41-50","51-69","Learner","Male","Commercial"]
[null,"Fleet","Telematics","Comp","Motor Cars","41-50","51-69","Learner","Female","Private"]
[null,"Fleet","Telematics","Comp","Motor Cars","41-50","51-69","Learner","Female","Commercial"]
[null,"Fleet","Telematics","Comp","Motor Cars","41-50","51-69","Learner","Diverse","Private"]
[null,"Fleet","Telematics","Comp","Motor Cars","41-50","51-69","Learner","Diverse","Commercial"]
[null,"Fleet","Telematics","Comp","Motor Cars","41-50","51-69","Non-Learner","Male","Private"]
[null,"Fleet","Telematics","Comp","Motor Cars","41-50","51-69","Non-Learner","Male","Commercial"]
[null,"Fleet","Telematics","Comp","Motor Cars","41-50","51-69","Non-Learner","Female","Private"]
[null,"Fleet","Telematics","Comp","Motor Cars","41-50","51-69","Non-Learner","Female","Commercial"]
[null,"Fleet","Telematics","Comp","Motor Cars","41-50","51-69","Non-Learner","Diverse","Private"]
[null,"Fleet","Telematics","Comp","Motor Cars","41-50","51-69","Non-Learner","Diverse","Commercial"]
[null,"Fleet","Telematics","Comp","Motor Cars","41-50","70 or over","Learner","Male","Private"]
[null,"Fleet","Telematics","Comp","Motor Cars","41-50","70 or over","Learner","Male","Commercial"]
[null,"Fleet","Telematics","Comp","Motor Cars","41-50","70 or over","Learner","Female","Private"]
[null,"Fleet","Telematics","Comp","Motor Cars","41-50","70 or over","Learner","Female","Commercial"]
[null,"Fleet","Telematics","Comp","Motor Cars","41-50","70 or over","Learner","Diverse","Private"]
[null,"Fleet","Telematics","Comp","Motor Cars","41-50","70 or over","Learner","Diverse","Commercial"]
[null,"Fleet","Telematics","Comp","Motor Cars","41-50","70 or over","Non-Learner","Male","Private"]
[null,"Fleet","Telematics","Comp","Motor Cars","41-50","70 or over","Non-Learner","Male","Commercial"]
[null,"Fleet","Telematics","Comp","Motor Cars","41-50","70 or over","Non-Learner","Female","Private"]
[null,"Fleet","Telematics","Comp","Motor Cars","41-50","70 or over","Non-Learner","Female","Commercial"]
[null,"Fleet","Telematics","Comp","Motor Cars","41-50","70 or over","Non-Learner","Diverse","Private"]
[null,"Fleet","Telematics","Comp","Motor Cars","41-50","70 or over","Non-Learner","Diverse","Commercial"]
[null,"Fleet","Telematics","Comp","Motor Cars","41-50","Any Driver","Learner","Male","Private"]
[null,"Fleet","Telematics","Comp","Motor Cars","41-50","Any Driver","Learner","Male","Commercial"]
[null,"Fleet","Telematics","Comp","Motor Cars","41-50","Any Driver","Learner","Female","Private"]
[null,"Fleet","Telematics","Comp","Motor Cars","41-50","Any Driver","Learner","Female","Commercial"]
[null,"Fleet","Telematics","Comp","Motor Cars","41-50","Any Driver","Learner","Diverse","Private"]
[null,"Fleet","Telematics","Comp","Motor Cars","41-50","Any Driver","Learner","Diverse","Commercial"]
[null,"Fleet","Telematics","Comp","Motor Cars","41-50","Any Driver","Non-Learner","Male","Private"]
[null,"Fleet","Telematics","Comp","Motor Cars","41-50","Any Driver","Non-Learner","Male","Commercial"]
[null,"Fleet","Telematics","Comp","Motor Cars","41-50","Any Driver","Non-Learner","Female","Private"]
[null,"Fleet","Telematics","Comp","Motor Cars","41-50","Any Driver","Non-Learner","Female","Commercial"]
[null,"Fleet","Telematics","Comp","Motor Cars","41-50","Any Driver","Non-Learner","Diverse","Private"]
[null,"Fleet","Telematics","Comp","Motor Cars","41-50","Any Driver","Non-Learner","Diverse","Commercial"]
[null,"Fleet","Telematics","Comp","Motor Cars","51-60","17","Learner","Male","Private"]
[null,"Fleet","Telematics","Comp","Motor Cars","51-60","17","Learner","Male","Commercial"]
[null,"Fleet","Telematics","Comp","Motor Cars","51-60","17","Learner","Female","Private"]
[null,"Fleet","Telematics","Comp","Motor Cars","51-60","17","Learner","Female","Commercial"]
[null,"Fleet","Telematics","Comp","Motor Cars","51-60","17","Learner","Diverse","Private"]
[null,"Fleet","Telematics","Comp","Motor Cars","51-60","17","Learner","Diverse","Commercial"]
[null,"Fleet","Telematics","Comp","Motor Cars","51-60","17","Non-Learner","Male","Private"]
[null,"Fleet","Telematics","Comp","Motor Cars","51-60","17","Non-Learner","Male","Commercial"]
[null,"Fleet","Telematics","Comp","Motor Cars","51-60","17","Non-Learner","Female","Private"]
[null,"Fleet","Telematics","Comp","Motor Cars","51-60","17","Non-Learner","Female","Commercial"]
[null,"Fleet","Telematics","Comp","Motor Cars","51-60","17","Non-Learner","Diverse","Private"]
[null,"Fleet","Telematics","Comp","Motor Cars","51-60","17","Non-Learner","Diverse","Commercial"]
[null,"Fleet","Telematics","Comp","Motor Cars","51-60","18","Learner","Male","Private"]
[null,"Fleet","Telematics","Comp","Motor Cars","51-60","18","Learner","Male","Commercial"]
[null,"Fleet","Telematics","Comp","Motor Cars","51-60","18","Learner","Female","Private"]
[null,"Fleet","Telematics","Comp","Motor Cars","51-60","18","Learner","Female","Commercial"]
[null,"Fleet","Telematics","Comp","Motor Cars","51-60","18","Learner","Diverse","Private"]
[null,"Fleet","Telematics","Comp","Motor Cars","51-60","18","Learner","Diverse","Commercial"]
[null,"Fleet","Telematics","Comp","Motor Cars","51-60","18","Non-Learner","Male","Private"]
[null,"Fleet","Telematics","Comp","Motor Cars","51-60","18","Non-Learner","Male","Commercial"]
[null,"Fleet","Telematics","Comp","Motor Cars","51-60","18","Non-Learner","Female","Private"]
[null,"Fleet","Telematics","Comp","Motor Cars","51-60","18","Non-Learner","Female","Commercial"]
[null,"Fleet","Telematics","Comp","Motor Cars","51-60","18","Non-Learner","Diverse","Private"]
[null,"Fleet","Telematics","Comp","Motor Cars","51-60","18","Non-Learner","Diverse","Commercial"]
[null,"Fleet","Telematics","Comp","Motor Cars","51-60","19","Learner","Male","Private"]
[null,"Fleet","Telematics","Comp","Motor Cars","51-60","19","Learner","Male","Commercial"]
[null,"Fleet","Telematics","Comp","Motor Cars","51-60","19","Learner","Female","Private"]
[null,"Fleet","Telematics","Comp","Motor Cars","51-60","19","Learner","Female","Commercial"]
[null,"Fleet","Telematics","Comp","Motor Cars","51-60","19","Learner","Diverse","Private"]
[null,"Fleet","Telematics","Comp","Motor Cars","51-60","19","Learner","Diverse","Commercial"]
[null,"Fleet","Telematics","Comp","Motor Cars","51-60","19","Non-Learner","Male","Private"]
[null,"Fleet","Telematics","Comp","Motor Cars","51-60","19","Non-Learner","Male","Commercial"]
[null,"Fleet","Telematics","Comp","Motor Cars","51-60","19","Non-Learner","Female","Private"]
[null,"Fleet","Telematics","Comp","Motor Cars","51-60","19","Non-Learner","Female","Commercial"]
[null,"Fleet","Telematics","Comp","Motor Cars","51-60","19","Non-Learner","Diverse","Private"]
[null,"Fleet","Telematics","Comp","Motor Cars","51-60","19","Non-Learner","Diverse","Commercial"]
[null,"Fleet","Telematics","Comp","Motor Cars","51-60","20","Learner","Male","Private"]
[null,"Fleet","Telematics","Comp","Motor Cars","51-60","20","Learner","Male","Commercial"]
[null,"Fleet","Telematics","Comp","Motor Cars","51-60","20","Learner","Female","Private"]
[null,"Fleet","Telematics","Comp","Motor Cars","51-60","20","Learner","Female","Commercial"]
[null,"Fleet","Telematics","Comp","Motor Cars","51-60","20","Learner","Diverse","Private"]
[null,"Fleet","Telematics","Comp","Motor Cars","51-60","20","Learner","Diverse","Commercial"]
[null,"Fleet","Telematics","Comp","Motor Cars","51-60","20","Non-Learner","Male","Private"]
[null,"Fleet","Telematics","Comp","Motor Cars","51-60","20","Non-Learner","Male","Commercial"]
[null,"Fleet","Telematics","Comp","Motor Cars","51-60","20","Non-Learner","Female","Private"]
[null,"Fleet","Telematics","Comp","Motor Cars","51-60","20","Non-Learner","Female","Commercial"]
[null,"Fleet","Telematics","Comp","Motor Cars","51-60","20","Non-Learner","Diverse","Private"]
[null,"Fleet","Telematics","Comp","Motor Cars","51-60","20","Non-Learner","Diverse","Commercial"]
[null,"Fleet","Telematics","Comp","Motor Cars","51-60","21","Learner","Male","Private"]
[null,"Fleet","Telematics","Comp","Motor Cars","51-60","21","Learner","Male","Commercial"]
[null,"Fleet","Telematics","Comp","Motor Cars","51-60","21","Learner","Female","Private"]
[null,"Fleet","Telematics","Comp","Motor Cars","51-60","21","Learner","Female","Commercial"]
[null,"Fleet","Telematics","Comp","Motor Cars","51-60","21","Learner","Diverse","Private"]
[null,"Fleet","Telematics","Comp","Motor Cars","51-60","21","Learner","Diverse","Commercial"]
[null,"Fleet","Telematics","Comp","Motor Cars","51-60","21","Non-Learner","Male","Private"]
[null,"Fleet","Telematics","Comp","Motor Cars","51-60","21","Non-Learner","Male","Commercial"]
[null,"Fleet","Telematics","Comp","Motor Cars","51-60","21","Non-Learner","Female","Private"]
[null,"Fleet","Telematics","Comp","Motor Cars","51-60","21","Non-Learner","Female","Commercial"]
[null,"Fleet","Telematics","Comp","Motor Cars","51-60","21","Non-Learner","Diverse","Private"]
[null,"Fleet","Telematics","Comp","Motor Cars","51-60","21","Non-Learner","Diverse","Commercial"]
[null,"Fleet","Telematics","Comp","Motor Cars","51-60","22","Learner","Male","Private"]
[null,"Fleet","Telematics","Comp","Motor Cars","51-60","22","Learner","Male","Commercial"]
[null,"Fleet","Telematics","Comp","Motor Cars","51-60","22","Learner","Female","Private"]
[null,"Fleet","Telematics","Comp","Motor Cars","51-60","22","Learner","Female","Commercial"]
[null,"Fleet","Telematics","Comp","Motor Cars","51-60","22","Learner","Diverse","Private"]
[null,"Fleet","Telematics","Comp","Motor Cars","51-60","22","Learner","Diverse","Commercial"]
[null,"Fleet","Telematics","Comp","Motor Cars","51-60","22","Non-Learner","Male","Private"]
[null,"Fleet","Telematics","Comp","Motor Cars","51-60","22","Non-Learner","Male","Commercial"]
[null,"Fleet","Telematics","Comp","Motor Cars","51-60","22","Non-Learner","Female","Private"]
[null,"Fleet","Telematics","Comp","Motor Cars","51-60","22","Non-Learner","Female","Commercial"]
[null,"Fleet","Telematics","Comp","Motor Cars","51-60","22","Non-Learner","Diverse","Private"]
[null,"Fleet","Telematics","Comp","Motor Cars","51-60","22","Non-Learner","Diverse","Commercial"]
[null,"Fleet","Telematics","Comp","Motor Cars","51-60","23","Learner","Male","Private"]
[null,"Fleet","Telematics","Comp","Motor Cars","51-60","23","Learner","Male","Commercial"]
[null,"Fleet","Telematics","Comp","Motor Cars","51-60","23","Learner","Female","Private"]
[null,"Fleet","Telematics","Comp","Motor Cars","51-60","23","Learner","Female","Commercial"]
[null,"Fleet","Telematics","Comp","Motor Cars","51-60","23","Learner","Diverse","Private"]
[null,"Fleet","Telematics","Comp","Motor Cars","51-60","23","Learner","Diverse","Commercial"]
[null,"Fleet","Telematics","Comp","Motor Cars","51-60","23","Non-Learner","Male","Private"]
[null,"Fleet","Telematics","Comp","Motor Cars","51-60","23","Non-Learner","Male","Commercial"]
[null,"Fleet","Telematics","Comp","Motor Cars","51-60","23","Non-Learner","Female","Private"]
[null,"Fleet","Telematics","Comp","Motor Cars","51-60","23","Non-Learner","Female","Commercial"]
[null,"Fleet","Telematics","Comp","Motor Cars","51-60","23","Non-Learner","Diverse","Private"]
[null,"Fleet","Telematics","Comp","Motor Cars","51-60","23","Non-Learner","Diverse","Commercial"]
[null,"Fleet","Telematics","Comp","Motor Cars","51-60","24","Learner","Male","Private"]
[null,"Fleet","Telematics","Comp","Motor Cars","51-60","24","Learner","Male","Commercial"]
[null,"Fleet","Telematics","Comp","Motor Cars","51-60","24","Learner","Female","Private"]
[null,"Fleet","Telematics","Comp","Motor Cars","51-60","24","Learner","Female","Commercial"]
[null,"Fleet","Telematics","Comp","Motor Cars","51-60","24","Learner","Diverse","Private"]
[null,"Fleet","Telematics","Comp","Motor Cars","51-60","24","Learner","Diverse","Commercial"]
[null,"Fleet","Telematics","Comp","Motor Cars","51-60","24","Non-Learner","Male","Private"]
[null,"Fleet","Telematics","Comp","Motor Cars","51-60","24","Non-Learner","Male","Commercial"]
[null,"Fleet","Telematics","Comp","Motor Cars","51-60","24","Non-Learner","Female","Private"]
[null,"Fleet","Telematics","Comp","Motor Cars","51-60","24","Non-Learner","Female","Commercial"]
[null,"Fleet","Telematics","Comp","Motor Cars","51-60","24","Non-Learner","Diverse","Private"]
[null,"Fleet","Telematics","Comp","Motor Cars","51-60","24","Non-Learner","Diverse","Commercial"]
[null,"Fleet","Telematics","Comp","Motor Cars","51-60","25","Learner","Male","Private"]
[null,"Fleet","Telematics","Comp","Motor Cars","51-60","25","Learner","Male","Commercial"]
[null,"Fleet","Telematics","Comp","Motor Cars","51-60","25","Learner","Female","Private"]
[null,"Fleet","Telematics","Comp","Motor Cars","51-60","25","Learner","Female","Commercial"]
[null,"Fleet","Telematics","Comp","Motor Cars","51-60","25","Learner","Diverse","Private"]
[null,"Fleet","Telematics","Comp","Motor Cars","51-60","25","Learner","Diverse","Commercial"]
[null,"Fleet","Telematics","Comp","Motor Cars","51-60","25","Non-Learner","Male","Private"]
[null,"Fleet","Telematics","Comp","Motor Cars","51-60","25","Non-Learner","Male","Commercial"]
[null,"Fleet","Telematics","Comp","Motor Cars","51-60","25","Non-Learner","Female","Private"]
[null,"Fleet","Telematics","Comp","Motor Cars","51-60","25","Non-Learner","Female","Commercial"]
[null,"Fleet","Telematics","Comp","Motor Cars","51-60","25","Non-Learner","Diverse","Private"]
[null,"Fleet","Telematics","Comp","Motor Cars","51-60","25","Non-Learner","Diverse","Commercial"]
[null,"Fleet","Telematics","Comp","Motor Cars","51-60","26-20","Learner","Male","Private"]
[null,"Fleet","Telematics","Comp","Motor Cars","51-60","26-20","Learner","Male","Commercial"]
[null,"Fleet","Telematics","Comp","Motor Cars","51-60","26-20","Learner","Female","Private"]
[null,"Fleet","Telematics","Comp","Motor Cars","51-60","26-20","Learner","Female","Commercial"]
[null,"Fleet","Telematics","Comp","Motor Cars","51-60","26-20","Learner","Diverse","Private"]
[null,"Fleet","Telematics","Comp","Motor Cars","51-60","26-20","Learner","Diverse","Commercial"]
[null,"Fleet","Telematics","Comp","Motor Cars","51-60","26-20","Non-Learner","Male","Private"]
[null,"Fleet","Telematics","Comp","Motor Cars","51-60","26-20","Non-Learner","Male","Commercial"]
[null,"Fleet","Telematics","Comp","Motor Cars","51-60","26-20","Non-Learner","Female","Private"]
[null,"Fleet","Telematics","Comp","Motor Cars","51-60","26-20","Non-Learner","Female","Commercial"]
[null,"Fleet","Telematics","Comp","Motor Cars","51-60","26-20","Non-Learner","Diverse","Private"]
[null,"Fleet","Telematics","Comp","Motor Cars","51-60","26-20","Non-Learner","Diverse","Commercial"]
[null,"Fleet","Telematics","Comp","Motor Cars","51-60","31-50","Learner","Male","Private"]
[null,"Fleet","Telematics","Comp","Motor Cars","51-60","31-50","Learner","Male","Commercial"]
[null,"Fleet","Telematics","Comp","Motor Cars","51-60","31-50","Learner","Female","Private"]
[null,"Fleet","Telematics","Comp","Motor Cars","51-60","31-50","Learner","Female","Commercial"]
[null,"Fleet","Telematics","Comp","Motor Cars","51-60","31-50","Learner","Diverse","Private"]
[null,"Fleet","Telematics","Comp","Motor Cars","51-60","31-50","Learner","Diverse","Commercial"]
[null,"Fleet","Telematics","Comp","Motor Cars","51-60","31-50","Non-Learner","Male","Private"]
[null,"Fleet","Telematics","Comp","Motor Cars","51-60","31-50","Non-Learner","Male","Commercial"]
[null,"Fleet","Telematics","Comp","Motor Cars","51-60","31-50","Non-Learner","Female","Private"]
[null,"Fleet","Telematics","Comp","Motor Cars","51-60","31-50","Non-Learner","Female","Commercial"]
[null,"Fleet","Telematics","Comp","Motor Cars","51-60","31-50","Non-Learner","Diverse","Private"]
[null,"Fleet","Telematics","Comp","Motor Cars","51-60","31-50","Non-Learner","Diverse","Commercial"]
[null,"Fleet","Telematics","Comp","Motor Cars","51-60","51-69","Learner","Male","Private"]
[null,"Fleet","Telematics","Comp","Motor Cars","51-60","51-69","Learner","Male","Commercial"]
[null,"Fleet","Telematics","Comp","Motor Cars","51-60","51-69","Learner","Female","Private"]
[null,"Fleet","Telematics","Comp","Motor Cars","51-60","51-69","Learner","Female","Commercial"]
[null,"Fleet","Telematics","Comp","Motor Cars","51-60","51-69","Learner","Diverse","Private"]
[null,"Fleet","Telematics","Comp","Motor Cars","51-60","51-69","Learner","Diverse","Commercial"]
[null,"Fleet","Telematics","Comp","Motor Cars","51-60","51-69","Non-Learner","Male","Private"]
[null,"Fleet","Telematics","Comp","Motor Cars","51-60","51-69","Non-Learner","Male","Commercial"]
[null,"Fleet","Telematics","Comp","Motor Cars","51-60","51-69","Non-Learner","Female","Private"]
[null,"Fleet","Telematics","Comp","Motor Cars","51-60","51-69","Non-Learner","Female","Commercial"]
[null,"Fleet","Telematics","Comp","Motor Cars","51-60","51-69","Non-Learner","Diverse","Private"]
[null,"Fleet","Telematics","Comp","Motor Cars","51-60","51-69","Non-Learner","Diverse","Commercial"]
[null,"Fleet","Telematics","Comp","Motor Cars","51-60","70 or over","Learner","Male","Private"]
[null,"Fleet","Telematics","Comp","Motor Cars","51-60","70 or over","Learner","Male","Commercial"]
[null,"Fleet","Telematics","Comp","Motor Cars","51-60","70 or over","Learner","Female","Private"]
[null,"Fleet","Telematics","Comp","Motor Cars","51-60","70 or over","Learner","Female","Commercial"]
[null,"Fleet","Telematics","Comp","Motor Cars","51-60","70 or over","Learner","Diverse","Private"]
[null,"Fleet","Telematics","Comp","Motor Cars","51-60","70 or over","Learner","Diverse","Commercial"]
[null,"Fleet","Telematics","Comp","Motor Cars","51-60","70 or over","Non-Learner","Male","Private"]
[null,"Fleet","Telematics","Comp","Motor Cars","51-60","70 or over","Non-Learner","Male","Commercial"]
[null,"Fleet","Telematics","Comp","Motor Cars","51-60","70 or over","Non-Learner","Female","Private"]
[null,"Fleet","Telematics","Comp","Motor Cars","51-60","70 or over","Non-Learner","Female","Commercial"]
[null,"Fleet","Telematics","Comp","Motor Cars","51-60","70 or over","Non-Learner","Diverse","Private"]
[null,"Fleet","Telematics","Comp","Motor Cars","51-60","70 or over","Non-Learner","Diverse","Commercial"]
[null,"Fleet","Telematics","Comp","Motor Cars","51-60","Any Driver","Learner","Male","Private"]
[null,"Fleet","Telematics","Comp","Motor Cars","51-60","Any Driver","Learner","Male","Commercial"]
[null,"Fleet","Telematics","Comp","Motor Cars","51-60","Any Driver","Learner","Female","Private"]
[null,"Fleet","Telematics","Comp","Motor Cars","51-60","Any Driver","Learner","Female","Commercial"]
[null,"Fleet","Telematics","Comp","Motor Cars","51-60","Any Driver","Learner","Diverse","Private"]
[null,"Fleet","Telematics","Comp","Motor Cars","51-60","Any Driver","Learner","Diverse","Commercial"]
[null,"Fleet","Telematics","Comp","Motor Cars","51-60","Any Driver","Non-Learner","Male","Private"]
[null,"Fleet","Telematics","Comp","Motor Cars","51-60","Any Driver","Non-Learner","Male","Commercial"]
[null,"Fleet","Telematics","Comp","Motor Cars","51-60","Any Driver","Non-Learner","Female","Private"]
[null,"Fleet","Telematics","Comp","Motor Cars","51-60","Any Driver","Non-Learner","Female","Commercial"]
[null,"Fleet","Telematics","Comp","Motor Cars","51-60","Any Driver","Non-Learner","Diverse","Private"]
[null,"Fleet","Telematics","Comp","Motor Cars","51-60","Any Driver","Non-Learner","Diverse","Commercial"]
[null,"Fleet","Telematics","Comp","Motor Cars",">60","17","Learner","Male","Private"]
[null,"Fleet","Telematics","Comp","Motor Cars",">60","17","Learner","Male","Commercial"]
[null,"Fleet","Telematics","Comp","Motor Cars",">60","17","Learner","Female","Private"]
[null,"Fleet","Telematics","Comp","Motor Cars",">60","17","Learner","Female","Commercial"]
[null,"Fleet","Telematics","Comp","Motor Cars",">60","17","Learner","Diverse","Private"]
[null,"Fleet","Telematics","Comp","Motor Cars",">60","17","Learner","Diverse","Commercial"]
[null,"Fleet","Telematics","Comp","Motor Cars",">60","17","Non-Learner","Male","Private"]
[null,"Fleet","Telematics","Comp","Motor Cars",">60","17","Non-Learner","Male","Commercial"]
[null,"Fleet","Telematics","Comp","Motor Cars",">60","17","Non-Learner","Female","Private"]
[null,"Fleet","Telematics","Comp","Motor Cars",">60","17","Non-Learner","Female","Commercial"]
[null,"Fleet","Telematics","Comp","Motor Cars",">60","17","Non-Learner","Diverse","Private"]
[null,"Fleet","Telematics","Comp","Motor Cars",">60","17","Non-Learner","Diverse","Commercial"]
[null,"Fleet","Telematics","Comp","Motor Cars",">60","18","Learner","Male","Private"]
[null,"Fleet","Telematics","Comp","Motor Cars",">60","18","Learner","Male","Commercial"]
[null,"Fleet","Telematics","Comp","Motor Cars",">60","18","Learner","Female","Private"]
[null,"Fleet","Telematics","Comp","Motor Cars",">60","18","Learner","Female","Commercial"]
[null,"Fleet","Telematics","Comp","Motor Cars",">60","18","Learner","Diverse","Private"]
[null,"Fleet","Telematics","Comp","Motor Cars",">60","18","Learner","Diverse","Commercial"]
[null,"Fleet","Telematics","Comp","Motor Cars",">60","18","Non-Learner","Male","Private"]
[null,"Fleet","Telematics","Comp","Motor Cars",">60","18","Non-Learner","Male","Commercial"]
[null,"Fleet","Telematics","Comp","Motor Cars",">60","18","Non-Learner","Female","Private"]
[null,"Fleet","Telematics","Comp","Motor Cars",">60","18","Non-Learner","Female","Commercial"]
[null,"Fleet","Telematics","Comp","Motor Cars",">60","18","Non-Learner","Diverse","Private"]
[null,"Fleet","Telematics","Comp","Motor Cars",">60","18","Non-Learner","Diverse","Commercial"]
[null,"Fleet","Telematics","Comp","Motor Cars",">60","19","Learner","Male","Private"]
[null,"Fleet","Telematics","Comp","Motor Cars",">60","19","Learner","Male","Commercial"]
[null,"Fleet","Telematics","Comp","Motor Cars",">60","19","Learner","Female","Private"]
[null,"Fleet","Telematics","Comp","Motor Cars",">60","19","Learner","Female","Commercial"]
[null,"Fleet","Telematics","Comp","Motor Cars",">60","19","Learner","Diverse","Private"]
[null,"Fleet","Telematics","Comp","Motor Cars",">60","19","Learner","Diverse","Commercial"]
[null,"Fleet","Telematics","Comp","Motor Cars",">60","19","Non-Learner","Male","Private"]
[null,"Fleet","Telematics","Comp","Motor Cars",">60","19","Non-Learner","Male","Commercial"]
[null,"Fleet","Telematics","Comp","Motor Cars",">60","19","Non-Learner","Female","Private"]
[null,"Fleet","Telematics","Comp","Motor Cars",">60","19","Non-Learner","Female","Commercial"]
[null,"Fleet","Telematics","Comp","Motor Cars",">60","19","Non-Learner","Diverse","Private"]
[null,"Fleet","Telematics","Comp","Motor Cars",">60","19","Non-Learner","Diverse","Commercial"]
[null,"Fleet","Telematics","Comp","Motor Cars",">60","20","Learner","Male","Private"]
[null,"Fleet","Telematics","Comp","Motor Cars",">60","20","Learner","Male","Commercial"]
[null,"Fleet","Telematics","Comp","Motor Cars",">60","20","Learner","Female","Private"]
[null,"Fleet","Telematics","Comp","Motor Cars",">60","20","Learner","Female","Commercial"]
[null,"Fleet","Telematics","Comp","Motor Cars",">60","20","Learner","Diverse","Private"]
[null,"Fleet","Telematics","Comp","Motor Cars",">60","20","Learner","Diverse","Commercial"]
[null,"Fleet","Telematics","Comp","Motor Cars",">60","20","Non-Learner","Male","Private"]
[null,"Fleet","Telematics","Comp","Motor Cars",">60","20","Non-Learner","Male","Commercial"]
[null,"Fleet","Telematics","Comp","Motor Cars",">60","20","Non-Learner","Female","Private"]
[null,"Fleet","Telematics","Comp","Motor Cars",">60","20","Non-Learner","Female","Commercial"]
[null,"Fleet","Telematics","Comp","Motor Cars",">60","20","Non-Learner","Diverse","Private"]
[null,"Fleet","Telematics","Comp","Motor Cars",">60","20","Non-Learner","Diverse","Commercial"]
[null,"Fleet","Telematics","Comp","Motor Cars",">60","21","Learner","Male","Private"]
[null,"Fleet","Telematics","Comp","Motor Cars",">60","21","Learner","Male","Commercial"]
[null,"Fleet","Telematics","Comp","Motor Cars",">60","21","Learner","Female","Private"]
[null,"Fleet","Telematics","Comp","Motor Cars",">60","21","Learner","Female","Commercial"]
[null,"Fleet","Telematics","Comp","Motor Cars",">60","21","Learner","Diverse","Private"]
[null,"Fleet","Telematics","Comp","Motor Cars",">60","21","Learner","Diverse","Commercial"]
[null,"Fleet","Telematics","Comp","Motor Cars",">60","21","Non-Learner","Male","Private"]
[null,"Fleet","Telematics","Comp","Motor Cars",">60","21","Non-Learner","Male","Commercial"]
[null,"Fleet","Telematics","Comp","Motor Cars",">60","21","Non-Learner","Female","Private"]
[null,"Fleet","Telematics","Comp","Motor Cars",">60","21","Non-Learner","Female","Commercial"]
[null,"Fleet","Telematics","Comp","Motor Cars",">60","21","Non-Learner","Diverse","Private"]
[null,"Fleet","Telematics","Comp","Motor Cars",">60","21","Non-Learner","Diverse","Commercial"]
[null,"Fleet","Telematics","Comp","Motor Cars",">60","22","Learner","Male","Private"]
[null,"Fleet","Telematics","Comp","Motor Cars",">60","22","Learner","Male","Commercial"]
[null,"Fleet","Telematics","Comp","Motor Cars",">60","22","Learner","Female","Private"]
[null,"Fleet","Telematics","Comp","Motor Cars",">60","22","Learner","Female","Commercial"]
[null,"Fleet","Telematics","Comp","Motor Cars",">60","22","Learner","Diverse","Private"]
[null,"Fleet","Telematics","Comp","Motor Cars",">60","22","Learner","Diverse","Commercial"]
[null,"Fleet","Telematics","Comp","Motor Cars",">60","22","Non-Learner","Male","Private"]
[null,"Fleet","Telematics","Comp","Motor Cars",">60","22","Non-Learner","Male","Commercial"]
[null,"Fleet","Telematics","Comp","Motor Cars",">60","22","Non-Learner","Female","Private"]
[null,"Fleet","Telematics","Comp","Motor Cars",">60","22","Non-Learner","Female","Commercial"]
[null,"Fleet","Telematics","Comp","Motor Cars",">60","22","Non-Learner","Diverse","Private"]
[null,"Fleet","Telematics","Comp","Motor Cars",">60","22","Non-Learner","Diverse","Commercial"]
[null,"Fleet","Telematics","Comp","Motor Cars",">60","23","Learner","Male","Private"]
[null,"Fleet","Telematics","Comp","Motor Cars",">60","23","Learner","Male","Commercial"]
[null,"Fleet","Telematics","Comp","Motor Cars",">60","23","Learner","Female","Private"]
[null,"Fleet","Telematics","Comp","Motor Cars",">60","23","Learner","Female","Commercial"]
[null,"Fleet","Telematics","Comp","Motor Cars",">60","23","Learner","Diverse","Private"]
[null,"Fleet","Telematics","Comp","Motor Cars",">60","23","Learner","Diverse","Commercial"]
[null,"Fleet","Telematics","Comp","Motor Cars",">60","23","Non-Learner","Male","Private"]
[null,"Fleet","Telematics","Comp","Motor Cars",">60","23","Non-Learner","Male","Commercial"]
[null,"Fleet","Telematics","Comp","Motor Cars",">60","23","Non-Learner","Female","Private"]
[null,"Fleet","Telematics","Comp","Motor Cars",">60","23","Non-Learner","Female","Commercial"]
[null,"Fleet","Telematics","Comp","Motor Cars",">60","23","Non-Learner","Diverse","Private"]
[null,"Fleet","Telematics","Comp","Motor Cars",">60","23","Non-Learner","Diverse","Commercial"]
[null,"Fleet","Telematics","Comp","Motor Cars",">60","24","Learner","Male","Private"]
[null,"Fleet","Telematics","Comp","Motor Cars",">60","24","Learner","Male","Commercial"]
[null,"Fleet","Telematics","Comp","Motor Cars",">60","24","Learner","Female","Private"]
[null,"Fleet","Telematics","Comp","Motor Cars",">60","24","Learner","Female","Commercial"]
[null,"Fleet","Telematics","Comp","Motor Cars",">60","24","Learner","Diverse","Private"]
[null,"Fleet","Telematics","Comp","Motor Cars",">60","24","Learner","Diverse","Commercial"]
[null,"Fleet","Telematics","Comp","Motor Cars",">60","24","Non-Learner","Male","Private"]
[null,"Fleet","Telematics","Comp","Motor Cars",">60","24","Non-Learner","Male","Commercial"]
[null,"Fleet","Telematics","Comp","Motor Cars",">60","24","Non-Learner","Female","Private"]
[null,"Fleet","Telematics","Comp","Motor Cars",">60","24","Non-Learner","Female","Commercial"]
[null,"Fleet","Telematics","Comp","Motor Cars",">60","24","Non-Learner","Diverse","Private"]
[null,"Fleet","Telematics","Comp","Motor Cars",">60","24","Non-Learner","Diverse","Commercial"]
[null,"Fleet","Telematics","Comp","Motor Cars",">60","25","Learner","Male","Private"]
[null,"Fleet","Telematics","Comp","Motor Cars",">60","25","Learner","Male","Commercial"]
[null,"Fleet","Telematics","Comp","Motor Cars",">60","25","Learner","Female","Private"]
[null,"Fleet","Telematics","Comp","Motor Cars",">60","25","Learner","Female","Commercial"]
[null,"Fleet","Telematics","Comp","Motor Cars",">60","25","Learner","Diverse","Private"]
[null,"Fleet","Telematics","Comp","Motor Cars",">60","25","Learner","Diverse","Commercial"]
[null,"Fleet","Telematics","Comp","Motor Cars",">60","25","Non-Learner","Male","Private"]
[null,"Fleet","Telematics","Comp","Motor Cars",">60","25","Non-Learner","Male","Commercial"]
[null,"Fleet","Telematics","Comp","Motor Cars",">60","25","Non-Learner","Female","Private"]
[null,"Fleet","Telematics","Comp","Motor Cars",">60","25","Non-Learner","Female","Commercial"]
[null,"Fleet","Telematics","Comp","Motor Cars",">60","25","Non-Learner","Diverse","Private"]
[null,"Fleet","Telematics","Comp","Motor Cars",">60","25","Non-Learner","Diverse","Commercial"]
[null,"Fleet","Telematics","Comp","Motor Cars",">60","26-20","Learner","Male","Private"]
[null,"Fleet","Telematics","Comp","Motor Cars",">60","26-20","Learner","Male","Commercial"]
[null,"Fleet","Telematics","Comp","Motor Cars",">60","26-20","Learner","Female","Private"]
[null,"Fleet","Telematics","Comp","Motor Cars",">60","26-20","Learner","Female","Commercial"]
[null,"Fleet","Telematics","Comp","Motor Cars",">60","26-20","Learner","Diverse","Private"]
[null,"Fleet","Telematics","Comp","Motor Cars",">60","26-20","Learner","Diverse","Commercial"]
[null,"Fleet","Telematics","Comp","Motor Cars",">60","26-20","Non-Learner","Male","Private"]
[null,"Fleet","Telematics","Comp","Motor Cars",">60","26-20","Non-Learner","Male","Commercial"]
[null,"Fleet","Telematics","Comp","Motor Cars",">60","26-20","Non-Learner","Female","Private"]
[null,"Fleet","Telematics","Comp","Motor Cars",">60","26-20","Non-Learner","Female","Commercial"]
[null,"Fleet","Telematics","Comp","Motor Cars",">60","26-20","Non-Learner","Diverse","Private"]
[null,"Fleet","Telematics","Comp","Motor Cars",">60","26-20","Non-Learner","Diverse","Commercial"]
[null,"Fleet","Telematics","Comp","Motor Cars",">60","31-50","Learner","Male","Private"]
[null,"Fleet","Telematics","Comp","Motor Cars",">60","31-50","Learner","Male","Commercial"]
[null,"Fleet","Telematics","Comp","Motor Cars",">60","31-50","Learner","Female","Private"]
[null,"Fleet","Telematics","Comp","Motor Cars",">60","31-50","Learner","Female","Commercial"]
[null,"Fleet","Telematics","Comp","Motor Cars",">60","31-50","Learner","Diverse","Private"]
[null,"Fleet","Telematics","Comp","Motor Cars",">60","31-50","Learner","Diverse","Commercial"]
[null,"Fleet","Telematics","Comp","Motor Cars",">60","31-50","Non-Learner","Male","Private"]
[null,"Fleet","Telematics","Comp","Motor Cars",">60","31-50","Non-Learner","Male","Commercial"]
[null,"Fleet","Telematics","Comp","Motor Cars",">60","31-50","Non-Learner","Female","Private"]
[null,"Fleet","Telematics","Comp","Motor Cars",">60","31-50","Non-Learner","Female","Commercial"]
[null,"Fleet","Telematics","Comp","Motor Cars",">60","31-50","Non-Learner","Diverse","Private"]
[null,"Fleet","Telematics","Comp","Motor Cars",">60","31-50","Non-Learner","Diverse","Commercial"]
[null,"Fleet","Telematics","Comp","Motor Cars",">60","51-69","Learner","Male","Private"]
[null,"Fleet","Telematics","Comp","Motor Cars",">60","51-69","Learner","Male","Commercial"]
[null,"Fleet","Telematics","Comp","Motor Cars",">60","51-69","Learner","Female","Private"]
[null,"Fleet","Telematics","Comp","Motor Cars",">60","51-69","Learner","Female","Commercial"]
[null,"Fleet","Telematics","Comp","Motor Cars",">60","51-69","Learner","Diverse","Private"]
[null,"Fleet","Telematics","Comp","Motor Cars",">60","51-69","Learner","Diverse","Commercial"]
[null,"Fleet","Telematics","Comp","Motor Cars",">60","51-69","Non-Learner","Male","Private"]
[null,"Fleet","Telematics","Comp","Motor Cars",">60","51-69","Non-Learner","Male","Commercial"]
[null,"Fleet","Telematics","Comp","Motor Cars",">60","51-69","Non-Learner","Female","Private"]
[null,"Fleet","Telematics","Comp","Motor Cars",">60","51-69","Non-Learner","Female","Commercial"]
[null,"Fleet","Telematics","Comp","Motor Cars",">60","51-69","Non-Learner","Diverse","Private"]
[null,"Fleet","Telematics","Comp","Motor Cars",">60","51-69","Non-Learner","Diverse","Commercial"]
[null,"Fleet","Telematics","Comp","Motor Cars",">60","70 or over","Learner","Male","Private"]
[null,"Fleet","Telematics","Comp","Motor Cars",">60","70 or over","Learner","Male","Commercial"]
[null,"Fleet","Telematics","Comp","Motor Cars",">60","70 or over","Learner","Female","Private"]
[null,"Fleet","Telematics","Comp","Motor Cars",">60","70 or over","Learner","Female","Commercial"]
[null,"Fleet","Telematics","Comp","Motor Cars",">60","70 or over","Learner","Diverse","Private"]
[null,"Fleet","Telematics","Comp","Motor Cars",">60","70 or over","Learner","Diverse","Commercial"]
[null,"Fleet","Telematics","Comp","Motor Cars",">60","70 or over","Non-Learner","Male","Private"]
[null,"Fleet","Telematics","Comp","Motor Cars",">60","70 or over","Non-Learner","Male","Commercial"]
[null,"Fleet","Telematics","Comp","Motor Cars",">60","70 or over","Non-Learner","Female","Private"]
[null,"Fleet","Telematics","Comp","Motor Cars",">60","70 or over","Non-Learner","Female","Commercial"]
[null,"Fleet","Telematics","Comp","Motor Cars",">60","70 or over","Non-Learner","Diverse","Private"]
[null,"Fleet","Telematics","Comp","Motor Cars",">60","70 or over","Non-Learner","Diverse","Commercial"]
[null,"Fleet","Telematics","Comp","Motor Cars",">60","Any Driver","Learner","Male","Private"]
[null,"Fleet","Telematics","Comp","Motor Cars",">60","Any Driver","Learner","Male","Commercial"]
[null,"Fleet","Telematics","Comp","Motor Cars",">60","Any Driver","Learner","Female","Private"]
[null,"Fleet","Telematics","Comp","Motor Cars",">60","Any Driver","Learner","Female","Commercial"]
[null,"Fleet","Telematics","Comp","Motor Cars",">60","Any Driver","Learner","Diverse","Private"]
[null,"Fleet","Telematics","Comp","Motor Cars",">60","Any Driver","Learner","Diverse","Commercial"]
[null,"Fleet","Telematics","Comp","Motor Cars",">60","Any Driver","Non-Learner","Male","Private"]
[null,"Fleet","Telematics","Comp","Motor Cars",">60","Any Driver","Non-Learner","Male","Commercial"]
[null,"Fleet","Telematics","Comp","Motor Cars",">60","Any Driver","Non-Learner","Female","Private"]
[null,"Fleet","Telematics","Comp","Motor Cars",">60","Any Driver","Non-Learner","Female","Commercial"]
[null,"Fleet","Telematics","Comp","Motor Cars",">60","Any Driver","Non-Learner","Diverse","Private"]
[null,"Fleet","Telematics","Comp","Motor Cars",">60","Any Driver","Non-Learner","Diverse","Commercial"]
[null,"Fleet","Telematics","Comp","Light Commercial Vehicles","0-10","17","Learner","Male","Private"]
[null,"Fleet","Telematics","Comp","Light Commercial Vehicles","0-10","17","Learner","Male","Commercial"]
[null,"Fleet","Telematics","Comp","Light Commercial Vehicles","0-10","17","Learner","Female","Private"]
[null,"Fleet","Telematics","Comp","Light Commercial Vehicles","0-10","17","Learner","Female","Commercial"]
[null,"Fleet","Telematics","Comp","Light Commercial Vehicles","0-10","17","Learner","Diverse","Private"]
[null,"Fleet","Telematics","Comp","Light Commercial Vehicles","0-10","17","Learner","Diverse","Commercial"]
[null,"Fleet","Telematics","Comp","Light Commercial Vehicles","0-10","17","Non-Learner","Male","Private"]
[null,"Fleet","Telematics","Comp","Light Commercial Vehicles","0-10","17","Non-Learner","Male","Commercial"]
[null,"Fleet","Telematics","Comp","Light Commercial Vehicles","0-10","17","Non-Learner","Female","Private"]
[null,"Fleet","Telematics","Comp","Light Commercial Vehicles","0-10","17","Non-Learner","Female","Commercial"]
[null,"Fleet","Telematics","Comp","Light Commercial Vehicles","0-10","17","Non-Learner","Diverse","Private"]
[null,"Fleet","Telematics","Comp","Light Commercial Vehicles","0-10","17","Non-Learner","Diverse","Commercial"]
[null,"Fleet","Telematics","Comp","Light Commercial Vehicles","0-10","18","Learner","Male","Private"]
[null,"Fleet","Telematics","Comp","Light Commercial Vehicles","0-10","18","Learner","Male","Commercial"]
[null,"Fleet","Telematics","Comp","Light Commercial Vehicles","0-10","18","Learner","Female","Private"]
[null,"Fleet","Telematics","Comp","Light Commercial Vehicles","0-10","18","Learner","Female","Commercial"]
[null,"Fleet","Telematics","Comp","Light Commercial Vehicles","0-10","18","Learner","Diverse","Private"]
[null,"Fleet","Telematics","Comp","Light Commercial Vehicles","0-10","18","Learner","Diverse","Commercial"]
[null,"Fleet","Telematics","Comp","Light Commercial Vehicles","0-10","18","Non-Learner","Male","Private"]
[null,"Fleet","Telematics","Comp","Light Commercial Vehicles","0-10","18","Non-Learner","Male","Commercial"]
[null,"Fleet","Telematics","Comp","Light Commercial Vehicles","0-10","18","Non-Learner","Female","Private"]
[null,"Fleet","Telematics","Comp","Light Commercial Vehicles","0-10","18","Non-Learner","Female","Commercial"]
[null,"Fleet","Telematics","Comp","Light Commercial Vehicles","0-10","18","Non-Learner","Diverse","Private"]
[null,"Fleet","Telematics","Comp","Light Commercial Vehicles","0-10","18","Non-Learner","Diverse","Commercial"]
[null,"Fleet","Telematics","Comp","Light Commercial Vehicles","0-10","19","Learner","Male","Private"]
[null,"Fleet","Telematics","Comp","Light Commercial Vehicles","0-10","19","Learner","Male","Commercial"]
[null,"Fleet","Telematics","Comp","Light Commercial Vehicles","0-10","19","Learner","Female","Private"]
[null,"Fleet","Telematics","Comp","Light Commercial Vehicles","0-10","19","Learner","Female","Commercial"]
[null,"Fleet","Telematics","Comp","Light Commercial Vehicles","0-10","19","Learner","Diverse","Private"]
[null,"Fleet","Telematics","Comp","Light Commercial Vehicles","0-10","19","Learner","Diverse","Commercial"]
[null,"Fleet","Telematics","Comp","Light Commercial Vehicles","0-10","19","Non-Learner","Male","Private"]
[null,"Fleet","Telematics","Comp","Light Commercial Vehicles","0-10","19","Non-Learner","Male","Commercial"]
[null,"Fleet","Telematics","Comp","Light Commercial Vehicles","0-10","19","Non-Learner","Female","Private"]
[null,"Fleet","Telematics","Comp","Light Commercial Vehicles","0-10","19","Non-Learner","Female","Commercial"]
[null,"Fleet","Telematics","Comp","Light Commercial Vehicles","0-10","19","Non-Learner","Diverse","Private"]
[null,"Fleet","Telematics","Comp","Light Commercial Vehicles","0-10","19","Non-Learner","Diverse","Commercial"]
[null,"Fleet","Telematics","Comp","Light Commercial Vehicles","0-10","20","Learner","Male","Private"]
[null,"Fleet","Telematics","Comp","Light Commercial Vehicles","0-10","20","Learner","Male","Commercial"]
[null,"Fleet","Telematics","Comp","Light Commercial Vehicles","0-10","20","Learner","Female","Private"]
[null,"Fleet","Telematics","Comp","Light Commercial Vehicles","0-10","20","Learner","Female","Commercial"]
[null,"Fleet","Telematics","Comp","Light Commercial Vehicles","0-10","20","Learner","Diverse","Private"]
[null,"Fleet","Telematics","Comp","Light Commercial Vehicles","0-10","20","Learner","Diverse","Commercial"]
[null,"Fleet","Telematics","Comp","Light Commercial Vehicles","0-10","20","Non-Learner","Male","Private"]
[null,"Fleet","Telematics","Comp","Light Commercial Vehicles","0-10","20","Non-Learner","Male","Commercial"]
[null,"Fleet","Telematics","Comp","Light Commercial Vehicles","0-10","20","Non-Learner","Female","Private"]
[null,"Fleet","Telematics","Comp","Light Commercial Vehicles","0-10","20","Non-Learner","Female","Commercial"]
[null,"Fleet","Telematics","Comp","Light Commercial Vehicles","0-10","20","Non-Learner","Diverse","Private"]
[null,"Fleet","Telematics","Comp","Light Commercial Vehicles","0-10","20","Non-Learner","Diverse","Commercial"]
[null,"Fleet","Telematics","Comp","Light Commercial Vehicles","0-10","21","Learner","Male","Private"]
[null,"Fleet","Telematics","Comp","Light Commercial Vehicles","0-10","21","Learner","Male","Commercial"]
[null,"Fleet","Telematics","Comp","Light Commercial Vehicles","0-10","21","Learner","Female","Private"]
[null,"Fleet","Telematics","Comp","Light Commercial Vehicles","0-10","21","Learner","Female","Commercial"]
[null,"Fleet","Telematics","Comp","Light Commercial Vehicles","0-10","21","Learner","Diverse","Private"]
[null,"Fleet","Telematics","Comp","Light Commercial Vehicles","0-10","21","Learner","Diverse","Commercial"]
[null,"Fleet","Telematics","Comp","Light Commercial Vehicles","0-10","21","Non-Learner","Male","Private"]
[null,"Fleet","Telematics","Comp","Light Commercial Vehicles","0-10","21","Non-Learner","Male","Commercial"]
[null,"Fleet","Telematics","Comp","Light Commercial Vehicles","0-10","21","Non-Learner","Female","Private"]
[null,"Fleet","Telematics","Comp","Light Commercial Vehicles","0-10","21","Non-Learner","Female","Commercial"]
[null,"Fleet","Telematics","Comp","Light Commercial Vehicles","0-10","21","Non-Learner","Diverse","Private"]
[null,"Fleet","Telematics","Comp","Light Commercial Vehicles","0-10","21","Non-Learner","Diverse","Commercial"]
[null,"Fleet","Telematics","Comp","Light Commercial Vehicles","0-10","22","Learner","Male","Private"]
[null,"Fleet","Telematics","Comp","Light Commercial Vehicles","0-10","22","Learner","Male","Commercial"]
[null,"Fleet","Telematics","Comp","Light Commercial Vehicles","0-10","22","Learner","Female","Private"]
[null,"Fleet","Telematics","Comp","Light Commercial Vehicles","0-10","22","Learner","Female","Commercial"]
[null,"Fleet","Telematics","Comp","Light Commercial Vehicles","0-10","22","Learner","Diverse","Private"]
[null,"Fleet","Telematics","Comp","Light Commercial Vehicles","0-10","22","Learner","Diverse","Commercial"]
[null,"Fleet","Telematics","Comp","Light Commercial Vehicles","0-10","22","Non-Learner","Male","Private"]
[null,"Fleet","Telematics","Comp","Light Commercial Vehicles","0-10","22","Non-Learner","Male","Commercial"]
[null,"Fleet","Telematics","Comp","Light Commercial Vehicles","0-10","22","Non-Learner","Female","Private"]
[null,"Fleet","Telematics","Comp","Light Commercial Vehicles","0-10","22","Non-Learner","Female","Commercial"]
[null,"Fleet","Telematics","Comp","Light Commercial Vehicles","0-10","22","Non-Learner","Diverse","Private"]
[null,"Fleet","Telematics","Comp","Light Commercial Vehicles","0-10","22","Non-Learner","Diverse","Commercial"]
[null,"Fleet","Telematics","Comp","Light Commercial Vehicles","0-10","23","Learner","Male","Private"]
[null,"Fleet","Telematics","Comp","Light Commercial Vehicles","0-10","23","Learner","Male","Commercial"]
[null,"Fleet","Telematics","Comp","Light Commercial Vehicles","0-10","23","Learner","Female","Private"]
[null,"Fleet","Telematics","Comp","Light Commercial Vehicles","0-10","23","Learner","Female","Commercial"]
[null,"Fleet","Telematics","Comp","Light Commercial Vehicles","0-10","23","Learner","Diverse","Private"]
[null,"Fleet","Telematics","Comp","Light Commercial Vehicles","0-10","23","Learner","Diverse","Commercial"]
[null,"Fleet","Telematics","Comp","Light Commercial Vehicles","0-10","23","Non-Learner","Male","Private"]
[null,"Fleet","Telematics","Comp","Light Commercial Vehicles","0-10","23","Non-Learner","Male","Commercial"]
[null,"Fleet","Telematics","Comp","Light Commercial Vehicles","0-10","23","Non-Learner","Female","Private"]
[null,"Fleet","Telematics","Comp","Light Commercial Vehicles","0-10","23","Non-Learner","Female","Commercial"]
[null,"Fleet","Telematics","Comp","Light Commercial Vehicles","0-10","23","Non-Learner","Diverse","Private"]
[null,"Fleet","Telematics","Comp","Light Commercial Vehicles","0-10","23","Non-Learner","Diverse","Commercial"]
[null,"Fleet","Telematics","Comp","Light Commercial Vehicles","0-10","24","Learner","Male","Private"]
[null,"Fleet","Telematics","Comp","Light Commercial Vehicles","0-10","24","Learner","Male","Commercial"]
[null,"Fleet","Telematics","Comp","Light Commercial Vehicles","0-10","24","Learner","Female","Private"]
[null,"Fleet","Telematics","Comp","Light Commercial Vehicles","0-10","24","Learner","Female","Commercial"]
[null,"Fleet","Telematics","Comp","Light Commercial Vehicles","0-10","24","Learner","Diverse","Private"]
[null,"Fleet","Telematics","Comp","Light Commercial Vehicles","0-10","24","Learner","Diverse","Commercial"]
[null,"Fleet","Telematics","Comp","Light Commercial Vehicles","0-10","24","Non-Learner","Male","Private"]
[null,"Fleet","Telematics","Comp","Light Commercial Vehicles","0-10","24","Non-Learner","Male","Commercial"]
[null,"Fleet","Telematics","Comp","Light Commercial Vehicles","0-10","24","Non-Learner","Female","Private"]
[null,"Fleet","Telematics","Comp","Light Commercial Vehicles","0-10","24","Non-Learner","Female","Commercial"]
[null,"Fleet","Telematics","Comp","Light Commercial Vehicles","0-10","24","Non-Learner","Diverse","Private"]
[null,"Fleet","Telematics","Comp","Light Commercial Vehicles","0-10","24","Non-Learner","Diverse","Commercial"]
[null,"Fleet","Telematics","Comp","Light Commercial Vehicles","0-10","25","Learner","Male","Private"]
[null,"Fleet","Telematics","Comp","Light Commercial Vehicles","0-10","25","Learner","Male","Commercial"]
[null,"Fleet","Telematics","Comp","Light Commercial Vehicles","0-10","25","Learner","Female","Private"]
[null,"Fleet","Telematics","Comp","Light Commercial Vehicles","0-10","25","Learner","Female","Commercial"]
[null,"Fleet","Telematics","Comp","Light Commercial Vehicles","0-10","25","Learner","Diverse","Private"]
[null,"Fleet","Telematics","Comp","Light Commercial Vehicles","0-10","25","Learner","Diverse","Commercial"]
[null,"Fleet","Telematics","Comp","Light Commercial Vehicles","0-10","25","Non-Learner","Male","Private"]
[null,"Fleet","Telematics","Comp","Light Commercial Vehicles","0-10","25","Non-Learner","Male","Commercial"]
[null,"Fleet","Telematics","Comp","Light Commercial Vehicles","0-10","25","Non-Learner","Female","Private"]
[null,"Fleet","Telematics","Comp","Light Commercial Vehicles","0-10","25","Non-Learner","Female","Commercial"]
[null,"Fleet","Telematics","Comp","Light Commercial Vehicles","0-10","25","Non-Learner","Diverse","Private"]
[null,"Fleet","Telematics","Comp","Light Commercial Vehicles","0-10","25","Non-Learner","Diverse","Commercial"]
[null,"Fleet","Telematics","Comp","Light Commercial Vehicles","0-10","26-20","Learner","Male","Private"]
[null,"Fleet","Telematics","Comp","Light Commercial Vehicles","0-10","26-20","Learner","Male","Commercial"]
[null,"Fleet","Telematics","Comp","Light Commercial Vehicles","0-10","26-20","Learner","Female","Private"]
[null,"Fleet","Telematics","Comp","Light Commercial Vehicles","0-10","26-20","Learner","Female","Commercial"]
[null,"Fleet","Telematics","Comp","Light Commercial Vehicles","0-10","26-20","Learner","Diverse","Private"]
[null,"Fleet","Telematics","Comp","Light Commercial Vehicles","0-10","26-20","Learner","Diverse","Commercial"]
[null,"Fleet","Telematics","Comp","Light Commercial Vehicles","0-10","26-20","Non-Learner","Male","Private"]
[null,"Fleet","Telematics","Comp","Light Commercial Vehicles","0-10","26-20","Non-Learner","Male","Commercial"]
[null,"Fleet","Telematics","Comp","Light Commercial Vehicles","0-10","26-20","Non-Learner","Female","Private"]
[null,"Fleet","Telematics","Comp","Light Commercial Vehicles","0-10","26-20","Non-Learner","Female","Commercial"]
[null,"Fleet","Telematics","Comp","Light Commercial Vehicles","0-10","26-20","Non-Learner","Diverse","Private"]
[null,"Fleet","Telematics","Comp","Light Commercial Vehicles","0-10","26-20","Non-Learner","Diverse","Commercial"]
[null,"Fleet","Telematics","Comp","Light Commercial Vehicles","0-10","31-50","Learner","Male","Private"]
[null,"Fleet","Telematics","Comp","Light Commercial Vehicles","0-10","31-50","Learner","Male","Commercial"]
[null,"Fleet","Telematics","Comp","Light Commercial Vehicles","0-10","31-50","Learner","Female","Private"]
[null,"Fleet","Telematics","Comp","Light Commercial Vehicles","0-10","31-50","Learner","Female","Commercial"]
[null,"Fleet","Telematics","Comp","Light Commercial Vehicles","0-10","31-50","Learner","Diverse","Private"]
[null,"Fleet","Telematics","Comp","Light Commercial Vehicles","0-10","31-50","Learner","Diverse","Commercial"]
[null,"Fleet","Telematics","Comp","Light Commercial Vehicles","0-10","31-50","Non-Learner","Male","Private"]
[null,"Fleet","Telematics","Comp","Light Commercial Vehicles","0-10","31-50","Non-Learner","Male","Commercial"]
[null,"Fleet","Telematics","Comp","Light Commercial Vehicles","0-10","31-50","Non-Learner","Female","Private"]
[null,"Fleet","Telematics","Comp","Light Commercial Vehicles","0-10","31-50","Non-Learner","Female","Commercial"]
[null,"Fleet","Telematics","Comp","Light Commercial Vehicles","0-10","31-50","Non-Learner","Diverse","Private"]
[null,"Fleet","Telematics","Comp","Light Commercial Vehicles","0-10","31-50","Non-Learner","Diverse","Commercial"]
[null,"Fleet","Telematics","Comp","Light Commercial Vehicles","0-10","51-69","Learner","Male","Private"]
[null,"Fleet","Telematics","Comp","Light Commercial Vehicles","0-10","51-69","Learner","Male","Commercial"]
[null,"Fleet","Telematics","Comp","Light Commercial Vehicles","0-10","51-69","Learner","Female","Private"]
[null,"Fleet","Telematics","Comp","Light Commercial Vehicles","0-10","51-69","Learner","Female","Commercial"]
[null,"Fleet","Telematics","Comp","Light Commercial Vehicles","0-10","51-69","Learner","Diverse","Private"]
[null,"Fleet","Telematics","Comp","Light Commercial Vehicles","0-10","51-69","Learner","Diverse","Commercial"]
[null,"Fleet","Telematics","Comp","Light Commercial Vehicles","0-10","51-69","Non-Learner","Male","Private"]
[null,"Fleet","Telematics","Comp","Light Commercial Vehicles","0-10","51-69","Non-Learner","Male","Commercial"]
[null,"Fleet","Telematics","Comp","Light Commercial Vehicles","0-10","51-69","Non-Learner","Female","Private"]
[null,"Fleet","Telematics","Comp","Light Commercial Vehicles","0-10","51-69","Non-Learner","Female","Commercial"]
[null,"Fleet","Telematics","Comp","Light Commercial Vehicles","0-10","51-69","Non-Learner","Diverse","Private"]
[null,"Fleet","Telematics","Comp","Light Commercial Vehicles","0-10","51-69","Non-Learner","Diverse","Commercial"]
[null,"Fleet","Telematics","Comp","Light Commercial Vehicles","0-10","70 or over","Learner","Male","Private"]
[null,"Fleet","Telematics","Comp","Light Commercial Vehicles","0-10","70 or over","Learner","Male","Commercial"]
[null,"Fleet","Telematics","Comp","Light Commercial Vehicles","0-10","70 or over","Learner","Female","Private"]
[null,"Fleet","Telematics","Comp","Light Commercial Vehicles","0-10","70 or over","Learner","Female","Commercial"]
[null,"Fleet","Telematics","Comp","Light Commercial Vehicles","0-10","70 or over","Learner","Diverse","Private"]
[null,"Fleet","Telematics","Comp","Light Commercial Vehicles","0-10","70 or over","Learner","Diverse","Commercial"]
[null,"Fleet","Telematics","Comp","Light Commercial Vehicles","0-10","70 or over","Non-Learner","Male","Private"]
[null,"Fleet","Telematics","Comp","Light Commercial Vehicles","0-10","70 or over","Non-Learner","Male","Commercial"]
[null,"Fleet","Telematics","Comp","Light Commercial Vehicles","0-10","70 or over","Non-Learner","Female","Private"]
[null,"Fleet","Telematics","Comp","Light Commercial Vehicles","0-10","70 or over","Non-Learner","Female","Commercial"]
[null,"Fleet","Telematics","Comp","Light Commercial Vehicles","0-10","70 or over","Non-Learner","Diverse","Private"]
[null,"Fleet","Telematics","Comp","Light Commercial Vehicles","0-10","70 or over","Non-Learner","Diverse","Commercial"]
[null,"Fleet","Telematics","Comp","Light Commercial Vehicles","0-10","Any Driver","Learner","Male","Private"]
[null,"Fleet","Telematics","Comp","Light Commercial Vehicles","0-10","Any Driver","Learner","Male","Commercial"]
[null,"Fleet","Telematics","Comp","Light Commercial Vehicles","0-10","Any Driver","Learner","Female","Private"]
[null,"Fleet","Telematics","Comp","Light Commercial Vehicles","0-10","Any Driver","Learner","Female","Commercial"]
[null,"Fleet","Telematics","Comp","Light Commercial Vehicles","0-10","Any Driver","Learner","Diverse","Private"]
[null,"Fleet","Telematics","Comp","Light Commercial Vehicles","0-10","Any Driver","Learner","Diverse","Commercial"]
[null,"Fleet","Telematics","Comp","Light Commercial Vehicles","0-10","Any Driver","Non-Learner","Male","Private"]
[null,"Fleet","Telematics","Comp","Light Commercial Vehicles","0-10","Any Driver","Non-Learner","Male","Commercial"]
[null,"Fleet","Telematics","Comp","Light Commercial Vehicles","0-10","Any Driver","Non-Learner","Female","Private"]
[null,"Fleet","Telematics","Comp","Light Commercial Vehicles","0-10","Any Driver","Non-Learner","Female","Commercial"]
[null,"Fleet","Telematics","Comp","Light Commercial Vehicles","0-10","Any Driver","Non-Learner","Diverse","Private"]
[null,"Fleet","Telematics","Comp","Light Commercial Vehicles","0-10","Any Driver","Non-Learner","Diverse","Commercial"]
[null,"Fleet","Telematics","Comp","Light Commercial Vehicles","11-20","17","Learner","Male","Private"]
[null,"Fleet","Telematics","Comp","Light Commercial Vehicles","11-20","17","Learner","Male","Commercial"]
[null,"Fleet","Telematics","Comp","Light Commercial Vehicles","11-20","17","Learner","Female","Private"]
[null,"Fleet","Telematics","Comp","Light Commercial Vehicles","11-20","17","Learner","Female","Commercial"]
[null,"Fleet","Telematics","Comp","Light Commercial Vehicles","11-20","17","Learner","Diverse","Private"]
[null,"Fleet","Telematics","Comp","Light Commercial Vehicles","11-20","17","Learner","Diverse","Commercial"]
[null,"Fleet","Telematics","Comp","Light Commercial Vehicles","11-20","17","Non-Learner","Male","Private"]
[null,"Fleet","Telematics","Comp","Light Commercial Vehicles","11-20","17","Non-Learner","Male","Commercial"]
[null,"Fleet","Telematics","Comp","Light Commercial Vehicles","11-20","17","Non-Learner","Female","Private"]
[null,"Fleet","Telematics","Comp","Light Commercial Vehicles","11-20","17","Non-Learner","Female","Commercial"]
[null,"Fleet","Telematics","Comp","Light Commercial Vehicles","11-20","17","Non-Learner","Diverse","Private"]
[null,"Fleet","Telematics","Comp","Light Commercial Vehicles","11-20","17","Non-Learner","Diverse","Commercial"]
[null,"Fleet","Telematics","Comp","Light Commercial Vehicles","11-20","18","Learner","Male","Private"]
[null,"Fleet","Telematics","Comp","Light Commercial Vehicles","11-20","18","Learner","Male","Commercial"]
[null,"Fleet","Telematics","Comp","Light Commercial Vehicles","11-20","18","Learner","Female","Private"]
[null,"Fleet","Telematics","Comp","Light Commercial Vehicles","11-20","18","Learner","Female","Commercial"]
[null,"Fleet","Telematics","Comp","Light Commercial Vehicles","11-20","18","Learner","Diverse","Private"]
[null,"Fleet","Telematics","Comp","Light Commercial Vehicles","11-20","18","Learner","Diverse","Commercial"]
[null,"Fleet","Telematics","Comp","Light Commercial Vehicles","11-20","18","Non-Learner","Male","Private"]
[null,"Fleet","Telematics","Comp","Light Commercial Vehicles","11-20","18","Non-Learner","Male","Commercial"]
[null,"Fleet","Telematics","Comp","Light Commercial Vehicles","11-20","18","Non-Learner","Female","Private"]
[null,"Fleet","Telematics","Comp","Light Commercial Vehicles","11-20","18","Non-Learner","Female","Commercial"]
[null,"Fleet","Telematics","Comp","Light Commercial Vehicles","11-20","18","Non-Learner","Diverse","Private"]
[null,"Fleet","Telematics","Comp","Light Commercial Vehicles","11-20","18","Non-Learner","Diverse","Commercial"]
[null,"Fleet","Telematics","Comp","Light Commercial Vehicles","11-20","19","Learner","Male","Private"]
[null,"Fleet","Telematics","Comp","Light Commercial Vehicles","11-20","19","Learner","Male","Commercial"]
[null,"Fleet","Telematics","Comp","Light Commercial Vehicles","11-20","19","Learner","Female","Private"]
[null,"Fleet","Telematics","Comp","Light Commercial Vehicles","11-20","19","Learner","Female","Commercial"]
[null,"Fleet","Telematics","Comp","Light Commercial Vehicles","11-20","19","Learner","Diverse","Private"]
[null,"Fleet","Telematics","Comp","Light Commercial Vehicles","11-20","19","Learner","Diverse","Commercial"]
[null,"Fleet","Telematics","Comp","Light Commercial Vehicles","11-20","19","Non-Learner","Male","Private"]
[null,"Fleet","Telematics","Comp","Light Commercial Vehicles","11-20","19","Non-Learner","Male","Commercial"]
[null,"Fleet","Telematics","Comp","Light Commercial Vehicles","11-20","19","Non-Learner","Female","Private"]
[null,"Fleet","Telematics","Comp","Light Commercial Vehicles","11-20","19","Non-Learner","Female","Commercial"]
[null,"Fleet","Telematics","Comp","Light Commercial Vehicles","11-20","19","Non-Learner","Diverse","Private"]
[null,"Fleet","Telematics","Comp","Light Commercial Vehicles","11-20","19","Non-Learner","Diverse","Commercial"]
[null,"Fleet","Telematics","Comp","Light Commercial Vehicles","11-20","20","Learner","Male","Private"]
[null,"Fleet","Telematics","Comp","Light Commercial Vehicles","11-20","20","Learner","Male","Commercial"]
[null,"Fleet","Telematics","Comp","Light Commercial Vehicles","11-20","20","Learner","Female","Private"]
[null,"Fleet","Telematics","Comp","Light Commercial Vehicles","11-20","20","Learner","Female","Commercial"]
[null,"Fleet","Telematics","Comp","Light Commercial Vehicles","11-20","20","Learner","Diverse","Private"]
[null,"Fleet","Telematics","Comp","Light Commercial Vehicles","11-20","20","Learner","Diverse","Commercial"]
[null,"Fleet","Telematics","Comp","Light Commercial Vehicles","11-20","20","Non-Learner","Male","Private"]
[null,"Fleet","Telematics","Comp","Light Commercial Vehicles","11-20","20","Non-Learner","Male","Commercial"]
[null,"Fleet","Telematics","Comp","Light Commercial Vehicles","11-20","20","Non-Learner","Female","Private"]
[null,"Fleet","Telematics","Comp","Light Commercial Vehicles","11-20","20","Non-Learner","Female","Commercial"]
[null,"Fleet","Telematics","Comp","Light Commercial Vehicles","11-20","20","Non-Learner","Diverse","Private"]
[null,"Fleet","Telematics","Comp","Light Commercial Vehicles","11-20","20","Non-Learner","Diverse","Commercial"]
[null,"Fleet","Telematics","Comp","Light Commercial Vehicles","11-20","21","Learner","Male","Private"]
[null,"Fleet","Telematics","Comp","Light Commercial Vehicles","11-20","21","Learner","Male","Commercial"]
[null,"Fleet","Telematics","Comp","Light Commercial Vehicles","11-20","21","Learner","Female","Private"]
[null,"Fleet","Telematics","Comp","Light Commercial Vehicles","11-20","21","Learner","Female","Commercial"]
[null,"Fleet","Telematics","Comp","Light Commercial Vehicles","11-20","21","Learner","Diverse","Private"]
[null,"Fleet","Telematics","Comp","Light Commercial Vehicles","11-20","21","Learner","Diverse","Commercial"]
[null,"Fleet","Telematics","Comp","Light Commercial Vehicles","11-20","21","Non-Learner","Male","Private"]
[null,"Fleet","Telematics","Comp","Light Commercial Vehicles","11-20","21","Non-Learner","Male","Commercial"]
[null,"Fleet","Telematics","Comp","Light Commercial Vehicles","11-20","21","Non-Learner","Female","Private"]
[null,"Fleet","Telematics","Comp","Light Commercial Vehicles","11-20","21","Non-Learner","Female","Commercial"]
[null,"Fleet","Telematics","Comp","Light Commercial Vehicles","11-20","21","Non-Learner","Diverse","Private"]
[null,"Fleet","Telematics","Comp","Light Commercial Vehicles","11-20","21","Non-Learner","Diverse","Commercial"]
[null,"Fleet","Telematics","Comp","Light Commercial Vehicles","11-20","22","Learner","Male","Private"]
[null,"Fleet","Telematics","Comp","Light Commercial Vehicles","11-20","22","Learner","Male","Commercial"]
[null,"Fleet","Telematics","Comp","Light Commercial Vehicles","11-20","22","Learner","Female","Private"]
[null,"Fleet","Telematics","Comp","Light Commercial Vehicles","11-20","22","Learner","Female","Commercial"]
[null,"Fleet","Telematics","Comp","Light Commercial Vehicles","11-20","22","Learner","Diverse","Private"]
[null,"Fleet","Telematics","Comp","Light Commercial Vehicles","11-20","22","Learner","Diverse","Commercial"]
[null,"Fleet","Telematics","Comp","Light Commercial Vehicles","11-20","22","Non-Learner","Male","Private"]
[null,"Fleet","Telematics","Comp","Light Commercial Vehicles","11-20","22","Non-Learner","Male","Commercial"]
[null,"Fleet","Telematics","Comp","Light Commercial Vehicles","11-20","22","Non-Learner","Female","Private"]
[null,"Fleet","Telematics","Comp","Light Commercial Vehicles","11-20","22","Non-Learner","Female","Commercial"]
[null,"Fleet","Telematics","Comp","Light Commercial Vehicles","11-20","22","Non-Learner","Diverse","Private"]
[null,"Fleet","Telematics","Comp","Light Commercial Vehicles","11-20","22","Non-Learner","Diverse","Commercial"]
[null,"Fleet","Telematics","Comp","Light Commercial Vehicles","11-20","23","Learner","Male","Private"]
[null,"Fleet","Telematics","Comp","Light Commercial Vehicles","11-20","23","Learner","Male","Commercial"]
[null,"Fleet","Telematics","Comp","Light Commercial Vehicles","11-20","23","Learner","Female","Private"]
[null,"Fleet","Telematics","Comp","Light Commercial Vehicles","11-20","23","Learner","Female","Commercial"]
[null,"Fleet","Telematics","Comp","Light Commercial Vehicles","11-20","23","Learner","Diverse","Private"]
[null,"Fleet","Telematics","Comp","Light Commercial Vehicles","11-20","23","Learner","Diverse","Commercial"]
[null,"Fleet","Telematics","Comp","Light Commercial Vehicles","11-20","23","Non-Learner","Male","Private"]
[null,"Fleet","Telematics","Comp","Light Commercial Vehicles","11-20","23","Non-Learner","Male","Commercial"]
[null,"Fleet","Telematics","Comp","Light Commercial Vehicles","11-20","23","Non-Learner","Female","Private"]
[null,"Fleet","Telematics","Comp","Light Commercial Vehicles","11-20","23","Non-Learner","Female","Commercial"]
[null,"Fleet","Telematics","Comp","Light Commercial Vehicles","11-20","23","Non-Learner","Diverse","Private"]
[null,"Fleet","Telematics","Comp","Light Commercial Vehicles","11-20","23","Non-Learner","Diverse","Commercial"]
[null,"Fleet","Telematics","Comp","Light Commercial Vehicles","11-20","24","Learner","Male","Private"]
[null,"Fleet","Telematics","Comp","Light Commercial Vehicles","11-20","24","Learner","Male","Commercial"]
[null,"Fleet","Telematics","Comp","Light Commercial Vehicles","11-20","24","Learner","Female","Private"]
[null,"Fleet","Telematics","Comp","Light Commercial Vehicles","11-20","24","Learner","Female","Commercial"]
[null,"Fleet","Telematics","Comp","Light Commercial Vehicles","11-20","24","Learner","Diverse","Private"]
[null,"Fleet","Telematics","Comp","Light Commercial Vehicles","11-20","24","Learner","Diverse","Commercial"]
[null,"Fleet","Telematics","Comp","Light Commercial Vehicles","11-20","24","Non-Learner","Male","Private"]
[null,"Fleet","Telematics","Comp","Light Commercial Vehicles","11-20","24","Non-Learner","Male","Commercial"]
[null,"Fleet","Telematics","Comp","Light Commercial Vehicles","11-20","24","Non-Learner","Female","Private"]
[null,"Fleet","Telematics","Comp","Light Commercial Vehicles","11-20","24","Non-Learner","Female","Commercial"]
[null,"Fleet","Telematics","Comp","Light Commercial Vehicles","11-20","24","Non-Learner","Diverse","Private"]
[null,"Fleet","Telematics","Comp","Light Commercial Vehicles","11-20","24","Non-Learner","Diverse","Commercial"]
[null,"Fleet","Telematics","Comp","Light Commercial Vehicles","11-20","25","Learner","Male","Private"]
[null,"Fleet","Telematics","Comp","Light Commercial Vehicles","11-20","25","Learner","Male","Commercial"]
[null,"Fleet","Telematics","Comp","Light Commercial Vehicles","11-20","25","Learner","Female","Private"]
[null,"Fleet","Telematics","Comp","Light Commercial Vehicles","11-20","25","Learner","Female","Commercial"]
[null,"Fleet","Telematics","Comp","Light Commercial Vehicles","11-20","25","Learner","Diverse","Private"]
[null,"Fleet","Telematics","Comp","Light Commercial Vehicles","11-20","25","Learner","Diverse","Commercial"]
[null,"Fleet","Telematics","Comp","Light Commercial Vehicles","11-20","25","Non-Learner","Male","Private"]
[null,"Fleet","Telematics","Comp","Light Commercial Vehicles","11-20","25","Non-Learner","Male","Commercial"]
[null,"Fleet","Telematics","Comp","Light Commercial Vehicles","11-20","25","Non-Learner","Female","Private"]
[null,"Fleet","Telematics","Comp","Light Commercial Vehicles","11-20","25","Non-Learner","Female","Commercial"]
[null,"Fleet","Telematics","Comp","Light Commercial Vehicles","11-20","25","Non-Learner","Diverse","Private"]
[null,"Fleet","Telematics","Comp","Light Commercial Vehicles","11-20","25","Non-Learner","Diverse","Commercial"]
[null,"Fleet","Telematics","Comp","Light Commercial Vehicles","11-20","26-20","Learner","Male","Private"]
[null,"Fleet","Telematics","Comp","Light Commercial Vehicles","11-20","26-20","Learner","Male","Commercial"]
[null,"Fleet","Telematics","Comp","Light Commercial Vehicles","11-20","26-20","Learner","Female","Private"]
[null,"Fleet","Telematics","Comp","Light Commercial Vehicles","11-20","26-20","Learner","Female","Commercial"]
[null,"Fleet","Telematics","Comp","Light Commercial Vehicles","11-20","26-20","Learner","Diverse","Private"]
[null,"Fleet","Telematics","Comp","Light Commercial Vehicles","11-20","26-20","Learner","Diverse","Commercial"]
[null,"Fleet","Telematics","Comp","Light Commercial Vehicles","11-20","26-20","Non-Learner","Male","Private"]
[null,"Fleet","Telematics","Comp","Light Commercial Vehicles","11-20","26-20","Non-Learner","Male","Commercial"]
[null,"Fleet","Telematics","Comp","Light Commercial Vehicles","11-20","26-20","Non-Learner","Female","Private"]
[null,"Fleet","Telematics","Comp","Light Commercial Vehicles","11-20","26-20","Non-Learner","Female","Commercial"]
[null,"Fleet","Telematics","Comp","Light Commercial Vehicles","11-20","26-20","Non-Learner","Diverse","Private"]
[null,"Fleet","Telematics","Comp","Light Commercial Vehicles","11-20","26-20","Non-Learner","Diverse","Commercial"]
[null,"Fleet","Telematics","Comp","Light Commercial Vehicles","11-20","31-50","Learner","Male","Private"]
[null,"Fleet","Telematics","Comp","Light Commercial Vehicles","11-20","31-50","Learner","Male","Commercial"]
[null,"Fleet","Telematics","Comp","Light Commercial Vehicles","11-20","31-50","Learner","Female","Private"]
[null,"Fleet","Telematics","Comp","Light Commercial Vehicles","11-20","31-50","Learner","Female","Commercial"]
[null,"Fleet","Telematics","Comp","Light Commercial Vehicles","11-20","31-50","Learner","Diverse","Private"]
[null,"Fleet","Telematics","Comp","Light Commercial Vehicles","11-20","31-50","Learner","Diverse","Commercial"]
[null,"Fleet","Telematics","Comp","Light Commercial Vehicles","11-20","31-50","Non-Learner","Male","Private"]
[null,"Fleet","Telematics","Comp","Light Commercial Vehicles","11-20","31-50","Non-Learner","Male","Commercial"]
[null,"Fleet","Telematics","Comp","Light Commercial Vehicles","11-20","31-50","Non-Learner","Female","Private"]
[null,"Fleet","Telematics","Comp","Light Commercial Vehicles","11-20","31-50","Non-Learner","Female","Commercial"]
[null,"Fleet","Telematics","Comp","Light Commercial Vehicles","11-20","31-50","Non-Learner","Diverse","Private"]
[null,"Fleet","Telematics","Comp","Light Commercial Vehicles","11-20","31-50","Non-Learner","Diverse","Commercial"]
[null,"Fleet","Telematics","Comp","Light Commercial Vehicles","11-20","51-69","Learner","Male","Private"]
[null,"Fleet","Telematics","Comp","Light Commercial Vehicles","11-20","51-69","Learner","Male","Commercial"]
[null,"Fleet","Telematics","Comp","Light Commercial Vehicles","11-20","51-69","Learner","Female","Private"]
[null,"Fleet","Telematics","Comp","Light Commercial Vehicles","11-20","51-69","Learner","Female","Commercial"]
[null,"Fleet","Telematics","Comp","Light Commercial Vehicles","11-20","51-69","Learner","Diverse","Private"]
[null,"Fleet","Telematics","Comp","Light Commercial Vehicles","11-20","51-69","Learner","Diverse","Commercial"]
[null,"Fleet","Telematics","Comp","Light Commercial Vehicles","11-20","51-69","Non-Learner","Male","Private"]
[null,"Fleet","Telematics","Comp","Light Commercial Vehicles","11-20","51-69","Non-Learner","Male","Commercial"]
[null,"Fleet","Telematics","Comp","Light Commercial Vehicles","11-20","51-69","Non-Learner","Female","Private"]
[null,"Fleet","Telematics","Comp","Light Commercial Vehicles","11-20","51-69","Non-Learner","Female","Commercial"]
[null,"Fleet","Telematics","Comp","Light Commercial Vehicles","11-20","51-69","Non-Learner","Diverse","Private"]
[null,"Fleet","Telematics","Comp","Light Commercial Vehicles","11-20","51-69","Non-Learner","Diverse","Commercial"]
[null,"Fleet","Telematics","Comp","Light Commercial Vehicles","11-20","70 or over","Learner","Male","Private"]
[null,"Fleet","Telematics","Comp","Light Commercial Vehicles","11-20","70 or over","Learner","Male","Commercial"]
[null,"Fleet","Telematics","Comp","Light Commercial Vehicles","11-20","70 or over","Learner","Female","Private"]
[null,"Fleet","Telematics","Comp","Light Commercial Vehicles","11-20","70 or over","Learner","Female","Commercial"]
[null,"Fleet","Telematics","Comp","Light Commercial Vehicles","11-20","70 or over","Learner","Diverse","Private"]
[null,"Fleet","Telematics","Comp","Light Commercial Vehicles","11-20","70 or over","Learner","Diverse","Commercial"]
[null,"Fleet","Telematics","Comp","Light Commercial Vehicles","11-20","70 or over","Non-Learner","Male","Private"]
[null,"Fleet","Telematics","Comp","Light Commercial Vehicles","11-20","70 or over","Non-Learner","Male","Commercial"]
[null,"Fleet","Telematics","Comp","Light Commercial Vehicles","11-20","70 or over","Non-Learner","Female","Private"]
[null,"Fleet","Telematics","Comp","Light Commercial Vehicles","11-20","70 or over","Non-Learner","Female","Commercial"]
[null,"Fleet","Telematics","Comp","Light Commercial Vehicles","11-20","70 or over","Non-Learner","Diverse","Private"]
[null,"Fleet","Telematics","Comp","Light Commercial Vehicles","11-20","70 or over","Non-Learner","Diverse","Commercial"]
[null,"Fleet","Telematics","Comp","Light Commercial Vehicles","11-20","Any Driver","Learner","Male","Private"]
[null,"Fleet","Telematics","Comp","Light Commercial Vehicles","11-20","Any Driver","Learner","Male","Commercial"]
[null,"Fleet","Telematics","Comp","Light Commercial Vehicles","11-20","Any Driver","Learner","Female","Private"]
[null,"Fleet","Telematics","Comp","Light Commercial Vehicles","11-20","Any Driver","Learner","Female","Commercial"]
[null,"Fleet","Telematics","Comp","Light Commercial Vehicles","11-20","Any Driver","Learner","Diverse","Private"]
[null,"Fleet","Telematics","Comp","Light Commercial Vehicles","11-20","Any Driver","Learner","Diverse","Commercial"]
[null,"Fleet","Telematics","Comp","Light Commercial Vehicles","11-20","Any Driver","Non-Learner","Male","Private"]
[null,"Fleet","Telematics","Comp","Light Commercial Vehicles","11-20","Any Driver","Non-Learner","Male","Commercial"]
[null,"Fleet","Telematics","Comp","Light Commercial Vehicles","11-20","Any Driver","Non-Learner","Female","Private"]
[null,"Fleet","Telematics","Comp","Light Commercial Vehicles","11-20","Any Driver","Non-Learner","Female","Commercial"]
[null,"Fleet","Telematics","Comp","Light Commercial Vehicles","11-20","Any Driver","Non-Learner","Diverse","Private"]
[null,"Fleet","Telematics","Comp","Light Commercial Vehicles","11-20","Any Driver","Non-Learner","Diverse","Commercial"]
[null,"Fleet","Telematics","Comp","Light Commercial Vehicles","21-30","17","Learner","Male","Private"]
[null,"Fleet","Telematics","Comp","Light Commercial Vehicles","21-30","17","Learner","Male","Commercial"]
[null,"Fleet","Telematics","Comp","Light Commercial Vehicles","21-30","17","Learner","Female","Private"]
[null,"Fleet","Telematics","Comp","Light Commercial Vehicles","21-30","17","Learner","Female","Commercial"]
[null,"Fleet","Telematics","Comp","Light Commercial Vehicles","21-30","17","Learner","Diverse","Private"]
[null,"Fleet","Telematics","Comp","Light Commercial Vehicles","21-30","17","Learner","Diverse","Commercial"]
[null,"Fleet","Telematics","Comp","Light Commercial Vehicles","21-30","17","Non-Learner","Male","Private"]
[null,"Fleet","Telematics","Comp","Light Commercial Vehicles","21-30","17","Non-Learner","Male","Commercial"]
[null,"Fleet","Telematics","Comp","Light Commercial Vehicles","21-30","17","Non-Learner","Female","Private"]
[null,"Fleet","Telematics","Comp","Light Commercial Vehicles","21-30","17","Non-Learner","Female","Commercial"]
[null,"Fleet","Telematics","Comp","Light Commercial Vehicles","21-30","17","Non-Learner","Diverse","Private"]
[null,"Fleet","Telematics","Comp","Light Commercial Vehicles","21-30","17","Non-Learner","Diverse","Commercial"]
[null,"Fleet","Telematics","Comp","Light Commercial Vehicles","21-30","18","Learner","Male","Private"]
[null,"Fleet","Telematics","Comp","Light Commercial Vehicles","21-30","18","Learner","Male","Commercial"]
[null,"Fleet","Telematics","Comp","Light Commercial Vehicles","21-30","18","Learner","Female","Private"]
[null,"Fleet","Telematics","Comp","Light Commercial Vehicles","21-30","18","Learner","Female","Commercial"]
[null,"Fleet","Telematics","Comp","Light Commercial Vehicles","21-30","18","Learner","Diverse","Private"]
[null,"Fleet","Telematics","Comp","Light Commercial Vehicles","21-30","18","Learner","Diverse","Commercial"]
[null,"Fleet","Telematics","Comp","Light Commercial Vehicles","21-30","18","Non-Learner","Male","Private"]
[null,"Fleet","Telematics","Comp","Light Commercial Vehicles","21-30","18","Non-Learner","Male","Commercial"]
[null,"Fleet","Telematics","Comp","Light Commercial Vehicles","21-30","18","Non-Learner","Female","Private"]
[null,"Fleet","Telematics","Comp","Light Commercial Vehicles","21-30","18","Non-Learner","Female","Commercial"]
[null,"Fleet","Telematics","Comp","Light Commercial Vehicles","21-30","18","Non-Learner","Diverse","Private"]
[null,"Fleet","Telematics","Comp","Light Commercial Vehicles","21-30","18","Non-Learner","Diverse","Commercial"]
[null,"Fleet","Telematics","Comp","Light Commercial Vehicles","21-30","19","Learner","Male","Private"]
[null,"Fleet","Telematics","Comp","Light Commercial Vehicles","21-30","19","Learner","Male","Commercial"]
[null,"Fleet","Telematics","Comp","Light Commercial Vehicles","21-30","19","Learner","Female","Private"]
[null,"Fleet","Telematics","Comp","Light Commercial Vehicles","21-30","19","Learner","Female","Commercial"]
[null,"Fleet","Telematics","Comp","Light Commercial Vehicles","21-30","19","Learner","Diverse","Private"]
[null,"Fleet","Telematics","Comp","Light Commercial Vehicles","21-30","19","Learner","Diverse","Commercial"]
[null,"Fleet","Telematics","Comp","Light Commercial Vehicles","21-30","19","Non-Learner","Male","Private"]
[null,"Fleet","Telematics","Comp","Light Commercial Vehicles","21-30","19","Non-Learner","Male","Commercial"]
[null,"Fleet","Telematics","Comp","Light Commercial Vehicles","21-30","19","Non-Learner","Female","Private"]
[null,"Fleet","Telematics","Comp","Light Commercial Vehicles","21-30","19","Non-Learner","Female","Commercial"]
[null,"Fleet","Telematics","Comp","Light Commercial Vehicles","21-30","19","Non-Learner","Diverse","Private"]
[null,"Fleet","Telematics","Comp","Light Commercial Vehicles","21-30","19","Non-Learner","Diverse","Commercial"]
[null,"Fleet","Telematics","Comp","Light Commercial Vehicles","21-30","20","Learner","Male","Private"]
[null,"Fleet","Telematics","Comp","Light Commercial Vehicles","21-30","20","Learner","Male","Commercial"]
[null,"Fleet","Telematics","Comp","Light Commercial Vehicles","21-30","20","Learner","Female","Private"]
[null,"Fleet","Telematics","Comp","Light Commercial Vehicles","21-30","20","Learner","Female","Commercial"]
[null,"Fleet","Telematics","Comp","Light Commercial Vehicles","21-30","20","Learner","Diverse","Private"]
[null,"Fleet","Telematics","Comp","Light Commercial Vehicles","21-30","20","Learner","Diverse","Commercial"]
[null,"Fleet","Telematics","Comp","Light Commercial Vehicles","21-30","20","Non-Learner","Male","Private"]
[null,"Fleet","Telematics","Comp","Light Commercial Vehicles","21-30","20","Non-Learner","Male","Commercial"]
[null,"Fleet","Telematics","Comp","Light Commercial Vehicles","21-30","20","Non-Learner","Female","Private"]
[null,"Fleet","Telematics","Comp","Light Commercial Vehicles","21-30","20","Non-Learner","Female","Commercial"]
[null,"Fleet","Telematics","Comp","Light Commercial Vehicles","21-30","20","Non-Learner","Diverse","Private"]
[null,"Fleet","Telematics","Comp","Light Commercial Vehicles","21-30","20","Non-Learner","Diverse","Commercial"]
[null,"Fleet","Telematics","Comp","Light Commercial Vehicles","21-30","21","Learner","Male","Private"]
[null,"Fleet","Telematics","Comp","Light Commercial Vehicles","21-30","21","Learner","Male","Commercial"]
[null,"Fleet","Telematics","Comp","Light Commercial Vehicles","21-30","21","Learner","Female","Private"]
[null,"Fleet","Telematics","Comp","Light Commercial Vehicles","21-30","21","Learner","Female","Commercial"]
[null,"Fleet","Telematics","Comp","Light Commercial Vehicles","21-30","21","Learner","Diverse","Private"]
[null,"Fleet","Telematics","Comp","Light Commercial Vehicles","21-30","21","Learner","Diverse","Commercial"]
[null,"Fleet","Telematics","Comp","Light Commercial Vehicles","21-30","21","Non-Learner","Male","Private"]
[null,"Fleet","Telematics","Comp","Light Commercial Vehicles","21-30","21","Non-Learner","Male","Commercial"]
[null,"Fleet","Telematics","Comp","Light Commercial Vehicles","21-30","21","Non-Learner","Female","Private"]
[null,"Fleet","Telematics","Comp","Light Commercial Vehicles","21-30","21","Non-Learner","Female","Commercial"]
[null,"Fleet","Telematics","Comp","Light Commercial Vehicles","21-30","21","Non-Learner","Diverse","Private"]
[null,"Fleet","Telematics","Comp","Light Commercial Vehicles","21-30","21","Non-Learner","Diverse","Commercial"]
[null,"Fleet","Telematics","Comp","Light Commercial Vehicles","21-30","22","Learner","Male","Private"]
[null,"Fleet","Telematics","Comp","Light Commercial Vehicles","21-30","22","Learner","Male","Commercial"]
[null,"Fleet","Telematics","Comp","Light Commercial Vehicles","21-30","22","Learner","Female","Private"]
[null,"Fleet","Telematics","Comp","Light Commercial Vehicles","21-30","22","Learner","Female","Commercial"]
[null,"Fleet","Telematics","Comp","Light Commercial Vehicles","21-30","22","Learner","Diverse","Private"]
[null,"Fleet","Telematics","Comp","Light Commercial Vehicles","21-30","22","Learner","Diverse","Commercial"]
[null,"Fleet","Telematics","Comp","Light Commercial Vehicles","21-30","22","Non-Learner","Male","Private"]
[null,"Fleet","Telematics","Comp","Light Commercial Vehicles","21-30","22","Non-Learner","Male","Commercial"]
[null,"Fleet","Telematics","Comp","Light Commercial Vehicles","21-30","22","Non-Learner","Female","Private"]
[null,"Fleet","Telematics","Comp","Light Commercial Vehicles","21-30","22","Non-Learner","Female","Commercial"]
[null,"Fleet","Telematics","Comp","Light Commercial Vehicles","21-30","22","Non-Learner","Diverse","Private"]
[null,"Fleet","Telematics","Comp","Light Commercial Vehicles","21-30","22","Non-Learner","Diverse","Commercial"]
[null,"Fleet","Telematics","Comp","Light Commercial Vehicles","21-30","23","Learner","Male","Private"]
[null,"Fleet","Telematics","Comp","Light Commercial Vehicles","21-30","23","Learner","Male","Commercial"]
[null,"Fleet","Telematics","Comp","Light Commercial Vehicles","21-30","23","Learner","Female","Private"]
[null,"Fleet","Telematics","Comp","Light Commercial Vehicles","21-30","23","Learner","Female","Commercial"]
[null,"Fleet","Telematics","Comp","Light Commercial Vehicles","21-30","23","Learner","Diverse","Private"]
[null,"Fleet","Telematics","Comp","Light Commercial Vehicles","21-30","23","Learner","Diverse","Commercial"]
[null,"Fleet","Telematics","Comp","Light Commercial Vehicles","21-30","23","Non-Learner","Male","Private"]
[null,"Fleet","Telematics","Comp","Light Commercial Vehicles","21-30","23","Non-Learner","Male","Commercial"]
[null,"Fleet","Telematics","Comp","Light Commercial Vehicles","21-30","23","Non-Learner","Female","Private"]
[null,"Fleet","Telematics","Comp","Light Commercial Vehicles","21-30","23","Non-Learner","Female","Commercial"]
[null,"Fleet","Telematics","Comp","Light Commercial Vehicles","21-30","23","Non-Learner","Diverse","Private"]
[null,"Fleet","Telematics","Comp","Light Commercial Vehicles","21-30","23","Non-Learner","Diverse","Commercial"]
[null,"Fleet","Telematics","Comp","Light Commercial Vehicles","21-30","24","Learner","Male","Private"]
[null,"Fleet","Telematics","Comp","Light Commercial Vehicles","21-30","24","Learner","Male","Commercial"]
[null,"Fleet","Telematics","Comp","Light Commercial Vehicles","21-30","24","Learner","Female","Private"]
[null,"Fleet","Telematics","Comp","Light Commercial Vehicles","21-30","24","Learner","Female","Commercial"]
[null,"Fleet","Telematics","Comp","Light Commercial Vehicles","21-30","24","Learner","Diverse","Private"]
[null,"Fleet","Telematics","Comp","Light Commercial Vehicles","21-30","24","Learner","Diverse","Commercial"]
[null,"Fleet","Telematics","Comp","Light Commercial Vehicles","21-30","24","Non-Learner","Male","Private"]
[null,"Fleet","Telematics","Comp","Light Commercial Vehicles","21-30","24","Non-Learner","Male","Commercial"]
[null,"Fleet","Telematics","Comp","Light Commercial Vehicles","21-30","24","Non-Learner","Female","Private"]
[null,"Fleet","Telematics","Comp","Light Commercial Vehicles","21-30","24","Non-Learner","Female","Commercial"]
[null,"Fleet","Telematics","Comp","Light Commercial Vehicles","21-30","24","Non-Learner","Diverse","Private"]
[null,"Fleet","Telematics","Comp","Light Commercial Vehicles","21-30","24","Non-Learner","Diverse","Commercial"]
[null,"Fleet","Telematics","Comp","Light Commercial Vehicles","21-30","25","Learner","Male","Private"]
[null,"Fleet","Telematics","Comp","Light Commercial Vehicles","21-30","25","Learner","Male","Commercial"]
[null,"Fleet","Telematics","Comp","Light Commercial Vehicles","21-30","25","Learner","Female","Private"]
[null,"Fleet","Telematics","Comp","Light Commercial Vehicles","21-30","25","Learner","Female","Commercial"]
[null,"Fleet","Telematics","Comp","Light Commercial Vehicles","21-30","25","Learner","Diverse","Private"]
[null,"Fleet","Telematics","Comp","Light Commercial Vehicles","21-30","25","Learner","Diverse","Commercial"]
[null,"Fleet","Telematics","Comp","Light Commercial Vehicles","21-30","25","Non-Learner","Male","Private"]
[null,"Fleet","Telematics","Comp","Light Commercial Vehicles","21-30","25","Non-Learner","Male","Commercial"]
[null,"Fleet","Telematics","Comp","Light Commercial Vehicles","21-30","25","Non-Learner","Female","Private"]
[null,"Fleet","Telematics","Comp","Light Commercial Vehicles","21-30","25","Non-Learner","Female","Commercial"]
[null,"Fleet","Telematics","Comp","Light Commercial Vehicles","21-30","25","Non-Learner","Diverse","Private"]
[null,"Fleet","Telematics","Comp","Light Commercial Vehicles","21-30","25","Non-Learner","Diverse","Commercial"]
[null,"Fleet","Telematics","Comp","Light Commercial Vehicles","21-30","26-20","Learner","Male","Private"]
[null,"Fleet","Telematics","Comp","Light Commercial Vehicles","21-30","26-20","Learner","Male","Commercial"]
[null,"Fleet","Telematics","Comp","Light Commercial Vehicles","21-30","26-20","Learner","Female","Private"]
[null,"Fleet","Telematics","Comp","Light Commercial Vehicles","21-30","26-20","Learner","Female","Commercial"]
[null,"Fleet","Telematics","Comp","Light Commercial Vehicles","21-30","26-20","Learner","Diverse","Private"]
[null,"Fleet","Telematics","Comp","Light Commercial Vehicles","21-30","26-20","Learner","Diverse","Commercial"]
[null,"Fleet","Telematics","Comp","Light Commercial Vehicles","21-30","26-20","Non-Learner","Male","Private"]
[null,"Fleet","Telematics","Comp","Light Commercial Vehicles","21-30","26-20","Non-Learner","Male","Commercial"]
[null,"Fleet","Telematics","Comp","Light Commercial Vehicles","21-30","26-20","Non-Learner","Female","Private"]
[null,"Fleet","Telematics","Comp","Light Commercial Vehicles","21-30","26-20","Non-Learner","Female","Commercial"]
[null,"Fleet","Telematics","Comp","Light Commercial Vehicles","21-30","26-20","Non-Learner","Diverse","Private"]
[null,"Fleet","Telematics","Comp","Light Commercial Vehicles","21-30","26-20","Non-Learner","Diverse","Commercial"]
[null,"Fleet","Telematics","Comp","Light Commercial Vehicles","21-30","31-50","Learner","Male","Private"]
[null,"Fleet","Telematics","Comp","Light Commercial Vehicles","21-30","31-50","Learner","Male","Commercial"]
[null,"Fleet","Telematics","Comp","Light Commercial Vehicles","21-30","31-50","Learner","Female","Private"]
[null,"Fleet","Telematics","Comp","Light Commercial Vehicles","21-30","31-50","Learner","Female","Commercial"]
[null,"Fleet","Telematics","Comp","Light Commercial Vehicles","21-30","31-50","Learner","Diverse","Private"]
[null,"Fleet","Telematics","Comp","Light Commercial Vehicles","21-30","31-50","Learner","Diverse","Commercial"]
[null,"Fleet","Telematics","Comp","Light Commercial Vehicles","21-30","31-50","Non-Learner","Male","Private"]
[null,"Fleet","Telematics","Comp","Light Commercial Vehicles","21-30","31-50","Non-Learner","Male","Commercial"]
[null,"Fleet","Telematics","Comp","Light Commercial Vehicles","21-30","31-50","Non-Learner","Female","Private"]
[null,"Fleet","Telematics","Comp","Light Commercial Vehicles","21-30","31-50","Non-Learner","Female","Commercial"]
[null,"Fleet","Telematics","Comp","Light Commercial Vehicles","21-30","31-50","Non-Learner","Diverse","Private"]
[null,"Fleet","Telematics","Comp","Light Commercial Vehicles","21-30","31-50","Non-Learner","Diverse","Commercial"]
[null,"Fleet","Telematics","Comp","Light Commercial Vehicles","21-30","51-69","Learner","Male","Private"]
[null,"Fleet","Telematics","Comp","Light Commercial Vehicles","21-30","51-69","Learner","Male","Commercial"]
[null,"Fleet","Telematics","Comp","Light Commercial Vehicles","21-30","51-69","Learner","Female","Private"]
[null,"Fleet","Telematics","Comp","Light Commercial Vehicles","21-30","51-69","Learner","Female","Commercial"]
[null,"Fleet","Telematics","Comp","Light Commercial Vehicles","21-30","51-69","Learner","Diverse","Private"]
[null,"Fleet","Telematics","Comp","Light Commercial Vehicles","21-30","51-69","Learner","Diverse","Commercial"]
[null,"Fleet","Telematics","Comp","Light Commercial Vehicles","21-30","51-69","Non-Learner","Male","Private"]
[null,"Fleet","Telematics","Comp","Light Commercial Vehicles","21-30","51-69","Non-Learner","Male","Commercial"]
[null,"Fleet","Telematics","Comp","Light Commercial Vehicles","21-30","51-69","Non-Learner","Female","Private"]
[null,"Fleet","Telematics","Comp","Light Commercial Vehicles","21-30","51-69","Non-Learner","Female","Commercial"]
[null,"Fleet","Telematics","Comp","Light Commercial Vehicles","21-30","51-69","Non-Learner","Diverse","Private"]
[null,"Fleet","Telematics","Comp","Light Commercial Vehicles","21-30","51-69","Non-Learner","Diverse","Commercial"]
[null,"Fleet","Telematics","Comp","Light Commercial Vehicles","21-30","70 or over","Learner","Male","Private"]
[null,"Fleet","Telematics","Comp","Light Commercial Vehicles","21-30","70 or over","Learner","Male","Commercial"]
[null,"Fleet","Telematics","Comp","Light Commercial Vehicles","21-30","70 or over","Learner","Female","Private"]
[null,"Fleet","Telematics","Comp","Light Commercial Vehicles","21-30","70 or over","Learner","Female","Commercial"]
[null,"Fleet","Telematics","Comp","Light Commercial Vehicles","21-30","70 or over","Learner","Diverse","Private"]
[null,"Fleet","Telematics","Comp","Light Commercial Vehicles","21-30","70 or over","Learner","Diverse","Commercial"]
[null,"Fleet","Telematics","Comp","Light Commercial Vehicles","21-30","70 or over","Non-Learner","Male","Private"]
[null,"Fleet","Telematics","Comp","Light Commercial Vehicles","21-30","70 or over","Non-Learner","Male","Commercial"]
[null,"Fleet","Telematics","Comp","Light Commercial Vehicles","21-30","70 or over","Non-Learner","Female","Private"]
[null,"Fleet","Telematics","Comp","Light Commercial Vehicles","21-30","70 or over","Non-Learner","Female","Commercial"]
[null,"Fleet","Telematics","Comp","Light Commercial Vehicles","21-30","70 or over","Non-Learner","Diverse","Private"]
[null,"Fleet","Telematics","Comp","Light Commercial Vehicles","21-30","70 or over","Non-Learner","Diverse","Commercial"]
[null,"Fleet","Telematics","Comp","Light Commercial Vehicles","21-30","Any Driver","Learner","Male","Private"]
[null,"Fleet","Telematics","Comp","Light Commercial Vehicles","21-30","Any Driver","Learner","Male","Commercial"]
[null,"Fleet","Telematics","Comp","Light Commercial Vehicles","21-30","Any Driver","Learner","Female","Private"]
[null,"Fleet","Telematics","Comp","Light Commercial Vehicles","21-30","Any Driver","Learner","Female","Commercial"]
[null,"Fleet","Telematics","Comp","Light Commercial Vehicles","21-30","Any Driver","Learner","Diverse","Private"]
[null,"Fleet","Telematics","Comp","Light Commercial Vehicles","21-30","Any Driver","Learner","Diverse","Commercial"]
[null,"Fleet","Telematics","Comp","Light Commercial Vehicles","21-30","Any Driver","Non-Learner","Male","Private"]
[null,"Fleet","Telematics","Comp","Light Commercial Vehicles","21-30","Any Driver","Non-Learner","Male","Commercial"]
[null,"Fleet","Telematics","Comp","Light Commercial Vehicles","21-30","Any Driver","Non-Learner","Female","Private"]
[null,"Fleet","Telematics","Comp","Light Commercial Vehicles","21-30","Any Driver","Non-Learner","Female","Commercial"]
[null,"Fleet","Telematics","Comp","Light Commercial Vehicles","21-30","Any Driver","Non-Learner","Diverse","Private"]
[null,"Fleet","Telematics","Comp","Light Commercial Vehicles","21-30","Any Driver","Non-Learner","Diverse","Commercial"]
[null,"Fleet","Telematics","Comp","Light Commercial Vehicles","31-40","17","Learner","Male","Private"]
[null,"Fleet","Telematics","Comp","Light Commercial Vehicles","31-40","17","Learner","Male","Commercial"]
[null,"Fleet","Telematics","Comp","Light Commercial Vehicles","31-40","17","Learner","Female","Private"]
[null,"Fleet","Telematics","Comp","Light Commercial Vehicles","31-40","17","Learner","Female","Commercial"]
[null,"Fleet","Telematics","Comp","Light Commercial Vehicles","31-40","17","Learner","Diverse","Private"]
[null,"Fleet","Telematics","Comp","Light Commercial Vehicles","31-40","17","Learner","Diverse","Commercial"]
[null,"Fleet","Telematics","Comp","Light Commercial Vehicles","31-40","17","Non-Learner","Male","Private"]
[null,"Fleet","Telematics","Comp","Light Commercial Vehicles","31-40","17","Non-Learner","Male","Commercial"]
[null,"Fleet","Telematics","Comp","Light Commercial Vehicles","31-40","17","Non-Learner","Female","Private"]
[null,"Fleet","Telematics","Comp","Light Commercial Vehicles","31-40","17","Non-Learner","Female","Commercial"]
[null,"Fleet","Telematics","Comp","Light Commercial Vehicles","31-40","17","Non-Learner","Diverse","Private"]
[null,"Fleet","Telematics","Comp","Light Commercial Vehicles","31-40","17","Non-Learner","Diverse","Commercial"]
[null,"Fleet","Telematics","Comp","Light Commercial Vehicles","31-40","18","Learner","Male","Private"]
[null,"Fleet","Telematics","Comp","Light Commercial Vehicles","31-40","18","Learner","Male","Commercial"]
[null,"Fleet","Telematics","Comp","Light Commercial Vehicles","31-40","18","Learner","Female","Private"]
[null,"Fleet","Telematics","Comp","Light Commercial Vehicles","31-40","18","Learner","Female","Commercial"]
[null,"Fleet","Telematics","Comp","Light Commercial Vehicles","31-40","18","Learner","Diverse","Private"]
[null,"Fleet","Telematics","Comp","Light Commercial Vehicles","31-40","18","Learner","Diverse","Commercial"]
[null,"Fleet","Telematics","Comp","Light Commercial Vehicles","31-40","18","Non-Learner","Male","Private"]
[null,"Fleet","Telematics","Comp","Light Commercial Vehicles","31-40","18","Non-Learner","Male","Commercial"]
[null,"Fleet","Telematics","Comp","Light Commercial Vehicles","31-40","18","Non-Learner","Female","Private"]
[null,"Fleet","Telematics","Comp","Light Commercial Vehicles","31-40","18","Non-Learner","Female","Commercial"]
[null,"Fleet","Telematics","Comp","Light Commercial Vehicles","31-40","18","Non-Learner","Diverse","Private"]
[null,"Fleet","Telematics","Comp","Light Commercial Vehicles","31-40","18","Non-Learner","Diverse","Commercial"]
[null,"Fleet","Telematics","Comp","Light Commercial Vehicles","31-40","19","Learner","Male","Private"]
[null,"Fleet","Telematics","Comp","Light Commercial Vehicles","31-40","19","Learner","Male","Commercial"]
[null,"Fleet","Telematics","Comp","Light Commercial Vehicles","31-40","19","Learner","Female","Private"]
[null,"Fleet","Telematics","Comp","Light Commercial Vehicles","31-40","19","Learner","Female","Commercial"]
[null,"Fleet","Telematics","Comp","Light Commercial Vehicles","31-40","19","Learner","Diverse","Private"]
[null,"Fleet","Telematics","Comp","Light Commercial Vehicles","31-40","19","Learner","Diverse","Commercial"]
[null,"Fleet","Telematics","Comp","Light Commercial Vehicles","31-40","19","Non-Learner","Male","Private"]
[null,"Fleet","Telematics","Comp","Light Commercial Vehicles","31-40","19","Non-Learner","Male","Commercial"]
[null,"Fleet","Telematics","Comp","Light Commercial Vehicles","31-40","19","Non-Learner","Female","Private"]
[null,"Fleet","Telematics","Comp","Light Commercial Vehicles","31-40","19","Non-Learner","Female","Commercial"]
[null,"Fleet","Telematics","Comp","Light Commercial Vehicles","31-40","19","Non-Learner","Diverse","Private"]
[null,"Fleet","Telematics","Comp","Light Commercial Vehicles","31-40","19","Non-Learner","Diverse","Commercial"]
[null,"Fleet","Telematics","Comp","Light Commercial Vehicles","31-40","20","Learner","Male","Private"]
[null,"Fleet","Telematics","Comp","Light Commercial Vehicles","31-40","20","Learner","Male","Commercial"]
[null,"Fleet","Telematics","Comp","Light Commercial Vehicles","31-40","20","Learner","Female","Private"]
[null,"Fleet","Telematics","Comp","Light Commercial Vehicles","31-40","20","Learner","Female","Commercial"]
[null,"Fleet","Telematics","Comp","Light Commercial Vehicles","31-40","20","Learner","Diverse","Private"]
[null,"Fleet","Telematics","Comp","Light Commercial Vehicles","31-40","20","Learner","Diverse","Commercial"]
[null,"Fleet","Telematics","Comp","Light Commercial Vehicles","31-40","20","Non-Learner","Male","Private"]
[null,"Fleet","Telematics","Comp","Light Commercial Vehicles","31-40","20","Non-Learner","Male","Commercial"]
[null,"Fleet","Telematics","Comp","Light Commercial Vehicles","31-40","20","Non-Learner","Female","Private"]
[null,"Fleet","Telematics","Comp","Light Commercial Vehicles","31-40","20","Non-Learner","Female","Commercial"]
[null,"Fleet","Telematics","Comp","Light Commercial Vehicles","31-40","20","Non-Learner","Diverse","Private"]
[null,"Fleet","Telematics","Comp","Light Commercial Vehicles","31-40","20","Non-Learner","Diverse","Commercial"]
[null,"Fleet","Telematics","Comp","Light Commercial Vehicles","31-40","21","Learner","Male","Private"]
[null,"Fleet","Telematics","Comp","Light Commercial Vehicles","31-40","21","Learner","Male","Commercial"]
[null,"Fleet","Telematics","Comp","Light Commercial Vehicles","31-40","21","Learner","Female","Private"]
[null,"Fleet","Telematics","Comp","Light Commercial Vehicles","31-40","21","Learner","Female","Commercial"]
[null,"Fleet","Telematics","Comp","Light Commercial Vehicles","31-40","21","Learner","Diverse","Private"]
[null,"Fleet","Telematics","Comp","Light Commercial Vehicles","31-40","21","Learner","Diverse","Commercial"]
[null,"Fleet","Telematics","Comp","Light Commercial Vehicles","31-40","21","Non-Learner","Male","Private"]
[null,"Fleet","Telematics","Comp","Light Commercial Vehicles","31-40","21","Non-Learner","Male","Commercial"]
[null,"Fleet","Telematics","Comp","Light Commercial Vehicles","31-40","21","Non-Learner","Female","Private"]
[null,"Fleet","Telematics","Comp","Light Commercial Vehicles","31-40","21","Non-Learner","Female","Commercial"]
[null,"Fleet","Telematics","Comp","Light Commercial Vehicles","31-40","21","Non-Learner","Diverse","Private"]
[null,"Fleet","Telematics","Comp","Light Commercial Vehicles","31-40","21","Non-Learner","Diverse","Commercial"]
[null,"Fleet","Telematics","Comp","Light Commercial Vehicles","31-40","22","Learner","Male","Private"]
[null,"Fleet","Telematics","Comp","Light Commercial Vehicles","31-40","22","Learner","Male","Commercial"]
[null,"Fleet","Telematics","Comp","Light Commercial Vehicles","31-40","22","Learner","Female","Private"]
[null,"Fleet","Telematics","Comp","Light Commercial Vehicles","31-40","22","Learner","Female","Commercial"]
[null,"Fleet","Telematics","Comp","Light Commercial Vehicles","31-40","22","Learner","Diverse","Private"]
[null,"Fleet","Telematics","Comp","Light Commercial Vehicles","31-40","22","Learner","Diverse","Commercial"]
[null,"Fleet","Telematics","Comp","Light Commercial Vehicles","31-40","22","Non-Learner","Male","Private"]
[null,"Fleet","Telematics","Comp","Light Commercial Vehicles","31-40","22","Non-Learner","Male","Commercial"]
[null,"Fleet","Telematics","Comp","Light Commercial Vehicles","31-40","22","Non-Learner","Female","Private"]
[null,"Fleet","Telematics","Comp","Light Commercial Vehicles","31-40","22","Non-Learner","Female","Commercial"]
[null,"Fleet","Telematics","Comp","Light Commercial Vehicles","31-40","22","Non-Learner","Diverse","Private"]
[null,"Fleet","Telematics","Comp","Light Commercial Vehicles","31-40","22","Non-Learner","Diverse","Commercial"]
[null,"Fleet","Telematics","Comp","Light Commercial Vehicles","31-40","23","Learner","Male","Private"]
[null,"Fleet","Telematics","Comp","Light Commercial Vehicles","31-40","23","Learner","Male","Commercial"]
[null,"Fleet","Telematics","Comp","Light Commercial Vehicles","31-40","23","Learner","Female","Private"]
[null,"Fleet","Telematics","Comp","Light Commercial Vehicles","31-40","23","Learner","Female","Commercial"]
[null,"Fleet","Telematics","Comp","Light Commercial Vehicles","31-40","23","Learner","Diverse","Private"]
[null,"Fleet","Telematics","Comp","Light Commercial Vehicles","31-40","23","Learner","Diverse","Commercial"]
[null,"Fleet","Telematics","Comp","Light Commercial Vehicles","31-40","23","Non-Learner","Male","Private"]
[null,"Fleet","Telematics","Comp","Light Commercial Vehicles","31-40","23","Non-Learner","Male","Commercial"]
[null,"Fleet","Telematics","Comp","Light Commercial Vehicles","31-40","23","Non-Learner","Female","Private"]
[null,"Fleet","Telematics","Comp","Light Commercial Vehicles","31-40","23","Non-Learner","Female","Commercial"]
[null,"Fleet","Telematics","Comp","Light Commercial Vehicles","31-40","23","Non-Learner","Diverse","Private"]
[null,"Fleet","Telematics","Comp","Light Commercial Vehicles","31-40","23","Non-Learner","Diverse","Commercial"]
[null,"Fleet","Telematics","Comp","Light Commercial Vehicles","31-40","24","Learner","Male","Private"]
[null,"Fleet","Telematics","Comp","Light Commercial Vehicles","31-40","24","Learner","Male","Commercial"]
[null,"Fleet","Telematics","Comp","Light Commercial Vehicles","31-40","24","Learner","Female","Private"]
[null,"Fleet","Telematics","Comp","Light Commercial Vehicles","31-40","24","Learner","Female","Commercial"]
[null,"Fleet","Telematics","Comp","Light Commercial Vehicles","31-40","24","Learner","Diverse","Private"]
[null,"Fleet","Telematics","Comp","Light Commercial Vehicles","31-40","24","Learner","Diverse","Commercial"]
[null,"Fleet","Telematics","Comp","Light Commercial Vehicles","31-40","24","Non-Learner","Male","Private"]
[null,"Fleet","Telematics","Comp","Light Commercial Vehicles","31-40","24","Non-Learner","Male","Commercial"]
[null,"Fleet","Telematics","Comp","Light Commercial Vehicles","31-40","24","Non-Learner","Female","Private"]
[null,"Fleet","Telematics","Comp","Light Commercial Vehicles","31-40","24","Non-Learner","Female","Commercial"]
[null,"Fleet","Telematics","Comp","Light Commercial Vehicles","31-40","24","Non-Learner","Diverse","Private"]
[null,"Fleet","Telematics","Comp","Light Commercial Vehicles","31-40","24","Non-Learner","Diverse","Commercial"]
[null,"Fleet","Telematics","Comp","Light Commercial Vehicles","31-40","25","Learner","Male","Private"]
[null,"Fleet","Telematics","Comp","Light Commercial Vehicles","31-40","25","Learner","Male","Commercial"]
[null,"Fleet","Telematics","Comp","Light Commercial Vehicles","31-40","25","Learner","Female","Private"]
[null,"Fleet","Telematics","Comp","Light Commercial Vehicles","31-40","25","Learner","Female","Commercial"]
[null,"Fleet","Telematics","Comp","Light Commercial Vehicles","31-40","25","Learner","Diverse","Private"]
[null,"Fleet","Telematics","Comp","Light Commercial Vehicles","31-40","25","Learner","Diverse","Commercial"]
[null,"Fleet","Telematics","Comp","Light Commercial Vehicles","31-40","25","Non-Learner","Male","Private"]
[null,"Fleet","Telematics","Comp","Light Commercial Vehicles","31-40","25","Non-Learner","Male","Commercial"]
[null,"Fleet","Telematics","Comp","Light Commercial Vehicles","31-40","25","Non-Learner","Female","Private"]
[null,"Fleet","Telematics","Comp","Light Commercial Vehicles","31-40","25","Non-Learner","Female","Commercial"]
[null,"Fleet","Telematics","Comp","Light Commercial Vehicles","31-40","25","Non-Learner","Diverse","Private"]
[null,"Fleet","Telematics","Comp","Light Commercial Vehicles","31-40","25","Non-Learner","Diverse","Commercial"]
[null,"Fleet","Telematics","Comp","Light Commercial Vehicles","31-40","26-20","Learner","Male","Private"]
[null,"Fleet","Telematics","Comp","Light Commercial Vehicles","31-40","26-20","Learner","Male","Commercial"]
[null,"Fleet","Telematics","Comp","Light Commercial Vehicles","31-40","26-20","Learner","Female","Private"]
[null,"Fleet","Telematics","Comp","Light Commercial Vehicles","31-40","26-20","Learner","Female","Commercial"]
[null,"Fleet","Telematics","Comp","Light Commercial Vehicles","31-40","26-20","Learner","Diverse","Private"]
[null,"Fleet","Telematics","Comp","Light Commercial Vehicles","31-40","26-20","Learner","Diverse","Commercial"]
[null,"Fleet","Telematics","Comp","Light Commercial Vehicles","31-40","26-20","Non-Learner","Male","Private"]
[null,"Fleet","Telematics","Comp","Light Commercial Vehicles","31-40","26-20","Non-Learner","Male","Commercial"]
[null,"Fleet","Telematics","Comp","Light Commercial Vehicles","31-40","26-20","Non-Learner","Female","Private"]
[null,"Fleet","Telematics","Comp","Light Commercial Vehicles","31-40","26-20","Non-Learner","Female","Commercial"]
[null,"Fleet","Telematics","Comp","Light Commercial Vehicles","31-40","26-20","Non-Learner","Diverse","Private"]
[null,"Fleet","Telematics","Comp","Light Commercial Vehicles","31-40","26-20","Non-Learner","Diverse","Commercial"]
[null,"Fleet","Telematics","Comp","Light Commercial Vehicles","31-40","31-50","Learner","Male","Private"]
[null,"Fleet","Telematics","Comp","Light Commercial Vehicles","31-40","31-50","Learner","Male","Commercial"]
[null,"Fleet","Telematics","Comp","Light Commercial Vehicles","31-40","31-50","Learner","Female","Private"]
[null,"Fleet","Telematics","Comp","Light Commercial Vehicles","31-40","31-50","Learner","Female","Commercial"]
[null,"Fleet","Telematics","Comp","Light Commercial Vehicles","31-40","31-50","Learner","Diverse","Private"]
[null,"Fleet","Telematics","Comp","Light Commercial Vehicles","31-40","31-50","Learner","Diverse","Commercial"]
[null,"Fleet","Telematics","Comp","Light Commercial Vehicles","31-40","31-50","Non-Learner","Male","Private"]
[null,"Fleet","Telematics","Comp","Light Commercial Vehicles","31-40","31-50","Non-Learner","Male","Commercial"]
[null,"Fleet","Telematics","Comp","Light Commercial Vehicles","31-40","31-50","Non-Learner","Female","Private"]
[null,"Fleet","Telematics","Comp","Light Commercial Vehicles","31-40","31-50","Non-Learner","Female","Commercial"]
[null,"Fleet","Telematics","Comp","Light Commercial Vehicles","31-40","31-50","Non-Learner","Diverse","Private"]
[null,"Fleet","Telematics","Comp","Light Commercial Vehicles","31-40","31-50","Non-Learner","Diverse","Commercial"]
[null,"Fleet","Telematics","Comp","Light Commercial Vehicles","31-40","51-69","Learner","Male","Private"]
[null,"Fleet","Telematics","Comp","Light Commercial Vehicles","31-40","51-69","Learner","Male","Commercial"]
[null,"Fleet","Telematics","Comp","Light Commercial Vehicles","31-40","51-69","Learner","Female","Private"]
[null,"Fleet","Telematics","Comp","Light Commercial Vehicles","31-40","51-69","Learner","Female","Commercial"]
[null,"Fleet","Telematics","Comp","Light Commercial Vehicles","31-40","51-69","Learner","Diverse","Private"]
[null,"Fleet","Telematics","Comp","Light Commercial Vehicles","31-40","51-69","Learner","Diverse","Commercial"]
[null,"Fleet","Telematics","Comp","Light Commercial Vehicles","31-40","51-69","Non-Learner","Male","Private"]
[null,"Fleet","Telematics","Comp","Light Commercial Vehicles","31-40","51-69","Non-Learner","Male","Commercial"]
[null,"Fleet","Telematics","Comp","Light Commercial Vehicles","31-40","51-69","Non-Learner","Female","Private"]
[null,"Fleet","Telematics","Comp","Light Commercial Vehicles","31-40","51-69","Non-Learner","Female","Commercial"]
[null,"Fleet","Telematics","Comp","Light Commercial Vehicles","31-40","51-69","Non-Learner","Diverse","Private"]
[null,"Fleet","Telematics","Comp","Light Commercial Vehicles","31-40","51-69","Non-Learner","Diverse","Commercial"]
[null,"Fleet","Telematics","Comp","Light Commercial Vehicles","31-40","70 or over","Learner","Male","Private"]
[null,"Fleet","Telematics","Comp","Light Commercial Vehicles","31-40","70 or over","Learner","Male","Commercial"]
[null,"Fleet","Telematics","Comp","Light Commercial Vehicles","31-40","70 or over","Learner","Female","Private"]
[null,"Fleet","Telematics","Comp","Light Commercial Vehicles","31-40","70 or over","Learner","Female","Commercial"]
[null,"Fleet","Telematics","Comp","Light Commercial Vehicles","31-40","70 or over","Learner","Diverse","Private"]
[null,"Fleet","Telematics","Comp","Light Commercial Vehicles","31-40","70 or over","Learner","Diverse","Commercial"]
[null,"Fleet","Telematics","Comp","Light Commercial Vehicles","31-40","70 or over","Non-Learner","Male","Private"]
[null,"Fleet","Telematics","Comp","Light Commercial Vehicles","31-40","70 or over","Non-Learner","Male","Commercial"]
[null,"Fleet","Telematics","Comp","Light Commercial Vehicles","31-40","70 or over","Non-Learner","Female","Private"]
[null,"Fleet","Telematics","Comp","Light Commercial Vehicles","31-40","70 or over","Non-Learner","Female","Commercial"]
[null,"Fleet","Telematics","Comp","Light Commercial Vehicles","31-40","70 or over","Non-Learner","Diverse","Private"]
[null,"Fleet","Telematics","Comp","Light Commercial Vehicles","31-40","70 or over","Non-Learner","Diverse","Commercial"]
[null,"Fleet","Telematics","Comp","Light Commercial Vehicles","31-40","Any Driver","Learner","Male","Private"]
[null,"Fleet","Telematics","Comp","Light Commercial Vehicles","31-40","Any Driver","Learner","Male","Commercial"]
[null,"Fleet","Telematics","Comp","Light Commercial Vehicles","31-40","Any Driver","Learner","Female","Private"]
[null,"Fleet","Telematics","Comp","Light Commercial Vehicles","31-40","Any Driver","Learner","Female","Commercial"]
[null,"Fleet","Telematics","Comp","Light Commercial Vehicles","31-40","Any Driver","Learner","Diverse","Private"]
[null,"Fleet","Telematics","Comp","Light Commercial Vehicles","31-40","Any Driver","Learner","Diverse","Commercial"]
[null,"Fleet","Telematics","Comp","Light Commercial Vehicles","31-40","Any Driver","Non-Learner","Male","Private"]
[null,"Fleet","Telematics","Comp","Light Commercial Vehicles","31-40","Any Driver","Non-Learner","Male","Commercial"]
[null,"Fleet","Telematics","Comp","Light Commercial Vehicles","31-40","Any Driver","Non-Learner","Female","Private"]
[null,"Fleet","Telematics","Comp","Light Commercial Vehicles","31-40","Any Driver","Non-Learner","Female","Commercial"]
[null,"Fleet","Telematics","Comp","Light Commercial Vehicles","31-40","Any Driver","Non-Learner","Diverse","Private"]
[null,"Fleet","Telematics","Comp","Light Commercial Vehicles","31-40","Any Driver","Non-Learner","Diverse","Commercial"]
[null,"Fleet","Telematics","Comp","Light Commercial Vehicles","41-50","17","Learner","Male","Private"]
[null,"Fleet","Telematics","Comp","Light Commercial Vehicles","41-50","17","Learner","Male","Commercial"]
[null,"Fleet","Telematics","Comp","Light Commercial Vehicles","41-50","17","Learner","Female","Private"]
[null,"Fleet","Telematics","Comp","Light Commercial Vehicles","41-50","17","Learner","Female","Commercial"]
[null,"Fleet","Telematics","Comp","Light Commercial Vehicles","41-50","17","Learner","Diverse","Private"]
[null,"Fleet","Telematics","Comp","Light Commercial Vehicles","41-50","17","Learner","Diverse","Commercial"]
[null,"Fleet","Telematics","Comp","Light Commercial Vehicles","41-50","17","Non-Learner","Male","Private"]
[null,"Fleet","Telematics","Comp","Light Commercial Vehicles","41-50","17","Non-Learner","Male","Commercial"]
[null,"Fleet","Telematics","Comp","Light Commercial Vehicles","41-50","17","Non-Learner","Female","Private"]
[null,"Fleet","Telematics","Comp","Light Commercial Vehicles","41-50","17","Non-Learner","Female","Commercial"]
[null,"Fleet","Telematics","Comp","Light Commercial Vehicles","41-50","17","Non-Learner","Diverse","Private"]
[null,"Fleet","Telematics","Comp","Light Commercial Vehicles","41-50","17","Non-Learner","Diverse","Commercial"]
[null,"Fleet","Telematics","Comp","Light Commercial Vehicles","41-50","18","Learner","Male","Private"]
[null,"Fleet","Telematics","Comp","Light Commercial Vehicles","41-50","18","Learner","Male","Commercial"]
[null,"Fleet","Telematics","Comp","Light Commercial Vehicles","41-50","18","Learner","Female","Private"]
[null,"Fleet","Telematics","Comp","Light Commercial Vehicles","41-50","18","Learner","Female","Commercial"]
[null,"Fleet","Telematics","Comp","Light Commercial Vehicles","41-50","18","Learner","Diverse","Private"]
[null,"Fleet","Telematics","Comp","Light Commercial Vehicles","41-50","18","Learner","Diverse","Commercial"]
[null,"Fleet","Telematics","Comp","Light Commercial Vehicles","41-50","18","Non-Learner","Male","Private"]
[null,"Fleet","Telematics","Comp","Light Commercial Vehicles","41-50","18","Non-Learner","Male","Commercial"]
[null,"Fleet","Telematics","Comp","Light Commercial Vehicles","41-50","18","Non-Learner","Female","Private"]
[null,"Fleet","Telematics","Comp","Light Commercial Vehicles","41-50","18","Non-Learner","Female","Commercial"]
[null,"Fleet","Telematics","Comp","Light Commercial Vehicles","41-50","18","Non-Learner","Diverse","Private"]
[null,"Fleet","Telematics","Comp","Light Commercial Vehicles","41-50","18","Non-Learner","Diverse","Commercial"]
[null,"Fleet","Telematics","Comp","Light Commercial Vehicles","41-50","19","Learner","Male","Private"]
[null,"Fleet","Telematics","Comp","Light Commercial Vehicles","41-50","19","Learner","Male","Commercial"]
[null,"Fleet","Telematics","Comp","Light Commercial Vehicles","41-50","19","Learner","Female","Private"]
[null,"Fleet","Telematics","Comp","Light Commercial Vehicles","41-50","19","Learner","Female","Commercial"]
[null,"Fleet","Telematics","Comp","Light Commercial Vehicles","41-50","19","Learner","Diverse","Private"]
[null,"Fleet","Telematics","Comp","Light Commercial Vehicles","41-50","19","Learner","Diverse","Commercial"]
[null,"Fleet","Telematics","Comp","Light Commercial Vehicles","41-50","19","Non-Learner","Male","Private"]
[null,"Fleet","Telematics","Comp","Light Commercial Vehicles","41-50","19","Non-Learner","Male","Commercial"]
[null,"Fleet","Telematics","Comp","Light Commercial Vehicles","41-50","19","Non-Learner","Female","Private"]
[null,"Fleet","Telematics","Comp","Light Commercial Vehicles","41-50","19","Non-Learner","Female","Commercial"]
[null,"Fleet","Telematics","Comp","Light Commercial Vehicles","41-50","19","Non-Learner","Diverse","Private"]
[null,"Fleet","Telematics","Comp","Light Commercial Vehicles","41-50","19","Non-Learner","Diverse","Commercial"]
[null,"Fleet","Telematics","Comp","Light Commercial Vehicles","41-50","20","Learner","Male","Private"]
[null,"Fleet","Telematics","Comp","Light Commercial Vehicles","41-50","20","Learner","Male","Commercial"]
[null,"Fleet","Telematics","Comp","Light Commercial Vehicles","41-50","20","Learner","Female","Private"]
[null,"Fleet","Telematics","Comp","Light Commercial Vehicles","41-50","20","Learner","Female","Commercial"]
[null,"Fleet","Telematics","Comp","Light Commercial Vehicles","41-50","20","Learner","Diverse","Private"]
[null,"Fleet","Telematics","Comp","Light Commercial Vehicles","41-50","20","Learner","Diverse","Commercial"]
[null,"Fleet","Telematics","Comp","Light Commercial Vehicles","41-50","20","Non-Learner","Male","Private"]
[null,"Fleet","Telematics","Comp","Light Commercial Vehicles","41-50","20","Non-Learner","Male","Commercial"]
[null,"Fleet","Telematics","Comp","Light Commercial Vehicles","41-50","20","Non-Learner","Female","Private"]
[null,"Fleet","Telematics","Comp","Light Commercial Vehicles","41-50","20","Non-Learner","Female","Commercial"]
[null,"Fleet","Telematics","Comp","Light Commercial Vehicles","41-50","20","Non-Learner","Diverse","Private"]
[null,"Fleet","Telematics","Comp","Light Commercial Vehicles","41-50","20","Non-Learner","Diverse","Commercial"]
[null,"Fleet","Telematics","Comp","Light Commercial Vehicles","41-50","21","Learner","Male","Private"]
[null,"Fleet","Telematics","Comp","Light Commercial Vehicles","41-50","21","Learner","Male","Commercial"]
[null,"Fleet","Telematics","Comp","Light Commercial Vehicles","41-50","21","Learner","Female","Private"]
[null,"Fleet","Telematics","Comp","Light Commercial Vehicles","41-50","21","Learner","Female","Commercial"]
[null,"Fleet","Telematics","Comp","Light Commercial Vehicles","41-50","21","Learner","Diverse","Private"]
[null,"Fleet","Telematics","Comp","Light Commercial Vehicles","41-50","21","Learner","Diverse","Commercial"]
[null,"Fleet","Telematics","Comp","Light Commercial Vehicles","41-50","21","Non-Learner","Male","Private"]
[null,"Fleet","Telematics","Comp","Light Commercial Vehicles","41-50","21","Non-Learner","Male","Commercial"]
[null,"Fleet","Telematics","Comp","Light Commercial Vehicles","41-50","21","Non-Learner","Female","Private"]
[null,"Fleet","Telematics","Comp","Light Commercial Vehicles","41-50","21","Non-Learner","Female","Commercial"]
[null,"Fleet","Telematics","Comp","Light Commercial Vehicles","41-50","21","Non-Learner","Diverse","Private"]
[null,"Fleet","Telematics","Comp","Light Commercial Vehicles","41-50","21","Non-Learner","Diverse","Commercial"]
[null,"Fleet","Telematics","Comp","Light Commercial Vehicles","41-50","22","Learner","Male","Private"]
[null,"Fleet","Telematics","Comp","Light Commercial Vehicles","41-50","22","Learner","Male","Commercial"]
[null,"Fleet","Telematics","Comp","Light Commercial Vehicles","41-50","22","Learner","Female","Private"]
[null,"Fleet","Telematics","Comp","Light Commercial Vehicles","41-50","22","Learner","Female","Commercial"]
[null,"Fleet","Telematics","Comp","Light Commercial Vehicles","41-50","22","Learner","Diverse","Private"]
[null,"Fleet","Telematics","Comp","Light Commercial Vehicles","41-50","22","Learner","Diverse","Commercial"]
[null,"Fleet","Telematics","Comp","Light Commercial Vehicles","41-50","22","Non-Learner","Male","Private"]
[null,"Fleet","Telematics","Comp","Light Commercial Vehicles","41-50","22","Non-Learner","Male","Commercial"]
[null,"Fleet","Telematics","Comp","Light Commercial Vehicles","41-50","22","Non-Learner","Female","Private"]
[null,"Fleet","Telematics","Comp","Light Commercial Vehicles","41-50","22","Non-Learner","Female","Commercial"]
[null,"Fleet","Telematics","Comp","Light Commercial Vehicles","41-50","22","Non-Learner","Diverse","Private"]
[null,"Fleet","Telematics","Comp","Light Commercial Vehicles","41-50","22","Non-Learner","Diverse","Commercial"]
[null,"Fleet","Telematics","Comp","Light Commercial Vehicles","41-50","23","Learner","Male","Private"]
[null,"Fleet","Telematics","Comp","Light Commercial Vehicles","41-50","23","Learner","Male","Commercial"]
[null,"Fleet","Telematics","Comp","Light Commercial Vehicles","41-50","23","Learner","Female","Private"]
[null,"Fleet","Telematics","Comp","Light Commercial Vehicles","41-50","23","Learner","Female","Commercial"]
[null,"Fleet","Telematics","Comp","Light Commercial Vehicles","41-50","23","Learner","Diverse","Private"]
[null,"Fleet","Telematics","Comp","Light Commercial Vehicles","41-50","23","Learner","Diverse","Commercial"]
[null,"Fleet","Telematics","Comp","Light Commercial Vehicles","41-50","23","Non-Learner","Male","Private"]
[null,"Fleet","Telematics","Comp","Light Commercial Vehicles","41-50","23","Non-Learner","Male","Commercial"]
[null,"Fleet","Telematics","Comp","Light Commercial Vehicles","41-50","23","Non-Learner","Female","Private"]
[null,"Fleet","Telematics","Comp","Light Commercial Vehicles","41-50","23","Non-Learner","Female","Commercial"]
[null,"Fleet","Telematics","Comp","Light Commercial Vehicles","41-50","23","Non-Learner","Diverse","Private"]
[null,"Fleet","Telematics","Comp","Light Commercial Vehicles","41-50","23","Non-Learner","Diverse","Commercial"]
[null,"Fleet","Telematics","Comp","Light Commercial Vehicles","41-50","24","Learner","Male","Private"]
[null,"Fleet","Telematics","Comp","Light Commercial Vehicles","41-50","24","Learner","Male","Commercial"]
[null,"Fleet","Telematics","Comp","Light Commercial Vehicles","41-50","24","Learner","Female","Private"]
[null,"Fleet","Telematics","Comp","Light Commercial Vehicles","41-50","24","Learner","Female","Commercial"]
[null,"Fleet","Telematics","Comp","Light Commercial Vehicles","41-50","24","Learner","Diverse","Private"]
[null,"Fleet","Telematics","Comp","Light Commercial Vehicles","41-50","24","Learner","Diverse","Commercial"]
[null,"Fleet","Telematics","Comp","Light Commercial Vehicles","41-50","24","Non-Learner","Male","Private"]
[null,"Fleet","Telematics","Comp","Light Commercial Vehicles","41-50","24","Non-Learner","Male","Commercial"]
[null,"Fleet","Telematics","Comp","Light Commercial Vehicles","41-50","24","Non-Learner","Female","Private"]
[null,"Fleet","Telematics","Comp","Light Commercial Vehicles","41-50","24","Non-Learner","Female","Commercial"]
[null,"Fleet","Telematics","Comp","Light Commercial Vehicles","41-50","24","Non-Learner","Diverse","Private"]
[null,"Fleet","Telematics","Comp","Light Commercial Vehicles","41-50","24","Non-Learner","Diverse","Commercial"]
[null,"Fleet","Telematics","Comp","Light Commercial Vehicles","41-50","25","Learner","Male","Private"]
[null,"Fleet","Telematics","Comp","Light Commercial Vehicles","41-50","25","Learner","Male","Commercial"]
[null,"Fleet","Telematics","Comp","Light Commercial Vehicles","41-50","25","Learner","Female","Private"]
[null,"Fleet","Telematics","Comp","Light Commercial Vehicles","41-50","25","Learner","Female","Commercial"]
[null,"Fleet","Telematics","Comp","Light Commercial Vehicles","41-50","25","Learner","Diverse","Private"]
[null,"Fleet","Telematics","Comp","Light Commercial Vehicles","41-50","25","Learner","Diverse","Commercial"]
[null,"Fleet","Telematics","Comp","Light Commercial Vehicles","41-50","25","Non-Learner","Male","Private"]
[null,"Fleet","Telematics","Comp","Light Commercial Vehicles","41-50","25","Non-Learner","Male","Commercial"]
[null,"Fleet","Telematics","Comp","Light Commercial Vehicles","41-50","25","Non-Learner","Female","Private"]
[null,"Fleet","Telematics","Comp","Light Commercial Vehicles","41-50","25","Non-Learner","Female","Commercial"]
[null,"Fleet","Telematics","Comp","Light Commercial Vehicles","41-50","25","Non-Learner","Diverse","Private"]
[null,"Fleet","Telematics","Comp","Light Commercial Vehicles","41-50","25","Non-Learner","Diverse","Commercial"]
[null,"Fleet","Telematics","Comp","Light Commercial Vehicles","41-50","26-20","Learner","Male","Private"]
[null,"Fleet","Telematics","Comp","Light Commercial Vehicles","41-50","26-20","Learner","Male","Commercial"]
[null,"Fleet","Telematics","Comp","Light Commercial Vehicles","41-50","26-20","Learner","Female","Private"]
[null,"Fleet","Telematics","Comp","Light Commercial Vehicles","41-50","70 or over","Learner","Male","Private"]
[null,"Fleet","Telematics","Comp","Light Commercial Vehicles","51-60","23","Learner","Female","Commercial"]
[null,"Fleet","Telematics","Comp","Light Commercial Vehicles","51-60","24","Non-Learner","Diverse","Commercial"]
[null,"Fleet","Telematics","Comp","Light Commercial Vehicles",">60","22","Learner","Male","Commercial"]
[null,"Fleet","Telematics","Comp","Light Commercial Vehicles",">60","22","Non-Learner","Diverse","Commercial"]
[null,"Fleet","Telematics","Comp","Light Commercial Vehicles",">60","Any Driver","Non-Learner","Female","Private"]
[null,"Fleet","Telematics","Comp","Medium Commercial Vehicles","0-10","25","Non-Learner","Diverse","Private"]
[null,"Fleet","Telematics","Comp","Medium Commercial Vehicles","0-10","51-69","Non-Learner","Female","Private"]
[null,"Fleet","Telematics","Comp","Medium Commercial Vehicles","11-20","19","Learner","Male","Private"]
[null,"Fleet","Telematics","Comp","Medium Commercial Vehicles","11-20","70 or over","Non-Learner","Male","Commercial"]
[null,"Fleet","Telematics","Comp","Medium Commercial Vehicles","21-30","20","Learner","Diverse","Commercial"]
[null,"Fleet","Telematics","Comp","Medium Commercial Vehicles","21-30","24","Non-Learner","Female","Commercial"]
[null,"Fleet","Telematics","Comp","Medium Commercial Vehicles","31-40","19","Learner","Diverse","Private"]
[null,"Fleet","Telematics","Comp","Medium Commercial Vehicles","31-40","26-20","Learner","Female","Private"]
[null,"Fleet","Telematics","Comp","Medium Commercial Vehicles","31-40","Any Driver","Non-Learner","Male","Private"]
[null,"Fleet","Telematics","Comp","Medium Commercial Vehicles","41-50","24","Learner","Female","Commercial"]
[null,"Fleet","Telematics","Comp","Medium Commercial Vehicles","41-50","25","Learner","Female","Commercial"]
[null,"Fleet","Telematics","Comp","Medium Commercial Vehicles","51-60","22","Learner","Female","Commercial"]
[null,"Fleet","Telematics","Comp","Medium Commercial Vehicles","51-60","23","Non-Learner","Diverse","Commercial"]
[null,"Fleet","Telematics","Comp","Medium Commercial Vehicles",">60","21","Learner","Male","Private"]
[null,"Fleet","Telematics","Comp","Medium Commercial Vehicles",">60","21","Non-Learner","Diverse","Commercial"]
[null,"Fleet","Telematics","Comp","Heavy Commercial Vehicles","0-10","18","Learner","Diverse","Private"]
[null,"Fleet","Telematics","Comp","Heavy Commercial Vehicles","0-10","24","Non-Learner","Female","Commercial"]
[null,"Fleet","Telematics","Comp","Heavy Commercial Vehicles","0-10","31-50","Non-Learner","Female","Private"]
[null,"Fleet","Telematics","Comp","Heavy Commercial Vehicles","11-20","18","Learner","Male","Private"]
[null,"Fleet","Telematics","Comp","Heavy Commercial Vehicles","11-20","51-69","Non-Learner","Male","Private"]
[null,"Fleet","Telematics","Comp","Heavy Commercial Vehicles","21-30","19","Learner","Diverse","Commercial"]
[null,"Fleet","Telematics","Comp","Heavy Commercial Vehicles","21-30","23","Non-Learner","Female","Commercial"]
[null,"Fleet","Telematics","Comp","Heavy Commercial Vehicles","31-40","17","Non-Learner","Male","Private"]
[null,"Fleet","Telematics","Comp","Heavy Commercial Vehicles","31-40","20","Learner","Diverse","Commercial"]
[null,"Fleet","Telematics","Comp","Heavy Commercial Vehicles","31-40","70 or over","Non-Learner","Male","Private"]
[null,"Fleet","Telematics","Comp","Heavy Commercial Vehicles","41-50","23","Learner","Female","Commercial"]
[null,"Fleet","Telematics","Comp","Heavy Commercial Vehicles","41-50","24","Learner","Female","Private"]
[null,"Fleet","Telematics","Comp","Heavy Commercial Vehicles","51-60","21","Learner","Female","Commercial"]
[null,"Fleet","Telematics","Comp","Heavy Commercial Vehicles","51-60","22","Non-Learner","Diverse","Commercial"]
[null,"Fleet","Telematics","Comp","Heavy Commercial Vehicles",">60","19","Non-Learner","Diverse","Commercial"]
[null,"Fleet","Telematics","Comp","Heavy Commercial Vehicles",">60","20","Non-Learner","Diverse","Commercial"]
[null,"Fleet","Telematics","Comp","Buses, coaches etc","0-10","17","Learner","Diverse","Private"]
[null,"Fleet","Telematics","Comp","Buses, coaches etc","0-10","23","Non-Learner","Female","Private"]
[null,"Fleet","Telematics","Comp","Buses, coaches etc","0-10","26-20","Non-Learner","Female","Private"]
[null,"Fleet","Telematics","Comp","Buses, coaches etc","11-20","17","Learner","Male","Private"]
[null,"Fleet","Telematics","Comp","Buses, coaches etc","11-20","24","Non-Learner","Female","Commercial"]
[null,"Fleet","Telematics","Comp","Buses, coaches etc","11-20","70 or over","Non-Learner","Male","Commercial"]
[null,"Fleet","Telematics","Comp","Buses, coaches etc","21-30","22","Non-Learner","Female","Commercial"]
[null,"Fleet","Telematics","Comp","Buses, coaches etc","21-30","Any Driver","Non-Learner","Male","Private"]
[null,"Fleet","Telematics","Comp","Buses, coaches etc","31-40","19","Learner","Diverse","Private"]
[null,"Fleet","Telematics","Comp","Buses, coaches etc","31-40","51-69","Non-Learner","Male","Private"]
[null,"Fleet","Telematics","Comp","Buses, coaches etc","41-50","22","Learner","Female","Commercial"]
[null,"Fleet","Telematics","Comp","Buses, coaches etc","41-50","23","Learner","Male","Commercial"]
[null,"Fleet","Telematics","Comp","Buses, coaches etc","51-60","20","Learner","Female","Commercial"]
[null,"Fleet","Telematics","Comp","Buses, coaches etc","51-60","24","Non-Learner","Male","Commercial"]
[null,"Fleet","Telematics","Comp","Buses, coaches etc",">60","18","Non-Learner","Diverse","Private"]
[null,"Fleet","Telematics","Comp","Buses, coaches etc",">60","19","Non-Learner","Diverse","Commercial"]
[null,"Fleet","Telematics","Comp","Buses, coaches etc",">60","Any Driver","Learner","Diverse","Private"]
[null,"Fleet","Telematics","Comp","Taxis, private & public hire","0-10","22","Non-Learner","Male","Commercial"]
[null,"Fleet","Telematics","Comp","Taxis, private & public hire","0-10","51-69","Learner","Diverse","Private"]
[null,"Fleet","Telematics","Comp","Taxis, private & public hire","0-10","Any Driver","Learner","Male","Private"]
[null,"Fleet","Telematics","Comp","Taxis, private & public hire","11-20","23","Non-Learner","Female","Commercial"]
[null,"Fleet","Telematics","Comp","Taxis, private & public hire","11-20","51-69","Non-Learner","Male","Private"]
[null,"Fleet","Telematics","Comp","Taxis, private & public hire","21-30","21","Non-Learner","Female","Commercial"]
[null,"Fleet","Telematics","Comp","Taxis, private & public hire","21-30","70 or over","Non-Learner","Male","Private"]
[null,"Fleet","Telematics","Comp","Taxis, private & public hire","31-40","18","Learner","Female","Commercial"]
[null,"Fleet","Telematics","Comp","Taxis, private & public hire","31-40","31-50","Non-Learner","Male","Private"]
[null,"Fleet","Telematics","Comp","Taxis, private & public hire","41-50","17","Non-Learner","Diverse","Private"]
[null,"Fleet","Telematics","Comp","Taxis, private & public hire","41-50","22","Learner","Male","Private"]
[null,"Fleet","Telematics","Comp","Taxis, private & public hire","51-60","19","Learner","Female","Commercial"]
[null,"Fleet","Telematics","Comp","Taxis, private & public hire","51-60","23","Non-Learner","Male","Commercial"]
[null,"Fleet","Telematics","Comp","Taxis, private & public hire",">60","17","Non-Learner","Female","Commercial"]
[null,"Fleet","Telematics","Comp","Taxis, private & public hire",">60","18","Non-Learner","Diverse","Commercial"]
[null,"Fleet","Telematics","Comp","Taxis, private & public hire",">60","70 or over","Learner","Diverse","Private"]
[null,"Fleet","Telematics","Comp","Self-drive hire vehicles","0-10","17","Learner","Male","Private"]
[null,"Fleet","Telematics","Comp","Self-drive hire vehicles","0-10","23","Non-Learner","Female","Private"]
[null,"Fleet","Telematics","Comp","Self-drive hire vehicles","0-10","70 or over","Learner","Male","Private"]
[null,"Fleet","Telematics","Comp","Self-drive hire vehicles","11-20","22","Non-Learner","Female","Commercial"]
[null,"Fleet","Telematics","Comp","Self-drive hire vehicles","11-20","31-50","Learner","Diverse","Commercial"]
[null,"Fleet","Telematics","Comp","Self-drive hire vehicles","21-30","20","Non-Learner","Female","Commercial"]
[null,"Fleet","Telematics","Comp","Self-drive hire vehicles","21-30","25","Learner","Male","Commercial"]
[null,"Fleet","Telematics","Comp","Self-drive hire vehicles","31-40","17","Learner","Female","Private"]
[null,"Fleet","Telematics","Comp","Self-drive hire vehicles","31-40","26-20","Non-Learner","Male","Private"]
[null,"Fleet","Telematics","Comp","Self-drive hire vehicles","31-40","Any Driver","Non-Learner","Diverse","Private"]
[null,"Fleet","Telematics","Comp","Self-drive hire vehicles","41-50","20","Non-Learner","Diverse","Commercial"]
[null,"Fleet","Telematics","Comp","Self-drive hire vehicles","51-60","18","Learner","Female","Commercial"]
[null,"Fleet","Telematics","Comp","Self-drive hire vehicles","51-60","22","Non-Learner","Male","Commercial"]
[null,"Fleet","Telematics","Comp","Self-drive hire vehicles","51-60","Any Driver","Learner","Diverse","Private"]
[null,"Fleet","Telematics","Comp","Self-drive hire vehicles",">60","18","Non-Learner","Diverse","Private"]
[null,"Fleet","Telematics","Comp","Self-drive hire vehicles",">60","51-69","Learner","Diverse","Private"]
[null,"Fleet","Telematics","Comp","Self-drive hire vehicles",">60","Any Driver","Learner","Male","Private"]
[null,"Fleet","Telematics","Comp","Tankers, hazardous","0-10","22","Non-Learner","Male","Commercial"]
[null,"Fleet","Telematics","Comp","Tankers, hazardous","0-10","51-69","Learner","Male","Private"]
[null,"Fleet","Telematics","Comp","Tankers, hazardous","11-20","21","Non-Learner","Female","Commercial"]
[null,"Fleet","Telematics","Comp","Tankers, hazardous","11-20","26-20","Learner","Diverse","Private"]
[null,"Fleet","Telematics","Comp","Tankers, hazardous","21-30","19","Non-Learner","Female","Commercial"]
[null,"Fleet","Telematics","Comp","Tankers, hazardous","21-30","24","Learner","Male","Commercial"]
[null,"Fleet","Telematics","Comp","Tankers, hazardous","21-30","Any Driver","Learner","Male","Commercial"]
[null,"Fleet","Telematics","Comp","Tankers, hazardous","31-40","25","Non-Learner","Male","Private"]
[null,"Fleet","Telematics","Comp","Tankers, hazardous","31-40","70 or over","Non-Learner","Diverse","Private"]
[null,"Fleet","Telematics","Comp","Tankers, hazardous","41-50","19","Non-Learner","Diverse","Private"]
[null,"Fleet","Telematics","Comp","Tankers, hazardous","41-50","31-50","Non-Learner","Diverse","Private"]
[null,"Fleet","Telematics","Comp","Tankers, hazardous","51-60","21","Non-Learner","Male","Commercial"]
[null,"Fleet","Telematics","Comp","Tankers, hazardous","51-60","70 or over","Learner","Diverse","Private"]
[null,"Fleet","Telematics","Comp","Tankers, hazardous",">60","17","Non-Learner","Female","Commercial"]
[null,"Fleet","Telematics","Comp","Tankers, hazardous",">60","31-50","Learner","Diverse","Private"]
[null,"Fleet","Telematics","Comp","Tankers, hazardous",">60","70 or over","Learner","Male","Private"]
[null,"Fleet","Telematics","Comp","Motor cycles","0-10","21","Non-Learner","Male","Private"]
[null,"Fleet","Telematics","Comp","Motor cycles","0-10","31-50","Learner","Male","Private"]
[null,"Fleet","Telematics","Comp","Motor cycles","11-20","23","Learner","Diverse","Commercial"]
[null,"Fleet","Telematics","Comp","Motor cycles","11-20","25","Learner","Female","Commercial"]
[null,"Fleet","Telematics","Comp","Motor cycles","21-30","18","Non-Learner","Female","Commercial"]
[null,"Fleet","Telematics","Comp","Motor cycles","21-30","23","Learner","Male","Commercial"]
[null,"Fleet","Telematics","Comp","Motor cycles","21-30","70 or over","Learner","Male","Private"]
[null,"Fleet","Telematics","Comp","Motor cycles","31-40","21","Learner","Male","Commercial"]
[null,"Fleet","Telematics","Comp","Motor cycles","31-40","51-69","Non-Learner","Diverse","Private"]
[null,"Fleet","Telematics","Comp","Motor cycles","41-50","22","Non-Learner","Male","Commercial"]
[null,"Fleet","Telematics","Comp","Motor cycles","41-50","26-20","Non-Learner","Diverse","Commercial"]
[null,"Fleet","Telematics","Comp","Motor cycles","51-60","20","Non-Learner","Male","Commercial"]
[null,"Fleet","Telematics","Comp","Motor cycles","51-60","51-69","Learner","Diverse","Private"]
[null,"Fleet","Telematics","Comp","Motor cycles","51-60","Any Driver","Non-Learner","Female","Private"]
[null,"Fleet","Telematics","Comp","Motor cycles",">60","26-20","Learner","Diverse","Private"]
[null,"Fleet","Telematics","Comp","Motor cycles",">60","Any Driver","Non-Learner","Female","Private"]
[null,"Fleet","Telematics","Comp","Motor Trade Road Risks","0-10","20","Learner","Diverse","Commercial"]
[null,"Fleet","Telematics","Comp","Motor Trade Road Risks","0-10","26-20","Learner","Male","Private"]
[null,"Fleet","Telematics","Comp","Motor Trade Road Risks","11-20","22","Learner","Diverse","Commercial"]
[null,"Fleet","Telematics","Comp","Motor Trade Road Risks","11-20","24","Learner","Female","Private"]
[null,"Fleet","Telematics","Comp","Motor Trade Road Risks","21-30","17","Non-Learner","Female","Commercial"]
[null,"Fleet","Telematics","Comp","Motor Trade Road Risks","21-30","22","Learner","Male","Commercial"]
[null,"Fleet","Telematics","Comp","Motor Trade Road Risks","21-30","70 or over","Non-Learner","Diverse","Private"]
[null,"Fleet","Telematics","Comp","Motor Trade Road Risks","31-40","22","Learner","Male","Commercial"]
[null,"Fleet","Telematics","Comp","Motor Trade Road Risks","31-40","31-50","Non-Learner","Diverse","Private"]
[null,"Fleet","Telematics","Comp","Motor Trade Road Risks","41-50","21","Non-Learner","Male","Commercial"]
[null,"Fleet","Telematics","Comp","Motor Trade Road Risks","41-50","25","Non-Learner","Diverse","Private"]
[null,"Fleet","Telematics","Comp","Motor Trade Road Risks","51-60","19","Non-Learner","Male","Commercial"]
[null,"Fleet","Telematics","Comp","Motor Trade Road Risks","51-60","23","Non-Learner","Diverse","Commercial"]
[null,"Fleet","Telematics","Comp","Motor Trade Road Risks","51-60","70 or over","Non-Learner","Male","Commercial"]
[null,"Fleet","Telematics","Comp","Motor Trade Road Risks",">60","25","Learner","Diverse","Private"]
[null,"Fleet","Telematics","Comp","Motor Trade Road Risks",">60","70 or over","Non-Learner","Female","Private"]
[null,"Fleet","Telematics","Comp","All others","0-10","19","Learner","Diverse","Private"]
[null,"Fleet","Telematics","Comp","All others","0-10","25","Learner","Male","Private"]
[null,"Fleet","Telematics","Comp","All others","11-20","21","Learner","Diverse","Commercial"]
[null,"Fleet","Telematics","Comp","All others","11-20","23","Learner","Male","Commercial"]
[null,"Fleet","Telematics","Comp","All others","21-30","19","Learner","Diverse","Commercial"]
[null,"Fleet","Telematics","Comp","All others","21-30","21","Learner","Male","Commercial"]
[null,"Fleet","Telematics","Comp","All others","21-30","51-69","Non-Learner","Diverse","Private"]
[null,"Fleet","Telematics","Comp","All others","31-40","21","Learner","Male","Private"]
[null,"Fleet","Telematics","Comp","All others","31-40","26-20","Non-Learner","Diverse","Private"]
[null,"Fleet","Telematics","Comp","All others","41-50","17","Learner","Female","Private"]
[null,"Fleet","Telematics","Comp","All others","41-50","24","Non-Learner","Female","Commercial"]
[null,"Fleet","Telematics","Comp","All others","51-60","18","Non-Learner","Male","Commercial"]
[null,"Fleet","Telematics","Comp","All others","51-60","22","Non-Learner","Diverse","Commercial"]
[null,"Fleet","Telematics","Comp","All others","51-60","51-69","Non-Learner","Male","Private"]
[null,"Fleet","Telematics","Comp","All others",">60","24","Learner","Diverse","Private"]
[null,"Fleet","Telematics","Comp","All others",">60","51-69","Non-Learner","Female","Private"]
[null,"Fleet","Telematics","Non-Comp","Motor Cars","0-10","18","Learner","Female","Commercial"]
[null,"Fleet","Telematics","Non-Comp","Motor Cars","0-10","26-20","Non-Learner","Female","Private"]
[null,"Fleet","Telematics","Non-Comp","Motor Cars","11-20","20","Learner","Diverse","Commercial"]
[null,"Fleet","Telematics","Non-Comp","Motor Cars","11-20","22","Learner","Male","Commercial"]
[null,"Fleet","Telematics","Non-Comp","Motor Cars","11-20","Any Driver","Learner","Female","Private"]
[null,"Fleet","Telematics","Non-Comp","Motor Cars","21-30","20","Learner","Male","Commercial"]
[null,"Fleet","Telematics","Non-Comp","Motor Cars","21-30","31-50","Non-Learner","Diverse","Private"]
[null,"Fleet","Telematics","Non-Comp","Motor Cars","31-40","19","Non-Learner","Diverse","Commercial"]
[null,"Fleet","Telematics","Non-Comp","Motor Cars","31-40","25","Non-Learner","Diverse","Private"]
[null,"Fleet","Telematics","Non-Comp","Motor Cars","31-40","Any Driver","Learner","Female","Private"]
[null,"Fleet","Telematics","Non-Comp","Motor Cars","41-50","23","Non-Learner","Female","Private"]
[null,"Fleet","Telematics","Non-Comp","Motor Cars","51-60","17","Non-Learner","Male","Commercial"]
[null,"Fleet","Telematics","Non-Comp","Motor Cars","51-60","21","Non-Learner","Diverse","Commercial"]
[null,"Fleet","Telematics","Non-Comp","Motor Cars","51-60","31-50","Learner","Diverse","Commercial"]
[null,"Fleet","Telematics","Non-Comp","Motor Cars",">60","19","Non-Learner","Diverse","Commercial"]
[null,"Fleet","Telematics","Non-Comp","Motor Cars",">60","31-50","Non-Learner","Female","Private"]
[null,"Fleet","Telematics","Non-Comp","Light Commercial Vehicles","0-10","21","Learner","Diverse","Commercial"]
[null,"Fleet","Telematics","Non-Comp","Light Commercial Vehicles","0-10","25","Learner","Diverse","Private"]
[null,"Fleet","Telematics","Non-Comp","Light Commercial Vehicles","11-20","19","Learner","Diverse","Commercial"]
[null,"Fleet","Telematics","Non-Comp","Light Commercial Vehicles","11-20","21","Learner","Male","Commercial"]
[null,"Fleet","Telematics","Non-Comp","Light Commercial Vehicles","11-20","70 or over","Learner","Male","Commercial"]
[null,"Fleet","Telematics","Non-Comp","Light Commercial Vehicles","21-30","19","Learner","Male","Commercial"]
[null,"Fleet","Telematics","Non-Comp","Light Commercial Vehicles","21-30","70 or over","Non-Learner","Male","Private"]
[null,"Fleet","Telematics","Non-Comp","Light Commercial Vehicles","31-40","18","Non-Learner","Diverse","Private"]
[null,"Fleet","Telematics","Non-Comp","Light Commercial Vehicles","31-40","24","Non-Learner","Diverse","Private"]
[null,"Fleet","Telematics","Non-Comp","Light Commercial Vehicles","31-40","70 or over","Learner","Female","Private"]
[null,"Fleet","Telematics","Non-Comp","Light Commercial Vehicles","41-50","22","Non-Learner","Male","Commercial"]
[null,"Fleet","Telematics","Non-Comp","Light Commercial Vehicles","41-50","Any Driver","Non-Learner","Male","Commercial"]
[null,"Fleet","Telematics","Non-Comp","Light Commercial Vehicles","51-60","20","Non-Learner","Diverse","Commercial"]
[null,"Fleet","Telematics","Non-Comp","Light Commercial Vehicles","51-60","26-20","Learner","Diverse","Private"]
[null,"Fleet","Telematics","Non-Comp","Light Commercial Vehicles",">60","18","Non-Learner","Diverse","Commercial"]
[null,"Fleet","Telematics","Non-Comp","Light Commercial Vehicles",">60","26-20","Non-Learner","Female","Private"]
[null,"Fleet","Telematics","Non-Comp","Medium Commercial Vehicles","0-10","20","Learner","Diverse","Commercial"]
[null,"Fleet","Telematics","Non-Comp","Medium Commercial Vehicles","0-10","24","Learner","Female","Commercial"]
[null,"Fleet","Telematics","Non-Comp","Medium Commercial Vehicles","11-20","18","Learner","Diverse","Commercial"]
[null,"Fleet","Telematics","Non-Comp","Medium Commercial Vehicles","11-20","22","Non-Learner","Female","Commercial"]
[null,"Fleet","Telematics","Non-Comp","Medium Commercial Vehicles","11-20","51-69","Learner","Male","Private"]
[null,"Fleet","Telematics","Non-Comp","Medium Commercial Vehicles","21-30","18","Learner","Male","Commercial"]
[null,"Fleet","Telematics","Non-Comp","Medium Commercial Vehicles","21-30","51-69","Non-Learner","Male","Private"]
[null,"Fleet","Telematics","Non-Comp","Medium Commercial Vehicles","31-40","17","Non-Learner","Female","Commercial"]
[null,"Fleet","Telematics","Non-Comp","Medium Commercial Vehicles","31-40","23","Non-Learner","Diverse","Private"]
[null,"Fleet","Telematics","Non-Comp","Medium Commercial Vehicles","31-40","51-69","Learner","Female","Private"]
[null,"Fleet","Telematics","Non-Comp","Medium Commercial Vehicles","41-50","21","Non-Learner","Male","Private"]
[null,"Fleet","Telematics","Non-Comp","Medium Commercial Vehicles","41-50","26-20","Learner","Female","Private"]
[null,"Fleet","Telematics","Non-Comp","Medium Commercial Vehicles","51-60","19","Non-Learner","Diverse","Commercial"]
[null,"Fleet","Telematics","Non-Comp","Medium Commercial Vehicles","51-60","31-50","Non-Learner","Female","Private"]
[null,"Fleet","Telematics","Non-Comp","Medium Commercial Vehicles",">60","19","Learner","Diverse","Commercial"]
[null,"Fleet","Telematics","Non-Comp","Medium Commercial Vehicles",">60","25","Non-Learner","Female","Private"]
[null,"Fleet","Telematics","Non-Comp","Medium Commercial Vehicles",">60","Any Driver","Learner","Male","Private"]
[null,"Fleet","Telematics","Non-Comp","Heavy Commercial Vehicles","0-10","23","Learner","Female","Private"]
[null,"Fleet","Telematics","Non-Comp","Heavy Commercial Vehicles","11-20","17","Learner","Diverse","Commercial"]
[null,"Fleet","Telematics","Non-Comp","Heavy Commercial Vehicles","11-20","21","Non-Learner","Female","Commercial"]
[null,"Fleet","Telematics","Non-Comp","Heavy Commercial Vehicles","11-20","26-20","Non-Learner","Diverse","Commercial"]
[null,"Fleet","Telematics","Non-Comp","Heavy Commercial Vehicles","21-30","17","Learner","Male","Commercial"]
[null,"Fleet","Telematics","Non-Comp","Heavy Commercial Vehicles","21-30","31-50","Non-Learner","Male","Private"]
[null,"Fleet","Telematics","Non-Comp","Heavy Commercial Vehicles","21-30","Any Driver","Non-Learner","Female","Private"]
[null,"Fleet","Telematics","Non-Comp","Heavy Commercial Vehicles","31-40","25","Non-Learner","Male","Private"]
[null,"Fleet","Telematics","Non-Comp","Heavy Commercial Vehicles","31-40","31-50","Learner","Female","Private"]
[null,"Fleet","Telematics","Non-Comp","Heavy Commercial Vehicles","41-50","20","Non-Learner","Diverse","Commercial"]
[null,"Fleet","Telematics","Non-Comp","Heavy Commercial Vehicles","41-50","51-69","Non-Learner","Male","Commercial"]
[null,"Fleet","Telematics","Non-Comp","Heavy Commercial Vehicles","51-60","18","Non-Learner","Diverse","Commercial"]
[null,"Fleet","Telematics","Non-Comp","Heavy Commercial Vehicles","51-60","26-20","Non-Learner","Female","Private"]
[null,"Fleet","Telematics","Non-Comp","Heavy Commercial Vehicles",">60","18","Learner","Diverse","Private"]
[null,"Fleet","Telematics","Non-Comp","Heavy Commercial Vehicles",">60","24","Non-Learner","Female","Private"]
[null,"Fleet","Telematics","Non-Comp","Heavy Commercial Vehicles",">60","70 or over","Learner","Male","Private"]
[null,"Fleet","Telematics","Non-Comp","Buses, coaches etc","0-10","22","Learner","Male","Commercial"]
[null,"Fleet","Telematics","Non-Comp","Buses, coaches etc","0-10","Any Driver","Learner","Diverse","Commercial"]
[null,"Fleet","Telematics","Non-Comp","Buses, coaches etc","11-20","20","Non-Learner","Female","Commercial"]
[null,"Fleet","Telematics","Non-Comp","Buses, coaches etc","11-20","25","Non-Learner","Diverse","Private"]
[null,"Fleet","Telematics","Non-Comp","Buses, coaches etc","21-30","18","Non-Learner","Female","Commercial"]
[null,"Fleet","Telematics","Non-Comp","Buses, coaches etc","21-30","26-20","Non-Learner","Male","Private"]
[null,"Fleet","Telematics","Non-Comp","Buses, coaches etc","21-30","70 or over","Non-Learner","Male","Commercial"]
[null,"Fleet","Telematics","Non-Comp","Buses, coaches etc","31-40","24","Non-Learner","Male","Private"]
[null,"Fleet","Telematics","Non-Comp","Buses, coaches etc","31-40","26-20","Learner","Female","Private"]
[null,"Fleet","Telematics","Non-Comp","Buses, coaches etc","41-50","19","Non-Learner","Diverse","Commercial"]
[null,"Fleet","Telematics","Non-Comp","Buses, coaches etc","41-50","31-50","Non-Learner","Male","Private"]
[null,"Fleet","Telematics","Non-Comp","Buses, coaches etc","51-60","17","Non-Learner","Diverse","Commercial"]
[null,"Fleet","Telematics","Non-Comp","Buses, coaches etc","51-60","22","Learner","Female","Commercial"]
[null,"Fleet","Telematics","Non-Comp","Buses, coaches etc",">60","17","Learner","Female","Commercial"]
[null,"Fleet","Telematics","Non-Comp","Buses, coaches etc",">60","23","Non-Learner","Female","Private"]
[null,"Fleet","Telematics","Non-Comp","Buses, coaches etc",">60","51-69","Learner","Male","Private"]
[null,"Fleet","Telematics","Non-Comp","Taxis, private & public hire","0-10","21","Learner","Male","Private"]
[null,"Fleet","Telematics","Non-Comp","Taxis, private & public hire","0-10","70 or over","Learner","Diverse","Commercial"]
[null,"Fleet","Telematics","Non-Comp","Taxis, private & public hire","11-20","19","Non-Learner","Female","Commercial"]
[null,"Fleet","Telematics","Non-Comp","Taxis, private & public hire","11-20","24","Non-Learner","Female","Commercial"]
[null,"Fleet","Telematics","Non-Comp","Taxis, private & public hire","21-30","17","Non-Learner","Female","Commercial"]
[null,"Fleet","Telematics","Non-Comp","Taxis, private & public hire","21-30","25","Non-Learner","Male","Private"]
[null,"Fleet","Telematics","Non-Comp","Taxis, private & public hire","21-30","31-50","Learner","Female","Private"]
[null,"Fleet","Telematics","Non-Comp","Taxis, private & public hire","31-40","22","Non-Learner","Female","Private"]
[null,"Fleet","Telematics","Non-Comp","Taxis, private & public hire","31-40","25","Learner","Female","Private"]
[null,"Fleet","Telematics","Non-Comp","Taxis, private & public hire","41-50","21","Non-Learner","Male","Commercial"]
[null,"Fleet","Telematics","Non-Comp","Taxis, private & public hire","41-50","26-20","Learner","Diverse","Commercial"]
[null,"Fleet","Telematics","Non-Comp","Taxis, private & public hire","41-50","Any Driver","Non-Learner","Diverse","Commercial"]
[null,"Fleet","Telematics","Non-Comp","Taxis, private & public hire","51-60","21","Learner","Female","Commercial"]
[null,"Fleet","Telematics","Non-Comp","Taxis, private & public hire","51-60","Any Driver","Learner","Female","Private"]
[null,"Fleet","Telematics","Non-Comp","Taxis, private & public hire",">60","22","Non-Learner","Female","Private"]
[null,"Fleet","Telematics","Non-Comp","Taxis, private & public hire",">60","31-50","Learner","Male","Private"]
[null,"Fleet","Telematics","Non-Comp","Self-drive hire vehicles","0-10","19","Non-Learner","Diverse","Commercial"]
[null,"Fleet","Telematics","Non-Comp","Self-drive hire vehicles","0-10","25","Learner","Male","Private"]
[null,"Fleet","Telematics","Non-Comp","Self-drive hire vehicles","11-20","18","Non-Learner","Female","Commercial"]
[null,"Fleet","Telematics","Non-Comp","Self-drive hire vehicles","11-20","26-20","Non-Learner","Male","Private"]
[null,"Fleet","Telematics","Non-Comp","Self-drive hire vehicles","21-30","17","Non-Learner","Diverse","Private"]
[null,"Fleet","Telematics","Non-Comp","Self-drive hire vehicles","21-30","24","Non-Learner","Male","Private"]
[null,"Fleet","Telematics","Non-Comp","Self-drive hire vehicles","21-30","51-69","Non-Learner","Diverse","Private"]
[null,"Fleet","Telematics","Non-Comp","Self-drive hire vehicles","31-40","21","Non-Learner","Male","Commercial"]
[null,"Fleet","Telematics","Non-Comp","Self-drive hire vehicles","31-40","24","Learner","Female","Private"]
[null,"Fleet","Telematics","Non-Comp","Self-drive hire vehicles","41-50","20","Non-Learner","Male","Commercial"]
[null,"Fleet","Telematics","Non-Comp","Self-drive hire vehicles","41-50","25","Learner","Diverse","Private"]
[null,"Fleet","Telematics","Non-Comp","Self-drive hire vehicles","41-50","70 or over","Non-Learner","Diverse","Commercial"]
[null,"Fleet","Telematics","Non-Comp","Self-drive hire vehicles","51-60","20","Learner","Female","Commercial"]
[null,"Fleet","Telematics","Non-Comp","Self-drive hire vehicles","51-60","70 or over","Learner","Male","Commercial"]
[null,"Fleet","Telematics","Non-Comp","Self-drive hire vehicles",">60","18","Learner","Female","Commercial"]
[null,"Fleet","Telematics","Non-Comp","Self-drive hire vehicles",">60","26-20","Learner","Male","Private"]
[null,"Fleet","Telematics","Non-Comp","Tankers, hazardous","0-10","18","Non-Learner","Diverse","Private"]
[null,"Fleet","Telematics","Non-Comp","Tankers, hazardous","0-10","24","Learner","Male","Private"]
[null,"Fleet","Telematics","Non-Comp","Tankers, hazardous","11-20","17","Non-Learner","Female","Commercial"]
[null,"Fleet","Telematics","Non-Comp","Tankers, hazardous","11-20","25","Non-Learner","Male","Private"]
[null,"Fleet","Telematics","Non-Comp","Tankers, hazardous","11-20","Any Driver","Non-Learner","Female","Commercial"]
[null,"Fleet","Telematics","Non-Comp","Tankers, hazardous","21-30","23","Non-Learner","Male","Private"]
[null,"Fleet","Telematics","Non-Comp","Tankers, hazardous","21-30","31-50","Non-Learner","Diverse","Private"]
[null,"Fleet","Telematics","Non-Comp","Tankers, hazardous","31-40","20","Non-Learner","Male","Private"]
[null,"Fleet","Telematics","Non-Comp","Tankers, hazardous","31-40","23","Learner","Female","Private"]
[null,"Fleet","Telematics","Non-Comp","Tankers, hazardous","41-50","19","Non-Learner","Male","Commercial"]
[null,"Fleet","Telematics","Non-Comp","Tankers, hazardous","41-50","24","Learner","Female","Commercial"]
[null,"Fleet","Telematics","Non-Comp","Tankers, hazardous","51-60","17","Non-Learner","Male","Commercial"]
[null,"Fleet","Telematics","Non-Comp","Tankers, hazardous","51-60","19","Learner","Female","Commercial"]
[null,"Fleet","Telematics","Non-Comp","Tankers, hazardous","51-60","51-69","Learner","Male","Private"]
[null,"Fleet","Telematics","Non-Comp","Tankers, hazardous",">60","17","Learner","Female","Commercial"]
[null,"Fleet","Telematics","Non-Comp","Tankers, hazardous",">60","25","Learner","Male","Private"]
[null,"Fleet","Telematics","Non-Comp","Motor cycles","0-10","18","Non-Learner","Female","Commercial"]
[null,"Fleet","Telematics","Non-Comp","Motor cycles","0-10","25","Non-Learner","Diverse","Commercial"]
[null,"Fleet","Telematics","Non-Comp","Motor cycles","0-10","Any Driver","Non-Learner","Female","Commercial"]
[null,"Fleet","Telematics","Non-Comp","Motor cycles","11-20","21","Learner","Male","Commercial"]
[null,"Fleet","Telematics","Non-Comp","Motor cycles","11-20","70 or over","Non-Learner","Female","Private"]
[null,"Fleet","Telematics","Non-Comp","Motor cycles","21-30","22","Non-Learner","Male","Private"]
[null,"Fleet","Telematics","Non-Comp","Motor cycles","21-30","26-20","Non-Learner","Diverse","Private"]
[null,"Fleet","Telematics","Non-Comp","Motor cycles","31-40","19","Learner","Diverse","Commercial"]
[null,"Fleet","Telematics","Non-Comp","Motor cycles","31-40","24","Non-Learner","Diverse","Private"]
[null,"Fleet","Telematics","Non-Comp","Motor cycles","41-50","18","Non-Learner","Male","Commercial"]
[null,"Fleet","Telematics","Non-Comp","Motor cycles","41-50","23","Learner","Female","Private"]
[null,"Fleet","Telematics","Non-Comp","Motor cycles","41-50","Any Driver","Non-Learner","Male","Commercial"]
[null,"Fleet","Telematics","Non-Comp","Motor cycles","51-60","18","Learner","Female","Commercial"]
[null,"Fleet","Telematics","Non-Comp","Motor cycles","51-60","26-20","Learner","Male","Private"]
[null,"Fleet","Telematics","Non-Comp","Motor cycles",">60","21","Learner","Male","Commercial"]
[null,"Fleet","Telematics","Non-Comp","Motor cycles",">60","24","Learner","Male","Private"]
[null,"Fleet","Telematics","Non-Comp","Motor cycles",">60","51-69","Learner","Diverse","Private"]
[null,"Fleet","Telematics","Non-Comp","Motor Trade Road Risks","0-10","24","Non-Learner","Diverse","Private"]
[null,"Fleet","Telematics","Non-Comp","Motor Trade Road Risks","0-10","70 or over","Non-Learner","Female","Commercial"]
[null,"Fleet","Telematics","Non-Comp","Motor Trade Road Risks","11-20","20","Learner","Male","Commercial"]
[null,"Fleet","Telematics","Non-Comp","Motor Trade Road Risks","11-20","51-69","Non-Learner","Male","Commercial"]
[null,"Fleet","Telematics","Non-Comp","Motor Trade Road Risks","21-30","21","Non-Learner","Male","Private"]
[null,"Fleet","Telematics","Non-Comp","Motor Trade Road Risks","21-30","25","Non-Learner","Diverse","Private"]
[null,"Fleet","Telematics","Non-Comp","Motor Trade Road Risks","31-40","18","Learner","Diverse","Private"]
[null,"Fleet","Telematics","Non-Comp","Motor Trade Road Risks","31-40","23","Non-Learner","Diverse","Private"]
[null,"Fleet","Telematics","Non-Comp","Motor Trade Road Risks","41-50","17","Non-Learner","Male","Commercial"]
[null,"Fleet","Telematics","Non-Comp","Motor Trade Road Risks","41-50","22","Learner","Male","Commercial"]
[null,"Fleet","Telematics","Non-Comp","Motor Trade Road Risks","41-50","70 or over","Non-Learner","Male","Commercial"]
[null,"Fleet","Telematics","Non-Comp","Motor Trade Road Risks","51-60","17","Learner","Female","Commercial"]
[null,"Fleet","Telematics","Non-Comp","Motor Trade Road Risks","51-60","31-50","Non-Learner","Female","Private"]
[null,"Fleet","Telematics","Non-Comp","Motor Trade Road Risks",">60","20","Learner","Male","Private"]
[null,"Fleet","Telematics","Non-Comp","Motor Trade Road Risks",">60","23","Learner","Male","Private"]
[null,"Fleet","Telematics","Non-Comp","Motor Trade Road Risks",">60","31-50","Learner","Diverse","Private"]
[null,"Fleet","Telematics","Non-Comp","All others","0-10","23","Non-Learner","Female","Commercial"]
[null,"Fleet","Telematics","Non-Comp","All others","0-10","51-69","Non-Learner","Female","Commercial"]
[null,"Fleet","Telematics","Non-Comp","All others","11-20","19","Learner","Male","Commercial"]
[null,"Fleet","Telematics","Non-Comp","All others","11-20","31-50","Non-Learner","Male","Private"]
[null,"Fleet","Telematics","Non-Comp","All others","21-30","17","Learner","Male","Commercial"]
[null,"Fleet","Telematics","Non-Comp","All others","21-30","24","Non-Learner","Diverse","Private"]
[null,"Fleet","Telematics","Non-Comp","All others","31-40","17","Learner","Female","Commercial"]
[null,"Fleet","Telematics","Non-Comp","All others","31-40","22","Non-Learner","Diverse","Private"]
[null,"Fleet","Telematics","Non-Comp","All others","31-40","Any Driver","Non-Learner","Male","Commercial"]
[null,"Fleet","Telematics","Non-Comp","All others","41-50","18","Learner","Female","Commercial"]
[null,"Fleet","Telematics","Non-Comp","All others","41-50","23","Learner","Female","Private"]
[null,"Fleet","Telematics","Non-Comp","All others","41-50","Any Driver","Learner","Female","Commercial"]
[null,"Fleet","Telematics","Non-Comp","All others","51-60","26-20","Non-Learner","Female","Private"]
[null,"Fleet","Telematics","Non-Comp","All others",">60","18","Non-Learner","Diverse","Commercial"]
[null,"Fleet","Telematics","Non-Comp","All others",">60","22","Learner","Male","Private"]
[null,"Fleet","Telematics","Non-Comp","All others",">60","26-20","Learner","Diverse","Private"]
[null,"Fleet","Non-Telematics","Comp","Motor Cars","0-10","22","Non-Learner","Female","Private"]
[null,"Fleet","Non-Telematics","Comp","Motor Cars","0-10","24","Learner","Diverse","Private"]
[null,"Fleet","Non-Telematics","Comp","Motor Cars","11-20","18","Learner","Male","Commercial"]
[null,"Fleet","Non-Telematics","Comp","Motor Cars","11-20","26-20","Learner","Diverse","Commercial"]
[null,"Fleet","Non-Telematics","Comp","Motor Cars","11-20","Any Driver","Learner","Male","Commercial"]
[null,"Fleet","Non-Telematics","Comp","Motor Cars","21-30","23","Non-Learner","Diverse","Private"]
[null,"Fleet","Non-Telematics","Comp","Motor Cars","21-30","25","Non-Learner","Male","Private"]
[null,"Fleet","Non-Telematics","Comp","Motor Cars","31-40","18","Learner","Diverse","Private"]
[null,"Fleet","Non-Telematics","Comp","Motor Cars","31-40","70 or over","Non-Learner","Male","Commercial"]
[null,"Fleet","Non-Telematics","Comp","Motor Cars","41-50","19","Non-Learner","Diverse","Commercial"]
[null,"Fleet","Non-Telematics","Comp","Motor Cars","41-50","22","Learner","Male","Commercial"]
[null,"Fleet","Non-Telematics","Comp","Motor Cars","41-50","70 or over","Learner","Female","Commercial"]
[null,"Fleet","Non-Telematics","Comp","Motor Cars","51-60","25","Non-Learner","Female","Private"]
[null,"Fleet","Non-Telematics","Comp","Motor Cars",">60","17","Non-Learner","Diverse","Private"]
[null,"Fleet","Non-Telematics","Comp","Motor Cars",">60","23","Non-Learner","Female","Private"]
[null,"Fleet","Non-Telematics","Comp","Motor Cars",">60","25","Learner","Diverse","Private"]
[null,"Fleet","Non-Telematics","Comp","Light Commercial Vehicles","0-10","21","Non-Learner","Male","Commercial"]
[null,"Fleet","Non-Telematics","Comp","Light Commercial Vehicles","0-10","23","Learner","Diverse","Private"]
[null,"Fleet","Non-Telematics","Comp","Light Commercial Vehicles","11-20","17","Learner","Male","Commercial"]
[null,"Fleet","Non-Telematics","Comp","Light Commercial Vehicles","11-20","25","Learner","Diverse","Private"]
[null,"Fleet","Non-Telematics","Comp","Light Commercial Vehicles","11-20","70 or over","Learner","Male","Commercial"]
[null,"Fleet","Non-Telematics","Comp","Light Commercial Vehicles","21-30","22","Non-Learner","Diverse","Private"]
[null,"Fleet","Non-Telematics","Comp","Light Commercial Vehicles","21-30","31-50","Learner","Female","Private"]
[null,"Fleet","Non-Telematics","Comp","Light Commercial Vehicles","31-40","17","Learner","Female","Commercial"]
[null,"Fleet","Non-Telematics","Comp","Light Commercial Vehicles","31-40","22","Non-Learner","Male","Private"]
[null,"Fleet","Non-Telematics","Comp","Light Commercial Vehicles","41-50","18","Non-Learner","Diverse","Commercial"]
[null,"Fleet","Non-Telematics","Comp","Light Commercial Vehicles","41-50","21","Learner","Male","Private"]
[null,"Fleet","Non-Telematics","Comp","Light Commercial Vehicles","41-50","51-69","Learner","Female","Commercial"]
[null,"Fleet","Non-Telematics","Comp","Light Commercial Vehicles","51-60","24","Non-Learner","Female","Private"]
[null,"Fleet","Non-Telematics","Comp","Light Commercial Vehicles","51-60","Any Driver","Non-Learner","Female","Commercial"]
[null,"Fleet","Non-Telematics","Comp","Light Commercial Vehicles",">60","22","Non-Learner","Female","Private"]
[null,"Fleet","Non-Telematics","Comp","Light Commercial Vehicles",">60","24","Learner","Diverse","Private"]
[null,"Fleet","Non-Telematics","Comp","Medium Commercial Vehicles","0-10","20","Non-Learner","Male","Private"]
[null,"Fleet","Non-Telematics","Comp","Medium Commercial Vehicles","0-10","22","Learner","Diverse","Private"]
[null,"Fleet","Non-Telematics","Comp","Medium Commercial Vehicles","0-10","Any Driver","Learner","Male","Commercial"]
[null,"Fleet","Non-Telematics","Comp","Medium Commercial Vehicles","11-20","20","Learner","Diverse","Commercial"]
[null,"Fleet","Non-Telematics","Comp","Medium Commercial Vehicles","11-20","26-20","Learner","Diverse","Commercial"]
[null,"Fleet","Non-Telematics","Comp","Medium Commercial Vehicles","21-30","21","Non-Learner","Diverse","Private"]
[null,"Fleet","Non-Telematics","Comp","Medium Commercial Vehicles","21-30","26-20","Learner","Female","Private"]
[null,"Fleet","Non-Telematics","Comp","Medium Commercial Vehicles","21-30","Any Driver","Learner","Female","Private"]
[null,"Fleet","Non-Telematics","Comp","Medium Commercial Vehicles","31-40","21","Non-Learner","Male","Private"]
[null,"Fleet","Non-Telematics","Comp","Medium Commercial Vehicles","41-50","17","Non-Learner","Diverse","Commercial"]
[null,"Fleet","Non-Telematics","Comp","Medium Commercial Vehicles","41-50","19","Non-Learner","Diverse","Commercial"]
[null,"Fleet","Non-Telematics","Comp","Medium Commercial Vehicles","41-50","70 or over","Non-Learner","Diverse","Commercial"]
[null,"Fleet","Non-Telematics","Comp","Medium Commercial Vehicles","51-60","23","Non-Learner","Female","Private"]
[null,"Fleet","Non-Telematics","Comp","Medium Commercial Vehicles","51-60","70 or over","Non-Learner","Female","Private"]
[null,"Fleet","Non-Telematics","Comp","Medium Commercial Vehicles",">60","21","Non-Learner","Female","Private"]
[null,"Fleet","Non-Telematics","Comp","Medium Commercial Vehicles",">60","23","Learner","Diverse","Private"]
[null,"Fleet","Non-Telematics","Comp","Heavy Commercial Vehicles","0-10","19","Non-Learner","Female","Commercial"]
[null,"Fleet","Non-Telematics","Comp","Heavy Commercial Vehicles","0-10","21","Non-Learner","Male","Commercial"]
[null,"Fleet","Non-Telematics","Comp","Heavy Commercial Vehicles","0-10","70 or over","Learner","Male","Commercial"]
[null,"Fleet","Non-Telematics","Comp","Heavy Commercial Vehicles","11-20","19","Learner","Diverse","Commercial"]
[null,"Fleet","Non-Telematics","Comp","Heavy Commercial Vehicles","11-20","25","Learner","Diverse","Private"]
[null,"Fleet","Non-Telematics","Comp","Heavy Commercial Vehicles","21-30","20","Non-Learner","Diverse","Private"]
[null,"Fleet","Non-Telematics","Comp","Heavy Commercial Vehicles","21-30","25","Learner","Female","Private"]
[null,"Fleet","Non-Telematics","Comp","Heavy Commercial Vehicles","21-30","70 or over","Learner","Male","Commercial"]
[null,"Fleet","Non-Telematics","Comp","Heavy Commercial Vehicles","31-40","23","Learner","Female","Private"]
[null,"Fleet","Non-Telematics","Comp","Heavy Commercial Vehicles","31-40","Any Driver","Non-Learner","Diverse","Commercial"]
[null,"Fleet","Non-Telematics","Comp","Heavy Commercial Vehicles","41-50","18","Non-Learner","Diverse","Private"]
[null,"Fleet","Non-Telematics","Comp","Heavy Commercial Vehicles","41-50","51-69","Non-Learner","Diverse","Commercial"]
[null,"Fleet","Non-Telematics","Comp","Heavy Commercial Vehicles","41-50","Any Driver","Non-Learner","Male","Commercial"]
[null,"Fleet","Non-Telematics","Comp","Heavy Commercial Vehicles","51-60","51-69","Non-Learner","Male","Commercial"]
[null,"Fleet","Non-Telematics","Comp","Heavy Commercial Vehicles",">60","20","Non-Learner","Female","Private"]
[null,"Fleet","Non-Telematics","Comp","Heavy Commercial Vehicles",">60","22","Learner","Diverse","Private"]
[null,"Fleet","Non-Telematics","Comp","Buses, coaches etc","0-10","18","Non-Learner","Female","Commercial"]
[null,"Fleet","Non-Telematics","Comp","Buses, coaches etc","0-10","20","Non-Learner","Male","Private"]
[null,"Fleet","Non-Telematics","Comp","Buses, coaches etc","0-10","51-69","Learner","Male","Commercial"]
[null,"Fleet","Non-Telematics","Comp","Buses, coaches etc","11-20","18","Learner","Diverse","Commercial"]
[null,"Fleet","Non-Telematics","Comp","Buses, coaches etc","11-20","24","Learner","Female","Commercial"]
[null,"Fleet","Non-Telematics","Comp","Buses, coaches etc","11-20","Any Driver","Learner","Diverse","Commercial"]
[null,"Fleet","Non-Telematics","Comp","Buses, coaches etc","21-30","24","Learner","Female","Private"]
[null,"Fleet","Non-Telematics","Comp","Buses, coaches etc","21-30","51-69","Learner","Male","Private"]
[null,"Fleet","Non-Telematics","Comp","Buses, coaches etc","31-40","22","Learner","Female","Private"]
[null,"Fleet","Non-Telematics","Comp","Buses, coaches etc","31-40","70 or over","Non-Learner","Diverse","Commercial"]
[null,"Fleet","Non-Telematics","Comp","Buses, coaches etc","41-50","17","Non-Learner","Female","Commercial"]
[null,"Fleet","Non-Telematics","Comp","Buses, coaches etc","41-50","31-50","Non-Learner","Diverse","Commercial"]
[null,"Fleet","Non-Telematics","Comp","Buses, coaches etc","41-50","70 or over","Non-Learner","Male","Commercial"]
[null,"Fleet","Non-Telematics","Comp","Buses, coaches etc","51-60","26-20","Learner","Male","Private"]
[null,"Fleet","Non-Telematics","Comp","Buses, coaches etc","51-60","70 or over","Non-Learner","Female","Private"]
[null,"Fleet","Non-Telematics","Comp","Buses, coaches etc",">60","21","Learner","Diverse","Private"]
[null,"Fleet","Non-Telematics","Comp","Taxis, private & public hire","0-10","17","Non-Learner","Female","Commercial"]
[null,"Fleet","Non-Telematics","Comp","Taxis, private & public hire","0-10","19","Learner","Diverse","Commercial"]
[null,"Fleet","Non-Telematics","Comp","Taxis, private & public hire","0-10","31-50","Learner","Male","Commercial"]
[null,"Fleet","Non-Telematics","Comp","Taxis, private & public hire","11-20","17","Learner","Diverse","Commercial"]
[null,"Fleet","Non-Telematics","Comp","Taxis, private & public hire","11-20","23","Learner","Female","Private"]
[null,"Fleet","Non-Telematics","Comp","Taxis, private & public hire","11-20","70 or over","Learner","Diverse","Commercial"]
[null,"Fleet","Non-Telematics","Comp","Taxis, private & public hire","21-30","23","Learner","Female","Private"]
[null,"Fleet","Non-Telematics","Comp","Taxis, private & public hire","21-30","26-20","Non-Learner","Diverse","Commercial"]
[null,"Fleet","Non-Telematics","Comp","Taxis, private & public hire","31-40","21","Learner","Female","Private"]
[null,"Fleet","Non-Telematics","Comp","Taxis, private & public hire","31-40","51-69","Non-Learner","Diverse","Commercial"]
[null,"Fleet","Non-Telematics","Comp","Taxis, private & public hire","41-50","19","Learner","Female","Commercial"]
[null,"Fleet","Non-Telematics","Comp","Taxis, private & public hire","41-50","24","Non-Learner","Diverse","Private"]
[null,"Fleet","Non-Telematics","Comp","Taxis, private & public hire","41-50","51-69","Non-Learner","Male","Commercial"]
[null,"Fleet","Non-Telematics","Comp","Taxis, private & public hire","51-60","25","Learner","Male","Private"]
[null,"Fleet","Non-Telematics","Comp","Taxis, private & public hire","51-60","51-69","Non-Learner","Male","Commercial"]
[null,"Fleet","Non-Telematics","Comp","Taxis, private & public hire",">60","20","Learner","Diverse","Private"]
[null,"Fleet","Non-Telematics","Comp","Taxis, private & public hire",">60","24","Non-Learner","Female","Private"]
[null,"Fleet","Non-Telematics","Comp","Self-drive hire vehicles","0-10","18","Learner","Diverse","Private"]
[null,"Fleet","Non-Telematics","Comp","Self-drive hire vehicles","0-10","51-69","Non-Learner","Female","Commercial"]
[null,"Fleet","Non-Telematics","Comp","Self-drive hire vehicles","0-10","Any Driver","Learner","Diverse","Commercial"]
[null,"Fleet","Non-Telematics","Comp","Self-drive hire vehicles","11-20","22","Learner","Male","Commercial"]
[null,"Fleet","Non-Telematics","Comp","Self-drive hire vehicles","11-20","51-69","Learner","Diverse","Commercial"]
[null,"Fleet","Non-Telematics","Comp","Self-drive hire vehicles","21-30","22","Learner","Female","Private"]
[null,"Fleet","Non-Telematics","Comp","Self-drive hire vehicles","21-30","70 or over","Learner","Female","Private"]
[null,"Fleet","Non-Telematics","Comp","Self-drive hire vehicles","31-40","20","Learner","Female","Private"]
[null,"Fleet","Non-Telematics","Comp","Self-drive hire vehicles","31-40","31-50","Non-Learner","Diverse","Commercial"]
[null,"Fleet","Non-Telematics","Comp","Self-drive hire vehicles","41-50","18","Learner","Female","Commercial"]
[null,"Fleet","Non-Telematics","Comp","Self-drive hire vehicles","41-50","23","Non-Learner","Female","Commercial"]
[null,"Fleet","Non-Telematics","Comp","Self-drive hire vehicles","41-50","31-50","Non-Learner","Male","Commercial"]
[null,"Fleet","Non-Telematics","Comp","Self-drive hire vehicles","51-60","24","Learner","Male","Private"]
[null,"Fleet","Non-Telematics","Comp","Self-drive hire vehicles","51-60","31-50","Non-Learner","Male","Private"]
[null,"Fleet","Non-Telematics","Comp","Self-drive hire vehicles",">60","22","Learner","Male","Private"]
[null,"Fleet","Non-Telematics","Comp","Self-drive hire vehicles",">60","23","Non-Learner","Female","Private"]
[null,"Fleet","Non-Telematics","Comp","Tankers, hazardous","0-10","17","Learner","Female","Commercial"]
[null,"Fleet","Non-Telematics","Comp","Tankers, hazardous","0-10","21","Non-Learner","Female","Private"]
[null,"Fleet","Non-Telematics","Comp","Tankers, hazardous","0-10","70 or over","Learner","Diverse","Commercial"]
[null,"Fleet","Non-Telematics","Comp","Tankers, hazardous","11-20","21","Learner","Male","Private"]
[null,"Fleet","Non-Telematics","Comp","Tankers, hazardous","11-20","31-50","Learner","Diverse","Commercial"]
[null,"Fleet","Non-Telematics","Comp","Tankers, hazardous","21-30","21","Learner","Female","Private"]
[null,"Fleet","Non-Telematics","Comp","Tankers, hazardous","21-30","25","Non-Learner","Male","Private"]
[null,"Fleet","Non-Telematics","Comp","Tankers, hazardous","31-40","18","Non-Learner","Diverse","Commercial"]
[null,"Fleet","Non-Telematics","Comp","Tankers, hazardous","31-40","26-20","Non-Learner","Diverse","Commercial"]
[null,"Fleet","Non-Telematics","Comp","Tankers, hazardous","41-50","17","Learner","Female","Commercial"]
[null,"Fleet","Non-Telematics","Comp","Tankers, hazardous","41-50","22","Non-Learner","Female","Private"]
[null,"Fleet","Non-Telematics","Comp","Tankers, hazardous","41-50","70 or over","Learner","Female","Commercial"]
[null,"Fleet","Non-Telematics","Comp","Tankers, hazardous","51-60","23","Learner","Male","Private"]
[null,"Fleet","Non-Telematics","Comp","Tankers, hazardous","51-60","26-20","Learner","Diverse","Commercial"]
[null,"Fleet","Non-Telematics","Comp","Tankers, hazardous",">60","21","Learner","Male","Private"]
[null,"Fleet","Non-Telematics","Comp","Tankers, hazardous",">60","22","Non-Learner","Female","Private"]
[null,"Fleet","Non-Telematics","Comp","Tankers, hazardous",">60","Any Driver","Learner","Female","Private"]
[null,"Fleet","Non-Telematics","Comp","Motor cycles","0-10","20","Non-Learner","Female","Private"]
[null,"Fleet","Non-Telematics","Comp","Motor cycles","0-10","51-69","Learner","Diverse","Commercial"]
[null,"Fleet","Non-Telematics","Comp","Motor cycles","11-20","18","Non-Learner","Female","Commercial"]
[null,"Fleet","Non-Telematics","Comp","Motor cycles","11-20","51-69","Learner","Male","Commercial"]
[null,"Fleet","Non-Telematics","Comp","Motor cycles","21-30","20","Learner","Female","Private"]
[null,"Fleet","Non-Telematics","Comp","Motor cycles","21-30","24","Non-Learner","Male","Private"]
[null,"Fleet","Non-Telematics","Comp","Motor cycles","31-40","17","Non-Learner","Diverse","Private"]
[null,"Fleet","Non-Telematics","Comp","Motor cycles","31-40","25","Non-Learner","Diverse","Commercial"]
[null,"Fleet","Non-Telematics","Comp","Motor cycles","31-40","Any Driver","Learner","Female","Commercial"]
[null,"Fleet","Non-Telematics","Comp","Motor cycles","41-50","21","Non-Learner","Male","Commercial"]
[null,"Fleet","Non-Telematics","Comp","Motor cycles","41-50","51-69","Learner","Female","Commercial"]
[null,"Fleet","Non-Telematics","Comp","Motor cycles","51-60","22","Learner","Male","Private"]
[null,"Fleet","Non-Telematics","Comp","Motor cycles","51-60","25","Learner","Diverse","Private"]
[null,"Fleet","Non-Telematics","Comp","Motor cycles",">60","20","Learner","Male","Private"]
[null,"Fleet","Non-Telematics","Comp","Motor cycles",">60","21","Non-Learner","Female","Private"]
[null,"Fleet","Non-Telematics","Comp","Motor Trade Road Risks","0-10","18","Learner","Diverse","Commercial"]
[null,"Fleet","Non-Telematics","Comp","Motor Trade Road Risks","0-10","19","Non-Learner","Female","Private"]
[null,"Fleet","Non-Telematics","Comp","Motor Trade Road Risks","0-10","31-50","Learner","Diverse","Commercial"]
[null,"Fleet","Non-Telematics","Comp","Motor Trade Road Risks","11-20","17","Non-Learner","Female","Commercial"]
[null,"Fleet","Non-Telematics","Comp","Motor Trade Road Risks","11-20","31-50","Learner","Male","Private"]
[null,"Fleet","Non-Telematics","Comp","Motor Trade Road Risks","21-30","19","Learner","Female","Private"]
[null,"Fleet","Non-Telematics","Comp","Motor Trade Road Risks","21-30","23","Non-Learner","Male","Private"]
[null,"Fleet","Non-Telematics","Comp","Motor Trade Road Risks","21-30","Any Driver","Non-Learner","Female","Commercial"]
[null,"Fleet","Non-Telematics","Comp","Motor Trade Road Risks","31-40","21","Non-Learner","Male","Private"]
[null,"Fleet","Non-Telematics","Comp","Motor Trade Road Risks","31-40","70 or over","Learner","Female","Commercial"]
[null,"Fleet","Non-Telematics","Comp","Motor Trade Road Risks","41-50","20","Non-Learner","Male","Private"]
[null,"Fleet","Non-Telematics","Comp","Motor Trade Road Risks","41-50","31-50","Learner","Female","Commercial"]
[null,"Fleet","Non-Telematics","Comp","Motor Trade Road Risks","51-60","21","Learner","Male","Private"]
[null,"Fleet","Non-Telematics","Comp","Motor Trade Road Risks","51-60","31-50","Non-Learner","Male","Commercial"]
[null,"Fleet","Non-Telematics","Comp","Motor Trade Road Risks",">60","19","Learner","Male","Private"]
[null,"Fleet","Non-Telematics","Comp","Motor Trade Road Risks",">60","20","Non-Learner","Female","Private"]
[null,"Fleet","Non-Telematics","Comp","All others","0-10","17","Learner","Male","Commercial"]
[null,"Fleet","Non-Telematics","Comp","All others","0-10","22","Learner","Female","Private"]
[null,"Fleet","Non-Telematics","Comp","All others","0-10","26-20","Learner","Diverse","Commercial"]
[null,"Fleet","Non-Telematics","Comp","All others","0-10","Any Driver","Non-Learner","Female","Commercial"]
[null,"Fleet","Non-Telematics","Comp","All others","11-20","25","Non-Learner","Diverse","Commercial"]
[null,"Fleet","Non-Telematics","Comp","All others","11-20","51-69","Non-Learner","Female","Commercial"]
[null,"Fleet","Non-Telematics","Comp","All others","21-30","22","Non-Learner","Male","Private"]
[null,"Fleet","Non-Telematics","Comp","All others","21-30","70 or over","Non-Learner","Female","Private"]
[null,"Fleet","Non-Telematics","Comp","All others","31-40","20","Non-Learner","Male","Private"]
[null,"Fleet","Non-Telematics","Comp","All others","31-40","51-69","Learner","Female","Commercial"]
[null,"Fleet","Non-Telematics","Comp","All others","41-50","19","Learner","Diverse","Commercial"]
[null,"Fleet","Non-Telematics","Comp","All others","41-50","26-20","Learner","Female","Commercial"]
[null,"Fleet","Non-Telematics","Comp","All others","51-60","20","Learner","Male","Private"]
[null,"Fleet","Non-Telematics","Comp","All others","51-60","24","Learner","Diverse","Private"]
[null,"Fleet","Non-Telematics","Comp","All others",">60","17","Learner","Diverse","Private"]
[null,"Fleet","Non-Telematics","Comp","All others",">60","19","Non-Learner","Female","Private"]
[null,"Fleet","Non-Telematics","Comp","All others",">60","Any Driver","Learner","Male","Commercial"]
[null,"Fleet","Non-Telematics","Non-Comp","Motor Cars","0-10","21","Learner","Male","Commercial"]
[null,"Fleet","Non-Telematics","Non-Comp","Motor Cars","0-10","51-69","Learner","Male","Commercial"]
[null,"Fleet","Non-Telematics","Non-Comp","Motor Cars","0-10","70 or over","Non-Learner","Female","Commercial"]
[null,"Fleet","Non-Telematics","Non-Comp","Motor Cars","11-20","24","Non-Learner","Diverse","Private"]
[null,"Fleet","Non-Telematics","Non-Comp","Motor Cars","11-20","31-50","Non-Learner","Female","Commercial"]
[null,"Fleet","Non-Telematics","Non-Comp","Motor Cars","21-30","21","Non-Learner","Male","Private"]
[null,"Fleet","Non-Telematics","Non-Comp","Motor Cars","21-30","51-69","Non-Learner","Male","Commercial"]
[null,"Fleet","Non-Telematics","Non-Comp","Motor Cars","31-40","19","Non-Learner","Male","Private"]
[null,"Fleet","Non-Telematics","Non-Comp","Motor Cars","31-40","31-50","Learner","Female","Commercial"]
[null,"Fleet","Non-Telematics","Non-Comp","Motor Cars","41-50","21","Non-Learner","Female","Private"]
[null,"Fleet","Non-Telematics","Non-Comp","Motor Cars","41-50","25","Learner","Female","Commercial"]
[null,"Fleet","Non-Telematics","Non-Comp","Motor Cars","51-60","19","Learner","Male","Private"]
[null,"Fleet","Non-Telematics","Non-Comp","Motor Cars","51-60","23","Learner","Diverse","Private"]
[null,"Fleet","Non-Telematics","Non-Comp","Motor Cars","51-60","Any Driver","Learner","Female","Commercial"]
[null,"Fleet","Non-Telematics","Non-Comp","Motor Cars",">60","21","Learner","Diverse","Private"]
[null,"Fleet","Non-Telematics","Non-Comp","Motor Cars",">60","70 or over","Learner","Male","Commercial"]
[null,"Fleet","Non-Telematics","Non-Comp","Light Commercial Vehicles","0-10","20","Learner","Male","Private"]
[null,"Fleet","Non-Telematics","Non-Comp","Light Commercial Vehicles","0-10","31-50","Learner","Male","Commercial"]
[null,"Fleet","Non-Telematics","Non-Comp","Light Commercial Vehicles","0-10","51-69","Non-Learner","Female","Commercial"]
[null,"Fleet","Non-Telematics","Non-Comp","Light Commercial Vehicles","11-20","23","Non-Learner","Female","Commercial"]
[null,"Fleet","Non-Telematics","Non-Comp","Light Commercial Vehicles","11-20","26-20","Non-Learner","Female","Commercial"]
[null,"Fleet","Non-Telematics","Non-Comp","Light Commercial Vehicles","21-30","20","Non-Learner","Male","Private"]
[null,"Fleet","Non-Telematics","Non-Comp","Light Commercial Vehicles","21-30","24","Non-Learner","Diverse","Private"]
[null,"Fleet","Non-Telematics","Non-Comp","Light Commercial Vehicles","31-40","18","Non-Learner","Male","Private"]
[null,"Fleet","Non-Telematics","Non-Comp","Light Commercial Vehicles","31-40","26-20","Learner","Female","Commercial"]
[null,"Fleet","Non-Telematics","Non-Comp","Light Commercial Vehicles","31-40","Any Driver","Non-Learner","Male","Commercial"]
[null,"Fleet","Non-Telematics","Non-Comp","Light Commercial Vehicles","41-50","25","Learner","Diverse","Commercial"]
[null,"Fleet","Non-Telematics","Non-Comp","Light Commercial Vehicles","51-60","18","Learner","Male","Private"]
[null,"Fleet","Non-Telematics","Non-Comp","Light Commercial Vehicles","51-60","22","Learner","Diverse","Private"]
[null,"Fleet","Non-Telematics","Non-Comp","Light Commercial Vehicles","51-60","70 or over","Learner","Female","Private"]
[null,"Fleet","Non-Telematics","Non-Comp","Light Commercial Vehicles",">60","20","Learner","Diverse","Private"]
[null,"Fleet","Non-Telematics","Non-Comp","Light Commercial Vehicles",">60","51-69","Learner","Male","Commercial"]
[null,"Fleet","Non-Telematics","Non-Comp","Medium Commercial Vehicles","0-10","18","Non-Learner","Diverse","Commercial"]
[null,"Fleet","Non-Telematics","Non-Comp","Medium Commercial Vehicles","0-10","26-20","Learner","Male","Commercial"]
[null,"Fleet","Non-Telematics","Non-Comp","Medium Commercial Vehicles","0-10","31-50","Non-Learner","Female","Commercial"]
[null,"Fleet","Non-Telematics","Non-Comp","Medium Commercial Vehicles","11-20","20","Learner","Male","Private"]
[null,"Fleet","Non-Telematics","Non-Comp","Medium Commercial Vehicles","11-20","25","Non-Learner","Female","Commercial"]
[null,"Fleet","Non-Telematics","Non-Comp","Medium Commercial Vehicles","21-30","19","Non-Learner","Male","Private"]
[null,"Fleet","Non-Telematics","Non-Comp","Medium Commercial Vehicles","21-30","23","Non-Learner","Diverse","Private"]
[null,"Fleet","Non-Telematics","Non-Comp","Medium Commercial Vehicles","31-40","20","Non-Learner","Male","Commercial"]
[null,"Fleet","Non-Telematics","Non-Comp","Medium Commercial Vehicles","31-40","25","Learner","Female","Commercial"]
[null,"Fleet","Non-Telematics","Non-Comp","Medium Commercial Vehicles","31-40","70 or over","Non-Learner","Male","Commercial"]
[null,"Fleet","Non-Telematics","Non-Comp","Medium Commercial Vehicles","41-50","24","Learner","Diverse","Private"]
[null,"Fleet","Non-Telematics","Non-Comp","Medium Commercial Vehicles","41-50","31-50","Non-Learner","Male","Commercial"]
[null,"Fleet","Non-Telematics","Non-Comp","Medium Commercial Vehicles","51-60","21","Learner","Diverse","Private"]
[null,"Fleet","Non-Telematics","Non-Comp","Medium Commercial Vehicles","51-60","51-69","Learner","Male","Commercial"]
[null,"Fleet","Non-Telematics","Non-Comp","Medium Commercial Vehicles",">60","19","Learner","Diverse","Private"]
[null,"Fleet","Non-Telematics","Non-Comp","Medium Commercial Vehicles",">60","31-50","Learner","Male","Commercial"]
[null,"Fleet","Non-Telematics","Non-Comp","Heavy Commercial Vehicles","0-10","17","Non-Learner","Diverse","Private"]
[null,"Fleet","Non-Telematics","Non-Comp","Heavy Commercial Vehicles","0-10","25","Learner","Male","Commercial"]
[null,"Fleet","Non-Telematics","Non-Comp","Heavy Commercial Vehicles","0-10","26-20","Non-Learner","Female","Commercial"]
[null,"Fleet","Non-Telematics","Non-Comp","Heavy Commercial Vehicles","11-20","18","Non-Learner","Diverse","Commercial"]
[null,"Fleet","Non-Telematics","Non-Comp","Heavy Commercial Vehicles","11-20","24","Non-Learner","Female","Commercial"]
[null,"Fleet","Non-Telematics","Non-Comp","Heavy Commercial Vehicles","21-30","18","Non-Learner","Male","Private"]
[null,"Fleet","Non-Telematics","Non-Comp","Heavy Commercial Vehicles","21-30","22","Non-Learner","Diverse","Private"]
[null,"Fleet","Non-Telematics","Non-Comp","Heavy Commercial Vehicles","31-40","19","Non-Learner","Male","Private"]
[null,"Fleet","Non-Telematics","Non-Comp","Heavy Commercial Vehicles","31-40","20","Non-Learner","Diverse","Private"]
[null,"Fleet","Non-Telematics","Non-Comp","Heavy Commercial Vehicles","31-40","51-69","Non-Learner","Male","Commercial"]
[null,"Fleet","Non-Telematics","Non-Comp","Heavy Commercial Vehicles","41-50","23","Learner","Female","Commercial"]
[null,"Fleet","Non-Telematics","Non-Comp","Heavy Commercial Vehicles","41-50","26-20","Non-Learner","Male","Commercial"]
[null,"Fleet","Non-Telematics","Non-Comp","Heavy Commercial Vehicles","51-60","20","Learner","Diverse","Private"]
[null,"Fleet","Non-Telematics","Non-Comp","Heavy Commercial Vehicles","51-60","31-50","Learner","Male","Private"]
[null,"Fleet","Non-Telematics","Non-Comp","Heavy Commercial Vehicles",">60","18","Learner","Diverse","Private"]
[null,"Fleet","Non-Telematics","Non-Comp","Heavy Commercial Vehicles",">60","26-20","Learner","Male","Commercial"]
[null,"Fleet","Non-Telematics","Non-Comp","Heavy Commercial Vehicles",">60","51-69","Learner","Male","Commercial"]
[null,"Fleet","Non-Telematics","Non-Comp","Buses, coaches etc","0-10","24","Learner","Male","Commercial"]
[null,"Fleet","Non-Telematics","Non-Comp","Buses, coaches etc","0-10","25","Non-Learner","Female","Commercial"]
[null,"Fleet","Non-Telematics","Non-Comp","Buses, coaches etc","11-20","22","Learner","Female","Private"]
[null,"Fleet","Non-Telematics","Non-Comp","Buses, coaches etc","11-20","51-69","Non-Learner","Female","Private"]
[null,"Fleet","Non-Telematics","Non-Comp","Buses, coaches etc","21-30","20","Learner","Female","Private"]
[null,"Fleet","Non-Telematics","Non-Comp","Buses, coaches etc","21-30","21","Non-Learner","Diverse","Private"]
[null,"Fleet","Non-Telematics","Non-Comp","Buses, coaches etc","31-40","18","Learner","Diverse","Commercial"]
[null,"Fleet","Non-Telematics","Non-Comp","Buses, coaches etc","31-40","19","Non-Learner","Diverse","Private"]
[null,"Fleet","Non-Telematics","Non-Comp","Buses, coaches etc","31-40","31-50","Non-Learner","Male","Commercial"]
[null,"Fleet","Non-Telematics","Non-Comp","Buses, coaches etc","41-50","22","Learner","Female","Private"]
[null,"Fleet","Non-Telematics","Non-Comp","Buses, coaches etc","41-50","25","Non-Learner","Male","Commercial"]
[null,"Fleet","Non-Telematics","Non-Comp","Buses, coaches etc","51-60","19","Learner","Diverse","Private"]
[null,"Fleet","Non-Telematics","Non-Comp","Buses, coaches etc","51-60","23","Learner","Female","Commercial"]
[null,"Fleet","Non-Telematics","Non-Comp","Buses, coaches etc",">60","17","Learner","Diverse","Private"]
[null,"Fleet","Non-Telematics","Non-Comp","Buses, coaches etc",">60","25","Learner","Male","Commercial"]
[null,"Fleet","Non-Telematics","Non-Comp","Buses, coaches etc",">60","70 or over","Learner","Diverse","Commercial"]
[null,"Fleet","Non-Telematics","Non-Comp","Taxis, private & public hire","0-10","23","Non-Learner","Diverse","Private"]
[null,"Fleet","Non-Telematics","Non-Comp","Taxis, private & public hire","0-10","24","Non-Learner","Female","Commercial"]
[null,"Fleet","Non-Telematics","Non-Comp","Taxis, private & public hire","11-20","21","Learner","Female","Private"]
[null,"Fleet","Non-Telematics","Non-Comp","Taxis, private & public hire","11-20","31-50","Non-Learner","Male","Commercial"]
[null,"Fleet","Non-Telematics","Non-Comp","Taxis, private & public hire","21-30","19","Learner","Female","Private"]
[null,"Fleet","Non-Telematics","Non-Comp","Taxis, private & public hire","21-30","20","Non-Learner","Diverse","Private"]
[null,"Fleet","Non-Telematics","Non-Comp","Taxis, private & public hire","31-40","17","Learner","Diverse","Private"]
[null,"Fleet","Non-Telematics","Non-Comp","Taxis, private & public hire","31-40","18","Non-Learner","Diverse","Private"]
[null,"Fleet","Non-Telematics","Non-Comp","Taxis, private & public hire","31-40","26-20","Non-Learner","Male","Commercial"]
[null,"Fleet","Non-Telematics","Non-Comp","Taxis, private & public hire","41-50","18","Learner","Diverse","Commercial"]
[null,"Fleet","Non-Telematics","Non-Comp","Taxis, private & public hire","41-50","24","Non-Learner","Male","Commercial"]
[null,"Fleet","Non-Telematics","Non-Comp","Taxis, private & public hire","51-60","18","Learner","Diverse","Private"]
[null,"Fleet","Non-Telematics","Non-Comp","Taxis, private & public hire","51-60","22","Learner","Female","Private"]
[null,"Fleet","Non-Telematics","Non-Comp","Taxis, private & public hire","51-60","Any Driver","Learner","Diverse","Private"]
[null,"Fleet","Non-Telematics","Non-Comp","Taxis, private & public hire",">60","24","Learner","Male","Commercial"]
[null,"Fleet","Non-Telematics","Non-Comp","Taxis, private & public hire",">60","51-69","Learner","Diverse","Commercial"]
[null,"Fleet","Non-Telematics","Non-Comp","Self-drive hire vehicles","0-10","22","Non-Learner","Female","Commercial"]
[null,"Fleet","Non-Telematics","Non-Comp","Self-drive hire vehicles","0-10","26-20","Learner","Diverse","Commercial"]
[null,"Fleet","Non-Telematics","Non-Comp","Self-drive hire vehicles","11-20","20","Learner","Female","Private"]
[null,"Fleet","Non-Telematics","Non-Comp","Self-drive hire vehicles","11-20","26-20","Non-Learner","Male","Private"]
[null,"Fleet","Non-Telematics","Non-Comp","Self-drive hire vehicles","21-30","18","Learner","Female","Private"]
[null,"Fleet","Non-Telematics","Non-Comp","Self-drive hire vehicles","21-30","19","Non-Learner","Diverse","Private"]
[null,"Fleet","Non-Telematics","Non-Comp","Self-drive hire vehicles","21-30","Any Driver","Learner","Female","Commercial"]
[null,"Fleet","Non-Telematics","Non-Comp","Self-drive hire vehicles","31-40","17","Non-Learner","Diverse","Private"]
[null,"Fleet","Non-Telematics","Non-Comp","Self-drive hire vehicles","31-40","25","Non-Learner","Male","Commercial"]
[null,"Fleet","Non-Telematics","Non-Comp","Self-drive hire vehicles","41-50","17","Learner","Diverse","Private"]
[null,"Fleet","Non-Telematics","Non-Comp","Self-drive hire vehicles","41-50","23","Non-Learner","Male","Commercial"]
[null,"Fleet","Non-Telematics","Non-Comp","Self-drive hire vehicles","51-60","17","Learner","Diverse","Private"]
[null,"Fleet","Non-Telematics","Non-Comp","Self-drive hire vehicles","51-60","21","Non-Learner","Female","Private"]
[null,"Fleet","Non-Telematics","Non-Comp","Self-drive hire vehicles","51-60","25","Non-Learner","Diverse","Commercial"]
[null,"Fleet","Non-Telematics","Non-Comp","Self-drive hire vehicles",">60","19","Non-Learner","Female","Private"]
[null,"Fleet","Non-Telematics","Non-Comp","Self-drive hire vehicles",">60","31-50","Learner","Diverse","Commercial"]
[null,"Fleet","Non-Telematics","Non-Comp","Tankers, hazardous","0-10","21","Non-Learner","Female","Private"]
[null,"Fleet","Non-Telematics","Non-Comp","Tankers, hazardous","0-10","25","Learner","Diverse","Commercial"]
[null,"Fleet","Non-Telematics","Non-Comp","Tankers, hazardous","11-20","19","Learner","Female","Private"]
[null,"Fleet","Non-Telematics","Non-Comp","Tankers, hazardous","11-20","25","Learner","Diverse","Commercial"]
[null,"Fleet","Non-Telematics","Non-Comp","Tankers, hazardous","21-30","17","Learner","Female","Private"]
[null,"Fleet","Non-Telematics","Non-Comp","Tankers, hazardous","21-30","18","Non-Learner","Diverse","Private"]
[null,"Fleet","Non-Telematics","Non-Comp","Tankers, hazardous","21-30","26-20","Non-Learner","Male","Private"]
[null,"Fleet","Non-Telematics","Non-Comp","Tankers, hazardous","21-30","Any Driver","Non-Learner","Diverse","Private"]
[null,"Fleet","Non-Telematics","Non-Comp","Tankers, hazardous","31-40","24","Non-Learner","Male","Commercial"]
[null,"Fleet","Non-Telematics","Non-Comp","Tankers, hazardous","31-40","51-69","Non-Learner","Diverse","Commercial"]
[null,"Fleet","Non-Telematics","Non-Comp","Tankers, hazardous","41-50","21","Learner","Male","Commercial"]
[null,"Fleet","Non-Telematics","Non-Comp","Tankers, hazardous","41-50","26-20","Non-Learner","Diverse","Commercial"]
[null,"Fleet","Non-Telematics","Non-Comp","Tankers, hazardous","51-60","20","Non-Learner","Female","Private"]
[null,"Fleet","Non-Telematics","Non-Comp","Tankers, hazardous","51-60","24","Non-Learner","Diverse","Private"]
[null,"Fleet","Non-Telematics","Non-Comp","Tankers, hazardous",">60","18","Non-Learner","Female","Private"]
[null,"Fleet","Non-Telematics","Non-Comp","Tankers, hazardous",">60","26-20","Learner","Diverse","Commercial"]
[null,"Fleet","Non-Telematics","Non-Comp","Motor cycles","0-10","20","Non-Learner","Male","Commercial"]
[null,"Fleet","Non-Telematics","Non-Comp","Motor cycles","0-10","24","Learner","Diverse","Commercial"]
[null,"Fleet","Non-Telematics","Non-Comp","Motor cycles","11-20","18","Learner","Female","Private"]
[null,"Fleet","Non-Telematics","Non-Comp","Motor cycles","11-20","21","Non-Learner","Female","Private"]
[null,"Fleet","Non-Telematics","Non-Comp","Motor cycles","11-20","Any Driver","Learner","Female","Private"]
[null,"Fleet","Non-Telematics","Non-Comp","Motor cycles","21-30","17","Non-Learner","Diverse","Private"]
[null,"Fleet","Non-Telematics","Non-Comp","Motor cycles","21-30","25","Learner","Diverse","Commercial"]
[null,"Fleet","Non-Telematics","Non-Comp","Motor cycles","21-30","70 or over","Non-Learner","Diverse","Private"]
[null,"Fleet","Non-Telematics","Non-Comp","Motor cycles","31-40","23","Non-Learner","Male","Commercial"]
[null,"Fleet","Non-Telematics","Non-Comp","Motor cycles","31-40","31-50","Non-Learner","Diverse","Commercial"]
[null,"Fleet","Non-Telematics","Non-Comp","Motor cycles","41-50","20","Learner","Male","Private"]
[null,"Fleet","Non-Telematics","Non-Comp","Motor cycles","41-50","25","Non-Learner","Diverse","Commercial"]
[null,"Fleet","Non-Telematics","Non-Comp","Motor cycles","51-60","19","Non-Learner","Female","Private"]
[null,"Fleet","Non-Telematics","Non-Comp","Motor cycles","51-60","23","Non-Learner","Female","Commercial"]
[null,"Fleet","Non-Telematics","Non-Comp","Motor cycles",">60","17","Non-Learner","Female","Private"]
[null,"Fleet","Non-Telematics","Non-Comp","Motor cycles",">60","25","Learner","Diverse","Commercial"]
[null,"Fleet","Non-Telematics","Non-Comp","Motor cycles",">60","Any Driver","Non-Learner","Diverse","Private"]
[null,"Fleet","Non-Telematics","Non-Comp","Motor Trade Road Risks","0-10","23","Learner","Diverse","Commercial"]
[null,"Fleet","Non-Telematics","Non-Comp","Motor Trade Road Risks","11-20","17","Learner","Female","Private"]
[null,"Fleet","Non-Telematics","Non-Comp","Motor Trade Road Risks","11-20","20","Non-Learner","Male","Commercial"]
[null,"Fleet","Non-Telematics","Non-Comp","Motor Trade Road Risks","11-20","70 or over","Learner","Female","Private"]
[null,"Fleet","Non-Telematics","Non-Comp","Motor Trade Road Risks","11-20","Any Driver","Non-Learner","Diverse","Private"]
[null,"Fleet","Non-Telematics","Non-Comp","Motor Trade Road Risks","21-30","31-50","Learner","Female","Commercial"]
[null,"Fleet","Non-Telematics","Non-Comp","Motor Trade Road Risks","21-30","70 or over","Learner","Female","Private"]
[null,"Fleet","Non-Telematics","Non-Comp","Motor Trade Road Risks","31-40","25","Learner","Female","Commercial"]
[null,"Fleet","Non-Telematics","Non-Comp","Motor Trade Road Risks","31-40","26-20","Non-Learner","Diverse","Commercial"]
[null,"Fleet","Non-Telematics","Non-Comp","Motor Trade Road Risks","41-50","18","Non-Learner","Diverse","Commercial"]
[null,"Fleet","Non-Telematics","Non-Comp","Motor Trade Road Risks","41-50","24","Non-Learner","Diverse","Commercial"]
[null,"Fleet","Non-Telematics","Non-Comp","Motor Trade Road Risks","51-60","18","Non-Learner","Female","Private"]
[null,"Fleet","Non-Telematics","Non-Comp","Motor Trade Road Risks","51-60","26-20","Learner","Male","Private"]
[null,"Fleet","Non-Telematics","Non-Comp","Motor Trade Road Risks","51-60","Any Driver","Non-Learner","Female","Private"]
[null,"Fleet","Non-Telematics","Non-Comp","Motor Trade Road Risks",">60","24","Learner","Diverse","Commercial"]
[null,"Fleet","Non-Telematics","Non-Comp","Motor Trade Road Risks",">60","70 or over","Non-Learner","Female","Commercial"]
[null,"Fleet","Non-Telematics","Non-Comp","All others","0-10","22","Learner","Diverse","Commercial"]
[null,"Fleet","Non-Telematics","Non-Comp","All others","0-10","Any Driver","Learner","Female","Private"]
[null,"Fleet","Non-Telematics","Non-Comp","All others","11-20","20","Non-Learner","Male","Private"]
[null,"Fleet","Non-Telematics","Non-Comp","All others","11-20","24","Learner","Diverse","Private"]
[null,"Fleet","Non-Telematics","Non-Comp","All others","21-30","18","Non-Learner","Male","Private"]
[null,"Fleet","Non-Telematics","Non-Comp","All others","21-30","26-20","Learner","Female","Commercial"]
[null,"Fleet","Non-Telematics","Non-Comp","All others","21-30","51-69","Learner","Male","Commercial"]
[null,"Fleet","Non-Telematics","Non-Comp","All others","31-40","24","Learner","Female","Commercial"]
[null,"Fleet","Non-Telematics","Non-Comp","All others","31-40","25","Non-Learner","Diverse","Commercial"]
[null,"Fleet","Non-Telematics","Non-Comp","All others","41-50","17","Non-Learner","Diverse","Private"]
[null,"Fleet","Non-Telematics","Non-Comp","All others","41-50","23","Non-Learner","Diverse","Commercial"]
[null,"Fleet","Non-Telematics","Non-Comp","All others","51-60","17","Non-Learner","Female","Private"]
[null,"Fleet","Non-Telematics","Non-Comp","All others","51-60","24","Non-Learner","Diverse","Commercial"]
[null,"Fleet","Non-Telematics","Non-Comp","All others","51-60","70 or over","Non-Learner","Female","Private"]
[null,"Fleet","Non-Telematics","Non-Comp","All others",">60","23","Learner","Diverse","Commercial"]
[null,"Fleet","Non-Telematics","Non-Comp","All others",">60","51-69","Non-Learner","Female","Private"]
[null,"Non-Fleet","Telematics","Comp","Motor Cars","0-10","21","Learner","Diverse","Commercial"]
[null,"Non-Fleet","Telematics","Comp","Motor Cars","0-10","25","Non-Learner","Female","Commercial"]
[null,"Non-Fleet","Telematics","Comp","Motor Cars","11-20","19","Non-Learner","Male","Private"]
[null,"Non-Fleet","Telematics","Comp","Motor Cars","11-20","23","Learner","Female","Commercial"]
[null,"Non-Fleet","Telematics","Comp","Motor Cars","21-30","17","Non-Learner","Male","Private"]
[null,"Non-Fleet","Telematics","Comp","Motor Cars","21-30","25","Learner","Female","Commercial"]
[null,"Non-Fleet","Telematics","Comp","Motor Cars","21-30","31-50","Learner","Male","Private"]
[null,"Non-Fleet","Telematics","Comp","Motor Cars","31-40","23","Learner","Female","Commercial"]
[null,"Non-Fleet","Telematics","Comp","Motor Cars","31-40","24","Non-Learner","Diverse","Commercial"]
[null,"Non-Fleet","Telematics","Comp","Motor Cars","41-50","20","Learner","Male","Commercial"]
[null,"Non-Fleet","Telematics","Comp","Motor Cars","41-50","22","Non-Learner","Diverse","Commercial"]
[null,"Non-Fleet","Telematics","Comp","Motor Cars","41-50","Any Driver","Non-Learner","Female","Private"]
[null,"Non-Fleet","Telematics","Comp","Motor Cars","51-60","23","Non-Learner","Diverse","Private"]
[null,"Non-Fleet","Telematics","Comp","Motor Cars","51-60","51-69","Non-Learner","Female","Private"]
[null,"Non-Fleet","Telematics","Comp","Motor Cars",">60","22","Learner","Diverse","Commercial"]
[null,"Non-Fleet","Telematics","Comp","Motor Cars",">60","26-20","Non-Learner","Female","Commercial"]
[null,"Non-Fleet","Telematics","Comp","Light Commercial Vehicles","0-10","18","Learner","Diverse","Commercial"]
[null,"Non-Fleet","Telematics","Comp","Light Commercial Vehicles","0-10","24","Non-Learner","Female","Commercial"]
[null,"Non-Fleet","Telematics","Comp","Light Commercial Vehicles","11-20","18","Non-Learner","Male","Private"]
[null,"Non-Fleet","Telematics","Comp","Light Commercial Vehicles","11-20","22","Learner","Female","Private"]
[null,"Non-Fleet","Telematics","Comp","Light Commercial Vehicles","11-20","Any Driver","Non-Learner","Male","Private"]
[null,"Non-Fleet","Telematics","Comp","Light Commercial Vehicles","21-30","24","Learner","Female","Commercial"]
[null,"Non-Fleet","Telematics","Comp","Light Commercial Vehicles","21-30","70 or over","Learner","Female","Commercial"]
[null,"Non-Fleet","Telematics","Comp","Light Commercial Vehicles","31-40","22","Learner","Female","Commercial"]
[null,"Non-Fleet","Telematics","Comp","Light Commercial Vehicles","31-40","23","Non-Learner","Diverse","Commercial"]
[null,"Non-Fleet","Telematics","Comp","Light Commercial Vehicles","41-50","19","Learner","Male","Private"]
[null,"Non-Fleet","Telematics","Comp","Light Commercial Vehicles","41-50","21","Non-Learner","Diverse","Commercial"]
[null,"Non-Fleet","Telematics","Comp","Light Commercial Vehicles","41-50","70 or over","Non-Learner","Female","Private"]
[null,"Non-Fleet","Telematics","Comp","Light Commercial Vehicles","51-60","20","Learner","Male","Private"]
[null,"Non-Fleet","Telematics","Comp","Light Commercial Vehicles","51-60","31-50","Non-Learner","Male","Commercial"]
[null,"Non-Fleet","Telematics","Comp","Light Commercial Vehicles",">60","18","Learner","Male","Private"]
[null,"Non-Fleet","Telematics","Comp","Light Commercial Vehicles",">60","25","Non-Learner","Female","Commercial"]
[null,"Non-Fleet","Telematics","Comp","Medium Commercial Vehicles","0-10","17","Learner","Diverse","Private"]
[null,"Non-Fleet","Telematics","Comp","Medium Commercial Vehicles","0-10","23","Non-Learner","Female","Commercial"]
[null,"Non-Fleet","Telematics","Comp","Medium Commercial Vehicles","11-20","17","Non-Learner","Male","Private"]
[null,"Non-Fleet","Telematics","Comp","Medium Commercial Vehicles","11-20","24","Learner","Diverse","Commercial"]
[null,"Non-Fleet","Telematics","Comp","Medium Commercial Vehicles","11-20","70 or over","Non-Learner","Male","Private"]
[null,"Non-Fleet","Telematics","Comp","Medium Commercial Vehicles","21-30","23","Learner","Female","Commercial"]
[null,"Non-Fleet","Telematics","Comp","Medium Commercial Vehicles","21-30","51-69","Learner","Female","Private"]
[null,"Non-Fleet","Telematics","Comp","Medium Commercial Vehicles","31-40","21","Learner","Female","Commercial"]
[null,"Non-Fleet","Telematics","Comp","Medium Commercial Vehicles","31-40","22","Non-Learner","Diverse","Commercial"]
[null,"Non-Fleet","Telematics","Comp","Medium Commercial Vehicles","41-50","17","Non-Learner","Diverse","Commercial"]
[null,"Non-Fleet","Telematics","Comp","Medium Commercial Vehicles","41-50","20","Non-Learner","Diverse","Commercial"]
[null,"Non-Fleet","Telematics","Comp","Medium Commercial Vehicles","51-60","17","Learner","Diverse","Private"]
[null,"Non-Fleet","Telematics","Comp","Medium Commercial Vehicles","51-60","19","Learner","Male","Private"]
[null,"Non-Fleet","Telematics","Comp","Medium Commercial Vehicles","51-60","26-20","Non-Learner","Male","Private"]
[null,"Non-Fleet","Telematics","Comp","Medium Commercial Vehicles",">60","17","Learner","Male","Private"]
[null,"Non-Fleet","Telematics","Comp","Medium Commercial Vehicles",">60","24","Non-Learner","Female","Commercial"]
[null,"Non-Fleet","Telematics","Comp","Medium Commercial Vehicles",">60","Any Driver","Learner","Female","Commercial"]
[null,"Non-Fleet","Telematics","Comp","Heavy Commercial Vehicles","0-10","22","Non-Learner","Female","Commercial"]
[null,"Non-Fleet","Telematics","Comp","Heavy Commercial Vehicles","0-10","Any Driver","Non-Learner","Male","Private"]
[null,"Non-Fleet","Telematics","Comp","Heavy Commercial Vehicles","11-20","23","Learner","Diverse","Private"]
[null,"Non-Fleet","Telematics","Comp","Heavy Commercial Vehicles","11-20","51-69","Non-Learner","Male","Private"]
[null,"Non-Fleet","Telematics","Comp","Heavy Commercial Vehicles","21-30","22","Learner","Female","Commercial"]
[null,"Non-Fleet","Telematics","Comp","Heavy Commercial Vehicles","21-30","31-50","Learner","Male","Commercial"]
[null,"Non-Fleet","Telematics","Comp","Heavy Commercial Vehicles","31-40","20","Learner","Female","Commercial"]
[null,"Non-Fleet","Telematics","Comp","Heavy Commercial Vehicles","31-40","24","Non-Learner","Male","Commercial"]
[null,"Non-Fleet","Telematics","Comp","Heavy Commercial Vehicles","41-50","18","Learner","Diverse","Private"]
[null,"Non-Fleet","Telematics","Comp","Heavy Commercial Vehicles","41-50","21","Non-Learner","Female","Private"]
[null,"Non-Fleet","Telematics","Comp","Heavy Commercial Vehicles","41-50","Any Driver","Learner","Diverse","Private"]
[null,"Non-Fleet","Telematics","Comp","Heavy Commercial Vehicles","51-60","18","Learner","Male","Private"]
[null,"Non-Fleet","Telematics","Comp","Heavy Commercial Vehicles","51-60","25","Learner","Diverse","Commercial"]
[null,"Non-Fleet","Telematics","Comp","Heavy Commercial Vehicles","51-60","Any Driver","Learner","Male","Private"]
[null,"Non-Fleet","Telematics","Comp","Heavy Commercial Vehicles",">60","23","Non-Learner","Female","Commercial"]
[null,"Non-Fleet","Telematics","Comp","Buses, coaches etc","0-10","18","Non-Learner","Male","Private"]
[null,"Non-Fleet","Telematics","Comp","Buses, coaches etc","0-10","21","Non-Learner","Female","Commercial"]
[null,"Non-Fleet","Telematics","Comp","Buses, coaches etc","0-10","70 or over","Non-Learner","Male","Private"]
[null,"Non-Fleet","Telematics","Comp","Buses, coaches etc","11-20","22","Learner","Female","Commercial"]
[null,"Non-Fleet","Telematics","Comp","Buses, coaches etc","11-20","31-50","Non-Learner","Male","Private"]
[null,"Non-Fleet","Telematics","Comp","Buses, coaches etc","21-30","17","Non-Learner","Diverse","Private"]
[null,"Non-Fleet","Telematics","Comp","Buses, coaches etc","21-30","25","Non-Learner","Male","Commercial"]
[null,"Non-Fleet","Telematics","Comp","Buses, coaches etc","21-30","Any Driver","Non-Learner","Diverse","Private"]
[null,"Non-Fleet","Telematics","Comp","Buses, coaches etc","31-40","23","Non-Learner","Male","Commercial"]
[null,"Non-Fleet","Telematics","Comp","Buses, coaches etc","41-50","17","Learner","Diverse","Private"]
[null,"Non-Fleet","Telematics","Comp","Buses, coaches etc","41-50","20","Non-Learner","Male","Commercial"]
[null,"Non-Fleet","Telematics","Comp","Buses, coaches etc","41-50","70 or over","Learner","Diverse","Private"]
[null,"Non-Fleet","Telematics","Comp","Buses, coaches etc","51-60","17","Learner","Male","Private"]
[null,"Non-Fleet","Telematics","Comp","Buses, coaches etc","51-60","31-50","Non-Learner","Female","Private"]
[null,"Non-Fleet","Telematics","Comp","Buses, coaches etc","51-60","70 or over","Learner","Male","Private"]
[null,"Non-Fleet","Telematics","Comp","Buses, coaches etc",">60","22","Non-Learner","Female","Commercial"]
[null,"Non-Fleet","Telematics","Comp","Taxis, private & public hire","0-10","17","Learner","Diverse","Commercial"]
[null,"Non-Fleet","Telematics","Comp","Taxis, private & public hire","0-10","20","Non-Learner","Female","Commercial"]
[null,"Non-Fleet","Telematics","Comp","Taxis, private & public hire","0-10","51-69","Non-Learner","Male","Private"]
[null,"Non-Fleet","Telematics","Comp","Taxis, private & public hire","11-20","21","Learner","Female","Private"]
[null,"Non-Fleet","Telematics","Comp","Taxis, private & public hire","11-20","26-20","Non-Learner","Male","Private"]
[null,"Non-Fleet","Telematics","Comp","Taxis, private & public hire","11-20","Any Driver","Non-Learner","Diverse","Private"]
[null,"Non-Fleet","Telematics","Comp","Taxis, private & public hire","21-30","24","Non-Learner","Male","Commercial"]
[null,"Non-Fleet","Telematics","Comp","Taxis, private & public hire","21-30","70 or over","Non-Learner","Female","Commercial"]
[null,"Non-Fleet","Telematics","Comp","Taxis, private & public hire","31-40","22","Non-Learner","Male","Commercial"]
[null,"Non-Fleet","Telematics","Comp","Taxis, private & public hire","31-40","Any Driver","Learner","Diverse","Private"]
[null,"Non-Fleet","Telematics","Comp","Taxis, private & public hire","31-40","Any Driver","Non-Learner","Diverse","Private"]
[null,"Non-Fleet","Telematics","Comp","Taxis, private & public hire","41-50","51-69","Learner","Diverse","Private"]
[null,"Non-Fleet","Telematics","Comp","Taxis, private & public hire","41-50","Any Driver","Learner","Male","Private"]
[null,"Non-Fleet","Telematics","Comp","Taxis, private & public hire","51-60","26-20","Non-Learner","Male","Commercial"]
[null,"Non-Fleet","Telematics","Comp","Taxis, private & public hire","51-60","51-69","Learner","Male","Private"]
[null,"Non-Fleet","Telematics","Comp","Taxis, private & public hire",">60","21","Non-Learner","Female","Commercial"]
[null,"Non-Fleet","Telematics","Comp","Taxis, private & public hire",">60","Any Driver","Learner","Diverse","Private"]
[null,"Non-Fleet","Telematics","Comp","Self-drive hire vehicles","0-10","19","Non-Learner","Female","Commercial"]
[null,"Non-Fleet","Telematics","Comp","Self-drive hire vehicles","0-10","24","Learner","Male","Commercial"]
[null,"Non-Fleet","Telematics","Comp","Self-drive hire vehicles","11-20","17","Non-Learner","Diverse","Private"]
[null,"Non-Fleet","Telematics","Comp","Self-drive hire vehicles","11-20","24","Non-Learner","Diverse","Commercial"]
[null,"Non-Fleet","Telematics","Comp","Self-drive hire vehicles","11-20","70 or over","Non-Learner","Diverse","Private"]
[null,"Non-Fleet","Telematics","Comp","Self-drive hire vehicles","21-30","23","Non-Learner","Male","Commercial"]
[null,"Non-Fleet","Telematics","Comp","Self-drive hire vehicles","21-30","51-69","Non-Learner","Female","Private"]
[null,"Non-Fleet","Telematics","Comp","Self-drive hire vehicles","31-40","21","Non-Learner","Male","Commercial"]
[null,"Non-Fleet","Telematics","Comp","Self-drive hire vehicles","31-40","70 or over","Learner","Diverse","Private"]
[null,"Non-Fleet","Telematics","Comp","Self-drive hire vehicles","31-40","70 or over","Non-Learner","Female","Commercial"]
[null,"Non-Fleet","Telematics","Comp","Self-drive hire vehicles","41-50","31-50","Learner","Diverse","Private"]
[null,"Non-Fleet","Telematics","Comp","Self-drive hire vehicles","41-50","70 or over","Learner","Male","Private"]
[null,"Non-Fleet","Telematics","Comp","Self-drive hire vehicles","51-60","25","Non-Learner","Male","Private"]
[null,"Non-Fleet","Telematics","Comp","Self-drive hire vehicles","51-60","31-50","Learner","Male","Private"]
[null,"Non-Fleet","Telematics","Comp","Self-drive hire vehicles",">60","23","Learner","Diverse","Commercial"]
[null,"Non-Fleet","Telematics","Comp","Self-drive hire vehicles",">60","25","Learner","Male","Commercial"]
[null,"Non-Fleet","Telematics","Comp","Tankers, hazardous","0-10","20","Learner","Male","Commercial"]
[null,"Non-Fleet","Telematics","Comp","Tankers, hazardous","0-10","23","Learner","Male","Commercial"]
[null,"Non-Fleet","Telematics","Comp","Tankers, hazardous","0-10","Any Driver","Non-Learner","Diverse","Private"]
[null,"Non-Fleet","Telematics","Comp","Tankers, hazardous","11-20","23","Non-Learner","Diverse","Private"]
[null,"Non-Fleet","Telematics","Comp","Tankers, hazardous","11-20","51-69","Non-Learner","Diverse","Private"]
[null,"Non-Fleet","Telematics","Comp","Tankers, hazardous","21-30","22","Non-Learner","Male","Commercial"]
[null,"Non-Fleet","Telematics","Comp","Tankers, hazardous","21-30","24","Non-Learner","Diverse","Commercial"]
[null,"Non-Fleet","Telematics","Comp","Tankers, hazardous","31-40","20","Non-Learner","Male","Commercial"]
[null,"Non-Fleet","Telematics","Comp","Tankers, hazardous","31-40","51-69","Learner","Diverse","Private"]
[null,"Non-Fleet","Telematics","Comp","Tankers, hazardous","31-40","51-69","Non-Learner","Female","Private"]
[null,"Non-Fleet","Telematics","Comp","Tankers, hazardous","41-50","26-20","Learner","Diverse","Private"]
[null,"Non-Fleet","Telematics","Comp","Tankers, hazardous","41-50","Any Driver","Non-Learner","Female","Private"]
[null,"Non-Fleet","Telematics","Comp","Tankers, hazardous","51-60","24","Learner","Diverse","Commercial"]
[null,"Non-Fleet","Telematics","Comp","Tankers, hazardous","51-60","26-20","Learner","Male","Private"]
[null,"Non-Fleet","Telematics","Comp","Tankers, hazardous",">60","22","Learner","Diverse","Commercial"]
[null,"Non-Fleet","Telematics","Comp","Tankers, hazardous",">60","24","Learner","Male","Commercial"]
[null,"Non-Fleet","Telematics","Comp","Motor cycles","0-10","19","Learner","Male","Private"]
[null,"Non-Fleet","Telematics","Comp","Motor cycles","0-10","22","Learner","Male","Commercial"]
[null,"Non-Fleet","Telematics","Comp","Motor cycles","0-10","70 or over","Non-Learner","Diverse","Private"]
[null,"Non-Fleet","Telematics","Comp","Motor cycles","11-20","20","Learner","Male","Commercial"]
[null,"Non-Fleet","Telematics","Comp","Motor cycles","11-20","31-50","Non-Learner","Diverse","Private"]
[null,"Non-Fleet","Telematics","Comp","Motor cycles","21-30","21","Non-Learner","Male","Commercial"]
[null,"Non-Fleet","Telematics","Comp","Motor cycles","21-30","23","Non-Learner","Diverse","Private"]
[null,"Non-Fleet","Telematics","Comp","Motor cycles","31-40","19","Non-Learner","Male","Commercial"]
[null,"Non-Fleet","Telematics","Comp","Motor cycles","31-40","31-50","Learner","Diverse","Private"]
[null,"Non-Fleet","Telematics","Comp","Motor cycles","31-40","31-50","Non-Learner","Male","Commercial"]
[null,"Non-Fleet","Telematics","Comp","Motor cycles","41-50","25","Learner","Diverse","Private"]
[null,"Non-Fleet","Telematics","Comp","Motor cycles","41-50","70 or over","Non-Learner","Female","Private"]
[null,"Non-Fleet","Telematics","Comp","Motor cycles","51-60","23","Learner","Diverse","Commercial"]
[null,"Non-Fleet","Telematics","Comp","Motor cycles","51-60","51-69","Learner","Female","Private"]
[null,"Non-Fleet","Telematics","Comp","Motor cycles",">60","21","Learner","Diverse","Commercial"]
[null,"Non-Fleet","Telematics","Comp","Motor cycles",">60","23","Learner","Male","Commercial"]
[null,"Non-Fleet","Telematics","Comp","Motor cycles",">60","70 or over","Learner","Female","Commercial"]
[null,"Non-Fleet","Telematics","Comp","Motor Trade Road Risks","0-10","21","Learner","Male","Commercial"]
[null,"Non-Fleet","Telematics","Comp","Motor Trade Road Risks","0-10","51-69","Non-Learner","Diverse","Private"]
[null,"Non-Fleet","Telematics","Comp","Motor Trade Road Risks","11-20","19","Learner","Male","Private"]
[null,"Non-Fleet","Telematics","Comp","Motor Trade Road Risks","11-20","26-20","Non-Learner","Diverse","Private"]
[null,"Non-Fleet","Telematics","Comp","Motor Trade Road Risks","21-30","20","Non-Learner","Male","Commercial"]
[null,"Non-Fleet","Telematics","Comp","Motor Trade Road Risks","21-30","22","Non-Learner","Female","Commercial"]
[null,"Non-Fleet","Telematics","Comp","Motor Trade Road Risks","31-40","18","Non-Learner","Male","Commercial"]
[null,"Non-Fleet","Telematics","Comp","Motor Trade Road Risks","31-40","22","Non-Learner","Diverse","Commercial"]
[null,"Non-Fleet","Telematics","Comp","Motor Trade Road Risks","31-40","Any Driver","Non-Learner","Female","Private"]
[null,"Non-Fleet","Telematics","Comp","Motor Trade Road Risks","41-50","23","Learner","Diverse","Private"]
[null,"Non-Fleet","Telematics","Comp","Motor Trade Road Risks","41-50","51-69","Non-Learner","Female","Private"]
[null,"Non-Fleet","Telematics","Comp","Motor Trade Road Risks","51-60","22","Learner","Diverse","Commercial"]
[null,"Non-Fleet","Telematics","Comp","Motor Trade Road Risks","51-60","31-50","Learner","Male","Commercial"]
[null,"Non-Fleet","Telematics","Comp","Motor Trade Road Risks",">60","20","Learner","Diverse","Commercial"]
[null,"Non-Fleet","Telematics","Comp","Motor Trade Road Risks",">60","22","Learner","Male","Commercial"]
[null,"Non-Fleet","Telematics","Comp","Motor Trade Road Risks",">60","51-69","Learner","Female","Private"]
[null,"Non-Fleet","Telematics","Comp","All others","0-10","20","Learner","Male","Commercial"]
[null,"Non-Fleet","Telematics","Comp","All others","0-10","31-50","Non-Learner","Diverse","Private"]
[null,"Non-Fleet","Telematics","Comp","All others","11-20","17","Non-Learner","Diverse","Commercial"]
[null,"Non-Fleet","Telematics","Comp","All others","11-20","25","Non-Learner","Diverse","Private"]
[null,"Non-Fleet","Telematics","Comp","All others","11-20","Any Driver","Learner","Female","Private"]
[null,"Non-Fleet","Telematics","Comp","All others","21-30","21","Non-Learner","Female","Private"]
[null,"Non-Fleet","Telematics","Comp","All others","31-40","17","Non-Learner","Male","Commercial"]
[null,"Non-Fleet","Telematics","Comp","All others","31-40","21","Non-Learner","Diverse","Commercial"]
[null,"Non-Fleet","Telematics","Comp","All others","31-40","70 or over","Non-Learner","Female","Private"]
[null,"Non-Fleet","Telematics","Comp","All others","41-50","22","Learner","Female","Commercial"]
[null,"Non-Fleet","Telematics","Comp","All others","41-50","31-50","Non-Learner","Female","Private"]
[null,"Non-Fleet","Telematics","Comp","All others","51-60","21","Learner","Diverse","Commercial"]
[null,"Non-Fleet","Telematics","Comp","All others","51-60","23","Learner","Diverse","Private"]
[null,"Non-Fleet","Telematics","Comp","All others",">60","19","Learner","Diverse","Commercial"]
[null,"Non-Fleet","Telematics","Comp","All others",">60","21","Learner","Male","Commercial"]
[null,"Non-Fleet","Telematics","Comp","All others",">60","31-50","Learner","Male","Commercial"]
[null,"Non-Fleet","Telematics","Non-Comp","Motor Cars","0-10","19","Learner","Male","Commercial"]
[null,"Non-Fleet","Telematics","Non-Comp","Motor Cars","0-10","70 or over","Non-Learner","Male","Private"]
[null,"Non-Fleet","Telematics","Non-Comp","Motor Cars","0-10","Any Driver","Non-Learner","Diverse","Private"]
[null,"Non-Fleet","Telematics","Non-Comp","Motor Cars","11-20","24","Non-Learner","Diverse","Private"]
[null,"Non-Fleet","Telematics","Non-Comp","Motor Cars","11-20","70 or over","Learner","Female","Private"]
[null,"Non-Fleet","Telematics","Non-Comp","Motor Cars","21-30","22","Non-Learner","Diverse","Commercial"]
[null,"Non-Fleet","Telematics","Non-Comp","Motor Cars","31-40","17","Learner","Diverse","Commercial"]
[null,"Non-Fleet","Telematics","Non-Comp","Motor Cars","31-40","20","Non-Learner","Diverse","Commercial"]
[null,"Non-Fleet","Telematics","Non-Comp","Motor Cars","31-40","51-69","Non-Learner","Female","Private"]
[null,"Non-Fleet","Telematics","Non-Comp","Motor Cars","41-50","18","Non-Learner","Male","Private"]
[null,"Non-Fleet","Telematics","Non-Comp","Motor Cars","41-50","26-20","Non-Learner","Female","Private"]
[null,"Non-Fleet","Telematics","Non-Comp","Motor Cars","51-60","20","Learner","Diverse","Commercial"]
[null,"Non-Fleet","Telematics","Non-Comp","Motor Cars","51-60","22","Learner","Female","Commercial"]
[null,"Non-Fleet","Telematics","Non-Comp","Motor Cars",">60","18","Learner","Diverse","Commercial"]
[null,"Non-Fleet","Telematics","Non-Comp","Motor Cars",">60","20","Learner","Male","Commercial"]
[null,"Non-Fleet","Telematics","Non-Comp","Motor Cars",">60","26-20","Learner","Male","Private"]
[null,"Non-Fleet","Telematics","Non-Comp","Light Commercial Vehicles","0-10","18","Learner","Male","Commercial"]
[null,"Non-Fleet","Telematics","Non-Comp","Light Commercial Vehicles","0-10","51-69","Non-Learner","Male","Private"]
[null,"Non-Fleet","Telematics","Non-Comp","Light Commercial Vehicles","0-10","Any Driver","Learner","Female","Private"]
[null,"Non-Fleet","Telematics","Non-Comp","Light Commercial Vehicles","11-20","26-20","Non-Learner","Male","Commercial"]
[null,"Non-Fleet","Telematics","Non-Comp","Light Commercial Vehicles","11-20","51-69","Learner","Female","Private"]
[null,"Non-Fleet","Telematics","Non-Comp","Light Commercial Vehicles","21-30","21","Non-Learner","Diverse","Commercial"]
[null,"Non-Fleet","Telematics","Non-Comp","Light Commercial Vehicles","21-30","31-50","Non-Learner","Female","Private"]
[null,"Non-Fleet","Telematics","Non-Comp","Light Commercial Vehicles","31-40","19","Non-Learner","Diverse","Commercial"]
[null,"Non-Fleet","Telematics","Non-Comp","Light Commercial Vehicles","31-40","31-50","Non-Learner","Female","Private"]
[null,"Non-Fleet","Telematics","Non-Comp","Light Commercial Vehicles","41-50","17","Learner","Diverse","Commercial"]
[null,"Non-Fleet","Telematics","Non-Comp","Light Commercial Vehicles","41-50","25","Non-Learner","Female","Private"]
[null,"Non-Fleet","Telematics","Non-Comp","Light Commercial Vehicles","51-60","19","Learner","Diverse","Commercial"]
[null,"Non-Fleet","Telematics","Non-Comp","Light Commercial Vehicles","51-60","21","Learner","Female","Private"]
[null,"Non-Fleet","Telematics","Non-Comp","Light Commercial Vehicles",">60","17","Learner","Diverse","Commercial"]
[null,"Non-Fleet","Telematics","Non-Comp","Light Commercial Vehicles",">60","21","Non-Learner","Female","Commercial"]
[null,"Non-Fleet","Telematics","Non-Comp","Light Commercial Vehicles",">60","24","Non-Learner","Diverse","Commercial"]
[null,"Non-Fleet","Telematics","Non-Comp","Medium Commercial Vehicles","0-10","17","Learner","Male","Commercial"]
[null,"Non-Fleet","Telematics","Non-Comp","Medium Commercial Vehicles","0-10","31-50","Non-Learner","Male","Private"]
[null,"Non-Fleet","Telematics","Non-Comp","Medium Commercial Vehicles","0-10","70 or over","Learner","Female","Private"]
[null,"Non-Fleet","Telematics","Non-Comp","Medium Commercial Vehicles","11-20","22","Non-Learner","Diverse","Private"]
[null,"Non-Fleet","Telematics","Non-Comp","Medium Commercial Vehicles","11-20","31-50","Learner","Female","Private"]
[null,"Non-Fleet","Telematics","Non-Comp","Medium Commercial Vehicles","21-30","20","Non-Learner","Diverse","Commercial"]
[null,"Non-Fleet","Telematics","Non-Comp","Medium Commercial Vehicles","21-30","26-20","Non-Learner","Male","Commercial"]
[null,"Non-Fleet","Telematics","Non-Comp","Medium Commercial Vehicles","31-40","18","Non-Learner","Diverse","Commercial"]
[null,"Non-Fleet","Telematics","Non-Comp","Medium Commercial Vehicles","31-40","26-20","Non-Learner","Female","Private"]
[null,"Non-Fleet","Telematics","Non-Comp","Medium Commercial Vehicles","31-40","Any Driver","Learner","Diverse","Private"]
[null,"Non-Fleet","Telematics","Non-Comp","Medium Commercial Vehicles","41-50","24","Non-Learner","Female","Private"]
[null,"Non-Fleet","Telematics","Non-Comp","Medium Commercial Vehicles","41-50","70 or over","Learner","Male","Private"]
[null,"Non-Fleet","Telematics","Non-Comp","Medium Commercial Vehicles","51-60","20","Learner","Male","Commercial"]
[null,"Non-Fleet","Telematics","Non-Comp","Medium Commercial Vehicles","51-60","Any Driver","Learner","Diverse","Commercial"]
[null,"Non-Fleet","Telematics","Non-Comp","Medium Commercial Vehicles",">60","20","Non-Learner","Female","Commercial"]
[null,"Non-Fleet","Telematics","Non-Comp","Medium Commercial Vehicles",">60","51-69","Non-Learner","Male","Private"]
[null,"Non-Fleet","Telematics","Non-Comp","Medium Commercial Vehicles",">60","51-69","Non-Learner","Female","Private"]
[null,"Non-Fleet","Telematics","Non-Comp","Heavy Commercial Vehicles","0-10","26-20","Non-Learner","Male","Private"]
[null,"Non-Fleet","Telematics","Non-Comp","Heavy Commercial Vehicles","0-10","51-69","Learner","Female","Private"]
[null,"Non-Fleet","Telematics","Non-Comp","Heavy Commercial Vehicles","11-20","21","Non-Learner","Female","Commercial"]
[null,"Non-Fleet","Telematics","Non-Comp","Heavy Commercial Vehicles","11-20","26-20","Learner","Female","Private"]
[null,"Non-Fleet","Telematics","Non-Comp","Heavy Commercial Vehicles","21-30","19","Non-Learner","Diverse","Commercial"]
[null,"Non-Fleet","Telematics","Non-Comp","Heavy Commercial Vehicles","21-30","25","Non-Learner","Male","Private"]
[null,"Non-Fleet","Telematics","Non-Comp","Heavy Commercial Vehicles","31-40","17","Non-Learner","Diverse","Commercial"]
[null,"Non-Fleet","Telematics","Non-Comp","Heavy Commercial Vehicles","31-40","22","Learner","Female","Commercial"]
[null,"Non-Fleet","Telematics","Non-Comp","Heavy Commercial Vehicles","31-40","70 or over","Learner","Female","Commercial"]
[null,"Non-Fleet","Telematics","Non-Comp","Heavy Commercial Vehicles","41-50","23","Non-Learner","Female","Private"]
[null,"Non-Fleet","Telematics","Non-Comp","Heavy Commercial Vehicles","41-50","51-69","Learner","Male","Private"]
[null,"Non-Fleet","Telematics","Non-Comp","Heavy Commercial Vehicles","51-60","21","Non-Learner","Female","Commercial"]
[null,"Non-Fleet","Telematics","Non-Comp","Heavy Commercial Vehicles","51-60","23","Non-Learner","Diverse","Private"]
[null,"Non-Fleet","Telematics","Non-Comp","Heavy Commercial Vehicles",">60","19","Non-Learner","Female","Commercial"]
[null,"Non-Fleet","Telematics","Non-Comp","Heavy Commercial Vehicles",">60","31-50","Non-Learner","Male","Private"]
[null,"Non-Fleet","Telematics","Non-Comp","Heavy Commercial Vehicles",">60","Any Driver","Non-Learner","Diverse","Commercial"]
[null,"Non-Fleet","Telematics","Non-Comp","Buses, coaches etc","0-10","25","Non-Learner","Male","Private"]
[null,"Non-Fleet","Telematics","Non-Comp","Buses, coaches etc","0-10","31-50","Learner","Female","Private"]
[null,"Non-Fleet","Telematics","Non-Comp","Buses, coaches etc","11-20","20","Non-Learner","Female","Private"]
[null,"Non-Fleet","Telematics","Non-Comp","Buses, coaches etc","11-20","25","Learner","Female","Private"]
[null,"Non-Fleet","Telematics","Non-Comp","Buses, coaches etc","21-30","18","Non-Learner","Diverse","Commercial"]
[null,"Non-Fleet","Telematics","Non-Comp","Buses, coaches etc","21-30","24","Learner","Diverse","Commercial"]
[null,"Non-Fleet","Telematics","Non-Comp","Buses, coaches etc","21-30","Any Driver","Non-Learner","Diverse","Commercial"]
[null,"Non-Fleet","Telematics","Non-Comp","Buses, coaches etc","31-40","21","Learner","Female","Commercial"]
[null,"Non-Fleet","Telematics","Non-Comp","Buses, coaches etc","31-40","51-69","Learner","Female","Private"]
[null,"Non-Fleet","Telematics","Non-Comp","Buses, coaches etc","41-50","22","Non-Learner","Female","Private"]
[null,"Non-Fleet","Telematics","Non-Comp","Buses, coaches etc","41-50","31-50","Learner","Male","Private"]
[null,"Non-Fleet","Telematics","Non-Comp","Buses, coaches etc","51-60","20","Non-Learner","Female","Commercial"]
[null,"Non-Fleet","Telematics","Non-Comp","Buses, coaches etc","51-60","26-20","Learner","Male","Commercial"]
[null,"Non-Fleet","Telematics","Non-Comp","Buses, coaches etc",">60","18","Non-Learner","Female","Commercial"]
[null,"Non-Fleet","Telematics","Non-Comp","Buses, coaches etc",">60","20","Learner","Diverse","Commercial"]
[null,"Non-Fleet","Telematics","Non-Comp","Buses, coaches etc",">60","70 or over","Non-Learner","Diverse","Private"]
[null,"Non-Fleet","Telematics","Non-Comp","Taxis, private & public hire","0-10","24","Non-Learner","Male","Private"]
[null,"Non-Fleet","Telematics","Non-Comp","Taxis, private & public hire","0-10","26-20","Learner","Female","Private"]
[null,"Non-Fleet","Telematics","Non-Comp","Taxis, private & public hire","11-20","19","Non-Learner","Male","Commercial"]
[null,"Non-Fleet","Telematics","Non-Comp","Taxis, private & public hire","11-20","24","Learner","Female","Private"]
[null,"Non-Fleet","Telematics","Non-Comp","Taxis, private & public hire","21-30","20","Non-Learner","Male","Commercial"]
[null,"Non-Fleet","Telematics","Non-Comp","Taxis, private & public hire","21-30","23","Learner","Diverse","Private"]
[null,"Non-Fleet","Telematics","Non-Comp","Taxis, private & public hire","21-30","70 or over","Non-Learner","Diverse","Commercial"]
[null,"Non-Fleet","Telematics","Non-Comp","Taxis, private & public hire","31-40","20","Learner","Female","Commercial"]
[null,"Non-Fleet","Telematics","Non-Comp","Taxis, private & public hire","31-40","51-69","Learner","Male","Private"]
[null,"Non-Fleet","Telematics","Non-Comp","Taxis, private & public hire","41-50","21","Learner","Female","Commercial"]
[null,"Non-Fleet","Telematics","Non-Comp","Taxis, private & public hire","41-50","26-20","Learner","Male","Private"]
[null,"Non-Fleet","Telematics","Non-Comp","Taxis, private & public hire","51-60","19","Non-Learner","Female","Commercial"]
[null,"Non-Fleet","Telematics","Non-Comp","Taxis, private & public hire","51-60","25","Learner","Male","Private"]
[null,"Non-Fleet","Telematics","Non-Comp","Taxis, private & public hire",">60","17","Non-Learner","Female","Commercial"]
[null,"Non-Fleet","Telematics","Non-Comp","Taxis, private & public hire",">60","19","Learner","Diverse","Commercial"]
[null,"Non-Fleet","Telematics","Non-Comp","Taxis, private & public hire",">60","51-69","Non-Learner","Female","Commercial"]
[null,"Non-Fleet","Telematics","Non-Comp","Self-drive hire vehicles","0-10","17","Learner","Diverse","Commercial"]
[null,"Non-Fleet","Telematics","Non-Comp","Self-drive hire vehicles","0-10","31-50","Non-Learner","Diverse","Private"]
[null,"Non-Fleet","Telematics","Non-Comp","Self-drive hire vehicles","11-20","18","Non-Learner","Male","Private"]
[null,"Non-Fleet","Telematics","Non-Comp","Self-drive hire vehicles","11-20","23","Learner","Female","Private"]
[null,"Non-Fleet","Telematics","Non-Comp","Self-drive hire vehicles","21-30","19","Non-Learner","Male","Commercial"]
[null,"Non-Fleet","Telematics","Non-Comp","Self-drive hire vehicles","21-30","21","Learner","Female","Commercial"]
[null,"Non-Fleet","Telematics","Non-Comp","Self-drive hire vehicles","21-30","31-50","Learner","Male","Commercial"]
[null,"Non-Fleet","Telematics","Non-Comp","Self-drive hire vehicles","31-40","19","Learner","Female","Commercial"]
[null,"Non-Fleet","Telematics","Non-Comp","Self-drive hire vehicles","31-40","31-50","Learner","Male","Private"]
[null,"Non-Fleet","Telematics","Non-Comp","Self-drive hire vehicles","41-50","20","Learner","Female","Private"]
[null,"Non-Fleet","Telematics","Non-Comp","Self-drive hire vehicles","41-50","25","Learner","Male","Private"]
[null,"Non-Fleet","Telematics","Non-Comp","Self-drive hire vehicles","51-60","18","Non-Learner","Female","Commercial"]
[null,"Non-Fleet","Telematics","Non-Comp","Self-drive hire vehicles","51-60","23","Non-Learner","Diverse","Commercial"]
[null,"Non-Fleet","Telematics","Non-Comp","Self-drive hire vehicles","51-60","Any Driver","Non-Learner","Female","Commercial"]
[null,"Non-Fleet","Telematics","Non-Comp","Self-drive hire vehicles",">60","21","Learner","Male","Commercial"]
[null,"Non-Fleet","Telematics","Non-Comp","Self-drive hire vehicles",">60","31-50","Non-Learner","Female","Private"]
[null,"Non-Fleet","Telematics","Non-Comp","Self-drive hire vehicles",">60","Any Driver","Learner","Diverse","Commercial"]
[null,"Non-Fleet","Telematics","Non-Comp","Tankers, hazardous","0-10","26-20","Non-Learner","Diverse","Private"]
[null,"Non-Fleet","Telematics","Non-Comp","Tankers, hazardous","11-20","17","Learner","Diverse","Commercial"]
[null,"Non-Fleet","Telematics","Non-Comp","Tankers, hazardous","11-20","22","Learner","Female","Private"]
[null,"Non-Fleet","Telematics","Non-Comp","Tankers, hazardous","21-30","18","Non-Learner","Male","Commercial"]
[null,"Non-Fleet","Telematics","Non-Comp","Tankers, hazardous","21-30","20","Learner","Female","Commercial"]
[null,"Non-Fleet","Telematics","Non-Comp","Tankers, hazardous","21-30","70 or over","Learner","Diverse","Private"]
[null,"Non-Fleet","Telematics","Non-Comp","Tankers, hazardous","31-40","18","Learner","Female","Commercial"]
[null,"Non-Fleet","Telematics","Non-Comp","Tankers, hazardous","31-40","26-20","Learner","Male","Private"]
[null,"Non-Fleet","Telematics","Non-Comp","Tankers, hazardous","41-50","19","Learner","Male","Commercial"]
[null,"Non-Fleet","Telematics","Non-Comp","Tankers, hazardous","41-50","24","Learner","Male","Private"]
[null,"Non-Fleet","Telematics","Non-Comp","Tankers, hazardous","41-50","51-69","Learner","Diverse","Private"]
[null,"Non-Fleet","Telematics","Non-Comp","Tankers, hazardous","51-60","22","Non-Learner","Diverse","Private"]
[null,"Non-Fleet","Telematics","Non-Comp","Tankers, hazardous","51-60","70 or over","Non-Learner","Female","Commercial"]
[null,"Non-Fleet","Telematics","Non-Comp","Tankers, hazardous",">60","20","Learner","Male","Commercial"]
[null,"Non-Fleet","Telematics","Non-Comp","Tankers, hazardous",">60","26-20","Non-Learner","Male","Commercial"]
[null,"Non-Fleet","Telematics","Non-Comp","Tankers, hazardous",">60","70 or over","Learner","Diverse","Commercial"]
[null,"Non-Fleet","Telematics","Non-Comp","Motor cycles","0-10","25","Non-Learner","Diverse","Private"]
[null,"Non-Fleet","Telematics","Non-Comp","Motor cycles","0-10","31-50","Non-Learner","Male","Private"]
[null,"Non-Fleet","Telematics","Non-Comp","Motor cycles","11-20","24","Non-Learner","Male","Private"]
[null,"Non-Fleet","Telematics","Non-Comp","Motor cycles","11-20","25","Non-Learner","Male","Private"]
[null,"Non-Fleet","Telematics","Non-Comp","Motor cycles","21-30","19","Learner","Female","Commercial"]
[null,"Non-Fleet","Telematics","Non-Comp","Motor cycles","21-30","51-69","Learner","Female","Commercial"]
[null,"Non-Fleet","Telematics","Non-Comp","Motor cycles","31-40","17","Learner","Female","Commercial"]
[null,"Non-Fleet","Telematics","Non-Comp","Motor cycles","31-40","25","Learner","Male","Private"]
[null,"Non-Fleet","Telematics","Non-Comp","Motor cycles","41-50","18","Learner","Male","Private"]
[null,"Non-Fleet","Telematics","Non-Comp","Motor cycles","41-50","23","Learner","Male","Private"]
[null,"Non-Fleet","Telematics","Non-Comp","Motor cycles","41-50","31-50","Learner","Diverse","Private"]
[null,"Non-Fleet","Telematics","Non-Comp","Motor cycles","51-60","21","Non-Learner","Female","Commercial"]
[null,"Non-Fleet","Telematics","Non-Comp","Motor cycles","51-60","51-69","Non-Learner","Female","Commercial"]
[null,"Non-Fleet","Telematics","Non-Comp","Motor cycles",">60","19","Learner","Male","Commercial"]
[null,"Non-Fleet","Telematics","Non-Comp","Motor cycles",">60","26-20","Non-Learner","Diverse","Private"]
[null,"Non-Fleet","Telematics","Non-Comp","Motor Trade Road Risks","0-10","19","Non-Learner","Female","Private"]
[null,"Non-Fleet","Telematics","Non-Comp","Motor Trade Road Risks","0-10","24","Non-Learner","Diverse","Private"]
[null,"Non-Fleet","Telematics","Non-Comp","Motor Trade Road Risks","0-10","26-20","Non-Learner","Male","Private"]
[null,"Non-Fleet","Telematics","Non-Comp","Motor Trade Road Risks","11-20","23","Learner","Diverse","Commercial"]
[null,"Non-Fleet","Telematics","Non-Comp","Motor Trade Road Risks","11-20","24","Non-Learner","Male","Private"]
[null,"Non-Fleet","Telematics","Non-Comp","Motor Trade Road Risks","21-30","18","Learner","Female","Commercial"]
[null,"Non-Fleet","Telematics","Non-Comp","Motor Trade Road Risks","21-30","31-50","Learner","Female","Private"]
[null,"Non-Fleet","Telematics","Non-Comp","Motor Trade Road Risks","21-30","Any Driver","Learner","Female","Commercial"]
[null,"Non-Fleet","Telematics","Non-Comp","Motor Trade Road Risks","31-40","26-20","Non-Learner","Female","Private"]
[null,"Non-Fleet","Telematics","Non-Comp","Motor Trade Road Risks","31-40","Any Driver","Non-Learner","Diverse","Commercial"]
[null,"Non-Fleet","Telematics","Non-Comp","Motor Trade Road Risks","41-50","22","Learner","Male","Private"]
[null,"Non-Fleet","Telematics","Non-Comp","Motor Trade Road Risks","41-50","26-20","Learner","Diverse","Private"]
[null,"Non-Fleet","Telematics","Non-Comp","Motor Trade Road Risks","51-60","20","Learner","Male","Commercial"]
[null,"Non-Fleet","Telematics","Non-Comp","Motor Trade Road Risks","51-60","25","Non-Learner","Male","Private"]
[null,"Non-Fleet","Telematics","Non-Comp","Motor Trade Road Risks",">60","18","Learner","Male","Commercial"]
[null,"Non-Fleet","Telematics","Non-Comp","Motor Trade Road Risks",">60","25","Non-Learner","Diverse","Private"]
[null,"Non-Fleet","Telematics","Non-Comp","All others","0-10","18","Non-Learner","Male","Commercial"]
[null,"Non-Fleet","Telematics","Non-Comp","All others","0-10","23","Non-Learner","Diverse","Private"]
[null,"Non-Fleet","Telematics","Non-Comp","All others","0-10","25","Non-Learner","Male","Private"]
[null,"Non-Fleet","Telematics","Non-Comp","All others","11-20","22","Learner","Diverse","Private"]
[null,"Non-Fleet","Telematics","Non-Comp","All others","11-20","23","Non-Learner","Male","Private"]
[null,"Non-Fleet","Telematics","Non-Comp","All others","21-30","19","Non-Learner","Diverse","Commercial"]
[null,"Non-Fleet","Telematics","Non-Comp","All others","21-30","26-20","Learner","Male","Commercial"]
[null,"Non-Fleet","Telematics","Non-Comp","All others","21-30","70 or over","Learner","Female","Commercial"]
[null,"Non-Fleet","Telematics","Non-Comp","All others","31-40","19","Non-Learner","Male","Commercial"]
[null,"Non-Fleet","Telematics","Non-Comp","All others","31-40","70 or over","Non-Learner","Diverse","Private"]
[null,"Non-Fleet","Telematics","Non-Comp","All others","41-50","21","Learner","Male","Private"]
[null,"Non-Fleet","Telematics","Non-Comp","All others","41-50","25","Learner","Diverse","Private"]
[null,"Non-Fleet","Telematics","Non-Comp","All others","51-60","19","Learner","Male","Commercial"]
[null,"Non-Fleet","Telematics","Non-Comp","All others","51-60","31-50","Non-Learner","Female","Commercial"]
[null,"Non-Fleet","Telematics","Non-Comp","All others",">60","17","Learner","Male","Commercial"]
[null,"Non-Fleet","Telematics","Non-Comp","All others",">60","24","Non-Learner","Diverse","Private"]
[null,"Non-Fleet","Non-Telematics","Comp","Motor Cars","0-10","17","Non-Learner","Male","Private"]
[null,"Non-Fleet","Non-Telematics","Comp","Motor Cars","0-10","22","Non-Learner","Diverse","Private"]
[null,"Non-Fleet","Non-Telematics","Comp","Motor Cars","0-10","31-50","Learner","Female","Private"]
[null,"Non-Fleet","Non-Telematics","Comp","Motor Cars","11-20","21","Learner","Female","Commercial"]
[null,"Non-Fleet","Non-Telematics","Comp","Motor Cars","11-20","22","Non-Learner","Male","Private"]
[null,"Non-Fleet","Non-Telematics","Comp","Motor Cars","21-30","18","Non-Learner","Diverse","Commercial"]
[null,"Non-Fleet","Non-Telematics","Comp","Motor Cars","21-30","25","Learner","Male","Private"]
[null,"Non-Fleet","Non-Telematics","Comp","Motor Cars","21-30","51-69","Learner","Female","Commercial"]
[null,"Non-Fleet","Non-Telematics","Comp","Motor Cars","31-40","18","Non-Learner","Male","Commercial"]
[null,"Non-Fleet","Non-Telematics","Comp","Motor Cars","31-40","26-20","Learner","Diverse","Private"]
[null,"Non-Fleet","Non-Telematics","Comp","Motor Cars","31-40","Any Driver","Non-Learner","Diverse","Commercial"]
[null,"Non-Fleet","Non-Telematics","Comp","Motor Cars","41-50","24","Learner","Diverse","Private"]
[null,"Non-Fleet","Non-Telematics","Comp","Motor Cars","51-60","18","Learner","Male","Commercial"]
[null,"Non-Fleet","Non-Telematics","Comp","Motor Cars","51-60","26-20","Non-Learner","Female","Private"]
[null,"Non-Fleet","Non-Telematics","Comp","Motor Cars","51-60","Any Driver","Learner","Male","Commercial"]
[null,"Non-Fleet","Non-Telematics","Comp","Motor Cars",">60","23","Non-Learner","Diverse","Private"]
[null,"Non-Fleet","Non-Telematics","Comp","Motor Cars",">60","Any Driver","Learner","Diverse","Commercial"]
[null,"Non-Fleet","Non-Telematics","Comp","Light Commercial Vehicles","0-10","21","Non-Learner","Diverse","Private"]
[null,"Non-Fleet","Non-Telematics","Comp","Light Commercial Vehicles","0-10","26-20","Learner","Female","Private"]
[null,"Non-Fleet","Non-Telematics","Comp","Light Commercial Vehicles","11-20","20","Learner","Female","Private"]
[null,"Non-Fleet","Non-Telematics","Comp","Light Commercial Vehicles","11-20","21","Non-Learner","Male","Private"]
[null,"Non-Fleet","Non-Telematics","Comp","Light Commercial Vehicles","21-30","17","Non-Learner","Diverse","Commercial"]
[null,"Non-Fleet","Non-Telematics","Comp","Light Commercial Vehicles","21-30","19","Non-Learner","Male","Commercial"]
[null,"Non-Fleet","Non-Telematics","Comp","Light Commercial Vehicles","21-30","26-20","Learner","Male","Commercial"]
[null,"Non-Fleet","Non-Telematics","Comp","Light Commercial Vehicles","31-40","17","Non-Learner","Male","Commercial"]
[null,"Non-Fleet","Non-Telematics","Comp","Light Commercial Vehicles","31-40","25","Learner","Diverse","Private"]
[null,"Non-Fleet","Non-Telematics","Comp","Light Commercial Vehicles","31-40","70 or over","Non-Learner","Diverse","Private"]
[null,"Non-Fleet","Non-Telematics","Comp","Light Commercial Vehicles","41-50","23","Learner","Diverse","Private"]
[null,"Non-Fleet","Non-Telematics","Comp","Light Commercial Vehicles","51-60","17","Learner","Male","Commercial"]
[null,"Non-Fleet","Non-Telematics","Comp","Light Commercial Vehicles","51-60","25","Non-Learner","Male","Commercial"]
[null,"Non-Fleet","Non-Telematics","Comp","Light Commercial Vehicles","51-60","70 or over","Learner","Male","Commercial"]
[null,"Non-Fleet","Non-Telematics","Comp","Light Commercial Vehicles",">60","19","Learner","Diverse","Commercial"]
[null,"Non-Fleet","Non-Telematics","Comp","Light Commercial Vehicles",">60","70 or over","Learner","Diverse","Private"]
[null,"Non-Fleet","Non-Telematics","Comp","Medium Commercial Vehicles","0-10","20","Non-Learner","Diverse","Private"]
[null,"Non-Fleet","Non-Telematics","Comp","Medium Commercial Vehicles","0-10","25","Learner","Female","Private"]
[null,"Non-Fleet","Non-Telematics","Comp","Medium Commercial Vehicles","11-20","19","Learner","Male","Commercial"]
[null,"Non-Fleet","Non-Telematics","Comp","Medium Commercial Vehicles","11-20","20","Non-Learner","Male","Private"]
[null,"Non-Fleet","Non-Telematics","Comp","Medium Commercial Vehicles","11-20","Any Driver","Non-Learner","Diverse","Commercial"]
[null,"Non-Fleet","Non-Telematics","Comp","Medium Commercial Vehicles","21-30","18","Non-Learner","Male","Commercial"]
[null,"Non-Fleet","Non-Telematics","Comp","Medium Commercial Vehicles","21-30","25","Learner","Male","Private"]
[null,"Non-Fleet","Non-Telematics","Comp","Medium Commercial Vehicles","21-30","Any Driver","Non-Learner","Male","Commercial"]
[null,"Non-Fleet","Non-Telematics","Comp","Medium Commercial Vehicles","31-40","24","Learner","Diverse","Private"]
[null,"Non-Fleet","Non-Telematics","Comp","Medium Commercial Vehicles","31-40","51-69","Non-Learner","Female","Commercial"]
[null,"Non-Fleet","Non-Telematics","Comp","Medium Commercial Vehicles","41-50","22","Learner","Diverse","Private"]
[null,"Non-Fleet","Non-Telematics","Comp","Medium Commercial Vehicles","41-50","26-20","Non-Learner","Female","Private"]
[null,"Non-Fleet","Non-Telematics","Comp","Medium Commercial Vehicles","51-60","24","Non-Learner","Male","Private"]
[null,"Non-Fleet","Non-Telematics","Comp","Medium Commercial Vehicles","51-60","51-69","Learner","Male","Commercial"]
[null,"Non-Fleet","Non-Telematics","Comp","Medium Commercial Vehicles",">60","18","Learner","Diverse","Commercial"]
[null,"Non-Fleet","Non-Telematics","Comp","Medium Commercial Vehicles",">60","51-69","Learner","Female","Commercial"]
[null,"Non-Fleet","Non-Telematics","Comp","Heavy Commercial Vehicles","0-10","19","Non-Learner","Diverse","Private"]
[null,"Non-Fleet","Non-Telematics","Comp","Heavy Commercial Vehicles","0-10","24","Learner","Female","Private"]
[null,"Non-Fleet","Non-Telematics","Comp","Heavy Commercial Vehicles","11-20","17","Non-Learner","Diverse","Commercial"]
[null,"Non-Fleet","Non-Telematics","Comp","Heavy Commercial Vehicles","11-20","20","Learner","Female","Private"]
[null,"Non-Fleet","Non-Telematics","Comp","Heavy Commercial Vehicles","11-20","70 or over","Non-Learner","Diverse","Commercial"]
[null,"Non-Fleet","Non-Telematics","Comp","Heavy Commercial Vehicles","21-30","17","Non-Learner","Male","Commercial"]
[null,"Non-Fleet","Non-Telematics","Comp","Heavy Commercial Vehicles","21-30","23","Non-Learner","Diverse","Commercial"]
[null,"Non-Fleet","Non-Telematics","Comp","Heavy Commercial Vehicles","21-30","70 or over","Non-Learner","Male","Commercial"]
[null,"Non-Fleet","Non-Telematics","Comp","Heavy Commercial Vehicles","31-40","26-20","Learner","Male","Private"]
[null,"Non-Fleet","Non-Telematics","Comp","Heavy Commercial Vehicles","31-40","31-50","Non-Learner","Female","Private"]
[null,"Non-Fleet","Non-Telematics","Comp","Heavy Commercial Vehicles","41-50","21","Learner","Diverse","Private"]
[null,"Non-Fleet","Non-Telematics","Comp","Heavy Commercial Vehicles","41-50","25","Non-Learner","Female","Private"]
[null,"Non-Fleet","Non-Telematics","Comp","Heavy Commercial Vehicles","51-60","23","Learner","Diverse","Commercial"]
[null,"Non-Fleet","Non-Telematics","Comp","Heavy Commercial Vehicles","51-60","31-50","Learner","Male","Commercial"]
[null,"Non-Fleet","Non-Telematics","Comp","Heavy Commercial Vehicles",">60","17","Learner","Diverse","Commercial"]
[null,"Non-Fleet","Non-Telematics","Comp","Heavy Commercial Vehicles",">60","25","Learner","Female","Private"]
[null,"Non-Fleet","Non-Telematics","Comp","Heavy Commercial Vehicles",">60","70 or over","Learner","Diverse","Private"]
[null,"Non-Fleet","Non-Telematics","Comp","Buses, coaches etc","0-10","23","Learner","Female","Private"]
[null,"Non-Fleet","Non-Telematics","Comp","Buses, coaches etc","0-10","Any Driver","Non-Learner","Diverse","Commercial"]
[null,"Non-Fleet","Non-Telematics","Comp","Buses, coaches etc","11-20","19","Learner","Male","Commercial"]
[null,"Non-Fleet","Non-Telematics","Comp","Buses, coaches etc","11-20","51-69","Non-Learner","Diverse","Commercial"]
[null,"Non-Fleet","Non-Telematics","Comp","Buses, coaches etc","11-20","Any Driver","Non-Learner","Male","Commercial"]
[null,"Non-Fleet","Non-Telematics","Comp","Buses, coaches etc","21-30","22","Non-Learner","Diverse","Private"]
[null,"Non-Fleet","Non-Telematics","Comp","Buses, coaches etc","21-30","51-69","Non-Learner","Male","Commercial"]
[null,"Non-Fleet","Non-Telematics","Comp","Buses, coaches etc","31-40","25","Learner","Male","Private"]
[null,"Non-Fleet","Non-Telematics","Comp","Buses, coaches etc","31-40","26-20","Non-Learner","Male","Commercial"]
[null,"Non-Fleet","Non-Telematics","Comp","Buses, coaches etc","41-50","20","Learner","Diverse","Private"]
[null,"Non-Fleet","Non-Telematics","Comp","Buses, coaches etc","41-50","24","Non-Learner","Female","Private"]
[null,"Non-Fleet","Non-Telematics","Comp","Buses, coaches etc","51-60","22","Learner","Diverse","Private"]
[null,"Non-Fleet","Non-Telematics","Comp","Buses, coaches etc","51-60","22","Non-Learner","Female","Private"]
[null,"Non-Fleet","Non-Telematics","Comp","Buses, coaches etc","51-60","Any Driver","Learner","Diverse","Commercial"]
[null,"Non-Fleet","Non-Telematics","Comp","Buses, coaches etc",">60","24","Learner","Female","Private"]
[null,"Non-Fleet","Non-Telematics","Comp","Buses, coaches etc",">60","51-69","Learner","Female","Commercial"]
[null,"Non-Fleet","Non-Telematics","Comp","Taxis, private & public hire","0-10","22","Learner","Female","Private"]
[null,"Non-Fleet","Non-Telematics","Comp","Taxis, private & public hire","0-10","70 or over","Non-Learner","Diverse","Commercial"]
[null,"Non-Fleet","Non-Telematics","Comp","Taxis, private & public hire","11-20","18","Learner","Male","Private"]
[null,"Non-Fleet","Non-Telematics","Comp","Taxis, private & public hire","11-20","31-50","Non-Learner","Diverse","Commercial"]
[null,"Non-Fleet","Non-Telematics","Comp","Taxis, private & public hire","21-30","18","Learner","Female","Commercial"]
[null,"Non-Fleet","Non-Telematics","Comp","Taxis, private & public hire","21-30","21","Non-Learner","Female","Commercial"]
[null,"Non-Fleet","Non-Telematics","Comp","Taxis, private & public hire","21-30","31-50","Non-Learner","Male","Commercial"]
[null,"Non-Fleet","Non-Telematics","Comp","Taxis, private & public hire","31-40","24","Learner","Male","Private"]
[null,"Non-Fleet","Non-Telematics","Comp","Taxis, private & public hire","31-40","25","Non-Learner","Male","Private"]
[null,"Non-Fleet","Non-Telematics","Comp","Taxis, private & public hire","41-50","22","Learner","Male","Private"]
[null,"Non-Fleet","Non-Telematics","Comp","Taxis, private & public hire","41-50","23","Non-Learner","Female","Private"]
[null,"Non-Fleet","Non-Telematics","Comp","Taxis, private & public hire","51-60","17","Learner","Diverse","Commercial"]
[null,"Non-Fleet","Non-Telematics","Comp","Taxis, private & public hire","51-60","23","Learner","Diverse","Commercial"]
[null,"Non-Fleet","Non-Telematics","Comp","Taxis, private & public hire","51-60","70 or over","Learner","Diverse","Commercial"]
[null,"Non-Fleet","Non-Telematics","Comp","Taxis, private & public hire",">60","23","Learner","Female","Private"]
[null,"Non-Fleet","Non-Telematics","Comp","Taxis, private & public hire",">60","31-50","Learner","Female","Private"]
[null,"Non-Fleet","Non-Telematics","Comp","Self-drive hire vehicles","0-10","21","Learner","Female","Private"]
[null,"Non-Fleet","Non-Telematics","Comp","Self-drive hire vehicles","0-10","25","Non-Learner","Male","Private"]
[null,"Non-Fleet","Non-Telematics","Comp","Self-drive hire vehicles","0-10","Any Driver","Non-Learner","Diverse","Commercial"]
[null,"Non-Fleet","Non-Telematics","Comp","Self-drive hire vehicles","11-20","26-20","Non-Learner","Diverse","Commercial"]
[null,"Non-Fleet","Non-Telematics","Comp","Self-drive hire vehicles","21-30","17","Learner","Female","Commercial"]
[null,"Non-Fleet","Non-Telematics","Comp","Self-drive hire vehicles","21-30","20","Non-Learner","Female","Private"]
[null,"Non-Fleet","Non-Telematics","Comp","Self-drive hire vehicles","21-30","26-20","Non-Learner","Male","Commercial"]
[null,"Non-Fleet","Non-Telematics","Comp","Self-drive hire vehicles","31-40","23","Learner","Male","Private"]
[null,"Non-Fleet","Non-Telematics","Comp","Self-drive hire vehicles","31-40","24","Non-Learner","Female","Private"]
[null,"Non-Fleet","Non-Telematics","Comp","Self-drive hire vehicles","41-50","18","Non-Learner","Male","Commercial"]
[null,"Non-Fleet","Non-Telematics","Comp","Self-drive hire vehicles","41-50","22","Non-Learner","Female","Private"]
[null,"Non-Fleet","Non-Telematics","Comp","Self-drive hire vehicles","41-50","Any Driver","Learner","Diverse","Commercial"]
[null,"Non-Fleet","Non-Telematics","Comp","Self-drive hire vehicles","51-60","22","Learner","Diverse","Private"]
[null,"Non-Fleet","Non-Telematics","Comp","Self-drive hire vehicles","51-60","51-69","Learner","Diverse","Commercial"]
[null,"Non-Fleet","Non-Telematics","Comp","Self-drive hire vehicles",">60","18","Non-Learner","Female","Commercial"]
[null,"Non-Fleet","Non-Telematics","Comp","Self-drive hire vehicles",">60","26-20","Learner","Male","Commercial"]
[null,"Non-Fleet","Non-Telematics","Comp","Tankers, hazardous","0-10","20","Learner","Female","Private"]
[null,"Non-Fleet","Non-Telematics","Comp","Tankers, hazardous","0-10","24","Non-Learner","Male","Private"]
[null,"Non-Fleet","Non-Telematics","Comp","Tankers, hazardous","0-10","70 or over","Non-Learner","Diverse","Private"]
[null,"Non-Fleet","Non-Telematics","Comp","Tankers, hazardous","11-20","25","Non-Learner","Diverse","Commercial"]
[null,"Non-Fleet","Non-Telematics","Comp","Tankers, hazardous","11-20","Any Driver","Learner","Female","Commercial"]
[null,"Non-Fleet","Non-Telematics","Comp","Tankers, hazardous","21-30","19","Non-Learner","Male","Commercial"]
[null,"Non-Fleet","Non-Telematics","Comp","Tankers, hazardous","21-30","51-69","Learner","Female","Commercial"]
[null,"Non-Fleet","Non-Telematics","Comp","Tankers, hazardous","31-40","22","Learner","Male","Private"]
[null,"Non-Fleet","Non-Telematics","Comp","Tankers, hazardous","31-40","23","Non-Learner","Female","Private"]
[null,"Non-Fleet","Non-Telematics","Comp","Tankers, hazardous","41-50","17","Non-Learner","Male","Private"]
[null,"Non-Fleet","Non-Telematics","Comp","Tankers, hazardous","41-50","21","Non-Learner","Female","Private"]
[null,"Non-Fleet","Non-Telematics","Comp","Tankers, hazardous","41-50","70 or over","Learner","Diverse","Commercial"]
[null,"Non-Fleet","Non-Telematics","Comp","Tankers, hazardous","51-60","21","Learner","Female","Commercial"]
[null,"Non-Fleet","Non-Telematics","Comp","Tankers, hazardous","51-60","31-50","Learner","Diverse","Commercial"]
[null,"Non-Fleet","Non-Telematics","Comp","Tankers, hazardous",">60","17","Non-Learner","Female","Commercial"]
[null,"Non-Fleet","Non-Telematics","Comp","Tankers, hazardous",">60","25","Learner","Male","Private"]
[null,"Non-Fleet","Non-Telematics","Comp","Motor cycles","0-10","19","Learner","Female","Private"]
[null,"Non-Fleet","Non-Telematics","Comp","Motor cycles","0-10","23","Non-Learner","Male","Private"]
[null,"Non-Fleet","Non-Telematics","Comp","Motor cycles","0-10","51-69","Non-Learner","Female","Commercial"]
[null,"Non-Fleet","Non-Telematics","Comp","Motor cycles","11-20","21","Non-Learner","Male","Private"]
[null,"Non-Fleet","Non-Telematics","Comp","Motor cycles","11-20","70 or over","Learner","Female","Commercial"]
[null,"Non-Fleet","Non-Telematics","Comp","Motor cycles","21-30","23","Learner","Male","Private"]
[null,"Non-Fleet","Non-Telematics","Comp","Motor cycles","21-30","26-20","Non-Learner","Female","Private"]
[null,"Non-Fleet","Non-Telematics","Comp","Motor cycles","31-40","21","Learner","Male","Private"]
[null,"Non-Fleet","Non-Telematics","Comp","Motor cycles","31-40","22","Non-Learner","Female","Private"]
[null,"Non-Fleet","Non-Telematics","Comp","Motor cycles","31-40","Any Driver","Learner","Diverse","Commercial"]
[null,"Non-Fleet","Non-Telematics","Comp","Motor cycles","41-50","20","Non-Learner","Female","Private"]
[null,"Non-Fleet","Non-Telematics","Comp","Motor cycles","51-60","17","Learner","Male","Commercial"]
[null,"Non-Fleet","Non-Telematics","Comp","Motor cycles","51-60","20","Learner","Female","Private"]
[null,"Non-Fleet","Non-Telematics","Comp","Motor cycles","51-60","26-20","Learner","Diverse","Commercial"]
[null,"Non-Fleet","Non-Telematics","Comp","Motor cycles","51-60","Any Driver","Non-Learner","Female","Commercial"]
[null,"Non-Fleet","Non-Telematics","Comp","Motor cycles",">60","23","Non-Learner","Diverse","Commercial"]
[null,"Non-Fleet","Non-Telematics","Comp","Motor cycles",">60","51-69","Non-Learner","Female","Commercial"]
[null,"Non-Fleet","Non-Telematics","Comp","Motor Trade Road Risks","0-10","22","Non-Learner","Male","Private"]
[null,"Non-Fleet","Non-Telematics","Comp","Motor Trade Road Risks","0-10","Any Driver","Learner","Female","Commercial"]
[null,"Non-Fleet","Non-Telematics","Comp","Motor Trade Road Risks","11-20","21","Non-Learner","Diverse","Private"]
[null,"Non-Fleet","Non-Telematics","Comp","Motor Trade Road Risks","11-20","51-69","Learner","Female","Commercial"]
[null,"Non-Fleet","Non-Telematics","Comp","Motor Trade Road Risks","21-30","22","Learner","Male","Private"]
[null,"Non-Fleet","Non-Telematics","Comp","Motor Trade Road Risks","21-30","25","Non-Learner","Male","Commercial"]
[null,"Non-Fleet","Non-Telematics","Comp","Motor Trade Road Risks","31-40","20","Learner","Male","Private"]
[null,"Non-Fleet","Non-Telematics","Comp","Motor Trade Road Risks","31-40","24","Learner","Diverse","Private"]
[null,"Non-Fleet","Non-Telematics","Comp","Motor Trade Road Risks","31-40","70 or over","Learner","Diverse","Private"]
[null,"Non-Fleet","Non-Telematics","Comp","Motor Trade Road Risks","41-50","19","Non-Learner","Female","Private"]
[null,"Non-Fleet","Non-Telematics","Comp","Motor Trade Road Risks","41-50","Any Driver","Learner","Male","Commercial"]
[null,"Non-Fleet","Non-Telematics","Comp","Motor Trade Road Risks","51-60","19","Learner","Male","Commercial"]
[null,"Non-Fleet","Non-Telematics","Comp","Motor Trade Road Risks","51-60","25","Learner","Diverse","Commercial"]
[null,"Non-Fleet","Non-Telematics","Comp","Motor Trade Road Risks","51-60","70 or over","Non-Learner","Female","Commercial"]
[null,"Non-Fleet","Non-Telematics","Comp","Motor Trade Road Risks",">60","22","Non-Learner","Diverse","Private"]
[null,"Non-Fleet","Non-Telematics","Comp","Motor Trade Road Risks",">60","31-50","Non-Learner","Female","Commercial"]
[null,"Non-Fleet","Non-Telematics","Comp","All others","0-10","21","Non-Learner","Male","Private"]
[null,"Non-Fleet","Non-Telematics","Comp","All others","0-10","70 or over","Learner","Female","Commercial"]
[null,"Non-Fleet","Non-Telematics","Comp","All others","11-20","20","Non-Learner","Female","Commercial"]
[null,"Non-Fleet","Non-Telematics","Comp","All others","11-20","31-50","Learner","Female","Commercial"]
[null,"Non-Fleet","Non-Telematics","Comp","All others","21-30","17","Non-Learner","Male","Commercial"]
[null,"Non-Fleet","Non-Telematics","Comp","All others","21-30","24","Non-Learner","Male","Private"]
[null,"Non-Fleet","Non-Telematics","Comp","All others","31-40","19","Learner","Male","Private"]
[null,"Non-Fleet","Non-Telematics","Comp","All others","31-40","23","Learner","Diverse","Private"]
[null,"Non-Fleet","Non-Telematics","Comp","All others","31-40","51-69","Learner","Female","Commercial"]
[null,"Non-Fleet","Non-Telematics","Comp","All others","41-50","18","Non-Learner","Female","Private"]
[null,"Non-Fleet","Non-Telematics","Comp","All others","41-50","70 or over","Learner","Male","Commercial"]
[null,"Non-Fleet","Non-Telematics","Comp","All others","51-60","18","Learner","Male","Private"]
[null,"Non-Fleet","Non-Telematics","Comp","All others","51-60","31-50","Learner","Male","Commercial"]
[null,"Non-Fleet","Non-Telematics","Comp","All others","51-60","51-69","Non-Learner","Female","Commercial"]
[null,"Non-Fleet","Non-Telematics","Comp","All others",">60","22","Non-Learner","Male","Private"]
[null,"Non-Fleet","Non-Telematics","Comp","All others",">60","70 or over","Non-Learner","Diverse","Commercial"]
[null,"Non-Fleet","Non-Telematics","Non-Comp","Motor Cars","0-10","20","Non-Learner","Male","Private"]
[null,"Non-Fleet","Non-Telematics","Non-Comp","Motor Cars","0-10","51-69","Learner","Female","Commercial"]
[null,"Non-Fleet","Non-Telematics","Non-Comp","Motor Cars","11-20","19","Non-Learner","Female","Private"]
[null,"Non-Fleet","Non-Telematics","Non-Comp","Motor Cars","11-20","26-20","Learner","Female","Commercial"]
[null,"Non-Fleet","Non-Telematics","Non-Comp","Motor Cars","11-20","Any Driver","Non-Learner","Male","Commercial"]
[null,"Non-Fleet","Non-Telematics","Non-Comp","Motor Cars","21-30","23","Learner","Diverse","Commercial"]
[null,"Non-Fleet","Non-Telematics","Non-Comp","Motor Cars","31-40","18","Learner","Male","Private"]
[null,"Non-Fleet","Non-Telematics","Non-Comp","Motor Cars","31-40","22","Learner","Diverse","Private"]
[null,"Non-Fleet","Non-Telematics","Non-Comp","Motor Cars","31-40","31-50","Learner","Female","Private"]
[null,"Non-Fleet","Non-Telematics","Non-Comp","Motor Cars","41-50","20","Learner","Diverse","Private"]
[null,"Non-Fleet","Non-Telematics","Non-Comp","Motor Cars","41-50","51-69","Learner","Male","Commercial"]
[null,"Non-Fleet","Non-Telematics","Non-Comp","Motor Cars","41-50","70 or over","Non-Learner","Female","Commercial"]
[null,"Non-Fleet","Non-Telematics","Non-Comp","Motor Cars","51-60","25","Learner","Male","Commercial"]
[null,"Non-Fleet","Non-Telematics","Non-Comp","Motor Cars","51-60","31-50","Non-Learner","Female","Commercial"]
[null,"Non-Fleet","Non-Telematics","Non-Comp","Motor Cars",">60","21","Non-Learner","Male","Private"]
[null,"Non-Fleet","Non-Telematics","Non-Comp","Motor Cars",">60","51-69","Non-Learner","Diverse","Private"]
[null,"Non-Fleet","Non-Telematics","Non-Comp","Light Commercial Vehicles","0-10","19","Non-Learner","Male","Private"]
[null,"Non-Fleet","Non-Telematics","Non-Comp","Light Commercial Vehicles","0-10","23","Non-Learner","Diverse","Private"]
[null,"Non-Fleet","Non-Telematics","Non-Comp","Light Commercial Vehicles","11-20","18","Non-Learner","Male","Commercial"]
[null,"Non-Fleet","Non-Telematics","Non-Comp","Light Commercial Vehicles","11-20","25","Learner","Female","Commercial"]
[null,"Non-Fleet","Non-Telematics","Non-Comp","Light Commercial Vehicles","11-20","70 or over","Non-Learner","Male","Commercial"]
[null,"Non-Fleet","Non-Telematics","Non-Comp","Light Commercial Vehicles","21-30","22","Learner","Diverse","Private"]
[null,"Non-Fleet","Non-Telematics","Non-Comp","Light Commercial Vehicles","21-30","31-50","Non-Learner","Male","Commercial"]
[null,"Non-Fleet","Non-Telematics","Non-Comp","Light Commercial Vehicles","31-40","21","Learner","Diverse","Private"]
[null,"Non-Fleet","Non-Telematics","Non-Comp","Light Commercial Vehicles","31-40","26-20","Learner","Male","Commercial"]
[null,"Non-Fleet","Non-Telematics","Non-Comp","Light Commercial Vehicles","41-50","19","Learner","Diverse","Private"]
[null,"Non-Fleet","Non-Telematics","Non-Comp","Light Commercial Vehicles","41-50","31-50","Learner","Male","Commercial"]
[null,"Non-Fleet","Non-Telematics","Non-Comp","Light Commercial Vehicles","41-50","51-69","Non-Learner","Female","Commercial"]
[null,"Non-Fleet","Non-Telematics","Non-Comp","Light Commercial Vehicles","51-60","24","Learner","Male","Private"]
[null,"Non-Fleet","Non-Telematics","Non-Comp","Light Commercial Vehicles","51-60","26-20","Non-Learner","Female","Commercial"]
[null,"Non-Fleet","Non-Telematics","Non-Comp","Light Commercial Vehicles",">60","23","Learner","Female","Private"]
[null,"Non-Fleet","Non-Telematics","Non-Comp","Light Commercial Vehicles",">60","31-50","Non-Learner","Female","Commercial"]
[null,"Non-Fleet","Non-Telematics","Non-Comp","Medium Commercial Vehicles","0-10","18","Non-Learner","Male","Private"]
[null,"Non-Fleet","Non-Telematics","Non-Comp","Medium Commercial Vehicles","0-10","22","Non-Learner","Diverse","Private"]
[null,"Non-Fleet","Non-Telematics","Non-Comp","Medium Commercial Vehicles","11-20","17","Non-Learner","Male","Private"]
[null,"Non-Fleet","Non-Telematics","Non-Comp","Medium Commercial Vehicles","11-20","24","Learner","Female","Commercial"]
[null,"Non-Fleet","Non-Telematics","Non-Comp","Medium Commercial Vehicles","11-20","51-69","Non-Learner","Male","Commercial"]
[null,"Non-Fleet","Non-Telematics","Non-Comp","Medium Commercial Vehicles","21-30","21","Learner","Female","Commercial"]
[null,"Non-Fleet","Non-Telematics","Non-Comp","Medium Commercial Vehicles","21-30","26-20","Non-Learner","Male","Commercial"]
[null,"Non-Fleet","Non-Telematics","Non-Comp","Medium Commercial Vehicles","31-40","20","Learner","Diverse","Private"]
[null,"Non-Fleet","Non-Telematics","Non-Comp","Medium Commercial Vehicles","31-40","51-69","Learner","Male","Commercial"]
[null,"Non-Fleet","Non-Telematics","Non-Comp","Medium Commercial Vehicles","41-50","19","Learner","Female","Private"]
[null,"Non-Fleet","Non-Telematics","Non-Comp","Medium Commercial Vehicles","41-50","26-20","Learner","Male","Commercial"]
[null,"Non-Fleet","Non-Telematics","Non-Comp","Medium Commercial Vehicles","41-50","Any Driver","Learner","Diverse","Commercial"]
[null,"Non-Fleet","Non-Telematics","Non-Comp","Medium Commercial Vehicles","51-60","22","Non-Learner","Diverse","Commercial"]
[null,"Non-Fleet","Non-Telematics","Non-Comp","Medium Commercial Vehicles","51-60","25","Non-Learner","Female","Commercial"]
[null,"Non-Fleet","Non-Telematics","Non-Comp","Medium Commercial Vehicles",">60","22","Learner","Female","Private"]
[null,"Non-Fleet","Non-Telematics","Non-Comp","Medium Commercial Vehicles",">60","26-20","Non-Learner","Female","Private"]
[null,"Non-Fleet","Non-Telematics","Non-Comp","Heavy Commercial Vehicles","0-10","17","Non-Learner","Male","Private"]
[null,"Non-Fleet","Non-Telematics","Non-Comp","Heavy Commercial Vehicles","0-10","21","Non-Learner","Diverse","Private"]
[null,"Non-Fleet","Non-Telematics","Non-Comp","Heavy Commercial Vehicles","0-10","Any Driver","Learner","Diverse","Commercial"]
[null,"Non-Fleet","Non-Telematics","Non-Comp","Heavy Commercial Vehicles","11-20","19","Non-Learner","Diverse","Private"]
[null,"Non-Fleet","Non-Telematics","Non-Comp","Heavy Commercial Vehicles","11-20","31-50","Non-Learner","Male","Commercial"]
[null,"Non-Fleet","Non-Telematics","Non-Comp","Heavy Commercial Vehicles","21-30","21","Learner","Diverse","Private"]
[null,"Non-Fleet","Non-Telematics","Non-Comp","Heavy Commercial Vehicles","21-30","51-69","Learner","Diverse","Private"]
[null,"Non-Fleet","Non-Telematics","Non-Comp","Heavy Commercial Vehicles","31-40","19","Learner","Diverse","Private"]
[null,"Non-Fleet","Non-Telematics","Non-Comp","Heavy Commercial Vehicles","31-40","23","Non-Learner","Female","Private"]
[null,"Non-Fleet","Non-Telematics","Non-Comp","Heavy Commercial Vehicles","41-50","18","Learner","Male","Commercial"]
[null,"Non-Fleet","Non-Telematics","Non-Comp","Heavy Commercial Vehicles","41-50","25","Learner","Male","Commercial"]
[null,"Non-Fleet","Non-Telematics","Non-Comp","Heavy Commercial Vehicles","41-50","70 or over","Learner","Diverse","Commercial"]
[null,"Non-Fleet","Non-Telematics","Non-Comp","Heavy Commercial Vehicles","51-60","21","Non-Learner","Diverse","Private"]
[null,"Non-Fleet","Non-Telematics","Non-Comp","Heavy Commercial Vehicles","51-60","24","Non-Learner","Female","Commercial"]
[null,"Non-Fleet","Non-Telematics","Non-Comp","Heavy Commercial Vehicles",">60","21","Learner","Female","Private"]
[null,"Non-Fleet","Non-Telematics","Non-Comp","Heavy Commercial Vehicles",">60","25","Non-Learner","Male","Commercial"]
[null,"Non-Fleet","Non-Telematics","Non-Comp","Buses, coaches etc","0-10","19","Learner","Female","Private"]
[null,"Non-Fleet","Non-Telematics","Non-Comp","Buses, coaches etc","0-10","20","Non-Learner","Diverse","Private"]
[null,"Non-Fleet","Non-Telematics","Non-Comp","Buses, coaches etc","0-10","70 or over","Learner","Diverse","Private"]
[null,"Non-Fleet","Non-Telematics","Non-Comp","Buses, coaches etc","11-20","18","Non-Learner","Diverse","Private"]
[null,"Non-Fleet","Non-Telematics","Non-Comp","Buses, coaches etc","11-20","26-20","Non-Learner","Male","Commercial"]
[null,"Non-Fleet","Non-Telematics","Non-Comp","Buses, coaches etc","21-30","20","Learner","Diverse","Private"]
[null,"Non-Fleet","Non-Telematics","Non-Comp","Buses, coaches etc","21-30","31-50","Learner","Female","Commercial"]
[null,"Non-Fleet","Non-Telematics","Non-Comp","Buses, coaches etc","31-40","18","Learner","Diverse","Private"]
[null,"Non-Fleet","Non-Telematics","Non-Comp","Buses, coaches etc","31-40","22","Non-Learner","Female","Private"]
[null,"Non-Fleet","Non-Telematics","Non-Comp","Buses, coaches etc","41-50","17","Learner","Male","Private"]
[null,"Non-Fleet","Non-Telematics","Non-Comp","Buses, coaches etc","41-50","24","Learner","Male","Commercial"]
[null,"Non-Fleet","Non-Telematics","Non-Comp","Buses, coaches etc","41-50","51-69","Learner","Diverse","Commercial"]
[null,"Non-Fleet","Non-Telematics","Non-Comp","Buses, coaches etc","51-60","20","Non-Learner","Female","Commercial"]
[null,"Non-Fleet","Non-Telematics","Non-Comp","Buses, coaches etc","51-60","26-20","Learner","Diverse","Commercial"]
[null,"Non-Fleet","Non-Telematics","Non-Comp","Buses, coaches etc",">60","20","Learner","Female","Private"]
[null,"Non-Fleet","Non-Telematics","Non-Comp","Buses, coaches etc",">60","24","Non-Learner","Male","Private"]
[null,"Non-Fleet","Non-Telematics","Non-Comp","Taxis, private & public hire","0-10","18","Learner","Female","Private"]
[null,"Non-Fleet","Non-Telematics","Non-Comp","Taxis, private & public hire","0-10","19","Non-Learner","Diverse","Private"]
[null,"Non-Fleet","Non-Telematics","Non-Comp","Taxis, private & public hire","0-10","31-50","Non-Learner","Male","Commercial"]
[null,"Non-Fleet","Non-Telematics","Non-Comp","Taxis, private & public hire","11-20","22","Learner","Diverse","Commercial"]
[null,"Non-Fleet","Non-Telematics","Non-Comp","Taxis, private & public hire","11-20","25","Non-Learner","Male","Commercial"]
[null,"Non-Fleet","Non-Telematics","Non-Comp","Taxis, private & public hire","11-20","70 or over","Non-Learner","Diverse","Commercial"]
[null,"Non-Fleet","Non-Telematics","Non-Comp","Taxis, private & public hire","21-30","26-20","Learner","Female","Private"]
[null,"Non-Fleet","Non-Telematics","Non-Comp","Taxis, private & public hire","31-40","17","Learner","Diverse","Private"]
[null,"Non-Fleet","Non-Telematics","Non-Comp","Taxis, private & public hire","31-40","21","Non-Learner","Female","Private"]
[null,"Non-Fleet","Non-Telematics","Non-Comp","Taxis, private & public hire","31-40","70 or over","Non-Learner","Diverse","Commercial"]
[null,"Non-Fleet","Non-Telematics","Non-Comp","Taxis, private & public hire","41-50","23","Learner","Male","Commercial"]
[null,"Non-Fleet","Non-Telematics","Non-Comp","Taxis, private & public hire","41-50","31-50","Learner","Diverse","Commercial"]
[null,"Non-Fleet","Non-Telematics","Non-Comp","Taxis, private & public hire","51-60","19","Non-Learner","Female","Private"]
[null,"Non-Fleet","Non-Telematics","Non-Comp","Taxis, private & public hire","51-60","25","Learner","Diverse","Commercial"]
[null,"Non-Fleet","Non-Telematics","Non-Comp","Taxis, private & public hire",">60","19","Learner","Female","Private"]
[null,"Non-Fleet","Non-Telematics","Non-Comp","Taxis, private & public hire",">60","20","Non-Learner","Diverse","Private"]
[null,"Non-Fleet","Non-Telematics","Non-Comp","Self-drive hire vehicles","0-10","17","Non-Learner","Male","Commercial"]
[null,"Non-Fleet","Non-Telematics","Non-Comp","Self-drive hire vehicles","0-10","18","Non-Learner","Diverse","Private"]
[null,"Non-Fleet","Non-Telematics","Non-Comp","Self-drive hire vehicles","0-10","70 or over","Learner","Female","Commercial"]
[null,"Non-Fleet","Non-Telematics","Non-Comp","Self-drive hire vehicles","11-20","21","Learner","Diverse","Private"]
[null,"Non-Fleet","Non-Telematics","Non-Comp","Self-drive hire vehicles","11-20","24","Non-Learner","Male","Commercial"]
[null,"Non-Fleet","Non-Telematics","Non-Comp","Self-drive hire vehicles","11-20","51-69","Non-Learner","Diverse","Commercial"]
[null,"Non-Fleet","Non-Telematics","Non-Comp","Self-drive hire vehicles","21-30","25","Learner","Male","Commercial"]
[null,"Non-Fleet","Non-Telematics","Non-Comp","Self-drive hire vehicles","21-30","Any Driver","Learner","Diverse","Private"]
[null,"Non-Fleet","Non-Telematics","Non-Comp","Self-drive hire vehicles","31-40","20","Non-Learner","Female","Private"]
[null,"Non-Fleet","Non-Telematics","Non-Comp","Self-drive hire vehicles","31-40","51-69","Non-Learner","Diverse","Private"]
[null,"Non-Fleet","Non-Telematics","Non-Comp","Self-drive hire vehicles","41-50","18","Non-Learner","Female","Private"]
[null,"Non-Fleet","Non-Telematics","Non-Comp","Self-drive hire vehicles","41-50","26-20","Learner","Diverse","Commercial"]
[null,"Non-Fleet","Non-Telematics","Non-Comp","Self-drive hire vehicles","51-60","18","Non-Learner","Male","Commercial"]
[null,"Non-Fleet","Non-Telematics","Non-Comp","Self-drive hire vehicles","51-60","24","Learner","Diverse","Commercial"]
[null,"Non-Fleet","Non-Telematics","Non-Comp","Self-drive hire vehicles",">60","18","Learner","Female","Private"]
[null,"Non-Fleet","Non-Telematics","Non-Comp","Self-drive hire vehicles",">60","22","Non-Learner","Male","Private"]
[null,"Non-Fleet","Non-Telematics","Non-Comp","Self-drive hire vehicles",">60","Any Driver","Non-Learner","Male","Private"]
[null,"Non-Fleet","Non-Telematics","Non-Comp","Tankers, hazardous","0-10","17","Non-Learner","Diverse","Private"]
[null,"Non-Fleet","Non-Telematics","Non-Comp","Tankers, hazardous","0-10","51-69","Learner","Female","Commercial"]
[null,"Non-Fleet","Non-Telematics","Non-Comp","Tankers, hazardous","11-20","20","Learner","Female","Commercial"]
[null,"Non-Fleet","Non-Telematics","Non-Comp","Tankers, hazardous","11-20","23","Non-Learner","Male","Commercial"]
[null,"Non-Fleet","Non-Telematics","Non-Comp","Tankers, hazardous","11-20","31-50","Non-Learner","Diverse","Commercial"]
[null,"Non-Fleet","Non-Telematics","Non-Comp","Tankers, hazardous","21-30","24","Learner","Male","Private"]
[null,"Non-Fleet","Non-Telematics","Non-Comp","Tankers, hazardous","21-30","25","Non-Learner","Diverse","Commercial"]
[null,"Non-Fleet","Non-Telematics","Non-Comp","Tankers, hazardous","31-40","19","Non-Learner","Female","Private"]
[null,"Non-Fleet","Non-Telematics","Non-Comp","Tankers, hazardous","31-40","31-50","Non-Learner","Female","Commercial"]
[null,"Non-Fleet","Non-Telematics","Non-Comp","Tankers, hazardous","41-50","17","Non-Learner","Female","Private"]
[null,"Non-Fleet","Non-Telematics","Non-Comp","Tankers, hazardous","41-50","25","Learner","Diverse","Commercial"]
[null,"Non-Fleet","Non-Telematics","Non-Comp","Tankers, hazardous","51-60","19","Learner","Female","Private"]
[null,"Non-Fleet","Non-Telematics","Non-Comp","Tankers, hazardous","51-60","19","Non-Learner","Female","Private"]
[null,"Non-Fleet","Non-Telematics","Non-Comp","Tankers, hazardous",">60","17","Learner","Female","Private"]
[null,"Non-Fleet","Non-Telematics","Non-Comp","Tankers, hazardous",">60","21","Non-Learner","Male","Private"]
[null,"Non-Fleet","Non-Telematics","Non-Comp","Tankers, hazardous",">60","70 or over","Learner","Diverse","Commercial"]
[null,"Non-Fleet","Non-Telematics","Non-Comp","Tankers, hazardous",">60","Any Driver","Non-Learner","Diverse","Private"]
[null,"Non-Fleet","Non-Telematics","Non-Comp","Motor cycles","0-10","31-50","Learner","Female","Commercial"]
[null,"Non-Fleet","Non-Telematics","Non-Comp","Motor cycles","11-20","19","Learner","Female","Private"]
[null,"Non-Fleet","Non-Telematics","Non-Comp","Motor cycles","11-20","25","Learner","Female","Commercial"]
[null,"Non-Fleet","Non-Telematics","Non-Comp","Motor cycles","11-20","26-20","Non-Learner","Diverse","Commercial"]
[null,"Non-Fleet","Non-Telematics","Non-Comp","Motor cycles","21-30","22","Non-Learner","Diverse","Commercial"]
[null,"Non-Fleet","Non-Telematics","Non-Comp","Motor cycles","21-30","24","Non-Learner","Diverse","Commercial"]
[null,"Non-Fleet","Non-Telematics","Non-Comp","Motor cycles","31-40","18","Non-Learner","Female","Private"]
[null,"Non-Fleet","Non-Telematics","Non-Comp","Motor cycles","31-40","26-20","Learner","Diverse","Commercial"]
[null,"Non-Fleet","Non-Telematics","Non-Comp","Motor cycles","31-40","51-69","Non-Learner","Diverse","Private"]
[null,"Non-Fleet","Non-Telematics","Non-Comp","Motor cycles","41-50","24","Learner","Diverse","Commercial"]
[null,"Non-Fleet","Non-Telematics","Non-Comp","Motor cycles","41-50","51-69","Non-Learner","Female","Commercial"]
[null,"Non-Fleet","Non-Telematics","Non-Comp","Motor cycles","51-60","18","Non-Learner","Male","Commercial"]
[null,"Non-Fleet","Non-Telematics","Non-Comp","Motor cycles","51-60","Any Driver","Learner","Female","Private"]
[null,"Non-Fleet","Non-Telematics","Non-Comp","Motor cycles",">60","20","Non-Learner","Male","Private"]
[null,"Non-Fleet","Non-Telematics","Non-Comp","Motor cycles",">60","51-69","Learner","Diverse","Private"]
[null,"Non-Fleet","Non-Telematics","Non-Comp","Motor Trade Road Risks","0-10","18","Non-Learner","Male","Private"]
[null,"Non-Fleet","Non-Telematics","Non-Comp","Motor Trade Road Risks","0-10","26-20","Learner","Female","Commercial"]
[null,"Non-Fleet","Non-Telematics","Non-Comp","Motor Trade Road Risks","11-20","18","Learner","Male","Commercial"]
[null,"Non-Fleet","Non-Telematics","Non-Comp","Motor Trade Road Risks","11-20","24","Learner","Female","Commercial"]
[null,"Non-Fleet","Non-Telematics","Non-Comp","Motor Trade Road Risks","11-20","25","Non-Learner","Diverse","Commercial"]
[null,"Non-Fleet","Non-Telematics","Non-Comp","Motor Trade Road Risks","21-30","21","Non-Learner","Diverse","Private"]
[null,"Non-Fleet","Non-Telematics","Non-Comp","Motor Trade Road Risks","21-30","23","Non-Learner","Diverse","Commercial"]
[null,"Non-Fleet","Non-Telematics","Non-Comp","Motor Trade Road Risks","31-40","17","Non-Learner","Female","Private"]
[null,"Non-Fleet","Non-Telematics","Non-Comp","Motor Trade Road Risks","31-40","22","Learner","Male","Private"]
[null,"Non-Fleet","Non-Telematics","Non-Comp","Motor Trade Road Risks","31-40","31-50","Non-Learner","Female","Commercial"]
[null,"Non-Fleet","Non-Telematics","Non-Comp","Motor Trade Road Risks","41-50","23","Learner","Diverse","Commercial"]
[null,"Non-Fleet","Non-Telematics","Non-Comp","Motor Trade Road Risks","41-50","31-50","Non-Learner","Female","Commercial"]
[null,"Non-Fleet","Non-Telematics","Non-Comp","Motor Trade Road Risks","51-60","17","Non-Learner","Male","Private"]
[null,"Non-Fleet","Non-Telematics","Non-Comp","Motor Trade Road Risks","51-60","70 or over","Learner","Female","Private"]
[null,"Non-Fleet","Non-Telematics","Non-Comp","Motor Trade Road Risks",">60","19","Non-Learner","Male","Private"]
[null,"Non-Fleet","Non-Telematics","Non-Comp","Motor Trade Road Risks",">60","31-50","Learner","Female","Commercial"]
[null,"Non-Fleet","Non-Telematics","Non-Comp","All others","0-10","17","Non-Learner","Male","Private"]
[null,"Non-Fleet","Non-Telematics","Non-Comp","All others","0-10","25","Learner","Female","Commercial"]
[null,"Non-Fleet","Non-Telematics","Non-Comp","All others","11-20","17","Learner","Male","Private"]
[null,"Non-Fleet","Non-Telematics","Non-Comp","All others","11-20","23","Learner","Female","Commercial"]
[null,"Non-Fleet","Non-Telematics","Non-Comp","All others","11-20","24","Non-Learner","Diverse","Commercial"]
[null,"Non-Fleet","Non-Telematics","Non-Comp","All others","21-30","21","Learner","Diverse","Private"]
[null,"Non-Fleet","Non-Telematics","Non-Comp","All others","21-30","22","Non-Learner","Diverse","Commercial"]
[null,"Non-Fleet","Non-Telematics","Non-Comp","All others","21-30","Any Driver","Non-Learner","Female","Private"]
[null,"Non-Fleet","Non-Telematics","Non-Comp","All others","31-40","21","Learner","Male","Private"]
[null,"Non-Fleet","Non-Telematics","Non-Comp","All others","31-40","26-20","Non-Learner","Female","Private"]
[null,"Non-Fleet","Non-Telematics","Non-Comp","All others","41-50","22","Learner","Diverse","Commercial"]
[null,"Non-Fleet","Non-Telematics","Non-Comp","All others","41-50","26-20","Non-Learner","Female","Commercial"]
[null,"Non-Fleet","Non-Telematics","Non-Comp","All others","41-50","Any Driver","Learner","Diverse","Commercial"]
[null,"Non-Fleet","Non-Telematics","Non-Comp","All others","51-60","24","Non-Learner","Female","Commercial"]
[null,"Non-Fleet","Non-Telematics","Non-Comp","All others",">60","18","Non-Learner","Male","Private"]
[null,"Non-Fleet","Non-Telematics","Non-Comp","All others",">60","26-20","Learner","Female","Private"]
[null,"Non-Fleet","Non-Telematics","Non-Comp","All others",">60","Any Driver","Non-Learner","Male","Private"]
[null,"Fleet","Telematics","Comp","Motor Cars","11-20","24","Non-Learner","Not provided","Commercial"]
[null,"Fleet","Telematics","Comp","Motor Cars","11-20","70 or over","Non-Learner","Not provided","Commercial"]
[null,"Fleet","Telematics","Comp","Motor Cars","31-40","20","Learner","Not provided","Commercial"]
[null,"Fleet","Telematics","Comp","Motor Cars","41-50","23","Non-Learner","Not provided","Commercial"]
[null,"Fleet","Telematics","Comp","Motor Cars",">60","31-50","Learner","Not provided","Private"]
[null,"Fleet","Telematics","Comp","Light Commercial Vehicles","0-10","17","Non-Learner","Not provided","Private"]
[null,"Fleet","Telematics","Comp","Light Commercial Vehicles","11-20","31-50","Learner","Not provided","Private"]
[null,"Fleet","Telematics","Comp","Light Commercial Vehicles","21-30","26-20","Learner","Not provided","Private"]
[null,"Fleet","Telematics","Comp","Light Commercial Vehicles","31-40","51-69","Non-Learner","Not provided","Commercial"]
[null,"Fleet","Telematics","Comp","Light Commercial Vehicles","51-60","20","Learner","Not provided","Private"]
[null,"Fleet","Telematics","Comp","Light Commercial Vehicles",">60","70 or over","Learner","Not provided","Commercial"]
[null,"Fleet","Telematics","Comp","Medium Commercial Vehicles","0-10","26-20","Learner","Not provided","Private"]
[null,"Fleet","Telematics","Comp","Medium Commercial Vehicles","21-30","23","Learner","Not provided","Commercial"]
[null,"Fleet","Telematics","Comp","Medium Commercial Vehicles","41-50","18","Non-Learner","Not provided","Private"]
[null,"Fleet","Telematics","Comp","Medium Commercial Vehicles","51-60","31-50","Learner","Not provided","Commercial"]
[null,"Fleet","Telematics","Comp","Medium Commercial Vehicles",">60","26-20","Non-Learner","Not provided","Private"]
[null,"Fleet","Telematics","Comp","Heavy Commercial Vehicles","11-20","21","Non-Learner","Not provided","Commercial"]
[null,"Fleet","Telematics","Comp","Heavy Commercial Vehicles","21-30","20","Non-Learner","Not provided","Commercial"]
[null,"Fleet","Telematics","Comp","Heavy Commercial Vehicles","31-40","17","Learner","Not provided","Private"]
[null,"Fleet","Telematics","Comp","Heavy Commercial Vehicles","41-50","20","Non-Learner","Not provided","Commercial"]
[null,"Fleet","Telematics","Comp","Heavy Commercial Vehicles",">60","24","Learner","Not provided","Private"]
[null,"Fleet","Telematics","Comp","Heavy Commercial Vehicles",">60","51-69","Learner","Not provided","Commercial"]
[null,"Fleet","Telematics","Comp","Buses, coaches etc","21-30","18","Learner","Not provided","Private"]
[null,"Fleet","Telematics","Comp","Buses, coaches etc","21-30","23","Learner","Not provided","Private"]
[null,"Fleet","Telematics","Comp","Buses, coaches etc","31-40","25","Non-Learner","Not provided","Private"]
[null,"Fleet","Telematics","Comp","Buses, coaches etc","51-60","17","Learner","Not provided","Private"]
[null,"Fleet","Telematics","Comp","Buses, coaches etc",">60","26-20","Learner","Not provided","Commercial"]
[null,"Fleet","Telematics","Comp","Taxis, private & public hire","0-10","22","Non-Learner","Not provided","Commercial"]
[null,"Fleet","Telematics","Comp","Taxis, private & public hire","21-30","20","Learner","Not provided","Commercial"]
[null,"Fleet","Telematics","Comp","Taxis, private & public hire","31-40","70 or over","Non-Learner","Not provided","Private"]
[null,"Fleet","Telematics","Comp","Taxis, private & public hire","41-50","51-69","Non-Learner","Not provided","Private"]
[null,"Fleet","Telematics","Comp","Taxis, private & public hire","51-60","Any Driver","Non-Learner","Not provided","Private"]
[null,"Fleet","Telematics","Comp","Self-drive hire vehicles","11-20","18","Non-Learner","Not provided","Commercial"]
[null,"Fleet","Telematics","Comp","Self-drive hire vehicles","21-30","17","Non-Learner","Not provided","Commercial"]
[null,"Fleet","Telematics","Comp","Self-drive hire vehicles","21-30","31-50","Non-Learner","Not provided","Commercial"]
[null,"Fleet","Telematics","Comp","Self-drive hire vehicles","41-50","17","Non-Learner","Not provided","Commercial"]
[null,"Fleet","Telematics","Comp","Self-drive hire vehicles",">60","21","Learner","Not provided","Private"]
[null,"Fleet","Telematics","Comp","Self-drive hire vehicles",">60","25","Learner","Not provided","Private"]
[null,"Fleet","Telematics","Comp","Tankers, hazardous","11-20","70 or over","Learner","Not provided","Private"]
[null,"Fleet","Telematics","Comp","Tankers, hazardous","21-30","20","Learner","Not provided","Private"]
[null,"Fleet","Telematics","Comp","Tankers, hazardous","31-40","22","Learner","Not provided","Commercial"]
[null,"Fleet","Telematics","Comp","Tankers, hazardous","41-50","51-69","Learner","Not provided","Private"]
[null,"Fleet","Telematics","Comp","Tankers, hazardous",">60","23","Learner","Not provided","Commercial"]
[null,"Fleet","Telematics","Comp","Motor cycles","0-10","22","Learner","Not provided","Commercial"]
[null,"Fleet","Telematics","Comp","Motor cycles","11-20","Any Driver","Learner","Not provided","Private"]
[null,"Fleet","Telematics","Comp","Motor cycles","31-40","26-20","Non-Learner","Not provided","Private"]
[null,"Fleet","Telematics","Comp","Motor cycles","41-50","25","Non-Learner","Not provided","Private"]
[null,"Fleet","Telematics","Comp","Motor cycles","51-60","31-50","Learner","Not provided","Commercial"]
[null,"Fleet","Telematics","Comp","Motor Trade Road Risks","0-10","70 or over","Non-Learner","Not provided","Commercial"]
[null,"Fleet","Telematics","Comp","Motor Trade Road Risks","11-20","51-69","Non-Learner","Not provided","Commercial"]
[null,"Fleet","Telematics","Comp","Motor Trade Road Risks","21-30","24","Non-Learner","Not provided","Private"]
[null,"Fleet","Telematics","Comp","Motor Trade Road Risks","41-50","22","Non-Learner","Not provided","Commercial"]
[null,"Fleet","Telematics","Comp","Motor Trade Road Risks",">60","18","Learner","Not provided","Private"]
[null,"Fleet","Telematics","Comp","Motor Trade Road Risks",">60","21","Non-Learner","Not provided","Commercial"]
[null,"Fleet","Telematics","Comp","All others","11-20","26-20","Learner","Not provided","Private"]
[null,"Fleet","Telematics","Comp","All others","21-30","17","Learner","Not provided","Private"]
[null,"Fleet","Telematics","Comp","All others","31-40","19","Learner","Not provided","Private"]
[null,"Fleet","Telematics","Comp","All others","41-50","25","Learner","Not provided","Private"]
[null,"Fleet","Telematics","Comp","All others",">60","20","Learner","Not provided","Commercial"]
[null,"Fleet","Telematics","Non-Comp","Motor Cars","0-10","19","Learner","Not provided","Commercial"]
[null,"Fleet","Telematics","Non-Comp","Motor Cars","11-20","26-20","Non-Learner","Not provided","Commercial"]
[null,"Fleet","Telematics","Non-Comp","Motor Cars","31-40","23","Non-Learner","Not provided","Private"]
[null,"Fleet","Telematics","Non-Comp","Motor Cars","41-50","22","Non-Learner","Not provided","Private"]
[null,"Fleet","Telematics","Non-Comp","Motor Cars","51-60","24","Learner","Not provided","Private"]
[null,"Fleet","Telematics","Non-Comp","Motor Cars",">60","Any Driver","Non-Learner","Not provided","Private"]
[null,"Fleet","Telematics","Non-Comp","Light Commercial Vehicles","11-20","25","Non-Learner","Not provided","Commercial"]
[null,"Fleet","Telematics","Non-Comp","Light Commercial Vehicles","21-30","21","Learner","Not provided","Commercial"]
[null,"Fleet","Telematics","Non-Comp","Light Commercial Vehicles","41-50","19","Non-Learner","Not provided","Commercial"]
[null,"Fleet","Telematics","Non-Comp","Light Commercial Vehicles","51-60","70 or over","Learner","Not provided","Private"]
[null,"Fleet","Telematics","Non-Comp","Light Commercial Vehicles",">60","18","Non-Learner","Not provided","Private"]
[null,"Fleet","Telematics","Non-Comp","Medium Commercial Vehicles","11-20","23","Learner","Not provided","Private"]
[null,"Fleet","Telematics","Non-Comp","Medium Commercial Vehicles","11-20","51-69","Learner","Not provided","Private"]
[null,"Fleet","Telematics","Non-Comp","Medium Commercial Vehicles","41-50","17","Learner","Not provided","Commercial"]
[null,"Fleet","Telematics","Non-Comp","Medium Commercial Vehicles","41-50","26-20","Learner","Not provided","Commercial"]
[null,"Fleet","Telematics","Non-Comp","Medium Commercial Vehicles",">60","17","Learner","Not provided","Commercial"]
[null,"Fleet","Telematics","Non-Comp","Medium Commercial Vehicles",">60","Any Driver","Learner","Not provided","Commercial"]
[null,"Fleet","Telematics","Non-Comp","Heavy Commercial Vehicles","11-20","23","Non-Learner","Not provided","Private"]
[null,"Fleet","Telematics","Non-Comp","Heavy Commercial Vehicles","21-30","24","Learner","Not provided","Commercial"]
[null,"Fleet","Telematics","Non-Comp","Heavy Commercial Vehicles","41-50","19","Non-Learner","Not provided","Private"]
[null,"Fleet","Telematics","Non-Comp","Heavy Commercial Vehicles","51-60","20","Non-Learner","Not provided","Commercial"]
[null,"Fleet","Telematics","Non-Comp","Heavy Commercial Vehicles",">60","31-50","Non-Learner","Not provided","Private"]
[null,"Fleet","Telematics","Non-Comp","Buses, coaches etc","11-20","22","Non-Learner","Not provided","Commercial"]
[null,"Fleet","Telematics","Non-Comp","Buses, coaches etc","21-30","18","Learner","Not provided","Private"]
[null,"Fleet","Telematics","Non-Comp","Buses, coaches etc","31-40","Any Driver","Non-Learner","Not provided","Commercial"]
[null,"Fleet","Telematics","Non-Comp","Buses, coaches etc","51-60","26-20","Learner","Not provided","Private"]
[null,"Fleet","Telematics","Non-Comp","Buses, coaches etc",">60","25","Learner","Not provided","Private"]
[null,"Fleet","Telematics","Non-Comp","Taxis, private & public hire","0-10","25","Non-Learner","Not provided","Commercial"]
[null,"Fleet","Telematics","Non-Comp","Taxis, private & public hire","11-20","25","Learner","Not provided","Private"]
[null,"Fleet","Telematics","Non-Comp","Taxis, private & public hire","31-40","51-69","Learner","Not provided","Commercial"]
[null,"Fleet","Telematics","Non-Comp","Taxis, private & public hire","41-50","23","Learner","Not provided","Private"]
[null,"Fleet","Telematics","Non-Comp","Taxis, private & public hire","51-60","51-69","Learner","Not provided","Commercial"]
[null,"Fleet","Telematics","Non-Comp","Taxis, private & public hire",">60","31-50","Learner","Not provided","Commercial"]
[null,"Fleet","Telematics","Non-Comp","Self-drive hire vehicles","11-20","20","Learner","Not provided","Commercial"]
[null,"Fleet","Telematics","Non-Comp","Self-drive hire vehicles","21-30","21","Learner","Not provided","Commercial"]
[null,"Fleet","Telematics","Non-Comp","Self-drive hire vehicles","31-40","Any Driver","Non-Learner","Not provided","Private"]
[null,"Fleet","Telematics","Non-Comp","Self-drive hire vehicles","51-60","17","Non-Learner","Not provided","Private"]
[null,"Fleet","Telematics","Non-Comp","Self-drive hire vehicles",">60","24","Non-Learner","Not provided","Private"]
[null,"Fleet","Telematics","Non-Comp","Tankers, hazardous","11-20","19","Non-Learner","Not provided","Commercial"]
[null,"Fleet","Telematics","Non-Comp","Tankers, hazardous","21-30","24","Non-Learner","Not provided","Commercial"]
[null,"Fleet","Telematics","Non-Comp","Tankers, hazardous","31-40","31-50","Non-Learner","Not provided","Commercial"]
[null,"Fleet","Telematics","Non-Comp","Tankers, hazardous","51-60","23","Learner","Not provided","Private"]
[null,"Fleet","Telematics","Non-Comp","Tankers, hazardous",">60","22","Learner","Not provided","Private"]
[null,"Fleet","Telematics","Non-Comp","Motor cycles","0-10","22","Non-Learner","Not provided","Private"]
[null,"Fleet","Telematics","Non-Comp","Motor cycles","11-20","22","Learner","Not provided","Private"]
[null,"Fleet","Telematics","Non-Comp","Motor cycles","31-40","25","Learner","Not provided","Commercial"]
[null,"Fleet","Telematics","Non-Comp","Motor cycles","41-50","19","Non-Learner","Not provided","Commercial"]
[null,"Fleet","Telematics","Non-Comp","Motor cycles",">60","19","Learner","Not provided","Commercial"]
[null,"Fleet","Telematics","Non-Comp","Motor cycles",">60","24","Learner","Not provided","Commercial"]
[null,"Fleet","Telematics","Non-Comp","Motor Trade Road Risks","11-20","17","Learner","Not provided","Private"]
[null,"Fleet","Telematics","Non-Comp","Motor Trade Road Risks","21-30","18","Learner","Not provided","Commercial"]
[null,"Fleet","Telematics","Non-Comp","Motor Trade Road Risks","31-40","31-50","Non-Learner","Not provided","Private"]
[null,"Fleet","Telematics","Non-Comp","Motor Trade Road Risks","51-60","24","Learner","Not provided","Commercial"]
[null,"Fleet","Telematics","Non-Comp","Motor Trade Road Risks",">60","21","Non-Learner","Not provided","Private"]
[null,"Fleet","Telematics","Non-Comp","All others","0-10","Any Driver","Non-Learner","Not provided","Commercial"]
[null,"Fleet","Telematics","Non-Comp","All others","11-20","70 or over","Non-Learner","Not provided","Commercial"]
[null,"Fleet","Telematics","Non-Comp","All others","31-40","22","Learner","Not provided","Private"]
[null,"Fleet","Telematics","Non-Comp","All others","31-40","70 or over","Non-Learner","Not provided","Commercial"]
[null,"Fleet","Telematics","Non-Comp","All others",">60","19","Learner","Not provided","Private"]
[null,"Fleet","Non-Telematics","Comp","Motor Cars","0-10","19","Learner","Not provided","Commercial"]
[null,"Fleet","Non-Telematics","Comp","Motor Cars","11-20","31-50","Learner","Not provided","Private"]
[null,"Fleet","Non-Telematics","Comp","Motor Cars","31-40","22","Learner","Not provided","Commercial"]
[null,"Fleet","Non-Telematics","Comp","Motor Cars","31-40","Any Driver","Non-Learner","Not provided","Private"]
[null,"Fleet","Non-Telematics","Comp","Motor Cars","51-60","Any Driver","Learner","Not provided","Commercial"]
[null,"Fleet","Non-Telematics","Comp","Motor Cars",">60","21","Learner","Not provided","Commercial"]
[null,"Fleet","Non-Telematics","Comp","Light Commercial Vehicles","0-10","31-50","Non-Learner","Not provided","Commercial"]
[null,"Fleet","Non-Telematics","Comp","Light Commercial Vehicles","11-20","70 or over","Learner","Not provided","Commercial"]
[null,"Fleet","Non-Telematics","Comp","Light Commercial Vehicles","31-40","24","Non-Learner","Not provided","Private"]
[null,"Fleet","Non-Telematics","Comp","Light Commercial Vehicles","41-50","23","Non-Learner","Not provided","Private"]
[null,"Fleet","Non-Telematics","Comp","Light Commercial Vehicles",">60","21","Non-Learner","Not provided","Private"]
[null,"Fleet","Non-Telematics","Comp","Medium Commercial Vehicles","0-10","31-50","Non-Learner","Not provided","Commercial"]
[null,"Fleet","Non-Telematics","Comp","Medium Commercial Vehicles","11-20","26-20","Non-Learner","Not provided","Commercial"]
[null,"Fleet","Non-Telematics","Comp","Medium Commercial Vehicles","31-40","18","Non-Learner","Not provided","Commercial"]
[null,"Fleet","Non-Telematics","Comp","Medium Commercial Vehicles","41-50","20","Non-Learner","Not provided","Commercial"]
[null,"Fleet","Non-Telematics","Comp","Medium Commercial Vehicles","51-60","Any Driver","Learner","Not provided","Private"]
[null,"Fleet","Non-Telematics","Comp","Medium Commercial Vehicles",">60","Any Driver","Learner","Not provided","Private"]
[null,"Fleet","Non-Telematics","Comp","Heavy Commercial Vehicles","11-20","24","Learner","Not provided","Private"]
[null,"Fleet","Non-Telematics","Comp","Heavy Commercial Vehicles","31-40","19","Learner","Not provided","Commercial"]
[null,"Fleet","Non-Telematics","Comp","Heavy Commercial Vehicles","31-40","31-50","Learner","Not provided","Commercial"]
[null,"Fleet","Non-Telematics","Comp","Heavy Commercial Vehicles","51-60","31-50","Learner","Not provided","Commercial"]
[null,"Fleet","Non-Telematics","Comp","Heavy Commercial Vehicles",">60","18","Learner","Not provided","Commercial"]
[null,"Fleet","Non-Telematics","Comp","Buses, coaches etc","11-20","20","Non-Learner","Not provided","Private"]
[null,"Fleet","Non-Telematics","Comp","Buses, coaches etc","11-20","26-20","Learner","Not provided","Commercial"]
[null,"Fleet","Non-Telematics","Comp","Buses, coaches etc","31-40","21","Non-Learner","Not provided","Private"]
[null,"Fleet","Non-Telematics","Comp","Buses, coaches etc","41-50","20","Non-Learner","Not provided","Private"]
[null,"Fleet","Non-Telematics","Comp","Buses, coaches etc",">60","18","Learner","Not provided","Commercial"]
[null,"Fleet","Non-Telematics","Comp","Taxis, private & public hire","0-10","24","Non-Learner","Not provided","Commercial"]
[null,"Fleet","Non-Telematics","Comp","Taxis, private & public hire","11-20","23","Non-Learner","Not provided","Commercial"]
[null,"Fleet","Non-Telematics","Comp","Taxis, private & public hire","21-30","70 or over","Non-Learner","Not provided","Private"]
[null,"Fleet","Non-Telematics","Comp","Taxis, private & public hire","41-50","17","Non-Learner","Not provided","Commercial"]
[null,"Fleet","Non-Telematics","Comp","Taxis, private & public hire","51-60","31-50","Learner","Not provided","Private"]
[null,"Fleet","Non-Telematics","Comp","Taxis, private & public hire",">60","26-20","Non-Learner","Not provided","Commercial"]
[null,"Fleet","Non-Telematics","Comp","Self-drive hire vehicles","11-20","21","Learner","Not provided","Private"]
[null,"Fleet","Non-Telematics","Comp","Self-drive hire vehicles","11-20","26-20","Learner","Not provided","Private"]
[null,"Fleet","Non-Telematics","Comp","Self-drive hire vehicles","41-50","20","Learner","Not provided","Private"]
[null,"Fleet","Non-Telematics","Comp","Self-drive hire vehicles","51-60","24","Learner","Not provided","Commercial"]
[null,"Fleet","Non-Telematics","Comp","Self-drive hire vehicles","51-60","70 or over","Learner","Not provided","Commercial"]
[null,"Fleet","Non-Telematics","Comp","Tankers, hazardous","11-20","18","Non-Learner","Not provided","Private"]
[null,"Fleet","Non-Telematics","Comp","Tankers, hazardous","21-30","17","Non-Learner","Not provided","Commercial"]
[null,"Fleet","Non-Telematics","Comp","Tankers, hazardous","31-40","18","Non-Learner","Not provided","Private"]
[null,"Fleet","Non-Telematics","Comp","Tankers, hazardous","41-50","17","Non-Learner","Not provided","Private"]
[null,"Fleet","Non-Telematics","Comp","Tankers, hazardous","51-60","70 or over","Learner","Not provided","Private"]
[null,"Fleet","Non-Telematics","Comp","Tankers, hazardous",">60","25","Non-Learner","Not provided","Private"]
[null,"Fleet","Non-Telematics","Comp","Motor cycles","11-20","20","Non-Learner","Not provided","Commercial"]
[null,"Fleet","Non-Telematics","Comp","Motor cycles","21-30","26-20","Learner","Not provided","Commercial"]
[null,"Fleet","Non-Telematics","Comp","Motor cycles","31-40","51-69","Non-Learner","Not provided","Commercial"]
[null,"Fleet","Non-Telematics","Comp","Motor cycles","51-60","24","Learner","Not provided","Private"]
[null,"Fleet","Non-Telematics","Comp","Motor cycles","51-60","70 or over","Non-Learner","Not provided","Private"]
[null,"Fleet","Non-Telematics","Comp","Motor Trade Road Risks","11-20","18","Learner","Not provided","Private"]
[null,"Fleet","Non-Telematics","Comp","Motor Trade Road Risks","11-20","23","Learner","Not provided","Private"]
[null,"Fleet","Non-Telematics","Comp","Motor Trade Road Risks","31-40","26-20","Learner","Not provided","Commercial"]
[null,"Fleet","Non-Telematics","Comp","Motor Trade Road Risks","51-60","17","Learner","Not provided","Commercial"]
[null,"Fleet","Non-Telematics","Comp","Motor Trade Road Risks","51-60","26-20","Learner","Not provided","Commercial"]
[null,"Fleet","Non-Telematics","Comp","All others","0-10","70 or over","Non-Learner","Not provided","Private"]
[null,"Fleet","Non-Telematics","Comp","All others","11-20","51-69","Non-Learner","Not provided","Private"]
[null,"Fleet","Non-Telematics","Comp","All others","31-40","23","Non-Learner","Not provided","Private"]
[null,"Fleet","Non-Telematics","Comp","All others","31-40","51-69","Non-Learner","Not provided","Private"]
[null,"Fleet","Non-Telematics","Comp","All others","51-60","25","Non-Learner","Not provided","Commercial"]
[null,"Fleet","Non-Telematics","Comp","All others",">60","22","Non-Learner","Not provided","Private"]
[null,"Fleet","Non-Telematics","Non-Comp","Motor Cars","11-20","17","Non-Learner","Not provided","Commercial"]
[null,"Fleet","Non-Telematics","Non-Comp","Motor Cars","21-30","23","Learner","Not provided","Private"]
[null,"Fleet","Non-Telematics","Non-Comp","Motor Cars","31-40","25","Non-Learner","Not provided","Commercial"]
[null,"Fleet","Non-Telematics","Non-Comp","Motor Cars","51-60","21","Learner","Not provided","Private"]
[null,"Fleet","Non-Telematics","Non-Comp","Motor Cars","51-60","26-20","Learner","Not provided","Commercial"]
[null,"Fleet","Non-Telematics","Non-Comp","Light Commercial Vehicles","0-10","70 or over","Learner","Not provided","Private"]
[null,"Fleet","Non-Telematics","Non-Comp","Light Commercial Vehicles","11-20","20","Learner","Not provided","Private"]
[null,"Fleet","Non-Telematics","Non-Comp","Light Commercial Vehicles","31-40","23","Learner","Not provided","Commercial"]
[null,"Fleet","Non-Telematics","Non-Comp","Light Commercial Vehicles","41-50","51-69","Learner","Not provided","Private"]
[null,"Fleet","Non-Telematics","Non-Comp","Light Commercial Vehicles",">60","17","Learner","Not provided","Commercial"]
[null,"Fleet","Non-Telematics","Non-Comp","Light Commercial Vehicles",">60","22","Learner","Not provided","Commercial"]
[null,"Fleet","Non-Telematics","Non-Comp","Medium Commercial Vehicles","11-20","25","Learner","Not provided","Commercial"]
[null,"Fleet","Non-Telematics","Non-Comp","Medium Commercial Vehicles","31-40","20","Non-Learner","Not provided","Private"]
[null,"Fleet","Non-Telematics","Non-Comp","Medium Commercial Vehicles","31-40","25","Non-Learner","Not provided","Private"]
[null,"Fleet","Non-Telematics","Non-Comp","Medium Commercial Vehicles","51-60","22","Non-Learner","Not provided","Private"]
[null,"Fleet","Non-Telematics","Non-Comp","Medium Commercial Vehicles",">60","19","Non-Learner","Not provided","Private"]
[null,"Fleet","Non-Telematics","Non-Comp","Heavy Commercial Vehicles","0-10","51-69","Non-Learner","Not provided","Commercial"]
[null,"Fleet","Non-Telematics","Non-Comp","Heavy Commercial Vehicles","11-20","25","Non-Learner","Not provided","Commercial"]
[null,"Fleet","Non-Telematics","Non-Comp","Heavy Commercial Vehicles","31-40","22","Non-Learner","Not provided","Commercial"]
[null,"Fleet","Non-Telematics","Non-Comp","Heavy Commercial Vehicles","51-60","18","Learner","Not provided","Private"]
[null,"Fleet","Non-Telematics","Non-Comp","Heavy Commercial Vehicles",">60","17","Learner","Not provided","Private"]
[null,"Fleet","Non-Telematics","Non-Comp","Buses, coaches etc","0-10","31-50","Non-Learner","Not provided","Private"]
[null,"Fleet","Non-Telematics","Non-Comp","Buses, coaches etc","11-20","17","Learner","Not provided","Private"]
[null,"Fleet","Non-Telematics","Non-Comp","Buses, coaches etc","31-40","20","Learner","Not provided","Commercial"]
[null,"Fleet","Non-Telematics","Non-Comp","Buses, coaches etc","41-50","24","Non-Learner","Not provided","Commercial"]
[null,"Fleet","Non-Telematics","Non-Comp","Buses, coaches etc","51-60","51-69","Learner","Not provided","Commercial"]
[null,"Fleet","Non-Telematics","Non-Comp","Buses, coaches etc",">60","19","Learner","Not provided","Commercial"]
[null,"Fleet","Non-Telematics","Non-Comp","Taxis, private & public hire","11-20","22","Learner","Not provided","Private"]
[null,"Fleet","Non-Telematics","Non-Comp","Taxis, private & public hire","11-20","31-50","Learner","Not provided","Commercial"]
[null,"Fleet","Non-Telematics","Non-Comp","Taxis, private & public hire","31-40","22","Non-Learner","Not provided","Private"]
[null,"Fleet","Non-Telematics","Non-Comp","Taxis, private & public hire","41-50","25","Learner","Not provided","Commercial"]
[null,"Fleet","Non-Telematics","Non-Comp","Taxis, private & public hire","51-60","Any Driver","Non-Learner","Not provided","Private"]
[null,"Fleet","Non-Telematics","Non-Comp","Self-drive hire vehicles","0-10","25","Non-Learner","Not provided","Commercial"]
[null,"Fleet","Non-Telematics","Non-Comp","Self-drive hire vehicles","11-20","24","Non-Learner","Not provided","Commercial"]
[null,"Fleet","Non-Telematics","Non-Comp","Self-drive hire vehicles","31-40","31-50","Learner","Not provided","Private"]
[null,"Fleet","Non-Telematics","Non-Comp","Self-drive hire vehicles","41-50","70 or over","Learner","Not provided","Private"]
[null,"Fleet","Non-Telematics","Non-Comp","Self-drive hire vehicles","51-60","51-69","Learner","Not provided","Private"]
[null,"Fleet","Non-Telematics","Non-Comp","Tankers, hazardous","0-10","24","Learner","Not provided","Commercial"]
[null,"Fleet","Non-Telematics","Non-Comp","Tankers, hazardous","11-20","22","Learner","Not provided","Private"]
[null,"Fleet","Non-Telematics","Non-Comp","Tankers, hazardous","31-40","17","Learner","Not provided","Commercial"]
[null,"Fleet","Non-Telematics","Non-Comp","Tankers, hazardous","41-50","21","Non-Learner","Not provided","Private"]
[null,"Fleet","Non-Telematics","Non-Comp","Tankers, hazardous","51-60","25","Learner","Not provided","Commercial"]
[null,"Fleet","Non-Telematics","Non-Comp","Tankers, hazardous","51-60","Any Driver","Learner","Not provided","Commercial"]
[null,"Fleet","Non-Telematics","Non-Comp","Motor cycles","0-10","24","Non-Learner","Not provided","Commercial"]
[null,"Fleet","Non-Telematics","Non-Comp","Motor cycles","11-20","24","Learner","Not provided","Commercial"]
[null,"Fleet","Non-Telematics","Non-Comp","Motor cycles","31-40","19","Non-Learner","Not provided","Private"]
[null,"Fleet","Non-Telematics","Non-Comp","Motor cycles","41-50","22","Learner","Not provided","Private"]
[null,"Fleet","Non-Telematics","Non-Comp","Motor cycles","51-60","31-50","Non-Learner","Not provided","Private"]
[null,"Fleet","Non-Telematics","Non-Comp","Motor Trade Road Risks","0-10","22","Non-Learner","Not provided","Commercial"]
[null,"Fleet","Non-Telematics","Non-Comp","Motor Trade Road Risks","11-20","21","Non-Learner","Not provided","Commercial"]
[null,"Fleet","Non-Telematics","Non-Comp","Motor Trade Road Risks","31-40","23","Non-Learner","Not provided","Commercial"]
[null,"Fleet","Non-Telematics","Non-Comp","Motor Trade Road Risks","31-40","70 or over","Non-Learner","Not provided","Commercial"]
[null,"Fleet","Non-Telematics","Non-Comp","Motor Trade Road Risks","51-60","25","Learner","Not provided","Private"]
[null,"Fleet","Non-Telematics","Non-Comp","All others","0-10","21","Learner","Not provided","Private"]
[null,"Fleet","Non-Telematics","Non-Comp","All others","11-20","19","Learner","Not provided","Private"]
[null,"Fleet","Non-Telematics","Non-Comp","All others","21-30","51-69","Learner","Not provided","Commercial"]
[null,"Fleet","Non-Telematics","Non-Comp","All others","41-50","18","Learner","Not provided","Commercial"]
[null,"Fleet","Non-Telematics","Non-Comp","All others","51-60","22","Learner","Not provided","Commercial"]
[null,"Fleet","Non-Telematics","Non-Comp","All others","51-60","31-50","Learner","Not provided","Commercial"]
[null,"Non-Fleet","Telematics","Comp","Motor Cars","0-10","21","Non-Learner","Not provided","Private"]
[null,"Non-Fleet","Telematics","Comp","Motor Cars","11-20","21","Learner","Not provided","Commercial"]
[null,"Non-Fleet","Telematics","Comp","Motor Cars","21-30","Any Driver","Non-Learner","Not provided","Private"]
[null,"Non-Fleet","Telematics","Comp","Motor Cars","31-40","70 or over","Non-Learner","Not provided","Private"]
[null,"Non-Fleet","Telematics","Comp","Motor Cars",">60","23","Learner","Not provided","Commercial"]
[null,"Non-Fleet","Telematics","Comp","Motor Cars",">60","23","Non-Learner","Not provided","Private"]
[null,"Non-Fleet","Telematics","Comp","Light Commercial Vehicles","11-20","18","Non-Learner","Not provided","Commercial"]
[null,"Non-Fleet","Telematics","Comp","Light Commercial Vehicles","31-40","20","Non-Learner","Not provided","Private"]
[null,"Non-Fleet","Telematics","Comp","Light Commercial Vehicles","31-40","26-20","Non-Learner","Not provided","Commercial"]
[null,"Non-Fleet","Telematics","Comp","Light Commercial Vehicles","51-60","22","Learner","Not provided","Private"]
[null,"Non-Fleet","Telematics","Comp","Medium Commercial Vehicles","0-10","17","Non-Learner","Not provided","Commercial"]
[null,"Non-Fleet","Telematics","Comp","Medium Commercial Vehicles","0-10","Any Driver","Learner","Not provided","Private"]
[null,"Non-Fleet","Telematics","Comp","Medium Commercial Vehicles","21-30","25","Learner","Not provided","Commercial"]
[null,"Non-Fleet","Telematics","Comp","Medium Commercial Vehicles","31-40","21","Learner","Not provided","Private"]
[null,"Non-Fleet","Telematics","Comp","Medium Commercial Vehicles","51-60","19","Learner","Not provided","Commercial"]
[null,"Non-Fleet","Telematics","Comp","Medium Commercial Vehicles","51-60","24","Learner","Not provided","Commercial"]
[null,"Non-Fleet","Telematics","Comp","Heavy Commercial Vehicles","0-10","31-50","Non-Learner","Not provided","Private"]
[null,"Non-Fleet","Telematics","Comp","Heavy Commercial Vehicles","11-20","18","Non-Learner","Not provided","Commercial"]
[null,"Non-Fleet","Telematics","Comp","Heavy Commercial Vehicles","31-40","21","Non-Learner","Not provided","Private"]
[null,"Non-Fleet","Telematics","Comp","Heavy Commercial Vehicles","31-40","26-20","Non-Learner","Not provided","Private"]
[null,"Non-Fleet","Telematics","Comp","Heavy Commercial Vehicles",">60","20","Learner","Not provided","Private"]
[null,"Non-Fleet","Telematics","Comp","Heavy Commercial Vehicles",">60","20","Non-Learner","Not provided","Private"]
[null,"Non-Fleet","Telematics","Comp","Buses, coaches etc","0-10","70 or over","Non-Learner","Not provided","Commercial"]
[null,"Non-Fleet","Telematics","Comp","Buses, coaches etc","31-40","17","Learner","Not provided","Commercial"]
[null,"Non-Fleet","Telematics","Comp","Buses, coaches etc","31-40","23","Non-Learner","Not provided","Commercial"]
[null,"Non-Fleet","Telematics","Comp","Buses, coaches etc","51-60","19","Learner","Not provided","Private"]
[null,"Non-Fleet","Telematics","Comp","Buses, coaches etc",">60","20","Non-Learner","Not provided","Private"]
[null,"Non-Fleet","Telematics","Comp","Taxis, private & public hire","0-10","31-50","Learner","Not provided","Private"]
[null,"Non-Fleet","Telematics","Comp","Taxis, private & public hire","21-30","22","Learner","Not provided","Commercial"]
[null,"Non-Fleet","Telematics","Comp","Taxis, private & public hire","31-40","17","Non-Learner","Not provided","Commercial"]
[null,"Non-Fleet","Telematics","Comp","Taxis, private & public hire","41-50","Any Driver","Learner","Not provided","Commercial"]
[null,"Non-Fleet","Telematics","Comp","Taxis, private & public hire","51-60","21","Learner","Not provided","Commercial"]
[null,"Non-Fleet","Telematics","Comp","Self-drive hire vehicles","0-10","24","Non-Learner","Not provided","Private"]
[null,"Non-Fleet","Telematics","Comp","Self-drive hire vehicles","0-10","70 or over","Non-Learner","Not provided","Private"]
[null,"Non-Fleet","Telematics","Comp","Self-drive hire vehicles","31-40","18","Non-Learner","Not provided","Private"]
[null,"Non-Fleet","Telematics","Comp","Self-drive hire vehicles","31-40","23","Non-Learner","Not provided","Private"]
[null,"Non-Fleet","Telematics","Comp","Self-drive hire vehicles","51-60","Any Driver","Non-Learner","Not provided","Commercial"]
[null,"Non-Fleet","Telematics","Comp","Self-drive hire vehicles",">60","17","Non-Learner","Not provided","Private"]
[null,"Non-Fleet","Telematics","Comp","Tankers, hazardous","0-10","26-20","Non-Learner","Not provided","Commercial"]
[null,"Non-Fleet","Telematics","Comp","Tankers, hazardous","21-30","20","Learner","Not provided","Private"]
[null,"Non-Fleet","Telematics","Comp","Tankers, hazardous","31-40","20","Non-Learner","Not provided","Commercial"]
[null,"Non-Fleet","Telematics","Comp","Tankers, hazardous","41-50","Any Driver","Learner","Not provided","Private"]
[null,"Non-Fleet","Telematics","Comp","Tankers, hazardous",">60","17","Learner","Not provided","Commercial"]
[null,"Non-Fleet","Telematics","Comp","Motor cycles","0-10","24","Learner","Not provided","Private"]
[null,"Non-Fleet","Telematics","Comp","Motor cycles","21-30","19","Learner","Not provided","Commercial"]
[null,"Non-Fleet","Telematics","Comp","Motor cycles","31-40","18","Learner","Not provided","Commercial"]
[null,"Non-Fleet","Telematics","Comp","Motor cycles","31-40","70 or over","Learner","Not provided","Private"]
[null,"Non-Fleet","Telematics","Comp","Motor cycles","51-60","26-20","Learner","Not provided","Commercial"]
[null,"Non-Fleet","Telematics","Comp","Motor Trade Road Risks","0-10","21","Non-Learner","Not provided","Private"]
[null,"Non-Fleet","Telematics","Comp","Motor Trade Road Risks","0-10","26-20","Learner","Not provided","Commercial"]
[null,"Non-Fleet","Telematics","Comp","Motor Trade Road Risks","21-30","70 or over","Non-Learner","Not provided","Private"]
[null,"Non-Fleet","Telematics","Comp","Motor Trade Road Risks","31-40","20","Non-Learner","Not provided","Private"]
[null,"Non-Fleet","Telematics","Comp","Motor Trade Road Risks","51-60","31-50","Non-Learner","Not provided","Private"]
[null,"Non-Fleet","Telematics","Comp","Motor Trade Road Risks","51-60","51-69","Non-Learner","Not provided","Private"]
[null,"Non-Fleet","Telematics","Comp","All others","0-10","23","Non-Learner","Not provided","Commercial"]
[null,"Non-Fleet","Telematics","Comp","All others","11-20","Any Driver","Non-Learner","Not provided","Commercial"]
[null,"Non-Fleet","Telematics","Comp","All others","31-40","17","Non-Learner","Not provided","Commercial"]
[null,"Non-Fleet","Telematics","Comp","All others","41-50","31-50","Learner","Not provided","Private"]
[null,"Non-Fleet","Telematics","Comp","All others","51-60","26-20","Learner","Not provided","Private"]
[null,"Non-Fleet","Telematics","Comp","All others",">60","51-69","Non-Learner","Not provided","Private"]
[null,"Non-Fleet","Telematics","Non-Comp","Motor Cars","11-20","20","Learner","Not provided","Private"]
[null,"Non-Fleet","Telematics","Non-Comp","Motor Cars","21-30","70 or over","Learner","Not provided","Commercial"]
[null,"Non-Fleet","Telematics","Non-Comp","Motor Cars","31-40","25","Non-Learner","Not provided","Commercial"]
[null,"Non-Fleet","Telematics","Non-Comp","Motor Cars","51-60","23","Learner","Not provided","Commercial"]
[null,"Non-Fleet","Telematics","Non-Comp","Light Commercial Vehicles","0-10","18","Non-Learner","Not provided","Private"]
[null,"Non-Fleet","Telematics","Non-Comp","Light Commercial Vehicles","0-10","23","Learner","Not provided","Private"]
[null,"Non-Fleet","Telematics","Non-Comp","Light Commercial Vehicles","21-30","26-20","Non-Learner","Not provided","Private"]
[null,"Non-Fleet","Telematics","Non-Comp","Light Commercial Vehicles","31-40","17","Non-Learner","Not provided","Private"]
[null,"Non-Fleet","Telematics","Non-Comp","Light Commercial Vehicles","41-50","Any Driver","Learner","Not provided","Commercial"]
[null,"Non-Fleet","Telematics","Non-Comp","Light Commercial Vehicles","51-60","25","Non-Learner","Not provided","Private"]
[null,"Non-Fleet","Telematics","Non-Comp","Medium Commercial Vehicles","0-10","20","Non-Learner","Not provided","Commercial"]
[null,"Non-Fleet","Telematics","Non-Comp","Medium Commercial Vehicles","11-20","31-50","Non-Learner","Not provided","Private"]
[null,"Non-Fleet","Telematics","Non-Comp","Medium Commercial Vehicles","21-30","51-69","Non-Learner","Not provided","Commercial"]
[null,"Non-Fleet","Telematics","Non-Comp","Medium Commercial Vehicles","31-40","31-50","Non-Learner","Not provided","Commercial"]
[null,"Non-Fleet","Telematics","Non-Comp","Medium Commercial Vehicles","51-60","23","Learner","Not provided","Private"]
[null,"Non-Fleet","Telematics","Non-Comp","Medium Commercial Vehicles",">60","25","Learner","Not provided","Commercial"]
[null,"Non-Fleet","Telematics","Non-Comp","Heavy Commercial Vehicles","11-20","17","Learner","Not provided","Private"]
[null,"Non-Fleet","Telematics","Non-Comp","Heavy Commercial Vehicles","21-30","26-20","Learner","Not provided","Commercial"]
[null,"Non-Fleet","Telematics","Non-Comp","Heavy Commercial Vehicles","31-40","22","Non-Learner","Not provided","Private"]
[null,"Non-Fleet","Telematics","Non-Comp","Heavy Commercial Vehicles","51-60","20","Learner","Not provided","Commercial"]
[null,"Non-Fleet","Telematics","Non-Comp","Heavy Commercial Vehicles",">60","70 or over","Non-Learner","Not provided","Private"]
[null,"Non-Fleet","Telematics","Non-Comp","Buses, coaches etc","0-10","70 or over","Non-Learner","Not provided","Commercial"]
[null,"Non-Fleet","Telematics","Non-Comp","Buses, coaches etc","21-30","23","Non-Learner","Not provided","Private"]
[null,"Non-Fleet","Telematics","Non-Comp","Buses, coaches etc","21-30","51-69","Non-Learner","Not provided","Private"]
[null,"Non-Fleet","Telematics","Non-Comp","Buses, coaches etc","41-50","31-50","Learner","Not provided","Private"]
[null,"Non-Fleet","Telematics","Non-Comp","Buses, coaches etc","51-60","22","Non-Learner","Not provided","Private"]
[null,"Non-Fleet","Telematics","Non-Comp","Taxis, private & public hire","0-10","17","Non-Learner","Not provided","Commercial"]
[null,"Non-Fleet","Telematics","Non-Comp","Taxis, private & public hire","0-10","Any Driver","Non-Learner","Not provided","Commercial"]
[null,"Non-Fleet","Telematics","Non-Comp","Taxis, private & public hire","21-30","24","Non-Learner","Not provided","Commercial"]
[null,"Non-Fleet","Telematics","Non-Comp","Taxis, private & public hire","31-40","24","Non-Learner","Not provided","Commercial"]
[null,"Non-Fleet","Telematics","Non-Comp","Taxis, private & public hire","51-60","20","Learner","Not provided","Private"]
[null,"Non-Fleet","Telematics","Non-Comp","Taxis, private & public hire",">60","22","Learner","Not provided","Private"]
[null,"Non-Fleet","Telematics","Non-Comp","Self-drive hire vehicles","0-10","51-69","Learner","Not provided","Private"]
[null,"Non-Fleet","Telematics","Non-Comp","Self-drive hire vehicles","21-30","23","Learner","Not provided","Commercial"]
[null,"Non-Fleet","Telematics","Non-Comp","Self-drive hire vehicles","31-40","70 or over","Learner","Not provided","Commercial"]
[null,"Non-Fleet","Telematics","Non-Comp","Self-drive hire vehicles","51-60","17","Learner","Not provided","Commercial"]
[null,"Non-Fleet","Telematics","Non-Comp","Self-drive hire vehicles",">60","26-20","Non-Learner","Not provided","Private"]
[null,"Non-Fleet","Telematics","Non-Comp","Tankers, hazardous","0-10","26-20","Non-Learner","Not provided","Private"]
[null,"Non-Fleet","Telematics","Non-Comp","Tankers, hazardous","21-30","20","Non-Learner","Not provided","Private"]
[null,"Non-Fleet","Telematics","Non-Comp","Tankers, hazardous","21-30","25","Non-Learner","Not provided","Private"]
[null,"Non-Fleet","Telematics","Non-Comp","Tankers, hazardous","41-50","51-69","Non-Learner","Not provided","Commercial"]
[null,"Non-Fleet","Telematics","Non-Comp","Tankers, hazardous","51-60","24","Learner","Not provided","Commercial"]
[null,"Non-Fleet","Telematics","Non-Comp","Motor cycles","0-10","22","Non-Learner","Not provided","Commercial"]
[null,"Non-Fleet","Telematics","Non-Comp","Motor cycles","0-10","31-50","Non-Learner","Not provided","Commercial"]
[null,"Non-Fleet","Telematics","Non-Comp","Motor cycles","21-30","21","Non-Learner","Not provided","Private"]
[null,"Non-Fleet","Telematics","Non-Comp","Motor cycles","31-40","21","Non-Learner","Not provided","Commercial"]
[null,"Non-Fleet","Telematics","Non-Comp","Motor cycles","51-60","17","Learner","Not provided","Private"]
[null,"Non-Fleet","Telematics","Non-Comp","Motor cycles",">60","51-69","Non-Learner","Not provided","Commercial"]
[null,"Non-Fleet","Telematics","Non-Comp","Motor Trade Road Risks","0-10","25","Learner","Not provided","Private"]
[null,"Non-Fleet","Telematics","Non-Comp","Motor Trade Road Risks","21-30","20","Learner","Not provided","Commercial"]
[null,"Non-Fleet","Telematics","Non-Comp","Motor Trade Road Risks","31-40","26-20","Learner","Not provided","Private"]
[null,"Non-Fleet","Telematics","Non-Comp","Motor Trade Road Risks","41-50","51-69","Learner","Not provided","Commercial"]
[null,"Non-Fleet","Telematics","Non-Comp","Motor Trade Road Risks",">60","23","Non-Learner","Not provided","Private"]
[null,"Non-Fleet","Telematics","Non-Comp","All others","0-10","23","Learner","Not provided","Commercial"]
[null,"Non-Fleet","Telematics","Non-Comp","All others","21-30","17","Non-Learner","Not provided","Private"]
[null,"Non-Fleet","Telematics","Non-Comp","All others","21-30","Any Driver","Non-Learner","Not provided","Private"]
[null,"Non-Fleet","Telematics","Non-Comp","All others","41-50","25","Non-Learner","Not provided","Commercial"]
[null,"Non-Fleet","Telematics","Non-Comp","All others","51-60","21","Learner","Not provided","Private"]
[null,"Non-Fleet","Non-Telematics","Comp","Motor Cars","0-10","19","Non-Learner","Not provided","Commercial"]
[null,"Non-Fleet","Non-Telematics","Comp","Motor Cars","0-10","24","Non-Learner","Not provided","Commercial"]
[null,"Non-Fleet","Non-Telematics","Comp","Motor Cars","21-30","18","Learner","Not provided","Commercial"]
[null,"Non-Fleet","Non-Telematics","Comp","Motor Cars","31-40","18","Non-Learner","Not provided","Commercial"]
[null,"Non-Fleet","Non-Telematics","Comp","Motor Cars","41-50","51-69","Learner","Not provided","Private"]
[null,"Non-Fleet","Non-Telematics","Comp","Motor Cars",">60","25","Non-Learner","Not provided","Private"]
[null,"Non-Fleet","Non-Telematics","Comp","Light Commercial Vehicles","0-10","22","Learner","Not provided","Private"]
[null,"Non-Fleet","Non-Telematics","Comp","Light Commercial Vehicles","21-30","17","Learner","Not provided","Commercial"]
[null,"Non-Fleet","Non-Telematics","Comp","Light Commercial Vehicles","31-40","22","Non-Learner","Not provided","Commercial"]
[null,"Non-Fleet","Non-Telematics","Comp","Light Commercial Vehicles","41-50","25","Learner","Not provided","Commercial"]
[null,"Non-Fleet","Non-Telematics","Comp","Light Commercial Vehicles","51-60","24","Learner","Not provided","Commercial"]
[null,"Non-Fleet","Non-Telematics","Comp","Medium Commercial Vehicles","0-10","19","Non-Learner","Not provided","Private"]
[null,"Non-Fleet","Non-Telematics","Comp","Medium Commercial Vehicles","11-20","20","Non-Learner","Not provided","Private"]
[null,"Non-Fleet","Non-Telematics","Comp","Medium Commercial Vehicles","21-30","31-50","Non-Learner","Not provided","Private"]
[null,"Non-Fleet","Non-Telematics","Comp","Medium Commercial Vehicles","41-50","22","Non-Learner","Not provided","Commercial"]
[null,"Non-Fleet","Non-Telematics","Comp","Medium Commercial Vehicles","51-60","17","Non-Learner","Not provided","Commercial"]
[null,"Non-Fleet","Non-Telematics","Comp","Medium Commercial Vehicles",">60","Any Driver","Non-Learner","Not provided","Commercial"]
[null,"Non-Fleet","Non-Telematics","Comp","Heavy Commercial Vehicles","0-10","21","Non-Learner","Not provided","Commercial"]
[null,"Non-Fleet","Non-Telematics","Comp","Heavy Commercial Vehicles","21-30","25","Learner","Not provided","Private"]
[null,"Non-Fleet","Non-Telematics","Comp","Heavy Commercial Vehicles","21-30","70 or over","Non-Learner","Not provided","Commercial"]
[null,"Non-Fleet","Non-Telematics","Comp","Heavy Commercial Vehicles","41-50","25","Learner","Not provided","Private"]
[null,"Non-Fleet","Non-Telematics","Comp","Heavy Commercial Vehicles",">60","22","Learner","Not provided","Commercial"]
[null,"Non-Fleet","Non-Telematics","Comp","Buses, coaches etc","0-10","19","Learner","Not provided","Private"]
[null,"Non-Fleet","Non-Telematics","Comp","Buses, coaches etc","11-20","51-69","Learner","Not provided","Commercial"]
[null,"Non-Fleet","Non-Telematics","Comp","Buses, coaches etc","21-30","31-50","Learner","Not provided","Commercial"]
[null,"Non-Fleet","Non-Telematics","Comp","Buses, coaches etc","41-50","20","Learner","Not provided","Private"]
[null,"Non-Fleet","Non-Telematics","Comp","Buses, coaches etc","51-60","21","Learner","Not provided","Commercial"]
[null,"Non-Fleet","Non-Telematics","Comp","Buses, coaches etc",">60","Any Driver","Non-Learner","Not provided","Private"]
[null,"Non-Fleet","Non-Telematics","Comp","Taxis, private & public hire","11-20","17","Learner","Not provided","Commercial"]
[null,"Non-Fleet","Non-Telematics","Comp","Taxis, private & public hire","21-30","24","Non-Learner","Not provided","Private"]
[null,"Non-Fleet","Non-Telematics","Comp","Taxis, private & public hire","41-50","19","Non-Learner","Not provided","Commercial"]
[null,"Non-Fleet","Non-Telematics","Comp","Taxis, private & public hire","51-60","24","Non-Learner","Not provided","Private"]
[null,"Non-Fleet","Non-Telematics","Comp","Taxis, private & public hire",">60","31-50","Non-Learner","Not provided","Commercial"]
[null,"Non-Fleet","Non-Telematics","Comp","Self-drive hire vehicles","0-10","18","Non-Learner","Not provided","Commercial"]
[null,"Non-Fleet","Non-Telematics","Comp","Self-drive hire vehicles","21-30","21","Non-Learner","Not provided","Commercial"]
[null,"Non-Fleet","Non-Telematics","Comp","Self-drive hire vehicles","21-30","26-20","Non-Learner","Not provided","Commercial"]
[null,"Non-Fleet","Non-Telematics","Comp","Self-drive hire vehicles","41-50","22","Learner","Not provided","Private"]
[null,"Non-Fleet","Non-Telematics","Comp","Self-drive hire vehicles",">60","19","Learner","Not provided","Private"]
[null,"Non-Fleet","Non-Telematics","Comp","Self-drive hire vehicles",">60","Any Driver","Learner","Not provided","Private"]
[null,"Non-Fleet","Non-Telematics","Comp","Tankers, hazardous","0-10","70 or over","Learner","Not provided","Private"]
[null,"Non-Fleet","Non-Telematics","Comp","Tankers, hazardous","21-30","24","Learner","Not provided","Commercial"]
[null,"Non-Fleet","Non-Telematics","Comp","Tankers, hazardous","31-40","Any Driver","Non-Learner","Not provided","Commercial"]
[null,"Non-Fleet","Non-Telematics","Comp","Tankers, hazardous","51-60","18","Learner","Not provided","Commercial"]
[null,"Non-Fleet","Non-Telematics","Comp","Tankers, hazardous",">60","31-50","Non-Learner","Not provided","Private"]
[null,"Non-Fleet","Non-Telematics","Comp","Motor cycles","11-20","24","Learner","Not provided","Private"]
[null,"Non-Fleet","Non-Telematics","Comp","Motor cycles","21-30","21","Non-Learner","Not provided","Private"]
[null,"Non-Fleet","Non-Telematics","Comp","Motor cycles","31-40","Any Driver","Non-Learner","Not provided","Commercial"]
[null,"Non-Fleet","Non-Telematics","Comp","Motor cycles","51-60","21","Learner","Not provided","Commercial"]
[null,"Non-Fleet","Non-Telematics","Comp","Motor cycles",">60","24","Non-Learner","Not provided","Commercial"]
[null,"Non-Fleet","Non-Telematics","Comp","Motor cycles",">60","70 or over","Non-Learner","Not provided","Commercial"]
[null,"Non-Fleet","Non-Telematics","Comp","Motor Trade Road Risks","21-30","18","Non-Learner","Not provided","Private"]
[null,"Non-Fleet","Non-Telematics","Comp","Motor Trade Road Risks","21-30","23","Non-Learner","Not provided","Commercial"]
[null,"Non-Fleet","Non-Telematics","Comp","Motor Trade Road Risks","41-50","31-50","Learner","Not provided","Private"]
[null,"Non-Fleet","Non-Telematics","Comp","Motor Trade Road Risks","51-60","18","Learner","Not provided","Private"]
[null,"Non-Fleet","Non-Telematics","Comp","Motor Trade Road Risks",">60","Any Driver","Learner","Not provided","Commercial"]
[null,"Non-Fleet","Non-Telematics","Comp","All others","0-10","26-20","Learner","Not provided","Private"]
[null,"Non-Fleet","Non-Telematics","Comp","All others","21-30","21","Learner","Not provided","Commercial"]
[null,"Non-Fleet","Non-Telematics","Comp","All others","31-40","31-50","Non-Learner","Not provided","Private"]
[null,"Non-Fleet","Non-Telematics","Comp","All others","41-50","70 or over","Learner","Not provided","Commercial"]
[null,"Non-Fleet","Non-Telematics","Comp","All others",">60","24","Non-Learner","Not provided","Private"]
[null,"Non-Fleet","Non-Telematics","Non-Comp","Motor Cars","11-20","20","Non-Learner","Not provided","Commercial"]
[null,"Non-Fleet","Non-Telematics","Non-Comp","Motor Cars","21-30","18","Non-Learner","Not provided","Private"]
[null,"Non-Fleet","Non-Telematics","Non-Comp","Motor Cars","31-40","31-50","Non-Learner","Not provided","Commercial"]
[null,"Non-Fleet","Non-Telematics","Non-Comp","Motor Cars","51-60","18","Learner","Not provided","Private"]
[null,"Non-Fleet","Non-Telematics","Non-Comp","Motor Cars",">60","21","Non-Learner","Not provided","Commercial"]
[null,"Non-Fleet","Non-Telematics","Non-Comp","Light Commercial Vehicles","0-10","20","Non-Learner","Not provided","Commercial"]
[null,"Non-Fleet","Non-Telematics","Non-Comp","Light Commercial Vehicles","11-20","Any Driver","Learner","Not provided","Private"]
[null,"Non-Fleet","Non-Telematics","Non-Comp","Light Commercial Vehicles","21-30","70 or over","Non-Learner","Not provided","Commercial"]
[null,"Non-Fleet","Non-Telematics","Non-Comp","Light Commercial Vehicles","41-50","24","Learner","Not provided","Private"]
[null,"Non-Fleet","Non-Telematics","Non-Comp","Light Commercial Vehicles","41-50","70 or over","Learner","Not provided","Private"]
[null,"Non-Fleet","Non-Telematics","Non-Comp","Light Commercial Vehicles",">60","31-50","Learner","Not provided","Private"]
[null,"Non-Fleet","Non-Telematics","Non-Comp","Medium Commercial Vehicles","0-10","23","Learner","Not provided","Private"]
[null,"Non-Fleet","Non-Telematics","Non-Comp","Medium Commercial Vehicles","21-30","18","Learner","Not provided","Commercial"]
[null,"Non-Fleet","Non-Telematics","Non-Comp","Medium Commercial Vehicles","21-30","Any Driver","Learner","Not provided","Commercial"]
[null,"Non-Fleet","Non-Telematics","Non-Comp","Medium Commercial Vehicles","41-50","26-20","Learner","Not provided","Commercial"]
[null,"Non-Fleet","Non-Telematics","Non-Comp","Medium Commercial Vehicles",">60","21","Non-Learner","Not provided","Private"]
[null,"Non-Fleet","Non-Telematics","Non-Comp","Heavy Commercial Vehicles","11-20","17","Non-Learner","Not provided","Private"]
[null,"Non-Fleet","Non-Telematics","Non-Comp","Heavy Commercial Vehicles","11-20","70 or over","Non-Learner","Not provided","Private"]
[null,"Non-Fleet","Non-Telematics","Non-Comp","Heavy Commercial Vehicles","31-40","24","Non-Learner","Not provided","Commercial"]
[null,"Non-Fleet","Non-Telematics","Non-Comp","Heavy Commercial Vehicles","41-50","51-69","Non-Learner","Not provided","Commercial"]
[null,"Non-Fleet","Non-Telematics","Non-Comp","Heavy Commercial Vehicles",">60","18","Non-Learner","Not provided","Commercial"]
[null,"Non-Fleet","Non-Telematics","Non-Comp","Buses, coaches etc","0-10","17","Non-Learner","Not provided","Commercial"]
[null,"Non-Fleet","Non-Telematics","Non-Comp","Buses, coaches etc","11-20","31-50","Learner","Not provided","Private"]
[null,"Non-Fleet","Non-Telematics","Non-Comp","Buses, coaches etc","21-30","26-20","Non-Learner","Not provided","Private"]
[null,"Non-Fleet","Non-Telematics","Non-Comp","Buses, coaches etc","41-50","21","Learner","Not provided","Private"]
[null,"Non-Fleet","Non-Telematics","Non-Comp","Buses, coaches etc","41-50","26-20","Learner","Not provided","Private"]
[null,"Non-Fleet","Non-Telematics","Non-Comp","Buses, coaches etc","51-60","70 or over","Non-Learner","Not provided","Commercial"]
[null,"Non-Fleet","Non-Telematics","Non-Comp","Taxis, private & public hire","0-10","20","Learner","Not provided","Private"]
[null,"Non-Fleet","Non-Telematics","Non-Comp","Taxis, private & public hire","11-20","70 or over","Learner","Not provided","Commercial"]
[null,"Non-Fleet","Non-Telematics","Non-Comp","Taxis, private & public hire","21-30","31-50","Learner","Not provided","Private"]
[null,"Non-Fleet","Non-Telematics","Non-Comp","Taxis, private & public hire","41-50","23","Learner","Not provided","Commercial"]
[null,"Non-Fleet","Non-Telematics","Non-Comp","Taxis, private & public hire",">60","18","Non-Learner","Not provided","Private"]
[null,"Non-Fleet","Non-Telematics","Non-Comp","Self-drive hire vehicles","0-10","51-69","Learner","Not provided","Commercial"]
[null,"Non-Fleet","Non-Telematics","Non-Comp","Self-drive hire vehicles","11-20","26-20","Non-Learner","Not provided","Private"]
[null,"Non-Fleet","Non-Telematics","Non-Comp","Self-drive hire vehicles","21-30","25","Non-Learner","Not provided","Private"]
[null,"Non-Fleet","Non-Telematics","Non-Comp","Self-drive hire vehicles","41-50","20","Non-Learner","Not provided","Commercial"]
[null,"Non-Fleet","Non-Telematics","Non-Comp","Self-drive hire vehicles","51-60","26-20","Learner","Not provided","Private"]
[null,"Non-Fleet","Non-Telematics","Non-Comp","Self-drive hire vehicles",">60","51-69","Non-Learner","Not provided","Commercial"]
[null,"Non-Fleet","Non-Telematics","Non-Comp","Tankers, hazardous","11-20","24","Learner","Not provided","Private"]
[null,"Non-Fleet","Non-Telematics","Non-Comp","Tankers, hazardous","11-20","70 or over","Learner","Not provided","Commercial"]
[null,"Non-Fleet","Non-Telematics","Non-Comp","Tankers, hazardous","41-50","18","Learner","Not provided","Private"]
[null,"Non-Fleet","Non-Telematics","Non-Comp","Tankers, hazardous","41-50","23","Learner","Not provided","Private"]
[null,"Non-Fleet","Non-Telematics","Non-Comp","Tankers, hazardous","51-60","26-20","Non-Learner","Not provided","Private"]
[null,"Non-Fleet","Non-Telematics","Non-Comp","Motor cycles","0-10","17","Learner","Not provided","Private"]
[null,"Non-Fleet","Non-Telematics","Non-Comp","Motor cycles","11-20","26-20","Learner","Not provided","Commercial"]
[null,"Non-Fleet","Non-Telematics","Non-Comp","Motor cycles","21-30","23","Non-Learner","Not provided","Commercial"]
[null,"Non-Fleet","Non-Telematics","Non-Comp","Motor cycles","41-50","20","Learner","Not provided","Commercial"]
[null,"Non-Fleet","Non-Telematics","Non-Comp","Motor cycles","51-60","19","Learner","Not provided","Commercial"]
[null,"Non-Fleet","Non-Telematics","Non-Comp","Motor cycles",">60","51-69","Non-Learner","Not provided","Private"]
[null,"Non-Fleet","Non-Telematics","Non-Comp","Motor Trade Road Risks","11-20","25","Non-Learner","Not provided","Private"]
[null,"Non-Fleet","Non-Telematics","Non-Comp","Motor Trade Road Risks","21-30","22","Non-Learner","Not provided","Private"]
[null,"Non-Fleet","Non-Telematics","Non-Comp","Motor Trade Road Risks","41-50","17","Non-Learner","Not provided","Commercial"]
[null,"Non-Fleet","Non-Telematics","Non-Comp","Motor Trade Road Risks","51-60","22","Non-Learner","Not provided","Commercial"]
[null,"Non-Fleet","Non-Telematics","Non-Comp","Motor Trade Road Risks",">60","25","Non-Learner","Not provided","Commercial"]
[null,"Non-Fleet","Non-Telematics","Non-Comp","All others","11-20","21","Learner","Not provided","Private"]
[null,"Non-Fleet","Non-Telematics","Non-Comp","All others","11-20","26-20","Learner","Not provided","Private"]
[null,"Non-Fleet","Non-Telematics","Non-Comp","All others","31-40","70 or over","Learner","Not provided","Private"]
[null,"Non-Fleet","Non-Telematics","Non-Comp","All others","41-50","20","Learner","Not provided","Private"]
[null,"Non-Fleet","Non-Telematics","Non-Comp","All others","51-60","23","Learner","Not provided","Commercial"]
[null,"Non-Fleet","Non-Telematics","Non-Comp","All others",">60","51-69","Learner","Not provided","Private"]
[null,"Fleet","Telematics","Comp","Light Commercial Vehicles","21-30","Not provided","Learner","Diverse","Commercial"]
[null,"Fleet","Telematics","Comp","Light Commercial Vehicles","31-40","Not provided","Non-Learner","Male","Private"]
[null,"Fleet","Telematics","Comp","Medium Commercial Vehicles","41-50","Not provided","Non-Learner","Female","Commercial"]
[null,"Fleet","Telematics","Comp","Heavy Commercial Vehicles","21-30","Not provided","Learner","Male","Commercial"]
[null,"Fleet","Telematics","Comp","Buses, coaches etc","21-30","Not provided","Non-Learner","Diverse","Private"]
[null,"Fleet","Telematics","Comp","Taxis, private & public hire","41-50","Not provided","Learner","Male","Commercial"]
[null,"Fleet","Telematics","Comp","Self-drive hire vehicles","0-10","Not provided","Non-Learner","Diverse","Private"]
[null,"Fleet","Telematics","Comp","Tankers, hazardous","11-20","Not provided","Non-Learner","Male","Commercial"]
[null,"Fleet","Telematics","Comp","Tankers, hazardous","51-60","Not provided","Learner","Female","Private"]
[null,"Fleet","Telematics","Comp","Motor cycles",">60","Not provided","Non-Learner","Male","Commercial"]
[null,"Fleet","Telematics","Comp","All others","0-10","Not provided","Learner","Diverse","Private"]
[null,"Fleet","Telematics","Comp","All others","11-20","Not provided","Non-Learner","Diverse","Commercial"]
[null,"Fleet","Telematics","Non-Comp","Motor Cars","51-60","Not provided","Learner","Diverse","Private"]
[null,"Fleet","Telematics","Non-Comp","Light Commercial Vehicles","21-30","Not provided","Non-Learner","Female","Private"]
[null,"Fleet","Telematics","Non-Comp","Light Commercial Vehicles","51-60","Not provided","Non-Learner","Female","Private"]
[null,"Fleet","Telematics","Non-Comp","Medium Commercial Vehicles","51-60","Not provided","Learner","Male","Private"]
[null,"Fleet","Telematics","Non-Comp","Buses, coaches etc","11-20","Not provided","Learner","Diverse","Commercial"]
[null,"Fleet","Telematics","Non-Comp","Buses, coaches etc","31-40","Not provided","Learner","Male","Commercial"]
[null,"Fleet","Telematics","Non-Comp","Taxis, private & public hire",">60","Not provided","Learner","Female","Commercial"]
[null,"Fleet","Telematics","Non-Comp","Self-drive hire vehicles","11-20","Not provided","Learner","Male","Commercial"]
[null,"Fleet","Telematics","Non-Comp","Tankers, hazardous","11-20","Not provided","Non-Learner","Diverse","Private"]
[null,"Fleet","Telematics","Non-Comp","Motor cycles","0-10","Not provided","Learner","Diverse","Private"]
[null,"Fleet","Telematics","Non-Comp","Motor cycles",">60","Not provided","Non-Learner","Diverse","Private"]
[null,"Fleet","Telematics","Non-Comp","All others","0-10","Not provided","Non-Learner","Male","Commercial"]
[null,"Fleet","Telematics","Non-Comp","All others","41-50","Not provided","Learner","Male","Commercial"]
[null,"Fleet","Non-Telematics","Comp","Motor Cars","51-60","Not provided","Non-Learner","Male","Commercial"]
[null,"Fleet","Non-Telematics","Comp","Light Commercial Vehicles",">60","Not provided","Learner","Diverse","Private"]
[null,"Fleet","Non-Telematics","Comp","Medium Commercial Vehicles","0-10","Not provided","Non-Learner","Diverse","Private"]
[null,"Fleet","Non-Telematics","Comp","Heavy Commercial Vehicles","41-50","Not provided","Learner","Diverse","Private"]
[null,"Fleet","Non-Telematics","Comp","Buses, coaches etc","11-20","Not provided","Non-Learner","Female","Private"]
[null,"Fleet","Non-Telematics","Comp","Taxis, private & public hire","21-30","Not provided","Learner","Diverse","Commercial"]
[null,"Fleet","Non-Telematics","Comp","Self-drive hire vehicles","11-20","Not provided","Learner","Diverse","Commercial"]
[null,"Fleet","Non-Telematics","Comp","Tankers, hazardous","0-10","Not provided","Learner","Diverse","Commercial"]
[null,"Fleet","Non-Telematics","Comp","Tankers, hazardous","21-30","Not provided","Learner","Male","Commercial"]
[null,"Fleet","Non-Telematics","Comp","Motor cycles","21-30","Not provided","Non-Learner","Male","Private"]
[null,"Fleet","Non-Telematics","Comp","Motor Trade Road Risks","0-10","Not provided","Learner","Male","Commercial"]
[null,"Fleet","Non-Telematics","Comp","All others","0-10","Not provided","Non-Learner","Diverse","Private"]
[null,"Fleet","Non-Telematics","Comp","All others",">60","Not provided","Learner","Female","Commercial"]
[null,"Fleet","Non-Telematics","Non-Comp","Motor Cars","51-60","Not provided","Non-Learner","Diverse","Private"]
[null,"Fleet","Non-Telematics","Non-Comp","Light Commercial Vehicles",">60","Not provided","Non-Learner","Male","Commercial"]
[null,"Fleet","Non-Telematics","Non-Comp","Medium Commercial Vehicles","31-40","Not provided","Learner","Male","Private"]
[null,"Fleet","Non-Telematics","Non-Comp","Heavy Commercial Vehicles","41-50","Not provided","Non-Learner","Male","Commercial"]
[null,"Fleet","Non-Telematics","Non-Comp","Buses, coaches etc","11-20","Not provided","Non-Learner","Diverse","Commercial"]
[null,"Fleet","Non-Telematics","Non-Comp","Buses, coaches etc",">60","Not provided","Non-Learner","Female","Commercial"]
[null,"Fleet","Non-Telematics","Non-Comp","Self-drive hire vehicles","31-40","Not provided","Learner","Diverse","Private"]
[null,"Fleet","Non-Telematics","Non-Comp","Tankers, hazardous","0-10","Not provided","Non-Learner","Female","Private"]
[null,"Fleet","Non-Telematics","Non-Comp","Motor cycles","11-20","Not provided","Learner","Diverse","Commercial"]
[null,"Fleet","Non-Telematics","Non-Comp","Motor Trade Road Risks","0-10","Not provided","Learner","Diverse","Private"]
[null,"Fleet","Non-Telematics","Non-Comp","Motor Trade Road Risks",">60","Not provided","Learner","Diverse","Commercial"]
[null,"Fleet","Non-Telematics","Non-Comp","All others","11-20","Not provided","Learner","Male","Commercial"]
[null,"Non-Fleet","Telematics","Comp","Motor Cars","11-20","Not provided","Learner","Diverse","Commercial"]
[null,"Non-Fleet","Telematics","Comp","Motor Cars",">60","Not provided","Learner","Male","Commercial"]
[null,"Non-Fleet","Telematics","Comp","Light Commercial Vehicles",">60","Not provided","Non-Learner","Diverse","Private"]
[null,"Non-Fleet","Telematics","Comp","Medium Commercial Vehicles","51-60","Not provided","Learner","Female","Private"]
[null,"Non-Fleet","Telematics","Comp","Heavy Commercial Vehicles","41-50","Not provided","Non-Learner","Diverse","Private"]
[null,"Non-Fleet","Telematics","Comp","Buses, coaches etc","21-30","Not provided","Learner","Female","Private"]
[null,"Non-Fleet","Telematics","Comp","Taxis, private & public hire","11-20","Not provided","Non-Learner","Diverse","Commercial"]
[null,"Non-Fleet","Telematics","Comp","Self-drive hire vehicles","31-40","Not provided","Non-Learner","Male","Commercial"]
[null,"Non-Fleet","Telematics","Comp","Tankers, hazardous","0-10","Not provided","Non-Learner","Diverse","Commercial"]
[null,"Non-Fleet","Telematics","Comp","Motor cycles","11-20","Not provided","Non-Learner","Female","Private"]
[null,"Non-Fleet","Telematics","Comp","Motor Trade Road Risks","21-30","Not provided","Non-Learner","Male","Private"]
[null,"Non-Fleet","Telematics","Comp","Motor Trade Road Risks",">60","Not provided","Non-Learner","Female","Private"]
[null,"Non-Fleet","Telematics","Non-Comp","Motor Cars","0-10","Not provided","Learner","Diverse","Commercial"]
[null,"Non-Fleet","Telematics","Non-Comp","Motor Cars","31-40","Not provided","Non-Learner","Male","Commercial"]
[null,"Non-Fleet","Telematics","Non-Comp","Light Commercial Vehicles","51-60","Not provided","Learner","Diverse","Commercial"]
[null,"Non-Fleet","Telematics","Non-Comp","Medium Commercial Vehicles","0-10","Not provided","Learner","Male","Commercial"]
[null,"Non-Fleet","Telematics","Non-Comp","Heavy Commercial Vehicles","0-10","Not provided","Learner","Diverse","Private"]
[null,"Non-Fleet","Telematics","Non-Comp","Heavy Commercial Vehicles","51-60","Not provided","Learner","Male","Commercial"]
[null,"Non-Fleet","Telematics","Non-Comp","Taxis, private & public hire","11-20","Not provided","Non-Learner","Male","Private"]
[null,"Non-Fleet","Telematics","Non-Comp","Taxis, private & public hire","41-50","Not provided","Learner","Male","Commercial"]
[null,"Non-Fleet","Telematics","Non-Comp","Self-drive hire vehicles","31-40","Not provided","Non-Learner","Diverse","Private"]
[null,"Non-Fleet","Telematics","Non-Comp","Tankers, hazardous","11-20","Not provided","Learner","Female","Private"]
[null,"Non-Fleet","Telematics","Non-Comp","Motor cycles","11-20","Not provided","Non-Learner","Diverse","Commercial"]
[null,"Non-Fleet","Telematics","Non-Comp","Motor cycles","51-60","Not provided","Non-Learner","Female","Private"]
[null,"Non-Fleet","Telematics","Non-Comp","Motor Trade Road Risks",">60","Not provided","Non-Learner","Diverse","Commercial"]
[null,"Non-Fleet","Non-Telematics","Comp","Motor Cars","0-10","Not provided","Non-Learner","Female","Private"]
[null,"Non-Fleet","Non-Telematics","Comp","Motor Cars","51-60","Not provided","Non-Learner","Female","Commercial"]
[null,"Non-Fleet","Non-Telematics","Comp","Light Commercial Vehicles","51-60","Not provided","Non-Learner","Female","Private"]
[null,"Non-Fleet","Non-Telematics","Comp","Medium Commercial Vehicles",">60","Not provided","Learner","Diverse","Commercial"]
[null,"Non-Fleet","Non-Telematics","Comp","Heavy Commercial Vehicles","21-30","Not provided","Non-Learner","Male","Private"]
[null,"Non-Fleet","Non-Telematics","Comp","Buses, coaches etc","41-50","Not provided","Learner","Diverse","Commercial"]
[null,"Non-Fleet","Non-Telematics","Comp","Buses, coaches etc",">60","Not provided","Learner","Male","Commercial"]
[null,"Non-Fleet","Non-Telematics","Comp","Taxis, private & public hire",">60","Not provided","Learner","Female","Commercial"]
[null,"Non-Fleet","Non-Telematics","Comp","Self-drive hire vehicles","41-50","Not provided","Learner","Male","Commercial"]
[null,"Non-Fleet","Non-Telematics","Comp","Motor cycles","0-10","Not provided","Non-Learner","Male","Private"]
[null,"Non-Fleet","Non-Telematics","Comp","Motor cycles","31-40","Not provided","Learner","Male","Private"]
[null,"Non-Fleet","Non-Telematics","Comp","Motor Trade Road Risks","21-30","Not provided","Non-Learner","Diverse","Private"]
[null,"Non-Fleet","Non-Telematics","Comp","All others","0-10","Not provided","Learner","Female","Private"]
[null,"Non-Fleet","Non-Telematics","Non-Comp","Motor Cars","0-10","Not provided","Non-Learner","Diverse","Commercial"]
[null,"Non-Fleet","Non-Telematics","Non-Comp","Light Commercial Vehicles","0-10","Not provided","Non-Learner","Diverse","Commercial"]
[null,"Non-Fleet","Non-Telematics","Non-Comp","Light Commercial Vehicles","51-60","Not provided","Non-Learner","Diverse","Commercial"]
[null,"Non-Fleet","Non-Telematics","Non-Comp","Medium Commercial Vehicles",">60","Not provided","Non-Learner","Female","Private"]
[null,"Non-Fleet","Non-Telematics","Non-Comp","Heavy Commercial Vehicles","41-50","Not provided","Non-Learner","Female","Private"]
[null,"Non-Fleet","Non-Telematics","Non-Comp","Buses, coaches etc","41-50","Not provided","Non-Learner","Female","Private"]
[null,"Non-Fleet","Non-Telematics","Non-Comp","Taxis, private & public hire","51-60","Not provided","Learner","Diverse","Commercial"]
[null,"Non-Fleet","Non-Telematics","Non-Comp","Self-drive hire vehicles","11-20","Not provided","Learner","Diverse","Commercial"]
[null,"Non-Fleet","Non-Telematics","Non-Comp","Tankers, hazardous","31-40","Not provided","Learner","Diverse","Commercial"]
[null,"Non-Fleet","Non-Telematics","Non-Comp","Motor cycles","0-10","Not provided","Non-Learner","Female","Commercial"]
[null,"Non-Fleet","Non-Telematics","Non-Comp","Motor cycles","51-60","Not provided","Learner","Female","Private"]
[null,"Non-Fleet","Non-Telematics","Non-Comp","Motor Trade Road Risks","31-40","Not provided","Learner","Male","Commercial"]
[null,"Non-Fleet","Non-Telematics","Non-Comp","All others",">60","Not provided","Non-Learner","Male","Private"]
[null,"Fleet","Telematics","Comp","Motor Cars","31-40","Not provided","Non-Learner","Not provided","Private"]
[null,"Fleet","Telematics","Comp","Buses, coaches etc","21-30","Not provided","Learner","Not provided","Commercial"]
[null,"Fleet","Telematics","Comp","Taxis, private & public hire","41-50","Not provided","Non-Learner","Not provided","Private"]
[null,"Fleet","Telematics","Comp","Motor cycles",">60","Not provided","Non-Learner","Not provided","Commercial"]
[null,"Fleet","Telematics","Non-Comp","Motor Cars",">60","Not provided","Non-Learner","Not provided","Private"]
[null,"Fleet","Telematics","Non-Comp","Heavy Commercial Vehicles","0-10","Not provided","Non-Learner","Not provided","Commercial"]
[null,"Fleet","Telematics","Non-Comp","Self-drive hire vehicles","31-40","Not provided","Learner","Not provided","Private"]
[null,"Fleet","Telematics","Non-Comp","Motor cycles","31-40","Not provided","Non-Learner","Not provided","Commercial"]
[null,"Fleet","Non-Telematics","Comp","Motor Cars","41-50","Not provided","Learner","Not provided","Private"]
[null,"Fleet","Non-Telematics","Comp","Medium Commercial Vehicles","31-40","Not provided","Learner","Not provided","Private"]
[null,"Fleet","Non-Telematics","Comp","Taxis, private & public hire","11-20","Not provided","Learner","Not provided","Private"]
[null,"Fleet","Non-Telematics","Comp","Motor Trade Road Risks","0-10","Not provided","Learner","Not provided","Commercial"]
[null,"Fleet","Non-Telematics","Comp","All others",">60","Not provided","Learner","Not provided","Commercial"]
[null,"Fleet","Non-Telematics","Non-Comp","Heavy Commercial Vehicles","11-20","Not provided","Non-Learner","Not provided","Private"]
[null,"Fleet","Non-Telematics","Non-Comp","Heavy Commercial Vehicles","51-60","Not provided","Non-Learner","Not provided","Commercial"]
[null,"Fleet","Non-Telematics","Non-Comp","Motor cycles","21-30","Not provided","Non-Learner","Not provided","Private"]
[null,"Fleet","Non-Telematics","Non-Comp","Motor Trade Road Risks","0-10","Not provided","Non-Learner","Not provided","Private"]
[null,"Non-Fleet","Telematics","Comp","Light Commercial Vehicles",">60","Not provided","Learner","Not provided","Private"]
[null,"Non-Fleet","Telematics","Comp","Heavy Commercial Vehicles","11-20","Not provided","Non-Learner","Not provided","Private"]
[null,"Non-Fleet","Telematics","Comp","Self-drive hire vehicles","31-40","Not provided","Non-Learner","Not provided","Commercial"]
[null,"Non-Fleet","Telematics","Comp","Motor Trade Road Risks","31-40","Not provided","Learner","Not provided","Commercial"]
[null,"Non-Fleet","Telematics","Non-Comp","Motor Cars","41-50","Not provided","Non-Learner","Not provided","Commercial"]
[null,"Non-Fleet","Telematics","Non-Comp","Medium Commercial Vehicles","31-40","Not provided","Non-Learner","Not provided","Commercial"]
[null,"Non-Fleet","Telematics","Non-Comp","Self-drive hire vehicles","0-10","Not provided","Non-Learner","Not provided","Private"]
[null,"Non-Fleet","Telematics","Non-Comp","Motor Trade Road Risks","11-20","Not provided","Learner","Not provided","Private"]
[null,"Non-Fleet","Non-Telematics","Comp","Motor Cars","0-10","Not provided","Learner","Not provided","Private"]
[null,"Non-Fleet","Non-Telematics","Comp","Heavy Commercial Vehicles","21-30","Not provided","Learner","Not provided","Commercial"]
[null,"Non-Fleet","Non-Telematics","Comp","Buses, coaches etc","11-20","Not provided","Learner","Not provided","Private"]
[null,"Non-Fleet","Non-Telematics","Comp","Buses, coaches etc","11-20","Not provided","Learner","Not provided","Commercial"]
[null,"Non-Fleet","Non-Telematics","Comp","Buses, coaches etc","11-20","Not provided","Non-Learner","Not provided","Private"]
[null,"Non-Fleet","Non-Telematics","Comp","Buses, coaches etc","11-20","Not provided","Non-Learner","Not provided","Commercial"]
[null,"Non-Fleet","Non-Telematics","Comp","Buses, coaches etc","21-30","Not provided","Learner","Not provided","Private"]
[null,"Non-Fleet","Non-Telematics","Comp","Buses, coaches etc","21-30","Not provided","Learner","Not provided","Commercial"]
[null,"Non-Fleet","Non-Telematics","Comp","Buses, coaches etc","21-30","Not provided","Non-Learner","Not provided","Private"]
[null,"Non-Fleet","Non-Telematics","Comp","Buses, coaches etc","21-30","Not provided","Non-Learner","Not provided","Commercial"]
[null,"Non-Fleet","Non-Telematics","Comp","Buses, coaches etc","31-40","Not provided","Learner","Not provided","Private"]
[null,"Non-Fleet","Non-Telematics","Comp","Buses, coaches etc","31-40","Not provided","Learner","Not provided","Commercial"]
[null,"Non-Fleet","Non-Telematics","Comp","Buses, coaches etc","31-40","Not provided","Non-Learner","Not provided","Private"]
[null,"Non-Fleet","Non-Telematics","Comp","Buses, coaches etc","31-40","Not provided","Non-Learner","Not provided","Commercial"]
[null,"Non-Fleet","Non-Telematics","Comp","Buses, coaches etc","41-50","Not provided","Learner","Not provided","Private"]
[null,"Non-Fleet","Non-Telematics","Comp","Buses, coaches etc","41-50","Not provided","Learner","Not provided","Commercial"]
[null,"Non-Fleet","Non-Telematics","Comp","Buses, coaches etc","41-50","Not provided","Non-Learner","Not provided","Private"]
[null,"Non-Fleet","Non-Telematics","Comp","Buses, coaches etc","41-50","Not provided","Non-Learner","Not provided","Commercial"]
[null,"Non-Fleet","Non-Telematics","Comp","Buses, coaches etc","51-60","Not provided","Learner","Not provided","Private"]
[null,"Non-Fleet","Non-Telematics","Comp","Buses, coaches etc","51-60","Not provided","Learner","Not provided","Commercial"]
[null,"Non-Fleet","Non-Telematics","Comp","Buses, coaches etc","51-60","Not provided","Non-Learner","Not provided","Private"]
[null,"Non-Fleet","Non-Telematics","Comp","Buses, coaches etc","51-60","Not provided","Non-Learner","Not provided","Commercial"]
[null,"Non-Fleet","Non-Telematics","Comp","Buses, coaches etc",">60","Not provided","Learner","Not provided","Private"]
[null,"Non-Fleet","Non-Telematics","Comp","Buses, coaches etc",">60","Not provided","Learner","Not provided","Commercial"]
[null,"Non-Fleet","Non-Telematics","Comp","Buses, coaches etc",">60","Not provided","Non-Learner","Not provided","Private"]
[null,"Non-Fleet","Non-Telematics","Comp","Buses, coaches etc",">60","Not provided","Non-Learner","Not provided","Commercial"]
[null,"Non-Fleet","Non-Telematics","Comp","Taxis, private & public hire","0-10","Not provided","Learner","Not provided","Private"]
[null,"Non-Fleet","Non-Telematics","Comp","Taxis, private & public hire","0-10","Not provided","Learner","Not provided","Commercial"]
[null,"Non-Fleet","Non-Telematics","Comp","Taxis, private & public hire","0-10","Not provided","Non-Learner","Not provided","Private"]
[null,"Non-Fleet","Non-Telematics","Comp","Taxis, private & public hire","0-10","Not provided","Non-Learner","Not provided","Commercial"]
[null,"Non-Fleet","Non-Telematics","Comp","Taxis, private & public hire","11-20","Not provided","Learner","Not provided","Private"]
[null,"Non-Fleet","Non-Telematics","Comp","Taxis, private & public hire","11-20","Not provided","Learner","Not provided","Commercial"]
[null,"Non-Fleet","Non-Telematics","Comp","Taxis, private & public hire","11-20","Not provided","Non-Learner","Not provided","Private"]
[null,"Non-Fleet","Non-Telematics","Comp","Taxis, private & public hire","11-20","Not provided","Non-Learner","Not provided","Commercial"]
[null,"Non-Fleet","Non-Telematics","Comp","Taxis, private & public hire","21-30","Not provided","Learner","Not provided","Private"]
[null,"Non-Fleet","Non-Telematics","Comp","Taxis, private & public hire","21-30","Not provided","Learner","Not provided","Commercial"]
[null,"Non-Fleet","Non-Telematics","Comp","Taxis, private & public hire","21-30","Not provided","Non-Learner","Not provided","Private"]
[null,"Non-Fleet","Non-Telematics","Comp","Taxis, private & public hire","21-30","Not provided","Non-Learner","Not provided","Commercial"]
[null,"Non-Fleet","Non-Telematics","Comp","Taxis, private & public hire","31-40","Not provided","Learner","Not provided","Private"]
[null,"Non-Fleet","Non-Telematics","Comp","Taxis, private & public hire","31-40","Not provided","Learner","Not provided","Commercial"]
[null,"Non-Fleet","Non-Telematics","Comp","Taxis, private & public hire","31-40","Not provided","Non-Learner","Not provided","Private"]
[null,"Non-Fleet","Non-Telematics","Comp","Taxis, private & public hire","31-40","Not provided","Non-Learner","Not provided","Commercial"]
[null,"Non-Fleet","Non-Telematics","Comp","Taxis, private & public hire","41-50","Not provided","Learner","Not provided","Private"]
[null,"Non-Fleet","Non-Telematics","Comp","Taxis, private & public hire","41-50","Not provided","Learner","Not provided","Commercial"]
[null,"Non-Fleet","Non-Telematics","Comp","Taxis, private & public hire","41-50","Not provided","Non-Learner","Not provided","Private"]
[null,"Non-Fleet","Non-Telematics","Comp","Taxis, private & public hire","41-50","Not provided","Non-Learner","Not provided","Commercial"]
[null,"Non-Fleet","Non-Telematics","Comp","Taxis, private & public hire","51-60","Not provided","Learner","Not provided","Private"]
[null,"Non-Fleet","Non-Telematics","Comp","Taxis, private & public hire","51-60","Not provided","Learner","Not provided","Commercial"]
[null,"Non-Fleet","Non-Telematics","Comp","Taxis, private & public hire","51-60","Not provided","Non-Learner","Not provided","Private"]
[null,"Non-Fleet","Non-Telematics","Comp","Taxis, private & public hire","51-60","Not provided","Non-Learner","Not provided","Commercial"]
[null,"Non-Fleet","Non-Telematics","Comp","Taxis, private & public hire",">60","Not provided","Learner","Not provided","Private"]
[null,"Non-Fleet","Non-Telematics","Comp","Taxis, private & public hire",">60","Not provided","Learner","Not provided","Commercial"]
[null,"Non-Fleet","Non-Telematics","Comp","Taxis, private & public hire",">60","Not provided","Non-Learner","Not provided","Private"]
[null,"Non-Fleet","Non-Telematics","Comp","Taxis, private & public hire",">60","Not provided","Non-Learner","Not provided","Commercial"]
[null,"Non-Fleet","Non-Telematics","Comp","Self-drive hire vehicles","0-10","Not provided","Learner","Not provided","Private"]
[null,"Non-Fleet","Non-Telematics","Comp","Self-drive hire vehicles","0-10","Not provided","Learner","Not provided","Commercial"]
[null,"Non-Fleet","Non-Telematics","Comp","Self-drive hire vehicles","0-10","Not provided","Non-Learner","Not provided","Private"]
[null,"Non-Fleet","Non-Telematics","Comp","Self-drive hire vehicles","0-10","Not provided","Non-Learner","Not provided","Commercial"]
[null,"Non-Fleet","Non-Telematics","Comp","Self-drive hire vehicles","11-20","Not provided","Learner","Not provided","Private"]
[null,"Non-Fleet","Non-Telematics","Comp","Self-drive hire vehicles","11-20","Not provided","Learner","Not provided","Commercial"]
[null,"Non-Fleet","Non-Telematics","Comp","Self-drive hire vehicles","11-20","Not provided","Non-Learner","Not provided","Private"]
[null,"Non-Fleet","Non-Telematics","Comp","Self-drive hire vehicles","11-20","Not provided","Non-Learner","Not provided","Commercial"]
[null,"Non-Fleet","Non-Telematics","Comp","Self-drive hire vehicles","21-30","Not provided","Learner","Not provided","Private"]
[null,"Non-Fleet","Non-Telematics","Comp","Self-drive hire vehicles","21-30","Not provided","Learner","Not provided","Commercial"]
[null,"Non-Fleet","Non-Telematics","Comp","Self-drive hire vehicles","21-30","Not provided","Non-Learner","Not provided","Private"]
[null,"Non-Fleet","Non-Telematics","Comp","Self-drive hire vehicles","21-30","Not provided","Non-Learner","Not provided","Commercial"]
[null,"Non-Fleet","Non-Telematics","Comp","Self-drive hire vehicles","31-40","Not provided","Learner","Not provided","Private"]
[null,"Non-Fleet","Non-Telematics","Comp","Self-drive hire vehicles","31-40","Not provided","Learner","Not provided","Commercial"]
[null,"Non-Fleet","Non-Telematics","Comp","Self-drive hire vehicles","31-40","Not provided","Non-Learner","Not provided","Private"]
[null,"Non-Fleet","Non-Telematics","Comp","Self-drive hire vehicles","31-40","Not provided","Non-Learner","Not provided","Commercial"]
[null,"Non-Fleet","Non-Telematics","Comp","Self-drive hire vehicles","41-50","Not provided","Learner","Not provided","Private"]
[null,"Non-Fleet","Non-Telematics","Comp","Self-drive hire vehicles","41-50","Not provided","Learner","Not provided","Commercial"]
[null,"Non-Fleet","Non-Telematics","Comp","Self-drive hire vehicles","41-50","Not provided","Non-Learner","Not provided","Private"]
[null,"Non-Fleet","Non-Telematics","Comp","Self-drive hire vehicles","41-50","Not provided","Non-Learner","Not provided","Commercial"]
[null,"Non-Fleet","Non-Telematics","Comp","Self-drive hire vehicles","51-60","Not provided","Learner","Not provided","Private"]
[null,"Non-Fleet","Non-Telematics","Comp","Self-drive hire vehicles","51-60","Not provided","Learner","Not provided","Commercial"]
[null,"Non-Fleet","Non-Telematics","Comp","Self-drive hire vehicles","51-60","Not provided","Non-Learner","Not provided","Private"]
[null,"Non-Fleet","Non-Telematics","Comp","Self-drive hire vehicles","51-60","Not provided","Non-Learner","Not provided","Commercial"]
[null,"Non-Fleet","Non-Telematics","Comp","Self-drive hire vehicles",">60","Not provided","Learner","Not provided","Private"]
[null,"Non-Fleet","Non-Telematics","Comp","Self-drive hire vehicles",">60","Not provided","Learner","Not provided","Commercial"]
[null,"Non-Fleet","Non-Telematics","Comp","Self-drive hire vehicles",">60","Not provided","Non-Learner","Not provided","Private"]
[null,"Non-Fleet","Non-Telematics","Comp","Self-drive hire vehicles",">60","Not provided","Non-Learner","Not provided","Commercial"]
[null,"Non-Fleet","Non-Telematics","Comp","Tankers, hazardous","0-10","Not provided","Learner","Not provided","Private"]
[null,"Non-Fleet","Non-Telematics","Comp","Tankers, hazardous","0-10","Not provided","Learner","Not provided","Commercial"]
[null,"Non-Fleet","Non-Telematics","Comp","Tankers, hazardous","0-10","Not provided","Non-Learner","Not provided","Private"]
[null,"Non-Fleet","Non-Telematics","Comp","Tankers, hazardous","0-10","Not provided","Non-Learner","Not provided","Commercial"]
[null,"Non-Fleet","Non-Telematics","Comp","Tankers, hazardous","11-20","Not provided","Learner","Not provided","Private"]
[null,"Non-Fleet","Non-Telematics","Comp","Tankers, hazardous","11-20","Not provided","Learner","Not provided","Commercial"]
[null,"Non-Fleet","Non-Telematics","Comp","Tankers, hazardous","11-20","Not provided","Non-Learner","Not provided","Private"]
[null,"Non-Fleet","Non-Telematics","Comp","Tankers, hazardous","11-20","Not provided","Non-Learner","Not provided","Commercial"]
[null,"Non-Fleet","Non-Telematics","Comp","Tankers, hazardous","21-30","Not provided","Learner","Not provided","Private"]
[null,"Non-Fleet","Non-Telematics","Comp","Tankers, hazardous","21-30","Not provided","Learner","Not provided","Commercial"]
[null,"Non-Fleet","Non-Telematics","Comp","Tankers, hazardous","21-30","Not provided","Non-Learner","Not provided","Private"]
[null,"Non-Fleet","Non-Telematics","Comp","Tankers, hazardous","21-30","Not provided","Non-Learner","Not provided","Commercial"]
[null,"Non-Fleet","Non-Telematics","Comp","Tankers, hazardous","31-40","Not provided","Learner","Not provided","Private"]
[null,"Non-Fleet","Non-Telematics","Comp","Tankers, hazardous","31-40","Not provided","Learner","Not provided","Commercial"]
[null,"Non-Fleet","Non-Telematics","Comp","Tankers, hazardous","31-40","Not provided","Non-Learner","Not provided","Private"]
[null,"Non-Fleet","Non-Telematics","Comp","Tankers, hazardous","31-40","Not provided","Non-Learner","Not provided","Commercial"]
[null,"Non-Fleet","Non-Telematics","Comp","Tankers, hazardous","41-50","Not provided","Learner","Not provided","Private"]
[null,"Non-Fleet","Non-Telematics","Comp","Tankers, hazardous","41-50","Not provided","Learner","Not provided","Commercial"]
[null,"Non-Fleet","Non-Telematics","Comp","Tankers, hazardous","41-50","Not provided","Non-Learner","Not provided","Private"]
[null,"Non-Fleet","Non-Telematics","Comp","Tankers, hazardous","41-50","Not provided","Non-Learner","Not provided","Commercial"]
[null,"Non-Fleet","Non-Telematics","Comp","Tankers, hazardous","51-60","Not provided","Learner","Not provided","Private"]
[null,"Non-Fleet","Non-Telematics","Comp","Tankers, hazardous","51-60","Not provided","Learner","Not provided","Commercial"]
[null,"Non-Fleet","Non-Telematics","Comp","Tankers, hazardous","51-60","Not provided","Non-Learner","Not provided","Private"]
[null,"Non-Fleet","Non-Telematics","Comp","Tankers, hazardous","51-60","Not provided","Non-Learner","Not provided","Commercial"]
[null,"Non-Fleet","Non-Telematics","Comp","Tankers, hazardous",">60","Not provided","Learner","Not provided","Private"]
[null,"Non-Fleet","Non-Telematics","Comp","Tankers, hazardous",">60","Not provided","Learner","Not provided","Commercial"]
[null,"Non-Fleet","Non-Telematics","Comp","Tankers, hazardous",">60","Not provided","Non-Learner","Not provided","Private"]
[null,"Non-Fleet","Non-Telematics","Comp","Tankers, hazardous",">60","Not provided","Non-Learner","Not provided","Commercial"]
[null,"Non-Fleet","Non-Telematics","Comp","Motor cycles","0-10","Not provided","Learner","Not provided","Private"]
[null,"Non-Fleet","Non-Telematics","Comp","Motor cycles","0-10","Not provided","Learner","Not provided","Commercial"]
[null,"Non-Fleet","Non-Telematics","Comp","Motor cycles","0-10","Not provided","Non-Learner","Not provided","Private"]
[null,"Non-Fleet","Non-Telematics","Comp","Motor cycles","0-10","Not provided","Non-Learner","Not provided","Commercial"]
[null,"Non-Fleet","Non-Telematics","Comp","Motor cycles","11-20","Not provided","Learner","Not provided","Private"]
[null,"Non-Fleet","Non-Telematics","Comp","Motor cycles","11-20","Not provided","Learner","Not provided","Commercial"]
[null,"Non-Fleet","Non-Telematics","Comp","Motor cycles","11-20","Not provided","Non-Learner","Not provided","Private"]
[null,"Non-Fleet","Non-Telematics","Comp","Motor cycles","11-20","Not provided","Non-Learner","Not provided","Commercial"]
[null,"Non-Fleet","Non-Telematics","Comp","Motor cycles","21-30","Not provided","Learner","Not provided","Private"]
[null,"Non-Fleet","Non-Telematics","Comp","Motor cycles","21-30","Not provided","Learner","Not provided","Commercial"]
[null,"Non-Fleet","Non-Telematics","Comp","Motor cycles","21-30","Not provided","Non-Learner","Not provided","Private"]
[null,"Non-Fleet","Non-Telematics","Comp","Motor cycles","21-30","Not provided","Non-Learner","Not provided","Commercial"]
[null,"Non-Fleet","Non-Telematics","Comp","Motor cycles","31-40","Not provided","Learner","Not provided","Private"]
[null,"Non-Fleet","Non-Telematics","Comp","Motor cycles","31-40","Not provided","Learner","Not provided","Commercial"]
[null,"Non-Fleet","Non-Telematics","Comp","Motor cycles","31-40","Not provided","Non-Learner","Not provided","Private"]
[null,"Non-Fleet","Non-Telematics","Comp","Motor cycles","31-40","Not provided","Non-Learner","Not provided","Commercial"]
[null,"Non-Fleet","Non-Telematics","Comp","Motor cycles","41-50","Not provided","Learner","Not provided","Private"]
[null,"Non-Fleet","Non-Telematics","Comp","Motor cycles","41-50","Not provided","Learner","Not provided","Commercial"]
[null,"Non-Fleet","Non-Telematics","Comp","Motor cycles","41-50","Not provided","Non-Learner","Not provided","Private"]
[null,"Non-Fleet","Non-Telematics","Comp","Motor cycles","41-50","Not provided","Non-Learner","Not provided","Commercial"]
[null,"Non-Fleet","Non-Telematics","Comp","Motor cycles","51-60","Not provided","Learner","Not provided","Private"]
[null,"Non-Fleet","Non-Telematics","Comp","Motor cycles","51-60","Not provided","Learner","Not provided","Commercial"]
[null,"Non-Fleet","Non-Telematics","Comp","Motor cycles","51-60","Not provided","Non-Learner","Not provided","Private"]
[null,"Non-Fleet","Non-Telematics","Comp","Motor cycles","51-60","Not provided","Non-Learner","Not provided","Commercial"]
[null,"Non-Fleet","Non-Telematics","Comp","Motor cycles",">60","Not provided","Learner","Not provided","Private"]
[null,"Non-Fleet","Non-Telematics","Comp","Motor cycles",">60","Not provided","Learner","Not provided","Commercial"]
[null,"Non-Fleet","Non-Telematics","Comp","Motor cycles",">60","Not provided","Non-Learner","Not provided","Private"]
[null,"Non-Fleet","Non-Telematics","Comp","Motor cycles",">60","Not provided","Non-Learner","Not provided","Commercial"]
[null,"Non-Fleet","Non-Telematics","Comp","Motor Trade Road Risks","0-10","Not provided","Learner","Not provided","Private"]
[null,"Non-Fleet","Non-Telematics","Comp","Motor Trade Road Risks","0-10","Not provided","Learner","Not provided","Commercial"]
[null,"Non-Fleet","Non-Telematics","Comp","Motor Trade Road Risks","0-10","Not provided","Non-Learner","Not provided","Private"]
[null,"Non-Fleet","Non-Telematics","Comp","Motor Trade Road Risks","0-10","Not provided","Non-Learner","Not provided","Commercial"]
[null,"Non-Fleet","Non-Telematics","Comp","Motor Trade Road Risks","11-20","Not provided","Learner","Not provided","Private"]
[null,"Non-Fleet","Non-Telematics","Comp","Motor Trade Road Risks","11-20","Not provided","Learner","Not provided","Commercial"]
[null,"Non-Fleet","Non-Telematics","Comp","Motor Trade Road Risks","11-20","Not provided","Non-Learner","Not provided","Private"]
[null,"Non-Fleet","Non-Telematics","Comp","Motor Trade Road Risks","11-20","Not provided","Non-Learner","Not provided","Commercial"]
[null,"Non-Fleet","Non-Telematics","Comp","Motor Trade Road Risks","21-30","Not provided","Learner","Not provided","Private"]
[null,"Non-Fleet","Non-Telematics","Comp","Motor Trade Road Risks","21-30","Not provided","Learner","Not provided","Commercial"]
[null,"Non-Fleet","Non-Telematics","Comp","Motor Trade Road Risks","21-30","Not provided","Non-Learner","Not provided","Private"]
[null,"Non-Fleet","Non-Telematics","Comp","Motor Trade Road Risks","21-30","Not provided","Non-Learner","Not provided","Commercial"]
[null,"Non-Fleet","Non-Telematics","Comp","Motor Trade Road Risks","31-40","Not provided","Learner","Not provided","Private"]
[null,"Non-Fleet","Non-Telematics","Comp","Motor Trade Road Risks","31-40","Not provided","Learner","Not provided","Commercial"]
[null,"Non-Fleet","Non-Telematics","Comp","Motor Trade Road Risks","31-40","Not provided","Non-Learner","Not provided","Private"]
[null,"Non-Fleet","Non-Telematics","Comp","Motor Trade Road Risks","31-40","Not provided","Non-Learner","Not provided","Commercial"]
[null,"Non-Fleet","Non-Telematics","Comp","Motor Trade Road Risks","41-50","Not provided","Learner","Not provided","Private"]
[null,"Non-Fleet","Non-Telematics","Comp","Motor Trade Road Risks","41-50","Not provided","Learner","Not provided","Commercial"]
[null,"Non-Fleet","Non-Telematics","Comp","Motor Trade Road Risks","41-50","Not provided","Non-Learner","Not provided","Private"]
[null,"Non-Fleet","Non-Telematics","Comp","Motor Trade Road Risks","41-50","Not provided","Non-Learner","Not provided","Commercial"]
[null,"Non-Fleet","Non-Telematics","Comp","Motor Trade Road Risks","51-60","Not provided","Learner","Not provided","Private"]
[null,"Non-Fleet","Non-Telematics","Comp","Motor Trade Road Risks","51-60","Not provided","Learner","Not provided","Commercial"]
[null,"Non-Fleet","Non-Telematics","Comp","Motor Trade Road Risks","51-60","Not provided","Non-Learner","Not provided","Private"]
[null,"Non-Fleet","Non-Telematics","Comp","Motor Trade Road Risks","51-60","Not provided","Non-Learner","Not provided","Commercial"]
[null,"Non-Fleet","Non-Telematics","Comp","Motor Trade Road Risks",">60","Not provided","Learner","Not provided","Private"]
[null,"Non-Fleet","Non-Telematics","Comp","Motor Trade Road Risks",">60","Not provided","Learner","Not provided","Commercial"]
[null,"Non-Fleet","Non-Telematics","Comp","Motor Trade Road Risks",">60","Not provided","Non-Learner","Not provided","Private"]
[null,"Non-Fleet","Non-Telematics","Comp","Motor Trade Road Risks",">60","Not provided","Non-Learner","Not provided","Commercial"]
[null,"Non-Fleet","Non-Telematics","Comp","All others","0-10","Not provided","Learner","Not provided","Private"]
[null,"Non-Fleet","Non-Telematics","Comp","All others","0-10","Not provided","Learner","Not provided","Commercial"]
[null,"Non-Fleet","Non-Telematics","Comp","All others","0-10","Not provided","Non-Learner","Not provided","Private"]
[null,"Non-Fleet","Non-Telematics","Comp","All others","0-10","Not provided","Non-Learner","Not provided","Commercial"]
[null,"Non-Fleet","Non-Telematics","Comp","All others","11-20","Not provided","Learner","Not provided","Private"]
[null,"Non-Fleet","Non-Telematics","Comp","All others","11-20","Not provided","Learner","Not provided","Commercial"]
[null,"Non-Fleet","Non-Telematics","Comp","All others","11-20","Not provided","Non-Learner","Not provided","Private"]
[null,"Non-Fleet","Non-Telematics","Comp","All others","11-20","Not provided","Non-Learner","Not provided","Commercial"]
[null,"Non-Fleet","Non-Telematics","Comp","All others","21-30","Not provided","Learner","Not provided","Private"]
[null,"Non-Fleet","Non-Telematics","Comp","All others","21-30","Not provided","Learner","Not provided","Commercial"]
[null,"Non-Fleet","Non-Telematics","Comp","All others","21-30","Not provided","Non-Learner","Not provided","Private"]
[null,"Non-Fleet","Non-Telematics","Comp","All others","21-30","Not provided","Non-Learner","Not provided","Commercial"]
[null,"Non-Fleet","Non-Telematics","Comp","All others","31-40","Not provided","Learner","Not provided","Private"]
[null,"Non-Fleet","Non-Telematics","Comp","All others","31-40","Not provided","Learner","Not provided","Commercial"]
[null,"Non-Fleet","Non-Telematics","Comp","All others","31-40","Not provided","Non-Learner","Not provided","Private"]
[null,"Non-Fleet","Non-Telematics","Comp","All others","31-40","Not provided","Non-Learner","Not provided","Commercial"]
[null,"Non-Fleet","Non-Telematics","Comp","All others","41-50","Not provided","Learner","Not provided","Private"]
[null,"Non-Fleet","Non-Telematics","Comp","All others","41-50","Not provided","Learner","Not provided","Commercial"]
[null,"Non-Fleet","Non-Telematics","Comp","All others","41-50","Not provided","Non-Learner","Not provided","Private"]
[null,"Non-Fleet","Non-Telematics","Comp","All others","41-50","Not provided","Non-Learner","Not provided","Commercial"]
[null,"Non-Fleet","Non-Telematics","Comp","All others","51-60","Not provided","Learner","Not provided","Private"]
[null,"Non-Fleet","Non-Telematics","Comp","All others","51-60","Not provided","Learner","Not provided","Commercial"]
[null,"Non-Fleet","Non-Telematics","Comp","All others","51-60","Not provided","Non-Learner","Not provided","Private"]
[null,"Non-Fleet","Non-Telematics","Comp","All others","51-60","Not provided","Non-Learner","Not provided","Commercial"]
[null,"Non-Fleet","Non-Telematics","Comp","All others",">60","Not provided","Learner","Not provided","Private"]
[null,"Non-Fleet","Non-Telematics","Comp","All others",">60","Not provided","Learner","Not provided","Commercial"]
[null,"Non-Fleet","Non-Telematics","Comp","All others",">60","Not provided","Non-Learner","Not provided","Private"]
[null,"Non-Fleet","Non-Telematics","Comp","All others",">60","Not provided","Non-Learner","Not provided","Commercial"]
[null,"Non-Fleet","Non-Telematics","Non-Comp","Motor Cars","0-10","Not provided","Learner","Not provided","Private"]
[null,"Non-Fleet","Non-Telematics","Non-Comp","Motor Cars","0-10","Not provided","Learner","Not provided","Commercial"]
[null,"Non-Fleet","Non-Telematics","Non-Comp","Motor Cars","0-10","Not provided","Non-Learner","Not provided","Private"]
[null,"Non-Fleet","Non-Telematics","Non-Comp","Motor Cars","0-10","Not provided","Non-Learner","Not provided","Commercial"]
[null,"Non-Fleet","Non-Telematics","Non-Comp","Motor Cars","11-20","Not provided","Learner","Not provided","Private"]
[null,"Non-Fleet","Non-Telematics","Non-Comp","Motor Cars","11-20","Not provided","Learner","Not provided","Commercial"]
[null,"Non-Fleet","Non-Telematics","Non-Comp","Motor Cars","11-20","Not provided","Non-Learner","Not provided","Private"]
[null,"Non-Fleet","Non-Telematics","Non-Comp","Motor Cars","11-20","Not provided","Non-Learner","Not provided","Commercial"]
[null,"Non-Fleet","Non-Telematics","Non-Comp","Motor Cars","21-30","Not provided","Learner","Not provided","Private"]
[null,"Non-Fleet","Non-Telematics","Non-Comp","Motor Cars","21-30","Not provided","Learner","Not provided","Commercial"]
[null,"Non-Fleet","Non-Telematics","Non-Comp","Motor Cars","21-30","Not provided","Non-Learner","Not provided","Private"]
[null,"Non-Fleet","Non-Telematics","Non-Comp","Motor Cars","21-30","Not provided","Non-Learner","Not provided","Commercial"]
[null,"Non-Fleet","Non-Telematics","Non-Comp","Motor Cars","31-40","Not provided","Learner","Not provided","Private"]
[null,"Non-Fleet","Non-Telematics","Non-Comp","Motor Cars","31-40","Not provided","Learner","Not provided","Commercial"]
[null,"Non-Fleet","Non-Telematics","Non-Comp","Motor Cars","31-40","Not provided","Non-Learner","Not provided","Private"]
[null,"Non-Fleet","Non-Telematics","Non-Comp","Motor Cars","31-40","Not provided","Non-Learner","Not provided","Commercial"]
[null,"Non-Fleet","Non-Telematics","Non-Comp","Motor Cars","41-50","Not provided","Learner","Not provided","Private"]
[null,"Non-Fleet","Non-Telematics","Non-Comp","Motor Cars","41-50","Not provided","Learner","Not provided","Commercial"]
[null,"Non-Fleet","Non-Telematics","Non-Comp","Motor Cars","41-50","Not provided","Non-Learner","Not provided","Private"]
[null,"Non-Fleet","Non-Telematics","Non-Comp","Motor Cars","41-50","Not provided","Non-Learner","Not provided","Commercial"]
[null,"Non-Fleet","Non-Telematics","Non-Comp","Motor Cars","51-60","Not provided","Learner","Not provided","Private"]
[null,"Non-Fleet","Non-Telematics","Non-Comp","Motor Cars","51-60","Not provided","Learner","Not provided","Commercial"]
[null,"Non-Fleet","Non-Telematics","Non-Comp","Motor Cars","51-60","Not provided","Non-Learner","Not provided","Private"]
[null,"Non-Fleet","Non-Telematics","Non-Comp","Motor Cars","51-60","Not provided","Non-Learner","Not provided","Commercial"]
[null,"Non-Fleet","Non-Telematics","Non-Comp","Motor Cars",">60","Not provided","Learner","Not provided","Private"]
[null,"Non-Fleet","Non-Telematics","Non-Comp","Motor Cars",">60","Not provided","Learner","Not provided","Commercial"]
[null,"Non-Fleet","Non-Telematics","Non-Comp","Motor Cars",">60","Not provided","Non-Learner","Not provided","Private"]
[null,"Non-Fleet","Non-Telematics","Non-Comp","Motor Cars",">60","Not provided","Non-Learner","Not provided","Commercial"]
[null,"Non-Fleet","Non-Telematics","Non-Comp","Light Commercial Vehicles","0-10","Not provided","Learner","Not provided","Private"]
[null,"Non-Fleet","Non-Telematics","Non-Comp","Light Commercial Vehicles","0-10","Not provided","Learner","Not provided","Commercial"]
[null,"Non-Fleet","Non-Telematics","Non-Comp","Light Commercial Vehicles","0-10","Not provided","Non-Learner","Not provided","Private"]
[null,"Non-Fleet","Non-Telematics","Non-Comp","Light Commercial Vehicles","0-10","Not provided","Non-Learner","Not provided","Commercial"]
[null,"Non-Fleet","Non-Telematics","Non-Comp","Light Commercial Vehicles","11-20","Not provided","Learner","Not provided","Private"]
[null,"Non-Fleet","Non-Telematics","Non-Comp","Light Commercial Vehicles","11-20","Not provided","Learner","Not provided","Commercial"]
[null,"Non-Fleet","Non-Telematics","Non-Comp","Light Commercial Vehicles","11-20","Not provided","Non-Learner","Not provided","Private"]
[null,"Non-Fleet","Non-Telematics","Non-Comp","Light Commercial Vehicles","11-20","Not provided","Non-Learner","Not provided","Commercial"]
[null,"Non-Fleet","Non-Telematics","Non-Comp","Light Commercial Vehicles","21-30","Not provided","Learner","Not provided","Private"]
[null,"Non-Fleet","Non-Telematics","Non-Comp","Light Commercial Vehicles","21-30","Not provided","Learner","Not provided","Commercial"]
[null,"Non-Fleet","Non-Telematics","Non-Comp","Light Commercial Vehicles","21-30","Not provided","Non-Learner","Not provided","Private"]
[null,"Non-Fleet","Non-Telematics","Non-Comp","Light Commercial Vehicles","21-30","Not provided","Non-Learner","Not provided","Commercial"]
[null,"Non-Fleet","Non-Telematics","Non-Comp","Light Commercial Vehicles","31-40","Not provided","Learner","Not provided","Private"]
[null,"Non-Fleet","Non-Telematics","Non-Comp","Light Commercial Vehicles","31-40","Not provided","Learner","Not provided","Commercial"]
[null,"Non-Fleet","Non-Telematics","Non-Comp","Light Commercial Vehicles","31-40","Not provided","Non-Learner","Not provided","Private"]
[null,"Non-Fleet","Non-Telematics","Non-Comp","Light Commercial Vehicles","31-40","Not provided","Non-Learner","Not provided","Commercial"]
[null,"Non-Fleet","Non-Telematics","Non-Comp","Light Commercial Vehicles","41-50","Not provided","Learner","Not provided","Private"]
[null,"Non-Fleet","Non-Telematics","Non-Comp","Light Commercial Vehicles","41-50","Not provided","Learner","Not provided","Commercial"]
[null,"Non-Fleet","Non-Telematics","Non-Comp","Light Commercial Vehicles","41-50","Not provided","Non-Learner","Not provided","Private"]
[null,"Non-Fleet","Non-Telematics","Non-Comp","Light Commercial Vehicles","41-50","Not provided","Non-Learner","Not provided","Commercial"]
[null,"Non-Fleet","Non-Telematics","Non-Comp","Light Commercial Vehicles","51-60","Not provided","Learner","Not provided","Private"]
[null,"Non-Fleet","Non-Telematics","Non-Comp","Light Commercial Vehicles","51-60","Not provided","Learner","Not provided","Commercial"]
[null,"Non-Fleet","Non-Telematics","Non-Comp","Light Commercial Vehicles","51-60","Not provided","Non-Learner","Not provided","Private"]
[null,"Non-Fleet","Non-Telematics","Non-Comp","Light Commercial Vehicles","51-60","Not provided","Non-Learner","Not provided","Commercial"]
[null,"Non-Fleet","Non-Telematics","Non-Comp","Light Commercial Vehicles",">60","Not provided","Learner","Not provided","Private"]
[null,"Non-Fleet","Non-Telematics","Non-Comp","Light Commercial Vehicles",">60","Not provided","Learner","Not provided","Commercial"]
[null,"Non-Fleet","Non-Telematics","Non-Comp","Light Commercial Vehicles",">60","Not provided","Non-Learner","Not provided","Private"]
[null,"Non-Fleet","Non-Telematics","Non-Comp","Light Commercial Vehicles",">60","Not provided","Non-Learner","Not provided","Commercial"]
[null,"Non-Fleet","Non-Telematics","Non-Comp","Medium Commercial Vehicles","0-10","Not provided","Learner","Not provided","Private"]
[null,"Non-Fleet","Non-Telematics","Non-Comp","Medium Commercial Vehicles","0-10","Not provided","Learner","Not provided","Commercial"]
[null,"Non-Fleet","Non-Telematics","Non-Comp","Medium Commercial Vehicles","0-10","Not provided","Non-Learner","Not provided","Private"]
[null,"Non-Fleet","Non-Telematics","Non-Comp","Medium Commercial Vehicles","0-10","Not provided","Non-Learner","Not provided","Commercial"]
[null,"Non-Fleet","Non-Telematics","Non-Comp","Medium Commercial Vehicles","11-20","Not provided","Learner","Not provided","Private"]
[null,"Non-Fleet","Non-Telematics","Non-Comp","Medium Commercial Vehicles","11-20","Not provided","Learner","Not provided","Commercial"]
[null,"Non-Fleet","Non-Telematics","Non-Comp","Medium Commercial Vehicles","11-20","Not provided","Non-Learner","Not provided","Private"]
[null,"Non-Fleet","Non-Telematics","Non-Comp","Medium Commercial Vehicles","11-20","Not provided","Non-Learner","Not provided","Commercial"]
[null,"Non-Fleet","Non-Telematics","Non-Comp","Medium Commercial Vehicles","21-30","Not provided","Learner","Not provided","Private"]
[null,"Non-Fleet","Non-Telematics","Non-Comp","Medium Commercial Vehicles","21-30","Not provided","Learner","Not provided","Commercial"]
[null,"Non-Fleet","Non-Telematics","Non-Comp","Medium Commercial Vehicles","21-30","Not provided","Non-Learner","Not provided","Private"]
[null,"Non-Fleet","Non-Telematics","Non-Comp","Medium Commercial Vehicles","21-30","Not provided","Non-Learner","Not provided","Commercial"]
[null,"Non-Fleet","Non-Telematics","Non-Comp","Medium Commercial Vehicles","31-40","Not provided","Learner","Not provided","Private"]
[null,"Non-Fleet","Non-Telematics","Non-Comp","Medium Commercial Vehicles","31-40","Not provided","Learner","Not provided","Commercial"]
[null,"Non-Fleet","Non-Telematics","Non-Comp","Medium Commercial Vehicles","31-40","Not provided","Non-Learner","Not provided","Private"]
[null,"Non-Fleet","Non-Telematics","Non-Comp","Medium Commercial Vehicles","31-40","Not provided","Non-Learner","Not provided","Commercial"]
[null,"Non-Fleet","Non-Telematics","Non-Comp","Medium Commercial Vehicles","41-50","Not provided","Learner","Not provided","Private"]
[null,"Non-Fleet","Non-Telematics","Non-Comp","Medium Commercial Vehicles","41-50","Not provided","Learner","Not provided","Commercial"]
[null,"Non-Fleet","Non-Telematics","Non-Comp","Medium Commercial Vehicles","41-50","Not provided","Non-Learner","Not provided","Private"]
[null,"Non-Fleet","Non-Telematics","Non-Comp","Medium Commercial Vehicles","41-50","Not provided","Non-Learner","Not provided","Commercial"]
[null,"Non-Fleet","Non-Telematics","Non-Comp","Medium Commercial Vehicles","51-60","Not provided","Learner","Not provided","Private"]
[null,"Non-Fleet","Non-Telematics","Non-Comp","Medium Commercial Vehicles","51-60","Not provided","Learner","Not provided","Commercial"]
[null,"Non-Fleet","Non-Telematics","Non-Comp","Medium Commercial Vehicles","51-60","Not provided","Non-Learner","Not provided","Private"]
[null,"Non-Fleet","Non-Telematics","Non-Comp","Medium Commercial Vehicles","51-60","Not provided","Non-Learner","Not provided","Commercial"]
[null,"Non-Fleet","Non-Telematics","Non-Comp","Medium Commercial Vehicles",">60","Not provided","Learner","Not provided","Private"]
[null,"Non-Fleet","Non-Telematics","Non-Comp","Medium Commercial Vehicles",">60","Not provided","Learner","Not provided","Commercial"]
[null,"Non-Fleet","Non-Telematics","Non-Comp","Medium Commercial Vehicles",">60","Not provided","Non-Learner","Not provided","Private"]
[null,"Non-Fleet","Non-Telematics","Non-Comp","Medium Commercial Vehicles",">60","Not provided","Non-Learner","Not provided","Commercial"]
[null,"Non-Fleet","Non-Telematics","Non-Comp","Heavy Commercial Vehicles","0-10","Not provided","Learner","Not provided","Private"]
[null,"Non-Fleet","Non-Telematics","Non-Comp","Heavy Commercial Vehicles","0-10","Not provided","Learner","Not provided","Commercial"]
[null,"Non-Fleet","Non-Telematics","Non-Comp","Heavy Commercial Vehicles","0-10","Not provided","Non-Learner","Not provided","Private"]
[null,"Non-Fleet","Non-Telematics","Non-Comp","Heavy Commercial Vehicles","0-10","Not provided","Non-Learner","Not provided","Commercial"]
[null,"Non-Fleet","Non-Telematics","Non-Comp","Heavy Commercial Vehicles","11-20","Not provided","Learner","Not provided","Private"]
[null,"Non-Fleet","Non-Telematics","Non-Comp","Heavy Commercial Vehicles","11-20","Not provided","Learner","Not provided","Commercial"]
[null,"Non-Fleet","Non-Telematics","Non-Comp","Heavy Commercial Vehicles","11-20","Not provided","Non-Learner","Not provided","Private"]
[null,"Non-Fleet","Non-Telematics","Non-Comp","Heavy Commercial Vehicles","11-20","Not provided","Non-Learner","Not provided","Commercial"]
[null,"Non-Fleet","Non-Telematics","Non-Comp","Heavy Commercial Vehicles","21-30","Not provided","Learner","Not provided","Private"]
[null,"Non-Fleet","Non-Telematics","Non-Comp","Heavy Commercial Vehicles","21-30","Not provided","Learner","Not provided","Commercial"]
[null,"Non-Fleet","Non-Telematics","Non-Comp","Heavy Commercial Vehicles","21-30","Not provided","Non-Learner","Not provided","Private"]
[null,"Non-Fleet","Non-Telematics","Non-Comp","Heavy Commercial Vehicles","21-30","Not provided","Non-Learner","Not provided","Commercial"]
[null,"Non-Fleet","Non-Telematics","Non-Comp","Heavy Commercial Vehicles","31-40","Not provided","Learner","Not provided","Private"]
[null,"Non-Fleet","Non-Telematics","Non-Comp","Heavy Commercial Vehicles","31-40","Not provided","Learner","Not provided","Commercial"]
[null,"Non-Fleet","Non-Telematics","Non-Comp","Heavy Commercial Vehicles","31-40","Not provided","Non-Learner","Not provided","Private"]
[null,"Non-Fleet","Non-Telematics","Non-Comp","Heavy Commercial Vehicles","31-40","Not provided","Non-Learner","Not provided","Commercial"]
[null,"Non-Fleet","Non-Telematics","Non-Comp","Heavy Commercial Vehicles","41-50","Not provided","Learner","Not provided","Private"]
[null,"Non-Fleet","Non-Telematics","Non-Comp","Heavy Commercial Vehicles","41-50","Not provided","Learner","Not provided","Commercial"]
[null,"Non-Fleet","Non-Telematics","Non-Comp","Heavy Commercial Vehicles","41-50","Not provided","Non-Learner","Not provided","Private"]
[null,"Non-Fleet","Non-Telematics","Non-Comp","Heavy Commercial Vehicles","41-50","Not provided","Non-Learner","Not provided","Commercial"]
[null,"Non-Fleet","Non-Telematics","Non-Comp","Heavy Commercial Vehicles","51-60","Not provided","Learner","Not provided","Private"]
[null,"Non-Fleet","Non-Telematics","Non-Comp","Heavy Commercial Vehicles","51-60","Not provided","Learner","Not provided","Commercial"]
[null,"Non-Fleet","Non-Telematics","Non-Comp","Heavy Commercial Vehicles","51-60","Not provided","Non-Learner","Not provided","Private"]
[null,"Non-Fleet","Non-Telematics","Non-Comp","Heavy Commercial Vehicles","51-60","Not provided","Non-Learner","Not provided","Commercial"]
[null,"Non-Fleet","Non-Telematics","Non-Comp","Heavy Commercial Vehicles",">60","Not provided","Learner","Not provided","Private"]
[null,"Non-Fleet","Non-Telematics","Non-Comp","Heavy Commercial Vehicles",">60","Not provided","Learner","Not provided","Commercial"]
[null,"Non-Fleet","Non-Telematics","Non-Comp","Heavy Commercial Vehicles",">60","Not provided","Non-Learner","Not provided","Private"]
[null,"Non-Fleet","Non-Telematics","Non-Comp","Heavy Commercial Vehicles",">60","Not provided","Non-Learner","Not provided","Commercial"]
[null,"Non-Fleet","Non-Telematics","Non-Comp","Buses, coaches etc","0-10","Not provided","Learner","Not provided","Private"]
[null,"Non-Fleet","Non-Telematics","Non-Comp","Buses, coaches etc","0-10","Not provided","Learner","Not provided","Commercial"]
[null,"Non-Fleet","Non-Telematics","Non-Comp","Buses, coaches etc","0-10","Not provided","Non-Learner","Not provided","Private"]
[null,"Non-Fleet","Non-Telematics","Non-Comp","Buses, coaches etc","0-10","Not provided","Non-Learner","Not provided","Commercial"]
[null,"Non-Fleet","Non-Telematics","Non-Comp","Buses, coaches etc","11-20","Not provided","Learner","Not provided","Private"]
[null,"Non-Fleet","Non-Telematics","Non-Comp","Buses, coaches etc","11-20","Not provided","Learner","Not provided","Commercial"]
[null,"Non-Fleet","Non-Telematics","Non-Comp","Buses, coaches etc","11-20","Not provided","Non-Learner","Not provided","Private"]
[null,"Non-Fleet","Non-Telematics","Non-Comp","Buses, coaches etc","11-20","Not provided","Non-Learner","Not provided","Commercial"]
[null,"Non-Fleet","Non-Telematics","Non-Comp","Buses, coaches etc","21-30","Not provided","Learner","Not provided","Private"]
[null,"Non-Fleet","Non-Telematics","Non-Comp","Buses, coaches etc","21-30","Not provided","Learner","Not provided","Commercial"]
[null,"Non-Fleet","Non-Telematics","Non-Comp","Buses, coaches etc","21-30","Not provided","Non-Learner","Not provided","Private"]
[null,"Non-Fleet","Non-Telematics","Non-Comp","Buses, coaches etc","21-30","Not provided","Non-Learner","Not provided","Commercial"]
[null,"Non-Fleet","Non-Telematics","Non-Comp","Buses, coaches etc","31-40","Not provided","Learner","Not provided","Private"]
[null,"Non-Fleet","Non-Telematics","Non-Comp","Buses, coaches etc","31-40","Not provided","Learner","Not provided","Commercial"]
[null,"Non-Fleet","Non-Telematics","Non-Comp","Buses, coaches etc","31-40","Not provided","Non-Learner","Not provided","Private"]
[null,"Non-Fleet","Non-Telematics","Non-Comp","Buses, coaches etc","31-40","Not provided","Non-Learner","Not provided","Commercial"]
[null,"Non-Fleet","Non-Telematics","Non-Comp","Buses, coaches etc","41-50","Not provided","Learner","Not provided","Private"]
[null,"Non-Fleet","Non-Telematics","Non-Comp","Buses, coaches etc","41-50","Not provided","Learner","Not provided","Commercial"]
[null,"Non-Fleet","Non-Telematics","Non-Comp","Buses, coaches etc","41-50","Not provided","Non-Learner","Not provided","Private"]
[null,"Non-Fleet","Non-Telematics","Non-Comp","Buses, coaches etc","41-50","Not provided","Non-Learner","Not provided","Commercial"]
[null,"Non-Fleet","Non-Telematics","Non-Comp","Buses, coaches etc","51-60","Not provided","Learner","Not provided","Private"]
[null,"Non-Fleet","Non-Telematics","Non-Comp","Buses, coaches etc","51-60","Not provided","Learner","Not provided","Commercial"]
[null,"Non-Fleet","Non-Telematics","Non-Comp","Buses, coaches etc","51-60","Not provided","Non-Learner","Not provided","Private"]
[null,"Non-Fleet","Non-Telematics","Non-Comp","Buses, coaches etc","51-60","Not provided","Non-Learner","Not provided","Commercial"]
[null,"Non-Fleet","Non-Telematics","Non-Comp","Buses, coaches etc",">60","Not provided","Learner","Not provided","Private"]
[null,"Non-Fleet","Non-Telematics","Non-Comp","Buses, coaches etc",">60","Not provided","Learner","Not provided","Commercial"]
[null,"Non-Fleet","Non-Telematics","Non-Comp","Buses, coaches etc",">60","Not provided","Non-Learner","Not provided","Private"]
[null,"Non-Fleet","Non-Telematics","Non-Comp","Buses, coaches etc",">60","Not provided","Non-Learner","Not provided","Commercial"]
[null,"Non-Fleet","Non-Telematics","Non-Comp","Taxis, private & public hire","0-10","Not provided","Learner","Not provided","Private"]
[null,"Non-Fleet","Non-Telematics","Non-Comp","Taxis, private & public hire","0-10","Not provided","Learner","Not provided","Commercial"]
[null,"Non-Fleet","Non-Telematics","Non-Comp","Taxis, private & public hire","0-10","Not provided","Non-Learner","Not provided","Private"]
[null,"Non-Fleet","Non-Telematics","Non-Comp","Taxis, private & public hire","0-10","Not provided","Non-Learner","Not provided","Commercial"]
[null,"Non-Fleet","Non-Telematics","Non-Comp","Taxis, private & public hire","11-20","Not provided","Learner","Not provided","Private"]
[null,"Non-Fleet","Non-Telematics","Non-Comp","Taxis, private & public hire","11-20","Not provided","Learner","Not provided","Commercial"]
[null,"Non-Fleet","Non-Telematics","Non-Comp","Taxis, private & public hire","11-20","Not provided","Non-Learner","Not provided","Private"]
[null,"Non-Fleet","Non-Telematics","Non-Comp","Taxis, private & public hire","11-20","Not provided","Non-Learner","Not provided","Commercial"]
[null,"Non-Fleet","Non-Telematics","Non-Comp","Taxis, private & public hire","21-30","Not provided","Learner","Not provided","Private"]
[null,"Non-Fleet","Non-Telematics","Non-Comp","Taxis, private & public hire","21-30","Not provided","Learner","Not provided","Commercial"]
[null,"Non-Fleet","Non-Telematics","Non-Comp","Taxis, private & public hire","21-30","Not provided","Non-Learner","Not provided","Private"]
[null,"Non-Fleet","Non-Telematics","Non-Comp","Taxis, private & public hire","21-30","Not provided","Non-Learner","Not provided","Commercial"]
[null,"Non-Fleet","Non-Telematics","Non-Comp","Taxis, private & public hire","31-40","Not provided","Learner","Not provided","Private"]
[null,"Non-Fleet","Non-Telematics","Non-Comp","Taxis, private & public hire","31-40","Not provided","Learner","Not provided","Commercial"]
[null,"Non-Fleet","Non-Telematics","Non-Comp","Taxis, private & public hire","31-40","Not provided","Non-Learner","Not provided","Private"]
[null,"Non-Fleet","Non-Telematics","Non-Comp","Taxis, private & public hire","31-40","Not provided","Non-Learner","Not provided","Commercial"]
[null,"Non-Fleet","Non-Telematics","Non-Comp","Taxis, private & public hire","41-50","Not provided","Learner","Not provided","Private"]
[null,"Non-Fleet","Non-Telematics","Non-Comp","Taxis, private & public hire","41-50","Not provided","Learner","Not provided","Commercial"]
[null,"Non-Fleet","Non-Telematics","Non-Comp","Taxis, private & public hire","41-50","Not provided","Non-Learner","Not provided","Private"]
[null,"Non-Fleet","Non-Telematics","Non-Comp","Taxis, private & public hire","41-50","Not provided","Non-Learner","Not provided","Commercial"]
[null,"Non-Fleet","Non-Telematics","Non-Comp","Taxis, private & public hire","51-60","Not provided","Learner","Not provided","Private"]
[null,"Non-Fleet","Non-Telematics","Non-Comp","Taxis, private & public hire","51-60","Not provided","Learner","Not provided","Commercial"]
[null,"Non-Fleet","Non-Telematics","Non-Comp","Taxis, private & public hire","51-60","Not provided","Non-Learner","Not provided","Private"]
[null,"Non-Fleet","Non-Telematics","Non-Comp","Taxis, private & public hire","51-60","Not provided","Non-Learner","Not provided","Commercial"]
[null,"Non-Fleet","Non-Telematics","Non-Comp","Taxis, private & public hire",">60","Not provided","Learner","Not provided","Private"]
[null,"Non-Fleet","Non-Telematics","Non-Comp","Taxis, private & public hire",">60","Not provided","Learner","Not provided","Commercial"]
[null,"Non-Fleet","Non-Telematics","Non-Comp","Taxis, private & public hire",">60","Not provided","Non-Learner","Not provided","Private"]
[null,"Non-Fleet","Non-Telematics","Non-Comp","Taxis, private & public hire",">60","Not provided","Non-Learner","Not provided","Commercial"]
[null,"Non-Fleet","Non-Telematics","Non-Comp","Self-drive hire vehicles","0-10","Not provided","Learner","Not provided","Private"]
[null,"Non-Fleet","Non-Telematics","Non-Comp","Self-drive hire vehicles","0-10","Not provided","Learner","Not provided","Commercial"]
[null,"Non-Fleet","Non-Telematics","Non-Comp","Self-drive hire vehicles","0-10","Not provided","Non-Learner","Not provided","Private"]
[null,"Non-Fleet","Non-Telematics","Non-Comp","Self-drive hire vehicles","0-10","Not provided","Non-Learner","Not provided","Commercial"]
[null,"Non-Fleet","Non-Telematics","Non-Comp","Self-drive hire vehicles","11-20","Not provided","Learner","Not provided","Private"]
[null,"Non-Fleet","Non-Telematics","Non-Comp","Self-drive hire vehicles","11-20","Not provided","Learner","Not provided","Commercial"]
[null,"Non-Fleet","Non-Telematics","Non-Comp","Self-drive hire vehicles","11-20","Not provided","Non-Learner","Not provided","Private"]
[null,"Non-Fleet","Non-Telematics","Non-Comp","Self-drive hire vehicles","11-20","Not provided","Non-Learner","Not provided","Commercial"]
[null,"Non-Fleet","Non-Telematics","Non-Comp","Self-drive hire vehicles","21-30","Not provided","Learner","Not provided","Private"]
[null,"Non-Fleet","Non-Telematics","Non-Comp","Self-drive hire vehicles","21-30","Not provided","Learner","Not provided","Commercial"]
[null,"Non-Fleet","Non-Telematics","Non-Comp","Self-drive hire vehicles","21-30","Not provided","Non-Learner","Not provided","Private"]
[null,"Non-Fleet","Non-Telematics","Non-Comp","Self-drive hire vehicles","21-30","Not provided","Non-Learner","Not provided","Commercial"]
[null,"Non-Fleet","Non-Telematics","Non-Comp","Self-drive hire vehicles","31-40","Not provided","Learner","Not provided","Private"]
[null,"Non-Fleet","Non-Telematics","Non-Comp","Self-drive hire vehicles","31-40","Not provided","Learner","Not provided","Commercial"]
[null,"Non-Fleet","Non-Telematics","Non-Comp","Self-drive hire vehicles","31-40","Not provided","Non-Learner","Not provided","Private"]
[null,"Non-Fleet","Non-Telematics","Non-Comp","Self-drive hire vehicles","31-40","Not provided","Non-Learner","Not provided","Commercial"]
[null,"Non-Fleet","Non-Telematics","Non-Comp","Self-drive hire vehicles","41-50","Not provided","Learner","Not provided","Private"]
[null,"Non-Fleet","Non-Telematics","Non-Comp","Self-drive hire vehicles","41-50","Not provided","Learner","Not provided","Commercial"]
[null,"Non-Fleet","Non-Telematics","Non-Comp","Self-drive hire vehicles","41-50","Not provided","Non-Learner","Not provided","Private"]
[null,"Non-Fleet","Non-Telematics","Non-Comp","Self-drive hire vehicles","41-50","Not provided","Non-Learner","Not provided","Commercial"]
[null,"Non-Fleet","Non-Telematics","Non-Comp","Self-drive hire vehicles","51-60","Not provided","Learner","Not provided","Private"]
[null,"Non-Fleet","Non-Telematics","Non-Comp","Self-drive hire vehicles","51-60","Not provided","Learner","Not provided","Commercial"]
[null,"Non-Fleet","Non-Telematics","Non-Comp","Self-drive hire vehicles","51-60","Not provided","Non-Learner","Not provided","Private"]
[null,"Non-Fleet","Non-Telematics","Non-Comp","Self-drive hire vehicles","51-60","Not provided","Non-Learner","Not provided","Commercial"]
[null,"Non-Fleet","Non-Telematics","Non-Comp","Self-drive hire vehicles",">60","Not provided","Learner","Not provided","Private"]
[null,"Non-Fleet","Non-Telematics","Non-Comp","Self-drive hire vehicles",">60","Not provided","Learner","Not provided","Commercial"]
[null,"Non-Fleet","Non-Telematics","Non-Comp","Self-drive hire vehicles",">60","Not provided","Non-Learner","Not provided","Private"]
[null,"Non-Fleet","Non-Telematics","Non-Comp","Self-drive hire vehicles",">60","Not provided","Non-Learner","Not provided","Commercial"]
[null,"Non-Fleet","Non-Telematics","Non-Comp","Tankers, hazardous","0-10","Not provided","Learner","Not provided","Private"]
[null,"Non-Fleet","Non-Telematics","Non-Comp","Tankers, hazardous","0-10","Not provided","Learner","Not provided","Commercial"]
[null,"Non-Fleet","Non-Telematics","Non-Comp","Tankers, hazardous","0-10","Not provided","Non-Learner","Not provided","Private"]
[null,"Non-Fleet","Non-Telematics","Non-Comp","Tankers, hazardous","0-10","Not provided","Non-Learner","Not provided","Commercial"]
[null,"Non-Fleet","Non-Telematics","Non-Comp","Tankers, hazardous","11-20","Not provided","Learner","Not provided","Private"]
[null,"Non-Fleet","Non-Telematics","Non-Comp","Tankers, hazardous","11-20","Not provided","Learner","Not provided","Commercial"]
[null,"Non-Fleet","Non-Telematics","Non-Comp","Tankers, hazardous","11-20","Not provided","Non-Learner","Not provided","Private"]
[null,"Non-Fleet","Non-Telematics","Non-Comp","Tankers, hazardous","11-20","Not provided","Non-Learner","Not provided","Commercial"]
[null,"Non-Fleet","Non-Telematics","Non-Comp","Tankers, hazardous","21-30","Not provided","Learner","Not provided","Private"]
[null,"Non-Fleet","Non-Telematics","Non-Comp","Tankers, hazardous","21-30","Not provided","Learner","Not provided","Commercial"]
[null,"Non-Fleet","Non-Telematics","Non-Comp","Tankers, hazardous","21-30","Not provided","Non-Learner","Not provided","Private"]
[null,"Non-Fleet","Non-Telematics","Non-Comp","Tankers, hazardous","21-30","Not provided","Non-Learner","Not provided","Commercial"]
[null,"Non-Fleet","Non-Telematics","Non-Comp","Tankers, hazardous","31-40","Not provided","Learner","Not provided","Private"]
[null,"Non-Fleet","Non-Telematics","Non-Comp","Tankers, hazardous","31-40","Not provided","Learner","Not provided","Commercial"]
[null,"Non-Fleet","Non-Telematics","Non-Comp","Tankers, hazardous","31-40","Not provided","Non-Learner","Not provided","Private"]
[null,"Non-Fleet","Non-Telematics","Non-Comp","Tankers, hazardous","31-40","Not provided","Non-Learner","Not provided","Commercial"]
[null,"Non-Fleet","Non-Telematics","Non-Comp","Tankers, hazardous","41-50","Not provided","Learner","Not provided","Private"]
[null,"Non-Fleet","Non-Telematics","Non-Comp","Tankers, hazardous","41-50","Not provided","Learner","Not provided","Commercial"]
[null,"Non-Fleet","Non-Telematics","Non-Comp","Tankers, hazardous","41-50","Not provided","Non-Learner","Not provided","Private"]
[null,"Non-Fleet","Non-Telematics","Non-Comp","Tankers, hazardous","41-50","Not provided","Non-Learner","Not provided","Commercial"]
[null,"Non-Fleet","Non-Telematics","Non-Comp","Tankers, hazardous","51-60","Not provided","Learner","Not provided","Private"]
[null,"Non-Fleet","Non-Telematics","Non-Comp","Tankers, hazardous","51-60","Not provided","Learner","Not provided","Commercial"]
[null,"Non-Fleet","Non-Telematics","Non-Comp","Tankers, hazardous","51-60","Not provided","Non-Learner","Not provided","Private"]
[null,"Non-Fleet","Non-Telematics","Non-Comp","Tankers, hazardous","51-60","Not provided","Non-Learner","Not provided","Commercial"]
[null,"Non-Fleet","Non-Telematics","Non-Comp","Tankers, hazardous",">60","Not provided","Learner","Not provided","Private"]
[null,"Non-Fleet","Non-Telematics","Non-Comp","Tankers, hazardous",">60","Not provided","Learner","Not provided","Commercial"]
[null,"Non-Fleet","Non-Telematics","Non-Comp","Tankers, hazardous",">60","Not provided","Non-Learner","Not provided","Private"]
[null,"Non-Fleet","Non-Telematics","Non-Comp","Tankers, hazardous",">60","Not provided","Non-Learner","Not provided","Commercial"]
[null,"Non-Fleet","Non-Telematics","Non-Comp","Motor cycles","0-10","Not provided","Learner","Not provided","Private"]
[null,"Non-Fleet","Non-Telematics","Non-Comp","Motor cycles","0-10","Not provided","Learner","Not provided","Commercial"]
[null,"Non-Fleet","Non-Telematics","Non-Comp","Motor cycles","0-10","Not provided","Non-Learner","Not provided","Private"]
[null,"Non-Fleet","Non-Telematics","Non-Comp","Motor cycles","0-10","Not provided","Non-Learner","Not provided","Commercial"]
[null,"Non-Fleet","Non-Telematics","Non-Comp","Motor cycles","11-20","Not provided","Learner","Not provided","Private"]
[null,"Non-Fleet","Non-Telematics","Non-Comp","Motor cycles","11-20","Not provided","Learner","Not provided","Commercial"]
[null,"Non-Fleet","Non-Telematics","Non-Comp","Motor cycles","11-20","Not provided","Non-Learner","Not provided","Private"]
[null,"Non-Fleet","Non-Telematics","Non-Comp","Motor cycles","11-20","Not provided","Non-Learner","Not provided","Commercial"]
[null,"Non-Fleet","Non-Telematics","Non-Comp","Motor cycles","21-30","Not provided","Learner","Not provided","Private"]
[null,"Non-Fleet","Non-Telematics","Non-Comp","Motor cycles","21-30","Not provided","Learner","Not provided","Commercial"]
[null,"Non-Fleet","Non-Telematics","Non-Comp","Motor cycles","21-30","Not provided","Non-Learner","Not provided","Private"]
[null,"Non-Fleet","Non-Telematics","Non-Comp","Motor cycles","21-30","Not provided","Non-Learner","Not provided","Commercial"]
[null,"Non-Fleet","Non-Telematics","Non-Comp","Motor cycles","31-40","Not provided","Learner","Not provided","Private"]
[null,"Non-Fleet","Non-Telematics","Non-Comp","Motor cycles","31-40","Not provided","Learner","Not provided","Commercial"]
[null,"Non-Fleet","Non-Telematics","Non-Comp","Motor cycles","31-40","Not provided","Non-Learner","Not provided","Private"]
[null,"Non-Fleet","Non-Telematics","Non-Comp","Motor cycles","31-40","Not provided","Non-Learner","Not provided","Commercial"]
[null,"Non-Fleet","Non-Telematics","Non-Comp","Motor cycles","41-50","Not provided","Learner","Not provided","Private"]
[null,"Non-Fleet","Non-Telematics","Non-Comp","Motor cycles","41-50","Not provided","Learner","Not provided","Commercial"]
[null,"Non-Fleet","Non-Telematics","Non-Comp","Motor cycles","41-50","Not provided","Non-Learner","Not provided","Private"]
[null,"Non-Fleet","Non-Telematics","Non-Comp","Motor cycles","41-50","Not provided","Non-Learner","Not provided","Commercial"]
[null,"Non-Fleet","Non-Telematics","Non-Comp","Motor cycles","51-60","Not provided","Learner","Not provided","Private"]
[null,"Non-Fleet","Non-Telematics","Non-Comp","Motor cycles","51-60","Not provided","Learner","Not provided","Commercial"]
[null,"Non-Fleet","Non-Telematics","Non-Comp","Motor cycles","51-60","Not provided","Non-Learner","Not provided","Private"]
[null,"Non-Fleet","Non-Telematics","Non-Comp","Motor cycles","51-60","Not provided","Non-Learner","Not provided","Commercial"]
[null,"Non-Fleet","Non-Telematics","Non-Comp","Motor cycles",">60","Not provided","Learner","Not provided","Private"]
[null,"Non-Fleet","Non-Telematics","Non-Comp","Motor cycles",">60","Not provided","Learner","Not provided","Commercial"]
[null,"Non-Fleet","Non-Telematics","Non-Comp","Motor cycles",">60","Not provided","Non-Learner","Not provided","Private"]
[null,"Non-Fleet","Non-Telematics","Non-Comp","Motor cycles",">60","Not provided","Non-Learner","Not provided","Commercial"]
[null,"Non-Fleet","Non-Telematics","Non-Comp","Motor Trade Road Risks","0-10","Not provided","Learner","Not provided","Private"]
[null,"Non-Fleet","Non-Telematics","Non-Comp","Motor Trade Road Risks","0-10","Not provided","Learner","Not provided","Commercial"]
[null,"Non-Fleet","Non-Telematics","Non-Comp","Motor Trade Road Risks","0-10","Not provided","Non-Learner","Not provided","Private"]
[null,"Non-Fleet","Non-Telematics","Non-Comp","Motor Trade Road Risks","0-10","Not provided","Non-Learner","Not provided","Commercial"]
[null,"Non-Fleet","Non-Telematics","Non-Comp","Motor Trade Road Risks","11-20","Not provided","Learner","Not provided","Private"]
[null,"Non-Fleet","Non-Telematics","Non-Comp","Motor Trade Road Risks","11-20","Not provided","Learner","Not provided","Commercial"]
[null,"Non-Fleet","Non-Telematics","Non-Comp","Motor Trade Road Risks","11-20","Not provided","Non-Learner","Not provided","Private"]
[null,"Non-Fleet","Non-Telematics","Non-Comp","Motor Trade Road Risks","11-20","Not provided","Non-Learner","Not provided","Commercial"]
[null,"Non-Fleet","Non-Telematics","Non-Comp","Motor Trade Road Risks","21-30","Not provided","Learner","Not provided","Private"]
[null,"Non-Fleet","Non-Telematics","Non-Comp","Motor Trade Road Risks","21-30","Not provided","Learner","Not provided","Commercial"]
[null,"Non-Fleet","Non-Telematics","Non-Comp","Motor Trade Road Risks","21-30","Not provided","Non-Learner","Not provided","Private"]
[null,"Non-Fleet","Non-Telematics","Non-Comp","Motor Trade Road Risks","21-30","Not provided","Non-Learner","Not provided","Commercial"]
[null,"Non-Fleet","Non-Telematics","Non-Comp","Motor Trade Road Risks","31-40","Not provided","Learner","Not provided","Private"]
[null,"Non-Fleet","Non-Telematics","Non-Comp","Motor Trade Road Risks","31-40","Not provided","Learner","Not provided","Commercial"]
[null,"Non-Fleet","Non-Telematics","Non-Comp","Motor Trade Road Risks","31-40","Not provided","Non-Learner","Not provided","Private"]
[null,"Non-Fleet","Non-Telematics","Non-Comp","Motor Trade Road Risks","31-40","Not provided","Non-Learner","Not provided","Commercial"]
[null,"Non-Fleet","Non-Telematics","Non-Comp","Motor Trade Road Risks","41-50","Not provided","Learner","Not provided","Private"]
[null,"Non-Fleet","Non-Telematics","Non-Comp","Motor Trade Road Risks","41-50","Not provided","Learner","Not provided","Commercial"]
[null,"Non-Fleet","Non-Telematics","Non-Comp","Motor Trade Road Risks","41-50","Not provided","Non-Learner","Not provided","Private"]
[null,"Non-Fleet","Non-Telematics","Non-Comp","Motor Trade Road Risks","41-50","Not provided","Non-Learner","Not provided","Commercial"]
[null,"Non-Fleet","Non-Telematics","Non-Comp","Motor Trade Road Risks","51-60","Not provided","Learner","Not provided","Private"]
[null,"Non-Fleet","Non-Telematics","Non-Comp","Motor Trade Road Risks","51-60","Not provided","Learner","Not provided","Commercial"]
[null,"Non-Fleet","Non-Telematics","Non-Comp","Motor Trade Road Risks","51-60","Not provided","Non-Learner","Not provided","Private"]
[null,"Non-Fleet","Non-Telematics","Non-Comp","Motor Trade Road Risks","51-60","Not provided","Non-Learner","Not provided","Commercial"]
[null,"Non-Fleet","Non-Telematics","Non-Comp","Motor Trade Road Risks",">60","Not provided","Learner","Not provided","Private"]
[null,"Non-Fleet","Non-Telematics","Non-Comp","Motor Trade Road Risks",">60","Not provided","Learner","Not provided","Commercial"]
[null,"Non-Fleet","Non-Telematics","Non-Comp","Motor Trade Road Risks",">60","Not provided","Non-Learner","Not provided","Private"]
[null,"Non-Fleet","Non-Telematics","Non-Comp","Motor Trade Road Risks",">60","Not provided","Non-Learner","Not provided","Commercial"]
[null,"Non-Fleet","Non-Telematics","Non-Comp","All others","0-10","Not provided","Learner","Not provided","Private"]
[null,"Non-Fleet","Non-Telematics","Non-Comp","All others","0-10","Not provided","Learner","Not provided","Commercial"]
[null,"Non-Fleet","Non-Telematics","Non-Comp","All others","0-10","Not provided","Non-Learner","Not provided","Private"]
[null,"Non-Fleet","Non-Telematics","Non-Comp","All others","0-10","Not provided","Non-Learner","Not provided","Commercial"]
[null,"Non-Fleet","Non-Telematics","Non-Comp","All others","11-20","Not provided","Learner","Not provided","Private"]
[null,"Non-Fleet","Non-Telematics","Non-Comp","All others","11-20","Not provided","Learner","Not provided","Commercial"]
[null,"Non-Fleet","Non-Telematics","Non-Comp","All others","11-20","Not provided","Non-Learner","Not provided","Private"]
[null,"Non-Fleet","Non-Telematics","Non-Comp","All others","11-20","Not provided","Non-Learner","Not provided","Commercial"]
[null,"Non-Fleet","Non-Telematics","Non-Comp","All others","21-30","Not provided","Learner","Not provided","Private"]
[null,"Non-Fleet","Non-Telematics","Non-Comp","All others","21-30","Not provided","Learner","Not provided","Commercial"]
[null,"Non-Fleet","Non-Telematics","Non-Comp","All others","21-30","Not provided","Non-Learner","Not provided","Private"]
[null,"Non-Fleet","Non-Telematics","Non-Comp","All others","21-30","Not provided","Non-Learner","Not provided","Commercial"]
[null,"Non-Fleet","Non-Telematics","Non-Comp","All others","31-40","Not provided","Learner","Not provided","Private"]
[null,"Non-Fleet","Non-Telematics","Non-Comp","All others","31-40","Not provided","Learner","Not provided","Commercial"]
[null,"Non-Fleet","Non-Telematics","Non-Comp","All others","31-40","Not provided","Non-Learner","Not provided","Private"]
[null,"Non-Fleet","Non-Telematics","Non-Comp","All others","31-40","Not provided","Non-Learner","Not provided","Commercial"]
[null,"Non-Fleet","Non-Telematics","Non-Comp","All others","41-50","Not provided","Learner","Not provided","Private"]
[null,"Non-Fleet","Non-Telematics","Non-Comp","All others","41-50","Not provided","Learner","Not provided","Commercial"]
[null,"Non-Fleet","Non-Telematics","Non-Comp","All others","41-50","Not provided","Non-Learner","Not provided","Private"]
[null,"Non-Fleet","Non-Telematics","Non-Comp","All others","41-50","Not provided","Non-Learner","Not provided","Commercial"]
[null,"Non-Fleet","Non-Telematics","Non-Comp","All others","51-60","Not provided","Learner","Not provided","Private"]
[null,"Non-Fleet","Non-Telematics","Non-Comp","All others","51-60","Not provided","Learner","Not provided","Commercial"]
[null,"Non-Fleet","Non-Telematics","Non-Comp","All others","51-60","Not provided","Non-Learner","Not provided","Private"]
[null,"Non-Fleet","Non-Telematics","Non-Comp","All others","51-60","Not provided","Non-Learner","Not provided","Commercial"]
[null,"Non-Fleet","Non-Telematics","Non-Comp","All others",">60","Not provided","Learner","Not provided","Private"]
[null,"Non-Fleet","Non-Telematics","Non-Comp","All others",">60","Not provided","Learner","Not provided","Commercial"]
[null,"Non-Fleet","Non-Telematics","Non-Comp","All others",">60","Not provided","Non-Learner","Not provided","Private"]
[null,"Non-Fleet","Non-Telematics","Non-Comp","All others",">60","Not provided","Non-Learner","Not provided","Commercial"]

{"sheet":"Question 1(c) ","index":4,"n_rows":46,"n_cols":14,"rows_kept":46,"cut":false,"hidden":false,"merged":[]}
[null,"Return to homepage"]
[]
[null,"Please complete the tables below which provide :"]
[]
[null,"For each additional data enrichment feature that you undertake which : "]
[null,"-","you feel would better assist reinsurers in their assessment of your portfolio"]
[null,"-","isn't captured elsewhere within this questionnaire and"]
[null,"-","can be captured and identified on a per claim basis"]
[null,"please fill out the table below."]
[]
[null,"NB. To the extent possible please also complete a matching column within questions 4 a and b to allow"]
[null,"a more accurate assessment of the relationship between these features and actual xol claims experience."]
[]
[null,"Given the varied nature of these additional features the table below is less prescriptive than usual so as to allow"]
[null,"effective capture of these additional data sets. "]
[]
[null,"The ability to also provide this information on an historical basis may also assist in our risk assessment."]
[]
[null,"Please feel free to add any further narrative to explain how this feature is used within your operations."]
[]
[null,"Possible additional data items:"]
[]
[null,"Data Enrichment Feature","e.g. credit rating, license length."]
[null,"Part of Portfolio impacted","e.g. just in respect of private car, since 2015"]
[null,"Feature Metric","e.g. credit rating ( maybe by band ), number of years license held"]
[null,"All Others breakdown from 1(b)","e.g. PC Split HNW, classics, etc; "]
[]
[null,"Feature Metric 1:","e.g. Credit Rating"]
[]
[null,null,"No. of Vehicle Years",null,null,null,null,null,"Premium Income"]
[null,"Sub Category",2022,2023,2024,"2025 YTD","2025 FY",2026,2022,2023,2024,"2025 YTD","2025 FY",2026]
[null,"0-100"]
[null,"100-200"]
[null,"200-300"]
[null,"300-400"]
[null,"400-500"]
[null,"etc"]
[]
[]
[]
[]
[]
[null,"Feature Metric 2:","e.g. Discontinued Business"]
[]
[null,null,"No. of Vehicle Years",null,null,null,null,null,"Premium Income"]
[null,"Sub Category",2022,2023,2024,"2025 YTD","2025 FY",2026,2022,2023,2024,"2025 YTD","2025 FY",2026]

{"sheet":"Question 1 (d)","index":5,"n_rows":48,"n_cols":33,"rows_kept":48,"cut":false,"hidden":false,"merged":[[14,24,14,28],[43,8,47,14],[43,16,47,22],[8,1,8,8],[11,1,11,8],[14,2,14,6],[14,8,14,12],[14,18,14,22],[27,1,27,8],[37,1,37,4],[40,1,40,4],[42,8,42,14],[42,16,42,22]]}
[null,"Return to homepage"]
[]
[]
[null,"TERRITORIAL BREAKDOWN"]
[]
[null,"Please provide a territorial breakdown of your premium income and vehicle years for business emanating from the following territories."]
[]
[null,"If the Premium Income or Vehicle year basis differs from that defined in 1 (b), please specify"]
[]
[]
[null,"Please define the basis of the data provided below (e.g. in force, year to date, etc)"]
[]
[]
[null,null,"Commercial Vehicle",null,null,null,null,null,null,null,null,null,null,null,null,null,null,null,"Private Car"]
[null,null,"Vehicle Years",null,null,null,null,null,"Premium Income",null,null,null,null,null,"TPPD Limits of Indemnity ",null,null,null,"Vehicle Years",null,null,null,null,null,"Premium Income",null,null,null,null,null,"TPPD Limits of Indemnity "]
[null,"TPPD Limits of Indemnity Band Min*",">= £1m",">= £2m",">= £5m",">= £10m",">=£20m",null,">= £1m",">= £2m",">= £5m",">= £10m",">=£20m",null,"(excluding costs)",null,"Maximum BI limit",null,">= £1m",">= £2m",">= £5m",">= £10m",">=£20m",null,">= £1m",">= £2m",">= £5m",">= £10m",">=£20m",null,"(excluding costs)",null,"Maximum BI limit"]
[null,"TPPD Limits of Indemnity Band Max*","< £2m","< £5m","< £10m","< £20m",null,null,"< £2m","< £5m","< £10m","< £20m",null,null,"Normal","Maximum",null,null,"< £2m","< £5m","< £10m","< £20m",null,null,"< £2m","< £5m","< £10m","< £20m",null,null,"Normal","Maximum"]
[null,"The Republic of Ireland"]
[null,"Northern Ireland"]
[null,"Scotland"]
[null,"Channel Islands and the Isle of Man"]
[null,"England & Wales"]
[null,"Any other 1 (please specify)"]
[null,"Any other 2 (please specify)"]
[null,"Total",{"$f":"SUM(C18:C24)","v":0},{"$f":"SUM(D18:D24)","v":0},0,0,0,null,0,0,0,0,0,null,0,0,0,null,0,0,0,0,0,null,0,0,0,0,0,null,0,0,0]
[]
[null,"Please advise which categories of vehicle as detailed in q1b are treated as private cars for the purposes of the above."]
[]
[]
[null,"* (excluding costs)"]
[]
[]
[]
[null,"NON-ANNUAL POLICY BREAKDOWN"]
[]
[null,"If you write short term policies less than 12 months (excluding 12 month polices which are cancelled) and / or policies that exceed 12 months (excluding odd time extensions) or continuous policies please complete the table below."]
[null,"If the Premium Income or Vehicle year basis differs from that defined in 1 (b), please specify"]
[]
[]
[null,"Please define the basis of the data provided below (e.g. in force, year to date, etc)"]
[]
[]
[null,"Period of Cover","Number of policies","Total Vehicle Years ","Premium Income",null,null,null,"Please provide any relevant commentary regarding your underwriting approach to short-term policies, including shared temporary driving (e.g. ZipCars) and any fundamental changes that have occurred or are planned.",null,null,null,null,null,null,null,"Please detail how vehicle years are calculated for the purpose of completing the table to the left."]
[null,"Hourly "]
[null,"Daily"]
[null,"Weekly"]
[null,"Monthly"]
[null,"> 12 months"]

{"sheet":"Question 1(e)","index":6,"n_rows":64,"n_cols":22,"rows_kept":64,"cut":false,"hidden":false,"merged":[[52,13,54,14],[52,6,55,6],[31,6,33,6],[31,7,32,8],[31,9,32,10],[31,11,32,14],[44,6,47,14],[51,6,51,14],[52,7,54,8],[52,9,54,10],[52,11,54,12],[33,11,33,12],[33,13,33,14],[26,1,27,4],[28,1,28,4],[4,1,4,4],[4,21,4,28],[7,6,9,14],[11,13,12,14],[13,13,13,14],[14,13,14,14],[15,13,15,14],[16,13,16,14],[17,13,17,14],[18,13,18,14],[4,16,4,19],[5,1,8,4],[5,21,10,28],[5,16,10,19],[12,1,12,4],[3,6,6,14],[13,16,15,19],[16,16,24,19],[10,6,10,14],[11,6,12,6],[11,7,12,7],[11,8,12,8],[11,9,12,9],[11,10,12,10],[11,11,12,11],[11,12,12,12],[9,1,9,4],[10,1,11,4],[19,13,19,14],[20,13,20,14],[23,6,26,14],[30,6,30,14],[15,21,20,28],[22,21,22,27],[24,21,24,26],[29,16,40,19],[28,16,28,19]]}
[null,"Return to homepage"]
[]
[null,"ORIGINAL POLICY EXCESSES",null,null,null,null,"AUTOMATED VEHICLES",null,null,null,null,null,null,null,null,null,"LEARNER / INEXPERIENCED DRIVERS",null,null,null,null,"TELEMATICS"]
[null,null,null,null,null,null,"Do you have any current or planned exposure to Automated Vehicles? If yes, please provide additional commentary, differentiating between testing and open market vehicles and provide details of the number of vehicles involved by type (see table below). Please note, 'SAE Levels' refer to the SAE International Levels of Driving Automation."]
[null,"Are you planning any material changes to any of your original policy excesses (not limited to private car comprehensive) in the next 12 months? If so, please detail the proposed changes.",null,null,null,null,null,null,null,null,null,null,null,null,null,null,"Do you have any current or planned exposure to Learner Drivers ? If yes, please provide additional information and complete Q1(b).",null,null,null,null,"Do you offer Telematics based products? If yes please provide additional commentary and complete q1b."]
[]
[]
[]
[]
[null,"Please define the basis of the data provided below (e.g. in force, year to date, etc)"]
[null,null,null,null,null,null,"Number of Vehicle Years"]
[null,null,null,null,null,null,"Year","SAE Level 0 ","SAE Level 1 ","SAE Level 2 ","SAE Level 3","SAE Level 4","SAE Level 5 ","Total"]
[null,"In respect of your private car comprehensive business, please provide a profile of original policy excesses for the defined period above.",null,null,null,null,null,null,null,null,null,null,null,null,null,null,null,null,null,null,null,"HAZARDOUS GOODS"]
[null,null,null,null,null,null,2019,null,null,null,null,null,null,null,null,null,"In respect of each section of any fleet account, please detail your underwriting philosophy regarding young and / or inexperienced drivers."]
[null,"Excess","Total Vehicle Years ","Premium Income",null,null,2020]
[null,null,null,null,null,null,2021]
[null,null,null,null,null,null,2022]
[null,null,null,null,null,null,2023]
[null,null,null,null,null,null,2024]
[null,null,null,null,null,null,"2025 RE"]
[null,null,null,null,null,null,"2026 E"]
[]
[null,null,null,null,null,null,"E-SCOOTERS/E-BIKES",null,null,null,null,null,null,null,null,null,null,null,null,null,null,"As per your definition, do you provide cover for Hazardous Goods?"]
[null,null,null,null,null,null,"Do you have any current or planned exposure to Micromobility (e-Scooters, e-Bikes)? If yes, please provide additional commentary, differentiating between testing and open market vehicles and provide details of the number of vehicles involved by type (see table below)."]
[null,"NON-MOTOR / NON RTA LIABILITY",null,null,null,null,null,null,null,null,null,null,null,null,null,null,null,null,null,null,null,"What sub-limits do you apply?"]
[]
[null,"Under the protected portfolio do you cover non-motor liability, e.g. taxi drivers PL, motor traders internal risks ?",null,null,null,null,null,null,null,null,null,null,null,null,null,null,"AIRSIDE"]
[]
[null,"If so, please provide a separate risk profile as per the table below.",null,null,null,null,null,null,null,null,null,null,null,null,null,null,"Please provide details of any airside exposures."]
[null,"Type","Total Vehicle Years ","Premium Income","Limit of Indemnity"]
[null,"Taxi PL",null,null,null,null,"Number of Vehicle Years"]
[null,"etc.",null,null,null,null,"Year","e-Scooters",null,"e-Bikes",null,"Total"]
[null,"etc."]
[null,null,null,null,null,null,null,"Vehicle Years","Premium Income","Vehicle Years","Premium Income","Vehicle Years",null,"Premium Income"]
[null,null,null,null,null,null,2019]
[null,null,null,null,null,null,2020]
[null,null,null,null,null,null,2021]
[null,null,null,null,null,null,2022]
[null,null,null,null,null,null,2023]
[null,null,null,null,null,null,2024]
[null,null,null,null,null,null,"2025 RE"]
[null,null,null,null,null,null,"2026 E"]
[]
[null,null,null,null,null,null,"VEHICLE PROPULSION"]
[null,null,null,null,null,null,"Do you have any current or planned exposure to Electric or Hybrid Vehicles? If yes, please provide additional commentary, differentiating between testing and open market vehicles and provide details of the number of vehicles involved by type (see table below)."]
[]
[]
[]
[]
[]
[]
[null,null,null,null,null,null,"Number of Vehicle Years"]
[null,null,null,null,null,null,"Year","Electric Vehicles",null,"Hybrid Vehicles",null,"Internal Combustion Engine (ICE) Vehicles",null,"Total"]
[]
[]
[null,null,null,null,null,null,null,"Vehicle Years","Premium Income","Vehicle Years","Premium Income","Vehicle Years","Premium Income","Vehicle Years","Premium Income"]
[null,null,null,null,null,null,2019]
[null,null,null,null,null,null,2020]
[null,null,null,null,null,null,2021]
[null,null,null,null,null,null,2022]
[null,null,null,null,null,null,2023]
[null,null,null,null,null,null,2024]
[null,null,null,null,null,null,"2025 RE"]
[null,null,null,null,null,null,"2026 E"]

{"sheet":"Question 1 (f)","index":7,"n_rows":24,"n_cols":12,"rows_kept":24,"cut":false,"hidden":false,"merged":[[12,1,12,4],[12,11,12,14],[4,6,4,8],[4,11,4,13],[5,1,5,4],[6,7,6,9],[6,11,6,14],[7,2,7,4],[7,6,8,9],[7,11,7,14],[8,2,8,4],[8,11,8,14],[10,6,10,8],[10,11,10,14],[11,1,11,4],[11,6,11,8],[11,11,11,14],[13,7,15,9],[13,11,13,14],[15,11,15,14],[16,11,18,14],[18,1,19,4],[18,7,18,9],[19,11,19,14],[24,1,25,4],[24,11,27,14],[25,6,26,9],[27,6,27,9],[20,1,21,4],[20,11,22,14],[21,7,21,9],[22,1,23,4],[23,6,23,9],[23,11,23,14]]}
[null,"Return to homepage"]
[]
[null,"CLAIMS MANAGEMENT",null,null,null,null,"PERIODICAL PAYMENTS",null,null,null,null,"OTHER INFORMATION"]
[]
[null,"Please provide :",null,null,null,null,"Do you identify probable PPO cases?",null,null,null,null,"Is there any other information of which you feel reinsurers should be made aware, including but not limited to changes in :"]
[null,"> In respect of claims which have at any time exceeded either 25% of your proposed retention for the coming year or GBP 1,000,000, whichever is the lesser ( please specify which ) ;",null,null,null,null,"If yes, please identify the potential PPOs in question 4a and provide the following:",null,null,null,null,"Management structure"]
[null,null,null,null,null,null,"-","Details of the criteria used to identify probable PPOs."]
[null,"-","a completed claims triangle per the attached pro-forma ( q4a ) including your individual event losses over the past 15 years.",null,null,null,null,null,null,null,null,"Underwriting philosophy"]
[null,"-","a list of outstanding claims older than 15 years, excluding Periodical Payment Orders ( PPO's ) and claims where only costs are outstanding"]
[]
[null,null,null,null,null,null,"Are potential PPOs reserved differently to non-PPO cases?",null,null,null,null,"Reserving philosophy"]
[null,"> Commentary on claims handling ( current versus historic, use of outsourcing arrangements, position on liability, IBNR treatment - block versus specific, required reporting levels and injury criteria for reference to senior claims management / head office claims department",null,null,null,null,"If yes, please provide the following:"]
[null,null,null,null,null,null,"-","how the reserves differ;",null,null,null,"Rating structure"]
[null,"> A separate short report of your 10 largest open individual event losses."]
[]
[null,null,null,null,null,null,null,null,null,null,null,"Portfolio composition"]
[null,"PERIODICAL PAYMENTS / OTHER INFORMATION"]
[null,null,null,null,null,null,"-","the discount rate(s) applied; and"]
[null,"If you would prefer to provide the information sought within the two blue sections (right) please see the word document embedded below. "]
[null,null,null,null,null,null,null,null,null,null,null,"Recent or expected legislative changes"]
[null,null,null,null,null,null,"-","at what stage the change is implemented. "]
[]
[]
[null,null,null,null,null,null,"Please advise whether you are holding additional IBNR reserves for PPOs. If so, how much and how are these reserves determined?",null,null,null,null,"Brexit' Strategy"]

{"sheet":"Question 2","index":8,"n_rows":8,"n_cols":9,"rows_kept":8,"cut":false,"hidden":false,"merged":[]}
[null,"Return to homepage"]
[]
[null,"Please complete the following table with the details of any co-insured fleets / schemes and also business with "]
[null,"large self insured retentions / aggregate deductibles in which you participate, in respect of in force policies."]
[]
[null,"NB - A large self insured retention is defined as greater than £10k ( each and every loss )"]
[]
[null,"Name of scheme / insured","% share ","FGU premium income","Actual premium income","Vehicle Years","Each & every excess","Aggregate cap (if any)","Aggregate cap - Shared across class? If yes, please specify"]

{"sheet":"Question 3","index":9,"n_rows":45,"n_cols":54,"rows_kept":45,"cut":false,"hidden":false,"merged":[[4,7,11,10],[7,1,7,2],[10,1,10,2],[12,1,14,4]]}
[null,"Return to homepage"]
[]
[null,"Please complete Question 3 if MOD is covered under the treaty",null,null,null,null,null,"How do you monitor physical damage accumulations in respect of flood?",null,null,null,null,null,null,null,null,null,null,null,null,null,null,null,null,null,null,null,null,null,null,null,null,null,null,null,null,null,null,null,null,null,null,null,null,null,null,null,null,null,null,null,null,null,"Yes"]
[null,null,null,null,null,null,null,"Please explain in the box below:",null,null,null,null,null,null,null,null,null,null,null,null,null,null,null,null,null,null,null,null,null,null,null,null,null,null,null,null,null,null,null,null,null,null,null,null,null,null,null,null,null,null,null,null,null,"No"]
[null,"Monitoring accumulations of vehicle values"]
[]
[null,"Proposed retention of XOL reinsurance programme"]
[]
[]
[null,"75% of retention"]
[null,{"$f":"+B8*0.75","v":0}]
[]
[null,"Please provide values at risk at any locations (e.g. company car park, approved repairer) where any part of the protected portfolio involve a large known or anticipated concentration of vehicle values greater than 75% of the proposed retention?"]
[null,null,null,null,null,null,null,"Please complete the postcode profile in respect of your comprehensive exposures"]
[null,null,null,null,null,null,null,"Example is given below. Note vehicle values are required not premium"]
[null,"Location Name","Number of vehicles","Total Vehicle values at location","Average Vehicle Value",null,null,"Postcode sector","Number of vehicles","Total Vehicle values at location","Total Vehicle values at location"]
[null,null,null,null,{"$f":"IF(AND(C17>0,D17>0),D17/C17,\"\")","v":""},null,null,"SW1A 1",354,3363000,{"$f":"IF(AND(I17>0,J17>0),J17/I17,\"\")","v":9500}]
[null,null,null,null,{"$f":"IF(AND(C18>0,D18>0),D18/C18,\"\")","v":""},null,null,"CO12 5",125,468750,{"$f":"IF(AND(I18>0,J18>0),J18/I18,\"\")","v":3750}]
[null,null,null,null,""]
[null,null,null,null,"",null,null,null,"Number of vehicles","Total Vehicle values at location","Average Vehicle Value"]
[null,null,null,null,"",null,null,"Total",{"$f":"SUM(I24:I45)","v":0},{"$f":"SUM(J24:J45)","v":0},{"$f":"IF(AND(I21>0,J21>0),J21/I21,\"\")","v":""}]
[null,null,null,null,""]
[null,null,null,null,"",null,null,"Postcode sector","Number of vehicles","Total Vehicle values at location","Average Vehicle Value"]
[null,null,null,null,"",null,null,null,null,null,{"$f":"IF(AND(I24>0,J24>0),J24/I24,\"\")","v":""}]
[null,null,null,null,"",null,null,null,null,null,{"$f":"IF(AND(I25>0,J25>0),J25/I25,\"\")","v":""}]
[null,null,null,null,"",null,null,null,null,null,""]
[null,"etc.",null,null,"",null,null,null,null,null,""]
[null,null,null,null,null,null,null,null,null,null,""]
[null,"Please provide a list of the vehicles where the value is greater than 75% of the proposed retention",null,null,null,null,null,null,null,null,""]
[null,"Vehicle","Vehicle Value",null,null,null,null,null,null,null,""]
[null,null,null,null,null,null,null,null,null,null,""]
[null,null,null,null,null,null,null,null,null,null,""]
[null,null,null,null,null,null,null,null,null,null,""]
[null,null,null,null,null,null,null,null,null,null,""]
[null,null,null,null,null,null,null,null,null,null,""]
[null,null,null,null,null,null,null,null,null,null,""]
[null,null,null,null,null,null,null,null,null,null,""]
[null,null,null,null,null,null,null,null,null,null,""]
[null,null,null,null,null,null,null,null,null,null,""]
[null,null,null,null,null,null,null,null,null,null,""]
[null,"etc.",null,null,null,null,null,null,null,null,""]
[null,null,null,null,null,null,null,null,null,null,""]
[null,null,null,null,null,null,null,null,null,null,""]
[null,null,null,null,null,null,null,null,null,null,""]
[null,null,null,null,null,null,null,"etc.",null,null,""]

{"sheet":"Question 4 (a)","index":10,"n_rows":64,"n_cols":52,"rows_kept":64,"cut":false,"hidden":false,"merged":[[5,21,5,25],[0,1,0,3],[2,17,2,19],[2,21,2,25],[3,21,3,25],[4,21,4,25],[11,1,11,7],[11,8,11,9],[12,21,12,25],[14,27,14,31],[6,21,6,25],[7,21,7,25],[8,21,8,25],[9,21,9,25],[10,1,10,7],[10,8,10,9],[10,21,10,25]]}
[null,"Return to homepage"]
[]
[null,"Please enter relevant data in blue cells",null,null,null,null,null,null,null,null,null,null,null,null,null,null,null,"Category of Vehicle",null,null,null,"Injury Types"]
[null,null,null,null,null,null,null,null,null,null,null,null,null,null,null,null,null,"Motor Cars",null,null,null,"Fatality",null,null,null,null,null,null,null,null,null,null,null,null,null,null,"Please enter only numerical claims information (not text) in Development Year columns."]
[null,null,null,null,null,null,null,null,null,null,null,null,null,null,null,null,null,"Light Commercial Vehicles",null,null,null,"Persistent Vegetative State (PVS)",null,null,null,null,null,null,null,null,null,null,null,null,null,null,"Where there is no activity please enter a zero."]
[null,null,null,null,null,null,null,null,null,null,null,null,null,null,null,null,null,"Medium Commercial Vehicles",null,null,null,"Severe Brain Injury",null,null,null,null,null,null,null,null,null,null,null,null,null,null,"Template assumes one claim per year (please add extra rows if more than one claim)."]
[null,null,null,null,null,null,null,null,null,null,null,null,null,null,null,null,null,"Heavy Commercial Vehicles",null,null,null,"Moderate Brain Injury",null,null,null,null,null,null,null,null,null,null,null,null,null,null,"Please specify 'Yes' in the \"Non bodily injury\" column if the TPPD and/or own damage element of the claim exceeds the reporting level."]
[null,null,null,null,null,null,null,null,null,null,null,null,null,null,null,null,null,"Buses, coaches etc",null,null,null,"Quadriplegia / Tetraplegia",null,null,null,null,null,null,null,null,null,null,null,null,null,null,"Please specify actual threshold for reporting claims by underwriting year."]
[null,null,null,null,null,null,null,null,null,null,null,null,null,null,null,null,null,"Taxis, private & public hire",null,null,null,"Paraplegia",null,null,null,null,null,null,null,null,null,null,null,null,null,null,"For each development year, please specify the effective date of the claims data."]
[null,null,null,null,null,null,null,null,null,null,null,null,null,null,null,null,null,"Self-drive hire vehicles",null,null,null,"Amputation",null,null,null,null,null,null,null,null,null,null,null,null,null,null,"Please enter all claims, including those settled or to be settled by periodic payments, as if settled or to be settled on a \"lump sum\" basis"]
[null,"Please specify the date of the last development",null,null,null,null,null,null,null,null,null,null,null,null,null,null,null,"Tankers, hazardous",null,null,null,"Other Injuries"]
[null,"Please specify the reporting threshold of the data provided",null,null,null,null,null,null,null,null,null,null,null,null,null,null,null,"Motor cycles"]
[null,null,null,null,null,null,null,null,null,null,null,null,null,null,null,null,null,"Motor Trade Road Risks"]
[null,null,null,null,null,null,null,null,null,null,null,null,null,null,null,null,null,"All others"]
[]
[null,"Insured name","Insured Policy Reference","Reinsured's Claim Reference","Date of Loss","Age of insured","Gender of insured","Age of driver at time of accident ( if different from insured )","Gender of driver involved in accident ( if different from insured )","Type of policy - Comp / Non-Comp","Learner Drivers","Telematics       ","Insured vehicle automation level ( SAE 0-5)","Vehicle propulsion (electric, hybrid, ICE)","Vehicle Use (Private/ Commercial)","Arising from Discontinued Business (Y/N)","Brand / Segment","Category of vehicle","Fleet / non-fleet","Number of claimants","Major injury suffered by major claimant","Insured Location (e.g. Scotland, Jersey, etc)","Country of Loss (e.g. Scotland, Jersey, etc)","Non bodily injury above reporting level? (Y/N)","Currency","Periodic Payments Ordered or Agreed? (Yes/No) If Yes, please also complete Appendix No.5","Probable PPO (Y/N)","Age of major claimant","Gender of major claimant","Discount Rate Used at settlement for Ogdenable HOD (if not 2.5%)","Discount Rate Used at latest position","Date of Settlement","Policy Inception Date","Feature Metric 1 (e.g. Credit Score)","Feature Metric 2","U/W Year",null,"Dev Yr 1","Dev Yr 2","Dev Yr 3","Dev Yr 4","Dev Yr 5","Dev Yr 6","Dev Yr 7","Dev Yr 8","Dev Yr 9","Dev Yr 10","Dev Yr 11","Dev Yr 12","Dev Yr 13","Dev Yr 14","Dev Yr 15"]
[null,null,null,null,null,null,null,null,null,null,null,null,null,null,null,null,null,null,null,null,null,null,null,null,null,null,null,null,null,null,null,null,null,null,null,2010,"PAID"]
[null,null,null,null,null,null,null,null,null,null,null,null,null,null,null,null,null,null,null,null,null,null,null,null,null,null,null,null,null,null,null,null,null,null,null,null,"O/S"]
[null,null,null,null,null,null,null,null,null,null,null,null,null,null,null,null,null,null,null,null,null,null,null,null,null,null,null,null,null,null,null,null,null,null,null,null,"INC"]
[null,null,null,null,null,null,null,null,null,null,null,null,null,null,null,null,null,null,null,null,null,null,null,null,null,null,null,null,null,null,null,null,null,null,null,2011,"PAID"]
[null,null,null,null,null,null,null,null,null,null,null,null,null,null,null,null,null,null,null,null,null,null,null,null,null,null,null,null,null,null,null,null,null,null,null,null,"O/S"]
[null,null,null,null,null,null,null,null,null,null,null,null,null,null,null,null,null,null,null,null,null,null,null,null,null,null,null,null,null,null,null,null,null,null,null,null,"INC"]
[null,null,null,null,null,null,null,null,null,null,null,null,null,null,null,null,null,null,null,null,null,null,null,null,null,null,null,null,null,null,null,null,null,null,null,2012,"PAID"]
[null,null,null,null,null,null,null,null,null,null,null,null,null,null,null,null,null,null,null,null,null,null,null,null,null,null,null,null,null,null,null,null,null,null,null,null,"O/S"]
[null,null,null,null,null,null,null,null,null,null,null,null,null,null,null,null,null,null,null,null,null,null,null,null,null,null,null,null,null,null,null,null,null,null,null,null,"INC"]
[null,null,null,null,null,null,null,null,null,null,null,null,null,null,null,null,null,null,null,null,null,null,null,null,null,null,null,null,null,null,null,null,null,null,null,2013,"PAID"]
[null,null,null,null,null,null,null,null,null,null,null,null,null,null,null,null,null,null,null,null,null,null,null,null,null,null,null,null,null,null,null,null,null,null,null,null,"O/S"]
[null,null,null,null,null,null,null,null,null,null,null,null,null,null,null,null,null,null,null,null,null,null,null,null,null,null,null,null,null,null,null,null,null,null,null,null,"INC"]
[null,null,null,null,null,null,null,null,null,null,null,null,null,null,null,null,null,null,null,null,null,null,null,null,null,null,null,null,null,null,null,null,null,null,null,2014,"PAID"]
[null,null,null,null,null,null,null,null,null,null,null,null,null,null,null,null,null,null,null,null,null,null,null,null,null,null,null,null,null,null,null,null,null,null,null,null,"O/S"]
[null,null,null,null,null,null,null,null,null,null,null,null,null,null,null,null,null,null,null,null,null,null,null,null,null,null,null,null,null,null,null,null,null,null,null,null,"INC"]
[null,null,null,null,null,null,null,null,null,null,null,null,null,null,null,null,null,null,null,null,null,null,null,null,null,null,null,null,null,null,null,null,null,null,null,2015,"PAID"]
[null,null,null,null,null,null,null,null,null,null,null,null,null,null,null,null,null,null,null,null,null,null,null,null,null,null,null,null,null,null,null,null,null,null,null,null,"O/S"]
[null,null,null,null,null,null,null,null,null,null,null,null,null,null,null,null,null,null,null,null,null,null,null,null,null,null,null,null,null,null,null,null,null,null,null,null,"INC"]
[null,null,null,null,null,null,null,null,null,null,null,null,null,null,null,null,null,null,null,null,null,null,null,null,null,null,null,null,null,null,null,null,null,null,null,2016,"PAID"]
[null,null,null,null,null,null,null,null,null,null,null,null,null,null,null,null,null,null,null,null,null,null,null,null,null,null,null,null,null,null,null,null,null,null,null,null,"O/S"]
[null,null,null,null,null,null,null,null,null,null,null,null,null,null,null,null,null,null,null,null,null,null,null,null,null,null,null,null,null,null,null,null,null,null,null,null,"INC"]
[null,null,null,null,null,null,null,null,null,null,null,null,null,null,null,null,null,null,null,null,null,null,null,null,null,null,null,null,null,null,null,null,null,null,null,2017,"PAID"]
[null,null,null,null,null,null,null,null,null,null,null,null,null,null,null,null,null,null,null,null,null,null,null,null,null,null,null,null,null,null,null,null,null,null,null,null,"O/S"]
[null,null,null,null,null,null,null,null,null,null,null,null,null,null,null,null,null,null,null,null,null,null,null,null,null,null,null,null,null,null,null,null,null,null,null,null,"INC"]
[null,null,null,null,null,null,null,null,null,null,null,null,null,null,null,null,null,null,null,null,null,null,null,null,null,null,null,null,null,null,null,null,null,null,null,2018,"PAID"]
[null,null,null,null,null,null,null,null,null,null,null,null,null,null,null,null,null,null,null,null,null,null,null,null,null,null,null,null,null,null,null,null,null,null,null,null,"O/S"]
[null,null,null,null,null,null,null,null,null,null,null,null,null,null,null,null,null,null,null,null,null,null,null,null,null,null,null,null,null,null,null,null,null,null,null,null,"INC"]
[null,null,null,null,null,null,null,null,null,null,null,null,null,null,null,null,null,null,null,null,null,null,null,null,null,null,null,null,null,null,null,null,null,null,null,2019,"PAID"]
[null,null,null,null,null,null,null,null,null,null,null,null,null,null,null,null,null,null,null,null,null,null,null,null,null,null,null,null,null,null,null,null,null,null,null,null,"O/S"]
[null,null,null,null,null,null,null,null,null,null,null,null,null,null,null,null,null,null,null,null,null,null,null,null,null,null,null,null,null,null,null,null,null,null,null,null,"INC"]
[null,null,null,null,null,null,null,null,null,null,null,null,null,null,null,null,null,null,null,null,null,null,null,null,null,null,null,null,null,null,null,null,null,null,null,2020,"PAID"]
[null,null,null,null,null,null,null,null,null,null,null,null,null,null,null,null,null,null,null,null,null,null,null,null,null,null,null,null,null,null,null,null,null,null,null,null,"O/S"]
[null,null,null,null,null,null,null,null,null,null,null,null,null,null,null,null,null,null,null,null,null,null,null,null,null,null,null,null,null,null,null,null,null,null,null,null,"INC"]
[null,null,null,null,null,null,null,null,null,null,null,null,null,null,null,null,null,null,null,null,null,null,null,null,null,null,null,null,null,null,null,null,null,null,null,2021,"PAID"]
[null,null,null,null,null,null,null,null,null,null,null,null,null,null,null,null,null,null,null,null,null,null,null,null,null,null,null,null,null,null,null,null,null,null,null,null,"O/S"]
[null,null,null,null,null,null,null,null,null,null,null,null,null,null,null,null,null,null,null,null,null,null,null,null,null,null,null,null,null,null,null,null,null,null,null,null,"INC"]
[null,null,null,null,null,null,null,null,null,null,null,null,null,null,null,null,null,null,null,null,null,null,null,null,null,null,null,null,null,null,null,null,null,null,null,2022,"PAID"]
[null,null,null,null,null,null,null,null,null,null,null,null,null,null,null,null,null,null,null,null,null,null,null,null,null,null,null,null,null,null,null,null,null,null,null,null,"O/S"]
[null,null,null,null,null,null,null,null,null,null,null,null,null,null,null,null,null,null,null,null,null,null,null,null,null,null,null,null,null,null,null,null,null,null,null,null,"INC"]
[null,null,null,null,null,null,null,null,null,null,null,null,null,null,null,null,null,null,null,null,null,null,null,null,null,null,null,null,null,null,null,null,null,null,null,2023,"PAID"]
[null,null,null,null,null,null,null,null,null,null,null,null,null,null,null,null,null,null,null,null,null,null,null,null,null,null,null,null,null,null,null,null,null,null,null,null,"O/S"]
[null,null,null,null,null,null,null,null,null,null,null,null,null,null,null,null,null,null,null,null,null,null,null,null,null,null,null,null,null,null,null,null,null,null,null,null,"INC"]
[null,null,null,null,null,null,null,null,null,null,null,null,null,null,null,null,null,null,null,null,null,null,null,null,null,null,null,null,null,null,null,null,null,null,null,2024,"PAID"]
[null,null,null,null,null,null,null,null,null,null,null,null,null,null,null,null,null,null,null,null,null,null,null,null,null,null,null,null,null,null,null,null,null,null,null,null,"O/S"]
[null,null,null,null,null,null,null,null,null,null,null,null,null,null,null,null,null,null,null,null,null,null,null,null,null,null,null,null,null,null,null,null,null,null,null,null,"INC"]
[null,null,null,null,null,null,null,null,null,null,null,null,null,null,null,null,null,null,null,null,null,null,null,null,null,null,null,null,null,null,null,null,null,null,null,2025,"PAID"]
[null,null,null,null,null,null,null,null,null,null,null,null,null,null,null,null,null,null,null,null,null,null,null,null,null,null,null,null,null,null,null,null,null,null,null,null,"O/S"]
[null,null,null,null,null,null,null,null,null,null,null,null,null,null,null,null,null,null,null,null,null,null,null,null,null,null,null,null,null,null,null,null,null,null,null,null,"INC"]

{"sheet":"Question 4 b,c and d guidance","index":11,"n_rows":170,"n_cols":23,"rows_kept":170,"cut":false,"hidden":true,"merged":[]}
[null,"Return to homepage"]
[]
[null,"With all the changes regarding the Discount Rate (DR), and the potential in the future for multiple DRs, the current format in which data is received (i.e. in a triangle) doesn’t easily and neatly allow one to provide additional key information that is now seen as necessary to a reinsurance submission."]
[null,"Moving to a database style structure in which to store the data has the following benefits:"]
[null,"● Easy to Update - no need to compile a new triangle every year. Position updates since the last submission just need to be appended to the table (see [1] under 'Guidance question 4 (c)) "]
[null,"● More clarity around breakdown of reserves for Claim, and the different Heads of Damage"]
[null,"● Can be easily manipulated into a traditional triangle"]
[null,"● Future proof - new fields that become relevant can be added / old fields that perhaps are no longer relevant can be removed."]
[]
[null,"The aim is to reduce the volatility / uncertainty around the Ogdenable elements in particular within the pricing and underwriting process."]
[]
[null,"Guidance Question 4 (b)"]
[null,"Question 4(b) looks to capture details relating to the Original Policy, specifically the following fields:"]
[null,"● Insured name"]
[null,"● Insured Policy Reference"]
[null,"● Master Claim Reference"]
[null,"● Original Policy inception Date"]
[null,"● Latest Policy Renewal Date ( where claim occurred )"]
[null,"● UWY"]
[null,"● Date of Loss"]
[null,"● Age of insured"]
[null,"● Gender of insured"]
[null,"● Age of driver at time of accident"]
[null,"● Gender of driver involved in accident"]
[null,"● Type of policy - Comp / Non-Comp"]
[null,"● Learner Driver (Yes / No)"]
[null,"● Telematics  (Yes / No)"]
[null,"● Brand / Segment"]
[null,"● Category of vehicle ( see Vehicle Categories )"]
[null,"● Fleet / non-fleet"]
[null,"● Number of claimants"]
[null,"● Country of policy issue (e.g. England & Wales, Scotland, Jersey, etc)"]
[null,"● Country of Loss (e.g. England & Wales, Scotland, Jersey, etc)"]
[null,"● Feature Metric 1 (e.g. Credit Score) - see question 1 (c)"]
[null,"● Feature Metric 2 - see question 1 (c)"]
[]
[null,"Below is an example of how this table could be filled out "]
[]
[null,"Insured name","Insured Policy Reference","Master Claim Reference","Original Policy inception Date","Latest Policy Renewal Date ( where claim occurred )","UWY","Date of Loss","Age of insured","Gender of insured","Age of driver at time of accident","Gender of driver involved in accident","Type of policy - Comp / Non-Comp","Learner Driver ( Yes / No )","Telematics ( Yes / No )","Brand / Segment","Category of vehicle","Fleet / non-fleet","Number of claimants","Country of policy issue","Country of Loss","Feature Metric 1 (e.g. Credit Score)","Feature Metric 2"]
[null,"Insured 1","EINS1",1234,"2014-08-21","2014-08-21",2014,"2014-11-15",30,"Male",35,"Female","Comp","No","Yes","Basic","Motor Cars","Non-fleet",1,"England","England",100]
[null,"Insured 2","EINS2",5678,"2014-03-06","2015-03-06",2015,"2015-06-27",37,"Female",37,"Female","Comp","No","No","Basic","Motor Cars","Non-fleet",3,"England","Scotland",999]
[null,"Insured 3","SINS1",9785,"2015-04-01","2015-04-01",2016,"2015-07-05",55,"Male",55,"Male","Non-Comp","No","No","Premium","Motor Cars","Non-fleet",1,"Scotland","Scotland",150]
[null,"Insured 4","JINS1",3741,"2013-07-12","2014-07-12",2016,"2014-08-08",40,"Female",40,"Female","Comp","No","No","Platinum","Motor Cars","Non-fleet",1,"Jersey","Jersey",300]
[]
[]
[null,"Guidance question 4 (c)"]
[null,"Question 4(c) looks to capture details relating to all claimants and reserves held for each policy listed in Question 4 (b). The fields that we are looking to capture are as follows:"]
[null,"● Master Claim Reference"]
[null,"● Reserve Type ( Global / Claimant Specific / PPO ) - see further explanation below [2]"]
[null,"● Individual Claimant Reference"]
[null,"● Major injury Code suffered by claimant - see further explanation below [8]"]
[null,"● Month / Year of Birth of Claimant"]
[null,"● Gender of Claimant"]
[null,"● PPO Flag ( Yes / No / Very Likely / Not Likely ) - see further explanation below [3]"]
[null,"● HOD ( Whole of Life / Loss of Earnings / Accommodation / Non-Ogdenable / Global ) - see further explanation below [4]"]
[null,"● Claimant Status ( Open / Settled )"]
[null,"● Currency"]
[null,"● Evaluation Date - see further explanation below [1]"]
[null,"● Discount rate used - see further explanation below [5]"]
[null,"● Life Exp."]
[null,"● Multiplier (if applicable) - see further explanation below [6]"]
[null,"● Total applicable Multiplicand (if applicable) - see further explanation below [7]"]
[null,"● Paid"]
[null,"● Outstanding"]
[null,"● Incurred"]
[]
[null,"[1] - The aim is to move away from development data being as at a regular point in time (i.e. 31.12.16, 31.12.17, 31.12.18, etc), but rather to capture as and when there is a reserve update."]
[null,"So for example, if there is a reserve update in 2016 (say 13.04.16) then that would be the evaluation data for that row's entry (or multiple rows if not a Global Reserve)."]
[null,"If there has been no update since 2016 (i.e. could be settled, or there just hasn’t been an update), then there is no need to enter any other rows (i.e. we don't need to enter a row for 2017, 2018, 2019 etc)."]
[null,"The Code behind Question 4 (d) - where the triangle is compiled from the data table - will pick this up and  automatically fill the other years in the compiled triangle."]
[null,"Another benefit is that, when creating the triangle you would be able to choose the latest position for each year (i.e. 30.06 or 31.12) or even create quarterly triangles if needed."]
[null,"The point is receiving data in this format will allow for more dynamic manipulation of the data."]
[]
[null,"Another benefit is that, as the data is in a flat structure, there is no need to review data previously provided in previous submission in 4 (b) and (c) (assuming no errors)"]
[null,"For example, if the cut off point for last years submission was 31.08.2018, and if the cut off in this years submission is 31.08.2019, then only the data between those two dates needs to be entered."]
[null,"This could also save time as this data could be entered throughout the year which would mean there is less resource used when pulling together data for renewal submissions."]
[]
[null,"[2] - Allows for the evolution of a claim; we have come up with 3 main reserve types: Global, Claimant Specific and PPO"]
[null,"Global is intended to be used in two ways:"]
[null,"a) when a new claim is reported - for first reserves placed on claims when little information is known;"]
[null,"b) for reserves that are not claimant specific ( or where claimants are not major and / or  'non Ogdenable' ), at the later stages in the life of the claim "]
[null,"note that: Global Reserve type would always be 'Individual Claimant Reference' = 1 (see example below), and as claimant specific reserves are added, the 'Individual Claimant Reference' increases. Global reserves would use 'Global' Head of Damage flag (See [4])"]
[]
[null,"Claimant Specific is intended to be used when reserves are being added for specific claimants."]
[null,"For claimant specific, ultimately we would like to have a breakdown by the HODs (see [4]) but at the early stages of claimant specific reserves, the Global HOD type can be used if the reserve held against that claimant is a Global reserve."]
[]
[null,"PPO is for when a claim has settled as a PPO."]
[]
[null,"[3] - 4 values to be entered into this field: Yes, No, Very Likely, Not Likely"]
[null,"e.g. Not likely would imply there is a low probability and Very likely would imply there is a high probability of a claim settling as a PPO"]
[]
[null,"[4] - Heads of Damage have been grouped at a 'Parent Level' to balance between asking for all the Heads of Damage and having only the totals for any given position."]
[null,"These have been grouped as follows:"]
[null,"● Whole of Life - e.g. Care, Medical Costs, Holidays etc."]
[null,"● Loss of Earnings - e.g. Future loss of earnings"]
[null,"● Accommodation"]
[null,"● Non-Ogdenable - Reserves that are not impacted by Ogden Discount rate"]
[null,"● Global - to be used when a detailed breakdown by the different grouped level Heads of Damage are not available (i.e. early on in the claim - see [2] )"]
[]
[null,"[5] - Discount rate used for the reserve."]
[null,"Note that for the same 'Evaluation Date' the reserves could be given on two (or more) discount rates (e.g. 0% and 1%)."]
[null,"The code that sits behind Appendix 4 (d) would allow the user to pick a DR, and would then use the reserve 'closest' to the selected DR."]
[null,"Note however that the intention is to be able to on-level claims history (see Additional fields below) so this would be purely to produce a triangle based on the raw data when using un-adjusted claim positions."]
[]
[null,"[6] - Multiplier used against the Reserve held at the evaluation date (i.e. this could / will differ for Whole of Life and Loss of Earnings )"]
[null,"If not applicable (e.g. when using a Global Reserve) then use 'not applicable'"]
[]
[null,"[7] - Total Multiplicand used against the Reserve held at the evaluation date, for each grouped Head of Damage Level"]
[null,"If not applicable (e.g. when using a Global Reserve) then use 'not applicable'"]
[]
[null,"[8] - Major injury Code suffered by claimant in line with those used in Appendix 5 "]
[null,"The codes inputs for this column can be found on the references tab under column F"]
[null,"Note that a new code has been entered: F1 - Fatality"]
[]
[null,"In Addition to the above fields, the following can also be found in Question 4 (c)"]
[null,"● Adjusted Paid"]
[null,"● Adjusted Outstanding"]
[null,"● Adjusted Incurred"]
[]
[null,"These can be used by Brokers and Re-insurers to enter their on-levelled view (e.g. all claim positions at 0%) "]
[]
[null,"Below is an example of how this table could be filled out "]
[]
[null,"Master Claim Reference","Reserve Type","Individual Claimant Reference","Major injury Code suffered by claimant","Month / Year of Birth of Claimant","Gender of Claimant","PPO Flag","HOD","Claimant Status ( Open / Settled )","Currency","Evaluation Date","Discount rate used","Life Exp.","Multiplier \n(if applicable)","Total applicable Multiplicand","Paid","Outstanding","Incurred","Adjusted Paid","Adjusted Outstanding","Adjusted Incurred"]
[null,1234,"Claimant Specific",1,"S4 - High level paraplegia","08 / 1985","Female","No","Whole of Life","Open","GBP","2014-12-12",2.5000000000000001E-2,null,22,33854.545454545456,5200,744800,750000]
[null,1234,"Claimant Specific",1,"S4 - High level paraplegia","08 / 1985","Female","No","Whole of Life","Open","GBP","2015-05-14",2.5000000000000001E-2,null,21,113445.80952380953,117638,2382362,2500000]
[null,1234,"Claimant Specific",1,"S4 - High level paraplegia","08 / 1985","Female","Very Likely","Whole of Life","Open","GBP","2016-07-28",2.5000000000000001E-2,null,20,109037.35,319253,2180747,2500000,null,"   "]
[null,1234,"Claimant Specific",1,"S4 - High level paraplegia","08 / 1985","Female","Very Likely","Whole of Life","Open","GBP","2017-08-15",0.01,null,19,179504.63157894736,378512,3410588,3789100,null,"   "]
[null,1234,"Claimant Specific",1,"S4 - High level paraplegia","08 / 1985","Female","Very Likely","Whole of Life","Open","GBP","2017-08-14",-7.4999999999999997E-3,null,18,261049,378512,4698882,5077394,null,"   "]
[null,1234,"Claimant Specific",1,"O1 - Other","not applicable","not applicable","No","Non-Ogdenable","Open","GBP","2014-09-18",0,null,"not applicable","not applicable",2000,13000,15000,null," "]
[null,1234,"Claimant Specific",1,"O1 - Other","not applicable","not applicable","No","Non-Ogdenable","Open","GBP","2015-04-15",0,null,"not applicable","not applicable",12485,2265,14750]
[null,1234,"Claimant Specific",1,"O1 - Other","not applicable","not applicable","No","Non-Ogdenable","Settled","GBP","2016-01-15",0,null,"not applicable","not applicable",14568,0,14568]
[null,5678,"Claimant Specific",1,"A4 - Other amputation","06 / 1975","Male","No","Whole of Life","Open","GBP","2015-10-22",2.5000000000000001E-2,null,"( … )","( … )",11258,403742,415000]
[null,5678,"Claimant Specific",1,"A4 - Other amputation","06 / 1975","Male","No","Whole of Life","Open","GBP","2016-04-25",2.5000000000000001E-2,null,"( … )","( … )",78987,606013,685000]
[null,5678,"Claimant Specific",1,"A4 - Other amputation","06 / 1975","Male","No","Whole of Life","Open","GBP","2017-07-19",2.5000000000000001E-2,null,"( … )","( … )",104210,580790,685000]
[null,5678,"Claimant Specific",2,"F1 - Fatality","06 / 1975","Female","No","Whole of Life","Open","GBP","2015-10-22",2.5000000000000001E-2,null,"( … )","( … )",2000,10000,12000]
[null,5678,"Claimant Specific",2,"F1 - Fatality","06 / 1975","Female","No","Whole of Life","Settled","GBP","2016-09-24",2.5000000000000001E-2,null,"( … )","( … )",9841,500,10341]
[null,5678,"Claimant Specific",2,"F1 - Fatality","06 / 1975","Female","No","Whole of Life","Settled","GBP","2016-11-15",2.5000000000000001E-2,null,"( … )","( … )",10251,0,10251]
[null,5678,"Claimant Specific",3,"O1 - Other","not applicable","not applicable","No","Non-Ogdenable","Open","GBP","2015-10-22",2.5000000000000001E-2,null,"not applicable","not applicable",1658,7541,9199]
[null,5678,"Claimant Specific",3,"O1 - Other","not applicable","not applicable","No","Non-Ogdenable","Open","GBP","2016-10-30",2.5000000000000001E-2,null,"not applicable","not applicable",3268,10419,13687]
[null,5678,"Claimant Specific",3,"O1 - Other","not applicable","not applicable","No","Non-Ogdenable","Settled","GBP","2017-07-04",2.5000000000000001E-2,null,"not applicable","not applicable",12379,0,12379]
[null,9785,"Global",1,"not applicable","not applicable","not applicable","No","Global","Open","GBP","2015-10-22",2.5000000000000001E-2,null,"not applicable","not applicable",5000,1495000,1500000]
[null,9785,"Global",1,"not applicable","not applicable","not applicable","No","Global","Open","GBP","2016-01-03",2.5000000000000001E-2,null,"not applicable","not applicable",165483,2019117,2184600]
[null,9785,"Global",1,"not applicable","not applicable","not applicable","No","Global","Open","GBP","2017-04-15",-7.4999999999999997E-3,null,"not applicable","not applicable",978422,2121578,3100000]
[null,3741,"Global",1,"B4 - Some walking ability","08 / 1980","Male","Not Likely","Global","Open","GBP","2014-09-10",2.5000000000000001E-2,null,"not applicable","not applicable",500,2999500,3000000]
[null,3741,"Global",1,"B4 - Some walking ability","08 / 1980","Male","Not Likely","Global","Open","GBP","2015-02-01",2.5000000000000001E-2,null,"not applicable","not applicable",150000,4850000,5000000]
[null,3741,"Claimant Specific",1,"B4 - Some walking ability","08 / 1980","Male","Very Likely","Global","Open","GBP","2016-09-08",2.5000000000000001E-2,null,"( … )","( … )",1376124.4,3692367.44,5068491.84]
[null,3741,"PPO",1,"B4 - Some walking ability","08 / 1980","Male","Yes","Whole of Life","Open","GBP","2017-06-05",0,null,"not applicable","not applicable",1897000,3887100,5784100]
[null,3741,"PPO",1,"B4 - Some walking ability","08 / 1980","Male","Yes","Loss of Earnings","Open","GBP","2017-06-05",0,null,"not applicable","not applicable",75672,665542,741214]
[null,3741,"PPO",1,"B4 - Some walking ability","08 / 1980","Male","Yes","Costs","Open","GBP","2017-06-05",0,null,"not applicable","not applicable",218464,411055.09999999963,629519.09999999963]
[]
[]
[]
[]
[null,"Guidance question 4 (d)"]
[]
[null,"The code behind this appendix will take data from Question 4 (b) and (c) and create a triangle."]
[null,"In Its current form, it is a proof of concept to show that it is possible to create a triangle from the flat file; further work is still required in order to have this template working as intended."]
[]
[null,"To see the code in action, ensure that Macros are enabled, and then copy the example data in the tables above from Question 4 (b) and (c) and click the Create Triangle button in 4 (d)."]
[]
[]
[null,"Closing Note"]
[null,"The Intention is not to get this data for all claims historically, but for this to be adopted for all claims going forward (all historical claims could just be set to Global reserve types)"]
[]
[null,"As this is a new approach to submitting data to reinsurers, feedback is welcome."]
[]
[null,"Please contact:"]
[null,"tom.hughes@iua.co.uk"]
[null,"paul.calvert@iua.co.uk "]

{"sheet":"4(b)","index":12,"n_rows":5,"n_cols":36,"rows_kept":5,"cut":false,"hidden":true,"merged":[]}
["Insured name","Master Claim Reference","Original Policy inception Date","Latest Policy Renewal Date ( where claim occurred )","UWY","Date of Loss","Age of insured","Gender of insured","Age of driver at time of accident","Gender of driver involved in accident","Type of policy - Comp / Non-Comp","Learner Driver (Yes / No )","Telematics","Category of vehicle","Fleet / non-fleet","Number of claimants","Country of policy issue"]
["John",1234,"2014-08-21","2014-08-21",2014,"2014-11-15",30,"Male",null,null,"Comp","No","Yes","Motor Cars","Non-fleet",1,"UK",null,null,null,null,null,null,null,null,null,null,null,null,null,null,null,null,null,null,"Paid"]
["Jane",5678,"2014-03-06","2015-03-06",2015,"2015-06-27",37,"Female",null,null,"Comp","No","No","Motor Cars","Non-fleet",3,"UK",null,null,null,null,null,null,null,null,null,null,null,null,null,null,null,null,null,null,"OS"]
["Mark",9785,"2015-04-01","2015-04-01",2016,"2015-07-05",55,"Male",null,null,"Non-Comp","No","No","Motor Cars","Non-fleet",1,"UK",null,null,null,null,null,null,null,null,null,null,null,null,null,null,null,null,null,null,"OS"]
["Mary",3741,"2013-07-12","2014-07-12",2016,"2014-08-08",40,"Female",null,null,"Comp","No","No","Motor Cars","Non-fleet",1,"UK"]

{"sheet":"4(c)","index":13,"n_rows":27,"n_cols":21,"rows_kept":27,"cut":false,"hidden":true,"merged":[]}
["Master Claim Reference","Reserve Type","Individual Claimant Reference","Major injury suffered by claimant","Month / Year of Birth of Claimant","Gender of Claimant","Periodic Payments probability %","HOD","Claimant Status ( Open / Settled )","Currency","Evaluation Date","Discount rate used","Life Exp.","Average Multiplier","Average Multiplicand","Paid","Outstanding","Incurred","Adjusted Paid","Adjusted Outstanding","Adjusted Incurred"]
[1234,"Claimant Specific",1,"Paraplegia","08 / 1985","Female",0,"Whole of Life","Open","GBP","2014-12-12",2.5000000000000001E-2,null,22,33854.545454545456,5200,744800,750000]
[1234,"Claimant Specific",1,"Paraplegia","08 / 1985","Female",0,"Whole of Life","Open","GBP","2015-05-14",2.5000000000000001E-2,null,21,113445.80952380953,117638,2382362,2500000]
[1234,"Claimant Specific",1,"Paraplegia","08 / 1985","Female",0.75,"Whole of Life","Open","GBP","2016-07-28",2.5000000000000001E-2,null,20,109037.35,319253,2180747,2500000,null,"   "]
[1234,"Claimant Specific",1,"Paraplegia","08 / 1985","Female",0.75,"Whole of Life","Open","GBP","2017-08-15",0.01,null,19,179504.63157894736,378512,3410588,3789100,null,"   "]
[1234,"Claimant Specific",1,"Paraplegia","08 / 1985","Female",0.75,"Whole of Life","Open","GBP","2017-08-14",-7.4999999999999997E-3,null,18,261049,378512,4698882,5077394,null,"   "]
[1234,"Claimant Specific",1,"Other","not applicable","not applicable",0,"Non-Ogdenable","Open","GBP","2014-09-18",0,null,"not applicable","not applicable",2000,13000,15000,null," "]
[1234,"Claimant Specific",1,"Other","not applicable","not applicable",0,"Non-Ogdenable","Open","GBP","2015-04-15",0,null,"not applicable","not applicable",12485,2265,14750]
[1234,"Claimant Specific",1,"Other","not applicable","not applicable",0,"Non-Ogdenable","Settled","GBP","2016-01-15",0,null,"not applicable","not applicable",14568,0,14568]
[5678,"Claimant Specific",1,"Amputation","06 / 1975","Male",0,"Whole of Life","Open","GBP","2015-10-22",2.5000000000000001E-2,null,"( … )","( … )",11258,403742,415000]
[5678,"Claimant Specific",1,"Amputation","06 / 1975","Male",0,"Whole of Life","Open","GBP","2016-04-25",2.5000000000000001E-2,null,"( … )","( … )",78987,606013,685000]
[5678,"Claimant Specific",1,"Amputation","06 / 1975","Male",0,"Whole of Life","Open","GBP","2017-07-19",2.5000000000000001E-2,null,"( … )","( … )",104210,580790,685000]
[5678,"Claimant Specific",2,"Fatality","06 / 1975","Female",0,"Whole of Life","Open","GBP","2015-10-22",2.5000000000000001E-2,null,"( … )","( … )",2000,10000,12000]
[5678,"Claimant Specific",2,"Fatality","06 / 1975","Female",0,"Whole of Life","Settled","GBP","2016-09-24",2.5000000000000001E-2,null,"( … )","( … )",9841,500,10341]
[5678,"Claimant Specific",2,"Fatality","06 / 1975","Female",0,"Whole of Life","Settled","GBP","2016-11-15",2.5000000000000001E-2,null,"( … )","( … )",10251,0,10251]
[5678,"Claimant Specific",3,"Other","not applicable","not applicable",0,"Non-Ogdenable","Open","GBP","2015-10-22",2.5000000000000001E-2,null,"not applicable","not applicable",1658,7541,9199]
[5678,"Claimant Specific",3,"Other","not applicable","not applicable",0,"Non-Ogdenable","Open","GBP","2016-10-30",2.5000000000000001E-2,null,"not applicable","not applicable",3268,10419,13687]
[5678,"Claimant Specific",3,"Other","not applicable","not applicable",0,"Non-Ogdenable","Settled","GBP","2017-07-04",2.5000000000000001E-2,null,"not applicable","not applicable",12379,0,12379]
[9785,"Global",1,"not applicable","not applicable","not applicable",0,"not applicable","Open","GBP","2015-10-22",2.5000000000000001E-2,null,"not applicable","not applicable",5000,1495000,1500000]
[9785,"Global",1,"not applicable","not applicable","not applicable",0,"not applicable","Open","GBP","2016-01-03",2.5000000000000001E-2,null,"not applicable","not applicable",165483,2019117,2184600]
[9785,"Global",1,"not applicable","not applicable","not applicable",0,"not applicable","Open","GBP","2017-04-15",-7.4999999999999997E-3,null,"not applicable","not applicable",978422,2121578,3100000]
[3741,"Global",1,"Brain","08 / 1980","Male",0.3,"not applicable","Open","GBP","2014-09-10",2.5000000000000001E-2,null,"( … )","( … )",500,2999500,3000000]
[3741,"PPO",1,"Brain","08 / 1980","Male",0.5,"not applicable","Open","GBP","2015-02-01",2.5000000000000001E-2,null,"( … )","( … )",150000,4850000,5000000]
[3741,"PPO",1,"Brain","08 / 1980","Male",0.95,"not applicable","Open","GBP","2016-09-08",2.5000000000000001E-2,null,"( … )","( … )",1376124.4,3692367.44,5068491.84]
[3741,"PPO",1,"Brain","08 / 1980","Male",1,"Whole of Life","Open","GBP","2017-06-05",0,null,31.096800000000002,125000,1897000,3887100,5784100]
[3741,"PPO",1,"Brain","08 / 1980","Male",1,"Loss of Earnings","Open","GBP","2017-06-05",0,null,19.015485714285713,35000,75672,665542,741214]
[3741,"PPO",1,"Brain","08 / 1980","Male",1,"Non-Ogdenable","Open","GBP","2017-06-05",0,null,31.096800000000002,13218.565897455674,218464,411055.09999999963,629519.09999999963]

{"sheet":"4(d)","index":14,"n_rows":5,"n_cols":22,"rows_kept":5,"cut":false,"hidden":true,"merged":[]}
[]
[]
[]
[]
["Master Claim Reference","Insured name","Original Policy inception Date","Latest Policy Renewal Date (where claim occurred)","UWY","Date of Loss","Age of insured","Gender of insured","Age of driver at time of accident","Gender of driver involved in accident","Type of policy - Comp / Non-Comp","Learner Driver (Yes / No)","Telematics","Category of vehicle","Fleet / non-fleet","Number of claimants","Country of policy issue","Data Type",2014,2015,2016,2017]

{"sheet":"Question 5","index":15,"n_rows":42,"n_cols":97,"rows_kept":42,"cut":false,"hidden":false,"merged":[[5,5,5,6],[0,1,0,2],[5,1,6,1],[5,2,6,2],[5,3,6,3],[5,4,6,4],[5,7,5,11],[5,12,6,12],[5,13,5,20],[5,21,6,21],[5,22,6,22],[5,23,5,25],[5,26,6,26],[5,27,6,27],[5,28,5,31],[5,32,5,33],[5,34,6,34],[5,96,6,96],[5,36,6,36],[5,37,5,40],[5,52,5,65],[5,66,5,79],[5,80,5,93],[5,94,6,94],[5,95,6,95],[5,47,5,51],[5,44,5,46],[5,35,6,35]]}
[null,"Return to homepage"]
[]
[null,"Question 5"]
[null,"All dates in DD-MMM-YYYY format"]
[]
[null,"Reinsured's Claim Reference","Name of Insured","Date of Loss","Line of Business","Driver (if Motor)",null,"Original Policy Details",null,null,null,null,"Periodic Payments (Y/N) [1]","Claimant",null,null,null,null,null,null,null,"Date PPO Awarded/ Agreed","Date Lump Sum Paid","Life Expectancy at Date of Settlement [2]",null,null,"Latest Life Expectancy used for Appendix 4 (if changed since settlement) [3]","Date from which latest life expectancy is applicable [3]","Continuing Medical Examinations",null,null,null,"Variation Order ",null,"Date Deceased (if applicable)","Contributory Negligence % (Net)","Special Features - please use comment field at the end if necessary","Lump Sum (excl. Costs)",null,"Lump sum (incl costs) outstanding",null,"Costs (defendant)","Costs (claimant)","Costs (claimant's lawyer)","PPO payments to date (totals) gross of statutory funding",null,null,"Reverse Indemnity",null,null,null,null,"Future Care Periodic Payments (gross of statutory funding)",null,null,null,null,null,null,null,null,null,null,null,null,null,"Loss of Earnings Periodic Payments (gross of statutory funding)",null,null,null,null,null,null,null,null,null,null,null,null,null,"Other Periodic Payments (gross of statutory funding)",null,null,null,null,null,null,null,null,null,null,null,null,null,"Discount Rate Assumed for Compilation of Appendix 4","Discount rate used at settlement in original triangle (to calculate 'as-if' lump sum value of PPO)","Comments"]
["Claim formatting (hidden)",null,null,null,null,"Date of Birth","Gender","Inception Date","Indemnity Limit","Costs Basis","Attachment Point (if not Primary)","Share (if not 100%)",null,"Name","Date of Birth","Gender","Circumstances","Injury Type","Code","Care Regime","Mental Capacity?            Y/N",null,null,"Defendant Expert","Claimant Expert","Used for Reserving ",null,null,"Agreed in Order     Y/N","Frequency (years)","Date of Latest Review","Revised Life Expectancy if any [3]","Y/N","Trigger",null,null,null,"Paid to Date","Discount Rate applied to Lump Sum (if any)","Outstanding","Incurred",null,null,null,"Future care Periodical payments","Loss of Earnings Periodical payements","Other Periodical payments","Starting date of statutory funding","Starting value of statutory funding","Last annual amount of statutory funding received","Total amount of statutory funding received","Duration agreed, if any (in years)","Index","Percentile","Start Date","Payment Frequency (M/Q/A)","Step 1 Annualised Amount (unindexed)","Step 1  Number of Years Ordered","Step 2  Annualised Amount (unindexed)","Step 2  Number of Years Ordered","Step 3  Annualised Amount (unindexed)","Step 3  Number of Years Ordered","Step 4  Annualised Amount (unindexed)","Step 4  Number of Years Ordered","Step 5  Annualised Amount (unindexed)","Step 5  Number of Years Ordered","Index","Percentile","Start Date","Payment Frequency (M/Q/A)","Step 1 Annualised Amount (unindexed)","Step 1  Number of Years Ordered","Step 2  Annualised Amount (unindexed)","Step 2  Number of Years Ordered","Step 3  Annualised Amount (unindexed)","Step 3  Number of Years Ordered","Step 4  Annualised Amount (unindexed)","Step 4  Number of Years Ordered","Step 5  Annualised Amount (unindexed)","Step 5  Number of Years Ordered","Index","Percentile","Start Date","Payment Frequency (M/Q/A)","Step 1 Annualised Amount (unindexed)","Step 1  Number of Years Ordered","Step 2  Annualised Amount (unindexed)","Step 2  Number of Years Ordered","Step 3  Annualised Amount (unindexed)","Step 3  Number of Years Ordered","Step 4  Annualised Amount (unindexed)","Step 4  Number of Years Ordered","Step 5  Annualised Amount (unindexed)","Step 5  Number of Years Ordered"]
[1,null,null,null,null,null,null,null,null,null,null,null,null,null,null,null,null,null,null,null,null,null,null,null,null,null,null,null,null,null,null,null,null,null,null,null,null,null,null,null,{"$f":"AN8+AL8","v":0}]
[{"$f":"IF(B9=B8,A8,A8+1)","v":1},null,null,null,null,null,null,null,null,null,null,null,null,null,null,null,null,null,null,null,null,null,null,null,null,null,null,null,null,null,null,null,null,null,null,null,null,null,null,null,0]
[{"$f":"IF(B10=B9,A9,A9+1)","v":1},null,null,null,null,null,null,null,null,null,null,null,null,null,null,null,null,null,null,null,null,null,null,null,null,null,null,null,null,null,null,null,null,null,null,null,null,null,null,null,0]
[1,null,null,null,null,null,null,null,null,null,null,null,null,null,null,null,null,null,null,null,null,null,null,null,null,null,null,null,null,null,null,null,null,null,null,null,null,null,null,null,0]
[1,null,null,null,null,null,null,null,null,null,null,null,null,null,null,null,null,null,null,null,null,null,null,null,null,null,null,null,null,null,null,null,null,null,null,null,null,null,null,null,0]
[1,null,null,null,null,null,null,null,null,null,null,null,null,null,null,null,null,null,null,null,null,null,null,null,null,null,null,null,null,null,null,null,null,null,null,null,null,null,null,null,0]
[1,null,null,null,null,null,null,null,null,null,null,null,null,null,null,null,null,null,null,null,null,null,null,null,null,null,null,null,null,null,null,null,null,null,null,null,null,null,null,null,0]
[1,null,null,null,null,null,null,null,null,null,null,null,null,null,null,null,null,null,null,null,null,null,null,null,null,null,null,null,null,null,null,null,null,null,null,null,null,null,null,null,0]
[1,null,null,null,null,null,null,null,null,null,null,null,null,null,null,null,null,null,null,null,null,null,null,null,null,null,null,null,null,null,null,null,null,null,null,null,null,null,null,null,0]
[1,null,null,null,null,null,null,null,null,null,null,null,null,null,null,null,null,null,null,null,null,null,null,null,null,null,null,null,null,null,null,null,null,null,null,null,null,null,null,null,0]
[1,null,null,null,null,null,null,null,null,null,null,null,null,null,null,null,null,null,null,null,null,null,null,null,null,null,null,null,null,null,null,null,null,null,null,null,null,null,null,null,0]
[1,null,null,null,null,null,null,null,null,null,null,null,null,null,null,null,null,null,null,null,null,null,null,null,null,null,null,null,null,null,null,null,null,null,null,null,null,null,null,null,0]
[1,null,null,null,null,null,null,null,null,null,null,null,null,null,null,null,null,null,null,null,null,null,null,null,null,null,null,null,null,null,null,null,null,null,null,null,null,null,null,null,0]
[1,null,null,null,null,null,null,null,null,null,null,null,null,null,null,null,null,null,null,null,null,null,null,null,null,null,null,null,null,null,null,null,null,null,null,null,null,null,null,null,0]
[1,null,null,null,null,null,null,null,null,null,null,null,null,null,null,null,null,null,null,null,null,null,null,null,null,null,null,null,null,null,null,null,null,null,null,null,null,null,null,null,0]
[1,null,null,null,null,null,null,null,null,null,null,null,null,null,null,null,null,null,null,null,null,null,null,null,null,null,null,null,null,null,null,null,null,null,null,null,null,null,null,null,0]
[1,null,null,null,null,null,null,null,null,null,null,null,null,null,null,null,null,null,null,null,null,null,null,null,null,null,null,null,null,null,null,null,null,null,null,null,null,null,null,null,0]
[1,null,null,null,null,null,null,null,null,null,null,null,null,null,null,null,null,null,null,null,null,null,null,null,null,null,null,null,null,null,null,null,null,null,null,null,null,null,null,null,0]
[1,null,null,null,null,null,null,null,null,null,null,null,null,null,null,null,null,null,null,null,null,null,null,null,null,null,null,null,null,null,null,null,null,null,null,null,null,null,null,null,0]
[1,null,null,null,null,null,null,null,null,null,null,null,null,null,null,null,null,null,null,null,null,null,null,null,null,null,null,null,null,null,null,null,null,null,null,null,null,null,null,null,0]
[1,null,null,null,null,null,null,null,null,null,null,null,null,null,null,null,null,null,null,null,null,null,null,null,null,null,null,null,null,null,null,null,null,null,null,null,null,null,null,null,0]
[1,null,null,null,null,null,null,null,null,null,null,null,null,null,null,null,null,null,null,null,null,null,null,null,null,null,null,null,null,null,null,null,null,null,null,null,null,null,null,null,0]
[]
[]
[null,"GENERAL NOTES"]
[null,"Please note that this spreadsheet is NOT a calculation tool."]
[null,"BLUE cells are only entered once, GREEN cells need completing/updating if relevant, YELLOW cells are calculated automatically"]
[null,"Columns with a MAUVE heading box are completed using the drop downs within the relevant cells."]
[null,"Please enter all amounts net of any contributory negligence and contributions from other insurers"]
[null,"Please enter all data AS AT THE DATE OF THE TRIANGULATION IN APPENDIX 4 (except where specifically requested otherwise)."]
[]
[null,"SPECIFIC NOTES"]
[null,"[1] Aggregate all claimants that have no PPO element"]
[null,"[2] Input the number of years the claimant is expected to live for from the date of settlement."]
[null,"[3] Input the number of years the claimant is expected to live from revised date; Please clearly specify the date from which this life expectancy is applicable"]

{"sheet":"References","index":16,"n_rows":18,"n_cols":16,"rows_kept":18,"cut":false,"hidden":false,"merged":[]}
["Driver Gender","Yes/No","Line of Business","Circumstance","Injury Types","Code","Care Regime","None","Index","Percentile","Payments","Variation order trigger","All inclusive","HOD","PPO","Contributory Negligence"]
["F","Y","Motor","Casualty Claimant","Brain","B1 - PVS","C1 - 24/7 two or more carers at any one time","Indemnity","ASHE 6115","70th","Monthly","Post Traumatic Epilepsy ","Defence costs in addition","Whole of Life","Yes","Net"]
["M","N","Employers Liability","Cyclist","Spinal","B2 - Cannot walk, fed by others","C2 - 24/7 one full time carer plus part-time support","Indemnity Guarantee","ASHE 3211","75th","Quarterly","Syringomyelia","Defence and claimant costs in addition","Loss of Earnings","No","Gross"]
[null,null,"Public/Products Liability","Motorcyclist","Amputation ","B3 - Cannot walk, self feeds","C3 - 24/7 but carer can sleep at night","Reverse Indemnity Guarantee","ASHE 4113","80th","Annually","Other",null,"Accommodation","Very Likely"]
[null,null,"Professional indemnity (incl. Med Mal)","Pedestrian","Other","B4 - Some walking ability","C4 - 9 or more hours a day","Other","AEI","85th",null,null,null,"Non-Ogdenable","Not Likely"]
[null,null,"Other","Passenger","Fatality","B5 - Walks well alone","C5 - 5 to 8 hours a day",null,"RPI","90th",null,null,null,"Global"]
[null,null,null,"Third Party Driver",null,"B6 - No mobility issues","C6 - 0 to 4 hours a day",null,"Other ","N/A"]
[null,null,null,"Third Party Passenger",null,"S1 - Ventilated tetraplegic","C7 - domestic help only"]
[null,null,null,"Other",null,"S2 - High level tetraplegia","C8 - no regular care"]
[null,null,null,null,null,"S3 - Low level tetraplegia"]
[null,null,null,null,null,"S4 - High level paraplegia"]
[null,null,null,null,null,"S5 - Low level paraplegia"]
[null,null,null,null,null,"A1 - Double upper limb"]
[null,null,null,null,null,"A2 - Above knee"]
[null,null,null,null,null,"A3 - Below knee"]
[null,null,null,null,null,"A4 - Other amputation"]
[null,null,null,null,null,"O1 - Other"]
[null,null,null,null,null,"F1 - Fatality"]